Workbook

Sheet Plan1
B6: Se for apresentado um Aviso de Segurança dizendo que "As macros foram desabilitadas." : Clique em Opções e a seguir clicar na opção Habilitar este conteúdo.
B8: Para melhor visualização deste Painel Dashboards, em qualquer Tabela ou Gráfico, pode-se utilizar o recurso de: Pressionar a tecla Ctrl + Roda de Rolagem do mouse (Botão Scroll), ajustando para cima ou para baixo.

Sheet TD (hidden)
B1: Ano | C1: 2019
B2: Seção Judiciária | C2: SJRJ
B3: Base | C3: (Tudo)
C5: Valores
B6: Tipo de Juízo e Mês | C6: Distribuídos | D6: Julgados | E6: Remetidos TRF/TR | F6: Tramitação Real | G6: Mapa Geral Judicial do 1º Grau
B7: Varas | C7: 104257 | D7: 106054 | E7: 48766 | F7: 7081472
B8: Janeiro | C8: 5667 | D8: 5869 | E8: 2455 | F8: 588642 | G8: Orientações para a utilização da "Tabela Dinâmica".
B9: Fevereiro | C9: 7171 | D9: 8816 | E9: 4057 | F9: 587658
B10: Março | C10: 12062 | D10: 6837 | E10: 3342 | F10: 593340 | G10: Nos campos de filtro "Ano", "Seção Judiciária" e "Base" da tabela ao lado, dentre as opções:
B11: Abril | C11: 7384 | D11: 7509 | E11: 3517 | F11: 593128
B12: Maio | C12: 8306 | D12: 10339 | E12: 4585 | F12: 641499 | G12: Selecione um "Ano" : | I12: Selecione uma "Seção Judiciária" : | L12: Selecione uma "Base" :
B13: Junho | C13: 6521 | D13: 7922 | E13: 3958 | F13: 588746
B14: Julho | C14: 9017 | D14: 10649 | E14: 5186 | F14: 585890
B15: Agosto | C15: 8605 | D15: 12638 | E15: 5101 | F15: 583146
B16: Setembro | C16: 7800 | D16: 10776 | E16: 4958 | F16: 579786
B17: Outubro | C17: 8743 | D17: 10000 | E17: 4939 | F17: 576370
B18: Novembro | C18: 11788 | D18: 7975 | E18: 3737 | F18: 579231
B19: Dezembro | C19: 11193 | D19: 6724 | E19: 2931 | F19: 584036
B20: Juizados | C20: 136140 | D20: 129262 | E20: 12351 | F20: 1474760
B21: Janeiro | C21: 6956 | D21: 8480 | E21: 961 | F21: 117497
B22: Fevereiro | C22: 9720 | D22: 11015 | E22: 1397 | F22: 113766
B23: Março | C23: 8356 | D23: 9087 | E23: 899 | F23: 113115
B24: Abril | C24: 9611 | D24: 8883 | E24: 840 | F24: 113864
B25: Maio | C25: 11212 | D25: 11869 | E25: 1007 | F25: 114865
B26: Junho | C26: 9281 | D26: 10388 | E26: 916 | F26: 118415
B27: Julho | C27: 11864 | D27: 12828 | E27: 1216 | F27: 123155 | G27: Nos campos de coluna "Tipo de Juízo e Mês" da tabela ao lado, dentre as opções:
B28: Agosto | C28: 11086 | D28: 13552 | E28: 1195 | F28: 123049
B29: Setembro | C29: 10461 | D29: 11699 | E29: 1176 | F29: 125369 | G29: Selecione um "Tipo de Juízo" : | J29: Selecione um "Mês" :
B30: Outubro | C30: 13305 | D30: 12544 | E30: 1163 | F30: 126324
B31: Novembro | C31: 24930 | D31: 10571 | E31: 861 | F31: 142154
B32: Dezembro | C32: 9358 | D32: 8346 | E32: 720 | F32: 143187
B33: Turmas Recursais | C33: 36628 | D33: 55379 | E33: 0 | F33: 623089
B34: Janeiro | C34: 2570 | D34: 1980 | E34: 0 | F34: 57549
B35: Fevereiro | C35: 3383 | D35: 3215 | E35: 0 | F35: 58095
B36: Março | C36: 2911 | D36: 4198 | E36: 0 | F36: 58268
B37: Abril | C37: 2877 | D37: 3319 | E37: 0 | F37: 58438
B38: Maio | C38: 3092 | D38: 15316 | E38: 0 | F38: 59471
B39: Junho | C39: 2847 | D39: 4232 | E39: 0 | F39: 54661
B40: Julho | C40: 3713 | D40: 3690 | E40: 0 | F40: 49690
B41: Agosto | C41: 3584 | D41: 3903 | E41: 0 | F41: 47829
B42: Setembro | C42: 3536 | D42: 4541 | E42: 0 | F42: 46333
B43: Outubro | C43: 3392 | D43: 4321 | E43: 0 | F43: 44547
B44: Novembro | C44: 2603 | D44: 3315 | E44: 0 | F44: 44191 | G44: Obs. 1: Os Processos Julgados nas Varas e Juizados incluem os Embargos.
B45: Dezembro | C45: 2120 | D45: 3349 | E45: 0 | F45: 44017 | G45: Obs. 2: Tramitação Real = Tramitação de Processos no Final do Período (Ano e Mês).
B46: Total geral | C46: 277025 | D46: 290695 | E46: 61117 | F46: 9179321 | G46: Obs. 3: Tramitação Real inclui Processos suspensos e os que aguardam julg de recursos.
B47: OBS.: Os valores poderão ser alterados, em função de modificações na base de dados, por parte do usuário.
A49: Ainda não estão incluídos os Processos do "Eproc". (Desde o dia 23 de fevereiro de 2018, o sistema processual Eproc está em funcionamento na Justiça Federal da 2ª Região. Inicialmente, sua implantação ocorreu nos Juizados Especiais Federais de Vitória/ES e Turmas Recursais do Espírito Santo.) | B49: _ Desde o dia 23 de Fevereiro de 2018, o NOVO sistema processual "Eproc" está em funcionamento na Justiça Federal da 2ª Região.

Sheet PaM (hidden)
B2: Ano | D2: Seção Judiciária | G2: =TA!$I$37 -> Mapa Geral Judicial do 1º Grau (Eproc) | T2: SpA
D4: Distribuídos | E4: Acum. Mensal | F4: Julgados | G4: Acum. Mensal | H4: Remetidos ao TRF/TR | I4: Acum. Mensal | J4: Tramitação "Real" | K4: % Variação Mensal da Tramitação "Real"
B5: Mês | C5: Tipo de Juízo
B6: Dezembro | C6: Varas | D6: =IF(TA!$C$17=3,SUMIF(Dados!$B$2:$L$1081,TA!$A$20&PaM!$C6&PaM!$B$6,Dados!$I$2:$I$1081),VLOOKUP(TA!$D$20&$C6&$B$6,Dados!$A$2:$L$1081,9,0)) -> 620 | F6: =IF(TA!$C$17=3,SUMIF(Dados!$B$2:$L$1081,TA!$A$20&PaM!$C6&PaM!$B$6,Dados!$J$2:$J$1081),VLOOKUP(TA!$D$20&$C6&$B$6,Dados!$A$2:$L$1081,10,0)) -> 5333 | H6: =IF(TA!$C$17=3,SUMIF(Dados!$B$2:$L$1081,TA!$A$20&PaM!$C6&PaM!$B$6,Dados!$K$2:$K$1081),VLOOKUP(TA!$D$20&$C6&$B$6,Dados!$A$2:$L$1081,11,0)) -> 1127 | J6: =IF(TA!$A$18=2020,TA!$C$45,TA!$F$18) -> 530063 | K6: already implemented
C7: Juizados | D7: =IF(TA!$C$17=3,SUMIF(Dados!$B$2:$L$1081,TA!$A$20&PaM!$C7&PaM!$B$6,Dados!$I$2:$I$1081),VLOOKUP(TA!$D$20&$C7&$B$6,Dados!$A$2:$L$1081,9,0)) -> 2 | F7: =IF(TA!$C$17=3,SUMIF(Dados!$B$2:$L$1081,TA!$A$20&PaM!$C7&PaM!$B$6,Dados!$J$2:$J$1081),VLOOKUP(TA!$D$20&$C7&$B$6,Dados!$A$2:$L$1081,10,0)) -> 2556 | H7: =IF(TA!$C$17=3,SUMIF(Dados!$B$2:$L$1081,TA!$A$20&PaM!$C7&PaM!$B$6,Dados!$K$2:$K$1081),VLOOKUP(TA!$D$20&$C7&$B$6,Dados!$A$2:$L$1081,11,0)) -> 580 | J7: =IF(TA!$A$18=2020,TA!$C$46,TA!$F$19) -> 36713 | K7: when
C8: Turmas Recursais | D8: =IF(TA!$C$17=3,SUMIF(Dados!$B$2:$L$1081,TA!$A$20&PaM!$C8&PaM!$B$6,Dados!$I$2:$I$1081),VLOOKUP(TA!$D$20&$C8&$B$6,Dados!$A$2:$L$1081,9,0)) -> 70 | F8: =IF(TA!$C$17=3,SUMIF(Dados!$B$2:$L$1081,TA!$A$20&PaM!$C8&PaM!$B$6,Dados!$J$2:$J$1081),VLOOKUP(TA!$D$20&$C8&$B$6,Dados!$A$2:$L$1081,10,0)) -> 1991 | H8: =IF(TA!$C$17=3,SUMIF(Dados!$B$2:$L$1081,TA!$A$20&PaM!$C8&PaM!$B$6,Dados!$K$2:$K$1081),VLOOKUP(TA!$D$20&$C8&$B$6,Dados!$A$2:$L$1081,11,0)) -> 0 | J8: =IF(TA!$A$18=2020,TA!$C$47,TA!$F$20) -> 50962 | K8: 2020
B9: Total | D9: =SUM(D6:D8) -> 692 | F9: =SUM(F6:F8) -> 9880 | H9: =SUM(H6:H8) -> 1707 | J9: =SUM(J6:J8) -> 617738
B10: Janeiro | C10: Varas | D10: =IF(TA!$C$17=3,SUMIF(Dados!$B$2:$L$1081,TA!$A$18&PaM!$C10&PaM!$B$10,Dados!$I$2:$I$1081),VLOOKUP(TA!$D$18&$C10&$B$10,Dados!$A$2:$L$1081,9,0)) -> 827 | E10: =IF(D10=0,"",D10) -> 827 | F10: =IF(TA!$C$17=3,SUMIF(Dados!$B$2:$L$1081,TA!$A$18&PaM!$C10&PaM!$B$10,Dados!$J$2:$J$1081),VLOOKUP(TA!$D$18&$C10&$B$10,Dados!$A$2:$L$1081,10,0)) -> 4735 | G10: =IF(F10=0,"",F10) -> 4735 | H10: =IF(TA!$C$17=3,SUMIF(Dados!$B$2:$L$1081,TA!$A$18&PaM!$C10&PaM!$B$10,Dados!$K$2:$K$1081),VLOOKUP(TA!$D$18&$C10&$B$10,Dados!$A$2:$L$1081,11,0)) -> 1009 | I10: =IF(H10=0,"",H10) -> 1009 | J10: =IF(TA!$C$17=3,SUMIF(Dados!$B$2:$L$1081,TA!$A$18&PaM!$C10&PaM!$B$10,Dados!$L$2:$L$1081),VLOOKUP(TA!$D$18&$C10&$B$10,Dados!$A$2:$L$1081,12,0)) -> 513561 | K10: =IF(J10=0,"",(J10/J6)-1) -> -0.03113214844
C11: Juizados | D11: =IF(TA!$C$17=3,SUMIF(Dados!$B$2:$L$1081,TA!$A$18&PaM!$C11&PaM!$B$10,Dados!$I$2:$I$1081),VLOOKUP(TA!$D$18&$C11&$B$10,Dados!$A$2:$L$1081,9,0)) -> 6 | E11: =IF(D11=0,"",D11) -> 6 | F11: =IF(TA!$C$17=3,SUMIF(Dados!$B$2:$L$1081,TA!$A$18&PaM!$C11&PaM!$B$10,Dados!$J$2:$J$1081),VLOOKUP(TA!$D$18&$C11&$B$10,Dados!$A$2:$L$1081,10,0)) -> 2186 | G11: =IF(F11=0,"",F11) -> 2186 | H11: =IF(TA!$C$17=3,SUMIF(Dados!$B$2:$L$1081,TA!$A$18&PaM!$C11&PaM!$B$10,Dados!$K$2:$K$1081),VLOOKUP(TA!$D$18&$C11&$B$10,Dados!$A$2:$L$1081,11,0)) -> 592 | I11: =IF(H11=0,"",H11) -> 592 | J11: =IF(TA!$C$17=3,SUMIF(Dados!$B$2:$L$1081,TA!$A$18&PaM!$C11&PaM!$B$10,Dados!$L$2:$L$1081),VLOOKUP(TA!$D$18&$C11&$B$10,Dados!$A$2:$L$1081,12,0)) -> 33022 | K11: =IF(J11=0,"",(J11/J7)-1) -> -0.1005365947 | L11: Obs. 1: Os Processos Julgados nas Varas e Juizados incluem os Embargos.
C12: Turmas Recursais | D12: =IF(TA!$C$17=3,SUMIF(Dados!$B$2:$L$1081,TA!$A$18&PaM!$C12&PaM!$B$10,Dados!$I$2:$I$1081),VLOOKUP(TA!$D$18&$C12&$B$10,Dados!$A$2:$L$1081,9,0)) -> 1034 | E12: =IF(D12=0,"",D12) -> 1034 | F12: =IF(TA!$C$17=3,SUMIF(Dados!$B$2:$L$1081,TA!$A$18&PaM!$C12&PaM!$B$10,Dados!$J$2:$J$1081),VLOOKUP(TA!$D$18&$C12&$B$10,Dados!$A$2:$L$1081,10,0)) -> 1316 | G12: =IF(F12=0,"",F12) -> 1316 | H12: =IF(TA!$C$17=3,SUMIF(Dados!$B$2:$L$1081,TA!$A$18&PaM!$C12&PaM!$B$10,Dados!$K$2:$K$1081),VLOOKUP(TA!$D$18&$C12&$B$10,Dados!$A$2:$L$1081,11,0)) -> 0 | I12: =IF(H12=0,"",H12) ->  | J12: =IF(TA!$C$17=3,SUMIF(Dados!$B$2:$L$1081,TA!$A$18&PaM!$C12&PaM!$B$10,Dados!$L$2:$L$1081),VLOOKUP(TA!$D$18&$C12&$B$10,Dados!$A$2:$L$1081,12,0)) -> 50625 | K12: =IF(J12=0,"",(J12/J8)-1) -> -0.006612770299
B13: Total | D13: =SUM(D10:D12) -> 1867 | E13: =IF(D13=0,"",SUM(E10:E12)) -> 1867 | F13: =SUM(F10:F12) -> 8237 | G13: =IF(F13=0,"",SUM(G10:G12)) -> 8237 | H13: =SUM(H10:H12) -> 1601 | I13: =IF(H13=0,"",SUM(I10:I12)) -> 1601 | J13: =SUM(J10:J12) -> 597208 | K13: =IF(J13=0,"",(J13/J9)-1) -> -0.03323415429
B14: Fevereiro | C14: Varas | D14: =IF(TA!$C$17=3,SUMIF(Dados!$B$2:$L$1081,TA!$A$18&PaM!$C14&PaM!$B$14,Dados!$I$2:$I$1081),VLOOKUP(TA!$D$18&$C14&$B$14,Dados!$A$2:$L$1081,9,0)) -> 816 | E14: =IF(D14=0,"",E10+D14) -> 1643 | F14: =IF(TA!$C$17=3,SUMIF(Dados!$B$2:$L$1081,TA!$A$18&PaM!$C14&PaM!$B$14,Dados!$J$2:$J$1081),VLOOKUP(TA!$D$18&$C14&$B$14,Dados!$A$2:$L$1081,10,0)) -> 5988 | G14: =IF(F14=0,"",G10+F14) -> 10723 | H14: =IF(TA!$C$17=3,SUMIF(Dados!$B$2:$L$1081,TA!$A$18&PaM!$C14&PaM!$B$14,Dados!$K$2:$K$1081),VLOOKUP(TA!$D$18&$C14&$B$14,Dados!$A$2:$L$1081,11,0)) -> 1030 | I14: =IF(H14=0,"",I10+H14) -> 2039 | J14: =IF(TA!$C$17=3,SUMIF(Dados!$B$2:$L$1081,TA!$A$18&PaM!$C14&PaM!$B$14,Dados!$L$2:$L$1081),VLOOKUP(TA!$D$18&$C14&$B$14,Dados!$A$2:$L$1081,12,0)) -> 481199 | K14: =IF(J14=0,"",(J14/J10)-1) -> -0.06301490962
C15: Juizados | D15: =IF(TA!$C$17=3,SUMIF(Dados!$B$2:$L$1081,TA!$A$18&PaM!$C15&PaM!$B$14,Dados!$I$2:$I$1081),VLOOKUP(TA!$D$18&$C15&$B$14,Dados!$A$2:$L$1081,9,0)) -> 3 | E15: =IF(D15=0,"",E11+D15) -> 9 | F15: =IF(TA!$C$17=3,SUMIF(Dados!$B$2:$L$1081,TA!$A$18&PaM!$C15&PaM!$B$14,Dados!$J$2:$J$1081),VLOOKUP(TA!$D$18&$C15&$B$14,Dados!$A$2:$L$1081,10,0)) -> 1415 | G15: =IF(F15=0,"",G11+F15) -> 3601 | H15: =IF(TA!$C$17=3,SUMIF(Dados!$B$2:$L$1081,TA!$A$18&PaM!$C15&PaM!$B$14,Dados!$K$2:$K$1081),VLOOKUP(TA!$D$18&$C15&$B$14,Dados!$A$2:$L$1081,11,0)) -> 632 | I15: =IF(H15=0,"",I11+H15) -> 1224 | J15: =IF(TA!$C$17=3,SUMIF(Dados!$B$2:$L$1081,TA!$A$18&PaM!$C15&PaM!$B$14,Dados!$L$2:$L$1081),VLOOKUP(TA!$D$18&$C15&$B$14,Dados!$A$2:$L$1081,12,0)) -> 24520 | K15: -0.2574647205 | L15: Obs. 2: Na Tramitação "Real", estão incluídos os Processos suspensos e os que aguardam julgamento de recurso.
C16: Turmas Recursais | D16: =IF(TA!$C$17=3,SUMIF(Dados!$B$2:$L$1081,TA!$A$18&PaM!$C16&PaM!$B$14,Dados!$I$2:$I$1081),VLOOKUP(TA!$D$18&$C16&$B$14,Dados!$A$2:$L$1081,9,0)) -> 265 | E16: =IF(D16=0,"",E12+D16) -> 1299 | F16: =IF(TA!$C$17=3,SUMIF(Dados!$B$2:$L$1081,TA!$A$18&PaM!$C16&PaM!$B$14,Dados!$J$2:$J$1081),VLOOKUP(TA!$D$18&$C16&$B$14,Dados!$A$2:$L$1081,10,0)) -> 2355 | G16: =IF(F16=0,"",G12+F16) -> 3671 | H16: =IF(TA!$C$17=3,SUMIF(Dados!$B$2:$L$1081,TA!$A$18&PaM!$C16&PaM!$B$14,Dados!$K$2:$K$1081),VLOOKUP(TA!$D$18&$C16&$B$14,Dados!$A$2:$L$1081,11,0)) -> 0 | I16: =IF(H16=0,"",I12+H16) ->  | J16: =IF(TA!$C$17=3,SUMIF(Dados!$B$2:$L$1081,TA!$A$18&PaM!$C16&PaM!$B$14,Dados!$L$2:$L$1081),VLOOKUP(TA!$D$18&$C16&$B$14,Dados!$A$2:$L$1081,12,0)) -> 48799 | K16: -0.0360691358
B17: Total | D17: =SUM(D14:D16) -> 1084 | E17: =IF(D17=0,"",SUM(E14:E16)) -> 2951 | F17: =SUM(F14:F16) -> 9758 | G17: =IF(F17=0,"",SUM(G14:G16)) -> 17995 | H17: =SUM(H14:H16) -> 1662 | I17: =IF(H17=0,"",SUM(I14:I16)) -> 3263 | J17: =SUM(J14:J16) -> 554518 | K17: -0.07148263252
B18: Março | C18: Varas | D18: =IF(TA!$C$17=3,SUMIF(Dados!$B$2:$L$1081,TA!$A$18&PaM!$C18&PaM!$B$18,Dados!$I$2:$I$1081),VLOOKUP(TA!$D$18&$C18&$B$18,Dados!$A$2:$L$1081,9,0)) -> 616 | E18: =IF(D18=0,"",E14+D18) -> 2259 | F18: =IF(TA!$C$17=3,SUMIF(Dados!$B$2:$L$1081,TA!$A$18&PaM!$C18&PaM!$B$18,Dados!$J$2:$J$1081),VLOOKUP(TA!$D$18&$C18&$B$18,Dados!$A$2:$L$1081,10,0)) -> 4023 | G18: =IF(F18=0,"",G14+F18) -> 14746 | H18: =IF(TA!$C$17=3,SUMIF(Dados!$B$2:$L$1081,TA!$A$18&PaM!$C18&PaM!$B$18,Dados!$K$2:$K$1081),VLOOKUP(TA!$D$18&$C18&$B$18,Dados!$A$2:$L$1081,11,0)) -> 797 | I18: =IF(H18=0,"",I14+H18) -> 2836 | J18: =IF(TA!$C$17=3,SUMIF(Dados!$B$2:$L$1081,TA!$A$18&PaM!$C18&PaM!$B$18,Dados!$L$2:$L$1081),VLOOKUP(TA!$D$18&$C18&$B$18,Dados!$A$2:$L$1081,12,0)) -> 460944 | K18: =IF(J18=0,"",(J18/J14)-1) -> -0.04209277243
C19: Juizados | D19: =IF(TA!$C$17=3,SUMIF(Dados!$B$2:$L$1081,TA!$A$18&PaM!$C19&PaM!$B$18,Dados!$I$2:$I$1081),VLOOKUP(TA!$D$18&$C19&$B$18,Dados!$A$2:$L$1081,9,0)) -> 1 | E19: =IF(D19=0,"",E15+D19) -> 10 | F19: =IF(TA!$C$17=3,SUMIF(Dados!$B$2:$L$1081,TA!$A$18&PaM!$C19&PaM!$B$18,Dados!$J$2:$J$1081),VLOOKUP(TA!$D$18&$C19&$B$18,Dados!$A$2:$L$1081,10,0)) -> 867 | G19: =IF(F19=0,"",G15+F19) -> 4468 | H19: =IF(TA!$C$17=3,SUMIF(Dados!$B$2:$L$1081,TA!$A$18&PaM!$C19&PaM!$B$18,Dados!$K$2:$K$1081),VLOOKUP(TA!$D$18&$C19&$B$18,Dados!$A$2:$L$1081,11,0)) -> 331 | I19: =IF(H19=0,"",I15+H19) -> 1555 | J19: =IF(TA!$C$17=3,SUMIF(Dados!$B$2:$L$1081,TA!$A$18&PaM!$C19&PaM!$B$18,Dados!$L$2:$L$1081),VLOOKUP(TA!$D$18&$C19&$B$18,Dados!$A$2:$L$1081,12,0)) -> 21189 | K19: -0.1358482871
C20: Turmas Recursais | D20: =IF(TA!$C$17=3,SUMIF(Dados!$B$2:$L$1081,TA!$A$18&PaM!$C20&PaM!$B$18,Dados!$I$2:$I$1081),VLOOKUP(TA!$D$18&$C20&$B$18,Dados!$A$2:$L$1081,9,0)) -> 492 | E20: =IF(D20=0,"",E16+D20) -> 1791 | F20: =IF(TA!$C$17=3,SUMIF(Dados!$B$2:$L$1081,TA!$A$18&PaM!$C20&PaM!$B$18,Dados!$J$2:$J$1081),VLOOKUP(TA!$D$18&$C20&$B$18,Dados!$A$2:$L$1081,10,0)) -> 2338 | G20: =IF(F20=0,"",G16+F20) -> 6009 | H20: =IF(TA!$C$17=3,SUMIF(Dados!$B$2:$L$1081,TA!$A$18&PaM!$C20&PaM!$B$18,Dados!$K$2:$K$1081),VLOOKUP(TA!$D$18&$C20&$B$18,Dados!$A$2:$L$1081,11,0)) -> 0 | I20: =IF(H20=0,"",I16+H20) ->  | J20: =IF(TA!$C$17=3,SUMIF(Dados!$B$2:$L$1081,TA!$A$18&PaM!$C20&PaM!$B$18,Dados!$L$2:$L$1081),VLOOKUP(TA!$D$18&$C20&$B$18,Dados!$A$2:$L$1081,12,0)) -> 47420 | K20: -0.02825877579
B21: Total | D21: =SUM(D18:D20) -> 1109 | E21: =IF(D21=0,"",SUM(E18:E20)) -> 4060 | F21: =SUM(F18:F20) -> 7228 | G21: =IF(F21=0,"",SUM(G18:G20)) -> 25223 | H21: =SUM(H18:H20) -> 1128 | I21: =IF(H21=0,"",SUM(I18:I20)) -> 4391 | J21: =SUM(J18:J20) -> 529553 | K21: -0.04502108137
B22: Abril | C22: Varas | D22: =IF(TA!$C$17=3,SUMIF(Dados!$B$2:$L$1081,TA!$A$18&PaM!$C22&PaM!$B$22,Dados!$I$2:$I$1081),VLOOKUP(TA!$D$18&$C22&$B$22,Dados!$A$2:$L$1081,9,0)) -> 641 | E22: =IF(D22=0,"",E18+D22) -> 2900 | F22: =IF(TA!$C$17=3,SUMIF(Dados!$B$2:$L$1081,TA!$A$18&PaM!$C22&PaM!$B$22,Dados!$J$2:$J$1081),VLOOKUP(TA!$D$18&$C22&$B$22,Dados!$A$2:$L$1081,10,0)) -> 4226 | G22: =IF(F22=0,"",G18+F22) -> 18972 | H22: =IF(TA!$C$17=3,SUMIF(Dados!$B$2:$L$1081,TA!$A$18&PaM!$C22&PaM!$B$22,Dados!$K$2:$K$1081),VLOOKUP(TA!$D$18&$C22&$B$22,Dados!$A$2:$L$1081,11,0)) -> 771 | I22: =IF(H22=0,"",I18+H22) -> 3607 | J22: =IF(TA!$C$17=3,SUMIF(Dados!$B$2:$L$1081,TA!$A$18&PaM!$C22&PaM!$B$22,Dados!$L$2:$L$1081),VLOOKUP(TA!$D$18&$C22&$B$22,Dados!$A$2:$L$1081,12,0)) -> 436204 | K22: =IF(J22=0,"",(J22/J18)-1) -> -0.05367246347
C23: Juizados | D23: =IF(TA!$C$17=3,SUMIF(Dados!$B$2:$L$1081,TA!$A$18&PaM!$C23&PaM!$B$22,Dados!$I$2:$I$1081),VLOOKUP(TA!$D$18&$C23&$B$22,Dados!$A$2:$L$1081,9,0)) -> 2 | E23: =IF(D23=0,"",E19+D23) -> 12 | F23: =IF(TA!$C$17=3,SUMIF(Dados!$B$2:$L$1081,TA!$A$18&PaM!$C23&PaM!$B$22,Dados!$J$2:$J$1081),VLOOKUP(TA!$D$18&$C23&$B$22,Dados!$A$2:$L$1081,10,0)) -> 597 | G23: =IF(F23=0,"",G19+F23) -> 5065 | H23: =IF(TA!$C$17=3,SUMIF(Dados!$B$2:$L$1081,TA!$A$18&PaM!$C23&PaM!$B$22,Dados!$K$2:$K$1081),VLOOKUP(TA!$D$18&$C23&$B$22,Dados!$A$2:$L$1081,11,0)) -> 267 | I23: =IF(H23=0,"",I19+H23) -> 1822 | J23: =IF(TA!$C$17=3,SUMIF(Dados!$B$2:$L$1081,TA!$A$18&PaM!$C23&PaM!$B$22,Dados!$L$2:$L$1081),VLOOKUP(TA!$D$18&$C23&$B$22,Dados!$A$2:$L$1081,12,0)) -> 18944 | K23: =IF(J23=0,"",(J23/J19)-1) -> -0.1059512011 | L23: Fonte: Sistema Apolo.
C24: Turmas Recursais | D24: =IF(TA!$C$17=3,SUMIF(Dados!$B$2:$L$1081,TA!$A$18&PaM!$C24&PaM!$B$22,Dados!$I$2:$I$1081),VLOOKUP(TA!$D$18&$C24&$B$22,Dados!$A$2:$L$1081,9,0)) -> 473 | E24: =IF(D24=0,"",E20+D24) -> 2264 | F24: =IF(TA!$C$17=3,SUMIF(Dados!$B$2:$L$1081,TA!$A$18&PaM!$C24&PaM!$B$22,Dados!$J$2:$J$1081),VLOOKUP(TA!$D$18&$C24&$B$22,Dados!$A$2:$L$1081,10,0)) -> 2011 | G24: =IF(F24=0,"",G20+F24) -> 8020 | H24: =IF(TA!$C$17=3,SUMIF(Dados!$B$2:$L$1081,TA!$A$18&PaM!$C24&PaM!$B$22,Dados!$K$2:$K$1081),VLOOKUP(TA!$D$18&$C24&$B$22,Dados!$A$2:$L$1081,11,0)) -> 0 | I24: =IF(H24=0,"",I20+H24) ->  | J24: =IF(TA!$C$17=3,SUMIF(Dados!$B$2:$L$1081,TA!$A$18&PaM!$C24&PaM!$B$22,Dados!$L$2:$L$1081),VLOOKUP(TA!$D$18&$C24&$B$22,Dados!$A$2:$L$1081,12,0)) -> 46210 | K24: -0.02551665964
B25: Total | D25: =SUM(D22:D24) -> 1116 | E25: =IF(D25=0,"",SUM(E22:E24)) -> 5176 | F25: =SUM(F22:F24) -> 6834 | G25: =IF(F25=0,"",SUM(G22:G24)) -> 32057 | H25: =SUM(H22:H24) -> 1038 | I25: =IF(H25=0,"",SUM(I22:I24)) -> 5429 | J25: =SUM(J22:J24) -> 501358 | K25: -0.05324301817
B26: Maio | C26: Varas | D26: =IF(TA!$C$17=3,SUMIF(Dados!$B$2:$L$1081,TA!$A$18&PaM!$C26&PaM!$B$26,Dados!$I$2:$I$1081),VLOOKUP(TA!$D$18&$C26&$B$26,Dados!$A$2:$L$1081,9,0)) -> 821 | E26: =IF(D26=0,"",E22+D26) -> 3721 | F26: =IF(TA!$C$17=3,SUMIF(Dados!$B$2:$L$1081,TA!$A$18&PaM!$C26&PaM!$B$26,Dados!$J$2:$J$1081),VLOOKUP(TA!$D$18&$C26&$B$26,Dados!$A$2:$L$1081,10,0)) -> 5621 | G26: =IF(F26=0,"",G22+F26) -> 24593 | H26: =IF(TA!$C$17=3,SUMIF(Dados!$B$2:$L$1081,TA!$A$18&PaM!$C26&PaM!$B$26,Dados!$K$2:$K$1081),VLOOKUP(TA!$D$18&$C26&$B$26,Dados!$A$2:$L$1081,11,0)) -> 1045 | I26: =IF(H26=0,"",I22+H26) -> 4652 | J26: =IF(TA!$C$17=3,SUMIF(Dados!$B$2:$L$1081,TA!$A$18&PaM!$C26&PaM!$B$26,Dados!$L$2:$L$1081),VLOOKUP(TA!$D$18&$C26&$B$26,Dados!$A$2:$L$1081,12,0)) -> 401153 | K26: =IF(J26=0,"",(J26/J22)-1) -> -0.08035460473
C27: Juizados | D27: =IF(TA!$C$17=3,SUMIF(Dados!$B$2:$L$1081,TA!$A$18&PaM!$C27&PaM!$B$26,Dados!$I$2:$I$1081),VLOOKUP(TA!$D$18&$C27&$B$26,Dados!$A$2:$L$1081,9,0)) -> 3 | E27: =IF(D27=0,"",E23+D27) -> 15 | F27: =IF(TA!$C$17=3,SUMIF(Dados!$B$2:$L$1081,TA!$A$18&PaM!$C27&PaM!$B$26,Dados!$J$2:$J$1081),VLOOKUP(TA!$D$18&$C27&$B$26,Dados!$A$2:$L$1081,10,0)) -> 776 | G27: =IF(F27=0,"",G23+F27) -> 5841 | H27: =IF(TA!$C$17=3,SUMIF(Dados!$B$2:$L$1081,TA!$A$18&PaM!$C27&PaM!$B$26,Dados!$K$2:$K$1081),VLOOKUP(TA!$D$18&$C27&$B$26,Dados!$A$2:$L$1081,11,0)) -> 273 | I27: =IF(H27=0,"",I23+H27) -> 2095 | J27: =IF(TA!$C$17=3,SUMIF(Dados!$B$2:$L$1081,TA!$A$18&PaM!$C27&PaM!$B$26,Dados!$L$2:$L$1081),VLOOKUP(TA!$D$18&$C27&$B$26,Dados!$A$2:$L$1081,12,0)) -> 16638 | K27: =IF(J27=0,"",(J27/J23)-1) -> -0.1217271959
C28: Turmas Recursais | D28: =IF(TA!$C$17=3,SUMIF(Dados!$B$2:$L$1081,TA!$A$18&PaM!$C28&PaM!$B$26,Dados!$I$2:$I$1081),VLOOKUP(TA!$D$18&$C28&$B$26,Dados!$A$2:$L$1081,9,0)) -> 277 | E28: =IF(D28=0,"",E24+D28) -> 2541 | F28: =IF(TA!$C$17=3,SUMIF(Dados!$B$2:$L$1081,TA!$A$18&PaM!$C28&PaM!$B$26,Dados!$J$2:$J$1081),VLOOKUP(TA!$D$18&$C28&$B$26,Dados!$A$2:$L$1081,10,0)) -> 13070 | G28: =IF(F28=0,"",G24+F28) -> 21090 | H28: =IF(TA!$C$17=3,SUMIF(Dados!$B$2:$L$1081,TA!$A$18&PaM!$C28&PaM!$B$26,Dados!$K$2:$K$1081),VLOOKUP(TA!$D$18&$C28&$B$26,Dados!$A$2:$L$1081,11,0)) -> 0 | I28: =IF(H28=0,"",I24+H28) ->  | J28: =IF(TA!$C$17=3,SUMIF(Dados!$B$2:$L$1081,TA!$A$18&PaM!$C28&PaM!$B$26,Dados!$L$2:$L$1081),VLOOKUP(TA!$D$18&$C28&$B$26,Dados!$A$2:$L$1081,12,0)) -> 45393 | K28: -0.01768015581
B29: Total | D29: =SUM(D26:D28) -> 1101 | E29: =IF(D29=0,"",SUM(E26:E28)) -> 6277 | F29: =SUM(F26:F28) -> 19467 | G29: =IF(F29=0,"",SUM(G26:G28)) -> 51524 | H29: =SUM(H26:H28) -> 1318 | I29: =IF(H29=0,"",SUM(I26:I28)) -> 6747 | J29: =SUM(J26:J28) -> 463184 | K29: -0.0761412005
B30: Junho | C30: Varas | D30: =IF(TA!$C$17=3,SUMIF(Dados!$B$2:$L$1081,TA!$A$18&PaM!$C30&PaM!$B$30,Dados!$I$2:$I$1081),VLOOKUP(TA!$D$18&$C30&$B$30,Dados!$A$2:$L$1081,9,0)) -> 551 | E30: =IF(D30=0,"",E26+D30) -> 4272 | F30: =IF(TA!$C$17=3,SUMIF(Dados!$B$2:$L$1081,TA!$A$18&PaM!$C30&PaM!$B$30,Dados!$J$2:$J$1081),VLOOKUP(TA!$D$18&$C30&$B$30,Dados!$A$2:$L$1081,10,0)) -> 3266 | G30: =IF(F30=0,"",G26+F30) -> 27859 | H30: =IF(TA!$C$17=3,SUMIF(Dados!$B$2:$L$1081,TA!$A$18&PaM!$C30&PaM!$B$30,Dados!$K$2:$K$1081),VLOOKUP(TA!$D$18&$C30&$B$30,Dados!$A$2:$L$1081,11,0)) -> 680 | I30: =IF(H30=0,"",I26+H30) -> 5332 | J30: =IF(TA!$C$17=3,SUMIF(Dados!$B$2:$L$1081,TA!$A$18&PaM!$C30&PaM!$B$30,Dados!$L$2:$L$1081),VLOOKUP(TA!$D$18&$C30&$B$30,Dados!$A$2:$L$1081,12,0)) -> 268732 | K30: =IF(J30=0,"",(J30/J26)-1) -> -0.3301009839
C31: Juizados | D31: =IF(TA!$C$17=3,SUMIF(Dados!$B$2:$L$1081,TA!$A$18&PaM!$C31&PaM!$B$30,Dados!$I$2:$I$1081),VLOOKUP(TA!$D$18&$C31&$B$30,Dados!$A$2:$L$1081,9,0)) -> 5 | E31: =IF(D31=0,"",E27+D31) -> 20 | F31: =IF(TA!$C$17=3,SUMIF(Dados!$B$2:$L$1081,TA!$A$18&PaM!$C31&PaM!$B$30,Dados!$J$2:$J$1081),VLOOKUP(TA!$D$18&$C31&$B$30,Dados!$A$2:$L$1081,10,0)) -> 538 | G31: =IF(F31=0,"",G27+F31) -> 6379 | H31: =IF(TA!$C$17=3,SUMIF(Dados!$B$2:$L$1081,TA!$A$18&PaM!$C31&PaM!$B$30,Dados!$K$2:$K$1081),VLOOKUP(TA!$D$18&$C31&$B$30,Dados!$A$2:$L$1081,11,0)) -> 162 | I31: =IF(H31=0,"",I27+H31) -> 2257 | J31: =IF(TA!$C$17=3,SUMIF(Dados!$B$2:$L$1081,TA!$A$18&PaM!$C31&PaM!$B$30,Dados!$L$2:$L$1081),VLOOKUP(TA!$D$18&$C31&$B$30,Dados!$A$2:$L$1081,12,0)) -> 18370 | K31: =IF(J31=0,"",(J31/J27)-1) -> 0.1040990504
C32: Turmas Recursais | D32: =IF(TA!$C$17=3,SUMIF(Dados!$B$2:$L$1081,TA!$A$18&PaM!$C32&PaM!$B$30,Dados!$I$2:$I$1081),VLOOKUP(TA!$D$18&$C32&$B$30,Dados!$A$2:$L$1081,9,0)) -> 164 | E32: =IF(D32=0,"",E28+D32) -> 2705 | F32: =IF(TA!$C$17=3,SUMIF(Dados!$B$2:$L$1081,TA!$A$18&PaM!$C32&PaM!$B$30,Dados!$J$2:$J$1081),VLOOKUP(TA!$D$18&$C32&$B$30,Dados!$A$2:$L$1081,10,0)) -> 2398 | G32: =IF(F32=0,"",G28+F32) -> 23488 | H32: =IF(TA!$C$17=3,SUMIF(Dados!$B$2:$L$1081,TA!$A$18&PaM!$C32&PaM!$B$30,Dados!$K$2:$K$1081),VLOOKUP(TA!$D$18&$C32&$B$30,Dados!$A$2:$L$1081,11,0)) -> 0 | I32: =IF(H32=0,"",I28+H32) ->  | J32: =IF(TA!$C$17=3,SUMIF(Dados!$B$2:$L$1081,TA!$A$18&PaM!$C32&PaM!$B$30,Dados!$L$2:$L$1081),VLOOKUP(TA!$D$18&$C32&$B$30,Dados!$A$2:$L$1081,12,0)) -> 39786 | K32: -0.1235212478
B33: Total | D33: =SUM(D30:D32) -> 720 | E33: =IF(D33=0,"",SUM(E30:E32)) -> 6997 | F33: =SUM(F30:F32) -> 6202 | G33: =IF(F33=0,"",SUM(G30:G32)) -> 57726 | H33: =SUM(H30:H32) -> 842 | I33: =IF(H33=0,"",SUM(I30:I32)) -> 7589 | J33: =SUM(J30:J32) -> 326888 | K33: -0.294258869
B34: Julho | C34: Varas | D34: =IF(TA!$C$17=3,SUMIF(Dados!$B$2:$L$1081,TA!$A$18&PaM!$C34&PaM!$B$34,Dados!$I$2:$I$1081),VLOOKUP(TA!$D$18&$C34&$B$34,Dados!$A$2:$L$1081,9,0)) -> 760 | E34: =IF(D34=0,"",E30+D34) -> 5032 | F34: =IF(TA!$C$17=3,SUMIF(Dados!$B$2:$L$1081,TA!$A$18&PaM!$C34&PaM!$B$34,Dados!$J$2:$J$1081),VLOOKUP(TA!$D$18&$C34&$B$34,Dados!$A$2:$L$1081,10,0)) -> 3973 | G34: =IF(F34=0,"",G30+F34) -> 31832 | H34: =IF(TA!$C$17=3,SUMIF(Dados!$B$2:$L$1081,TA!$A$18&PaM!$C34&PaM!$B$34,Dados!$K$2:$K$1081),VLOOKUP(TA!$D$18&$C34&$B$34,Dados!$A$2:$L$1081,11,0)) -> 659 | I34: =IF(H34=0,"",I30+H34) -> 5991 | J34: =IF(TA!$C$17=3,SUMIF(Dados!$B$2:$L$1081,TA!$A$18&PaM!$C34&PaM!$B$34,Dados!$L$2:$L$1081),VLOOKUP(TA!$D$18&$C34&$B$34,Dados!$A$2:$L$1081,12,0)) -> 258410 | K34: =IF(J34=0,"",(J34/J30)-1) -> -0.03841001444
C35: Juizados | D35: =IF(TA!$C$17=3,SUMIF(Dados!$B$2:$L$1081,TA!$A$18&PaM!$C35&PaM!$B$34,Dados!$I$2:$I$1081),VLOOKUP(TA!$D$18&$C35&$B$34,Dados!$A$2:$L$1081,9,0)) -> 2 | E35: =IF(D35=0,"",E31+D35) -> 22 | F35: =IF(TA!$C$17=3,SUMIF(Dados!$B$2:$L$1081,TA!$A$18&PaM!$C35&PaM!$B$34,Dados!$J$2:$J$1081),VLOOKUP(TA!$D$18&$C35&$B$34,Dados!$A$2:$L$1081,10,0)) -> 983 | G35: =IF(F35=0,"",G31+F35) -> 7362 | H35: =IF(TA!$C$17=3,SUMIF(Dados!$B$2:$L$1081,TA!$A$18&PaM!$C35&PaM!$B$34,Dados!$K$2:$K$1081),VLOOKUP(TA!$D$18&$C35&$B$34,Dados!$A$2:$L$1081,11,0)) -> 174 | I35: =IF(H35=0,"",I31+H35) -> 2431 | J35: =IF(TA!$C$17=3,SUMIF(Dados!$B$2:$L$1081,TA!$A$18&PaM!$C35&PaM!$B$34,Dados!$L$2:$L$1081),VLOOKUP(TA!$D$18&$C35&$B$34,Dados!$A$2:$L$1081,12,0)) -> 20586 | K35: =IF(J35=0,"",(J35/J31)-1) -> 0.1206314643
C36: Turmas Recursais | D36: =IF(TA!$C$17=3,SUMIF(Dados!$B$2:$L$1081,TA!$A$18&PaM!$C36&PaM!$B$34,Dados!$I$2:$I$1081),VLOOKUP(TA!$D$18&$C36&$B$34,Dados!$A$2:$L$1081,9,0)) -> 142 | E36: =IF(D36=0,"",E32+D36) -> 2847 | F36: =IF(TA!$C$17=3,SUMIF(Dados!$B$2:$L$1081,TA!$A$18&PaM!$C36&PaM!$B$34,Dados!$J$2:$J$1081),VLOOKUP(TA!$D$18&$C36&$B$34,Dados!$A$2:$L$1081,10,0)) -> 1747 | G36: =IF(F36=0,"",G32+F36) -> 25235 | H36: =IF(TA!$C$17=3,SUMIF(Dados!$B$2:$L$1081,TA!$A$18&PaM!$C36&PaM!$B$34,Dados!$K$2:$K$1081),VLOOKUP(TA!$D$18&$C36&$B$34,Dados!$A$2:$L$1081,11,0)) -> 0 | I36: =IF(H36=0,"",I32+H36) ->  | J36: =IF(TA!$C$17=3,SUMIF(Dados!$B$2:$L$1081,TA!$A$18&PaM!$C36&PaM!$B$34,Dados!$L$2:$L$1081),VLOOKUP(TA!$D$18&$C36&$B$34,Dados!$A$2:$L$1081,12,0)) -> 33433 | K36: -0.1596792842
B37: Total | D37: =SUM(D34:D36) -> 904 | E37: =IF(D37=0,"",SUM(E34:E36)) -> 7901 | F37: =SUM(F34:F36) -> 6703 | G37: =IF(F37=0,"",SUM(G34:G36)) -> 64429 | H37: =SUM(H34:H36) -> 833 | I37: =IF(H37=0,"",SUM(I34:I36)) -> 8422 | J37: =SUM(J34:J36) -> 312429 | K37: -0.04423227527
B38: Agosto | C38: Varas | D38: =IF(TA!$C$17=3,SUMIF(Dados!$B$2:$L$1081,TA!$A$18&PaM!$C38&PaM!$B$38,Dados!$I$2:$I$1081),VLOOKUP(TA!$D$18&$C38&$B$38,Dados!$A$2:$L$1081,9,0)) -> 640 | E38: =IF(D38=0,"",E34+D38) -> 5672 | F38: =IF(TA!$C$17=3,SUMIF(Dados!$B$2:$L$1081,TA!$A$18&PaM!$C38&PaM!$B$38,Dados!$J$2:$J$1081),VLOOKUP(TA!$D$18&$C38&$B$38,Dados!$A$2:$L$1081,10,0)) -> 4279 | G38: =IF(F38=0,"",G34+F38) -> 36111 | H38: =IF(TA!$C$17=3,SUMIF(Dados!$B$2:$L$1081,TA!$A$18&PaM!$C38&PaM!$B$38,Dados!$K$2:$K$1081),VLOOKUP(TA!$D$18&$C38&$B$38,Dados!$A$2:$L$1081,11,0)) -> 542 | I38: =IF(H38=0,"",I34+H38) -> 6533 | J38: =IF(TA!$C$17=3,SUMIF(Dados!$B$2:$L$1081,TA!$A$18&PaM!$C38&PaM!$B$38,Dados!$L$2:$L$1081),VLOOKUP(TA!$D$18&$C38&$B$38,Dados!$A$2:$L$1081,12,0)) -> 154374 | K38: =IF(J38=0,"",(J38/J34)-1) -> -0.4026005186
C39: Juizados | D39: =IF(TA!$C$17=3,SUMIF(Dados!$B$2:$L$1081,TA!$A$18&PaM!$C39&PaM!$B$38,Dados!$I$2:$I$1081),VLOOKUP(TA!$D$18&$C39&$B$38,Dados!$A$2:$L$1081,9,0)) -> 9 | E39: =IF(D39=0,"",E35+D39) -> 31 | F39: =IF(TA!$C$17=3,SUMIF(Dados!$B$2:$L$1081,TA!$A$18&PaM!$C39&PaM!$B$38,Dados!$J$2:$J$1081),VLOOKUP(TA!$D$18&$C39&$B$38,Dados!$A$2:$L$1081,10,0)) -> 913 | G39: =IF(F39=0,"",G35+F39) -> 8275 | H39: =IF(TA!$C$17=3,SUMIF(Dados!$B$2:$L$1081,TA!$A$18&PaM!$C39&PaM!$B$38,Dados!$K$2:$K$1081),VLOOKUP(TA!$D$18&$C39&$B$38,Dados!$A$2:$L$1081,11,0)) -> 151 | I39: =IF(H39=0,"",I35+H39) -> 2582 | J39: =IF(TA!$C$17=3,SUMIF(Dados!$B$2:$L$1081,TA!$A$18&PaM!$C39&PaM!$B$38,Dados!$L$2:$L$1081),VLOOKUP(TA!$D$18&$C39&$B$38,Dados!$A$2:$L$1081,12,0)) -> 19869 | K39: =IF(J39=0,"",(J39/J35)-1) -> -0.03482949577
C40: Turmas Recursais | D40: =IF(TA!$C$17=3,SUMIF(Dados!$B$2:$L$1081,TA!$A$18&PaM!$C40&PaM!$B$38,Dados!$I$2:$I$1081),VLOOKUP(TA!$D$18&$C40&$B$38,Dados!$A$2:$L$1081,9,0)) -> 124 | E40: =IF(D40=0,"",E36+D40) -> 2971 | F40: =IF(TA!$C$17=3,SUMIF(Dados!$B$2:$L$1081,TA!$A$18&PaM!$C40&PaM!$B$38,Dados!$J$2:$J$1081),VLOOKUP(TA!$D$18&$C40&$B$38,Dados!$A$2:$L$1081,10,0)) -> 1300 | G40: =IF(F40=0,"",G36+F40) -> 26535 | H40: =IF(TA!$C$17=3,SUMIF(Dados!$B$2:$L$1081,TA!$A$18&PaM!$C40&PaM!$B$38,Dados!$K$2:$K$1081),VLOOKUP(TA!$D$18&$C40&$B$38,Dados!$A$2:$L$1081,11,0)) -> 0 | I40: =IF(H40=0,"",I36+H40) ->  | J40: =IF(TA!$C$17=3,SUMIF(Dados!$B$2:$L$1081,TA!$A$18&PaM!$C40&PaM!$B$38,Dados!$L$2:$L$1081),VLOOKUP(TA!$D$18&$C40&$B$38,Dados!$A$2:$L$1081,12,0)) -> 29722 | K40: -0.1109981156
B41: Total | D41: =SUM(D38:D40) -> 773 | E41: =IF(D41=0,"",SUM(E38:E40)) -> 8674 | F41: =SUM(F38:F40) -> 6492 | G41: =IF(F41=0,"",SUM(G38:G40)) -> 70921 | H41: =SUM(H38:H40) -> 693 | I41: =IF(H41=0,"",SUM(I38:I40)) -> 9115 | J41: =SUM(J38:J40) -> 203965 | K41: -0.3471636756
B42: Setembro | C42: Varas | D42: =IF(TA!$C$17=3,SUMIF(Dados!$B$2:$L$1081,TA!$A$18&PaM!$C42&PaM!$B$42,Dados!$I$2:$I$1081),VLOOKUP(TA!$D$18&$C42&$B$42,Dados!$A$2:$L$1081,9,0)) -> 673 | E42: =IF(D42=0,"",E38+D42) -> 6345 | F42: =IF(TA!$C$17=3,SUMIF(Dados!$B$2:$L$1081,TA!$A$18&PaM!$C42&PaM!$B$42,Dados!$J$2:$J$1081),VLOOKUP(TA!$D$18&$C42&$B$42,Dados!$A$2:$L$1081,10,0)) -> 2512 | G42: =IF(F42=0,"",G38+F42) -> 38623 | H42: =IF(TA!$C$17=3,SUMIF(Dados!$B$2:$L$1081,TA!$A$18&PaM!$C42&PaM!$B$42,Dados!$K$2:$K$1081),VLOOKUP(TA!$D$18&$C42&$B$42,Dados!$A$2:$L$1081,11,0)) -> 397 | I42: =IF(H42=0,"",I38+H42) -> 6930 | J42: =IF(TA!$C$17=3,SUMIF(Dados!$B$2:$L$1081,TA!$A$18&PaM!$C42&PaM!$B$42,Dados!$L$2:$L$1081),VLOOKUP(TA!$D$18&$C42&$B$42,Dados!$A$2:$L$1081,12,0)) -> 132698 | K42: =IF(J42=0,"",(J42/J38)-1) -> -0.1404122456
C43: Juizados | D43: =IF(TA!$C$17=3,SUMIF(Dados!$B$2:$L$1081,TA!$A$18&PaM!$C43&PaM!$B$42,Dados!$I$2:$I$1081),VLOOKUP(TA!$D$18&$C43&$B$42,Dados!$A$2:$L$1081,9,0)) -> 4 | E43: =IF(D43=0,"",E39+D43) -> 35 | F43: =IF(TA!$C$17=3,SUMIF(Dados!$B$2:$L$1081,TA!$A$18&PaM!$C43&PaM!$B$42,Dados!$J$2:$J$1081),VLOOKUP(TA!$D$18&$C43&$B$42,Dados!$A$2:$L$1081,10,0)) -> 1043 | G43: =IF(F43=0,"",G39+F43) -> 9318 | H43: =IF(TA!$C$17=3,SUMIF(Dados!$B$2:$L$1081,TA!$A$18&PaM!$C43&PaM!$B$42,Dados!$K$2:$K$1081),VLOOKUP(TA!$D$18&$C43&$B$42,Dados!$A$2:$L$1081,11,0)) -> 142 | I43: =IF(H43=0,"",I39+H43) -> 2724 | J43: =IF(TA!$C$17=3,SUMIF(Dados!$B$2:$L$1081,TA!$A$18&PaM!$C43&PaM!$B$42,Dados!$L$2:$L$1081),VLOOKUP(TA!$D$18&$C43&$B$42,Dados!$A$2:$L$1081,12,0)) -> 21248 | K43: =IF(J43=0,"",(J43/J39)-1) -> 0.06940460013
C44: Turmas Recursais | D44: =IF(TA!$C$17=3,SUMIF(Dados!$B$2:$L$1081,TA!$A$18&PaM!$C44&PaM!$B$42,Dados!$I$2:$I$1081),VLOOKUP(TA!$D$18&$C44&$B$42,Dados!$A$2:$L$1081,9,0)) -> 91 | E44: =IF(D44=0,"",E40+D44) -> 3062 | F44: =IF(TA!$C$17=3,SUMIF(Dados!$B$2:$L$1081,TA!$A$18&PaM!$C44&PaM!$B$42,Dados!$J$2:$J$1081),VLOOKUP(TA!$D$18&$C44&$B$42,Dados!$A$2:$L$1081,10,0)) -> 916 | G44: =IF(F44=0,"",G40+F44) -> 27451 | H44: =IF(TA!$C$17=3,SUMIF(Dados!$B$2:$L$1081,TA!$A$18&PaM!$C44&PaM!$B$42,Dados!$K$2:$K$1081),VLOOKUP(TA!$D$18&$C44&$B$42,Dados!$A$2:$L$1081,11,0)) -> 0 | I44: =IF(H44=0,"",I40+H44) ->  | J44: =IF(TA!$C$17=3,SUMIF(Dados!$B$2:$L$1081,TA!$A$18&PaM!$C44&PaM!$B$42,Dados!$L$2:$L$1081),VLOOKUP(TA!$D$18&$C44&$B$42,Dados!$A$2:$L$1081,12,0)) -> 26449 | K44: -0.1101204495
B45: Total | D45: =SUM(D42:D44) -> 768 | E45: =IF(D45=0,"",SUM(E42:E44)) -> 9442 | F45: =SUM(F42:F44) -> 4471 | G45: =IF(F45=0,"",SUM(G42:G44)) -> 75392 | H45: =SUM(H42:H44) -> 539 | I45: =IF(H45=0,"",SUM(I42:I44)) -> 9654 | J45: =SUM(J42:J44) -> 180395 | K45: -0.115559042
B46: Outubro | C46: Varas | D46: =IF(TA!$C$17=3,SUMIF(Dados!$B$2:$L$1081,TA!$A$18&PaM!$C46&PaM!$B$46,Dados!$I$2:$I$1081),VLOOKUP(TA!$D$18&$C46&$B$46,Dados!$A$2:$L$1081,9,0)) -> 567 | E46: =IF(D46=0,"",E42+D46) -> 6912 | F46: =IF(TA!$C$17=3,SUMIF(Dados!$B$2:$L$1081,TA!$A$18&PaM!$C46&PaM!$B$46,Dados!$J$2:$J$1081),VLOOKUP(TA!$D$18&$C46&$B$46,Dados!$A$2:$L$1081,10,0)) -> 2358 | G46: =IF(F46=0,"",G42+F46) -> 40981 | H46: =IF(TA!$C$17=3,SUMIF(Dados!$B$2:$L$1081,TA!$A$18&PaM!$C46&PaM!$B$46,Dados!$K$2:$K$1081),VLOOKUP(TA!$D$18&$C46&$B$46,Dados!$A$2:$L$1081,11,0)) -> 442 | I46: =IF(H46=0,"",I42+H46) -> 7372 | J46: =IF(TA!$C$17=3,SUMIF(Dados!$B$2:$L$1081,TA!$A$18&PaM!$C46&PaM!$B$46,Dados!$L$2:$L$1081),VLOOKUP(TA!$D$18&$C46&$B$46,Dados!$A$2:$L$1081,12,0)) -> 118947 | K46: -0.1036262792
C47: Juizados | D47: =IF(TA!$C$17=3,SUMIF(Dados!$B$2:$L$1081,TA!$A$18&PaM!$C47&PaM!$B$46,Dados!$I$2:$I$1081),VLOOKUP(TA!$D$18&$C47&$B$46,Dados!$A$2:$L$1081,9,0)) -> 5 | E47: =IF(D47=0,"",E43+D47) -> 40 | F47: =IF(TA!$C$17=3,SUMIF(Dados!$B$2:$L$1081,TA!$A$18&PaM!$C47&PaM!$B$46,Dados!$J$2:$J$1081),VLOOKUP(TA!$D$18&$C47&$B$46,Dados!$A$2:$L$1081,10,0)) -> 1369 | G47: =IF(F47=0,"",G43+F47) -> 10687 | H47: =IF(TA!$C$17=3,SUMIF(Dados!$B$2:$L$1081,TA!$A$18&PaM!$C47&PaM!$B$46,Dados!$K$2:$K$1081),VLOOKUP(TA!$D$18&$C47&$B$46,Dados!$A$2:$L$1081,11,0)) -> 144 | I47: =IF(H47=0,"",I43+H47) -> 2868 | J47: =IF(TA!$C$17=3,SUMIF(Dados!$B$2:$L$1081,TA!$A$18&PaM!$C47&PaM!$B$46,Dados!$L$2:$L$1081),VLOOKUP(TA!$D$18&$C47&$B$46,Dados!$A$2:$L$1081,12,0)) -> 18345 | K47: -0.1366246235
C48: Turmas Recursais | D48: =IF(TA!$C$17=3,SUMIF(Dados!$B$2:$L$1081,TA!$A$18&PaM!$C48&PaM!$B$46,Dados!$I$2:$I$1081),VLOOKUP(TA!$D$18&$C48&$B$46,Dados!$A$2:$L$1081,9,0)) -> 132 | E48: =IF(D48=0,"",E44+D48) -> 3194 | F48: =IF(TA!$C$17=3,SUMIF(Dados!$B$2:$L$1081,TA!$A$18&PaM!$C48&PaM!$B$46,Dados!$J$2:$J$1081),VLOOKUP(TA!$D$18&$C48&$B$46,Dados!$A$2:$L$1081,10,0)) -> 806 | G48: =IF(F48=0,"",G44+F48) -> 28257 | H48: =IF(TA!$C$17=3,SUMIF(Dados!$B$2:$L$1081,TA!$A$18&PaM!$C48&PaM!$B$46,Dados!$K$2:$K$1081),VLOOKUP(TA!$D$18&$C48&$B$46,Dados!$A$2:$L$1081,11,0)) -> 0 | I48: =IF(H48=0,"",I44+H48) ->  | J48: =IF(TA!$C$17=3,SUMIF(Dados!$B$2:$L$1081,TA!$A$18&PaM!$C48&PaM!$B$46,Dados!$L$2:$L$1081),VLOOKUP(TA!$D$18&$C48&$B$46,Dados!$A$2:$L$1081,12,0)) -> 25098 | K48: -0.0510794359
B49: Total | D49: =SUM(D46:D48) -> 704 | E49: =IF(D49=0,"",SUM(E46:E48)) -> 10146 | F49: =SUM(F46:F48) -> 4533 | G49: =IF(F49=0,"",SUM(G46:G48)) -> 79925 | H49: =SUM(H46:H48) -> 586 | I49: =IF(H49=0,"",SUM(I46:I48)) -> 10240 | J49: =SUM(J46:J48) -> 162390 | K49: -0.09980875301
B50: Novembro | C50: Varas | D50: =IF(TA!$C$17=3,SUMIF(Dados!$B$2:$L$1081,TA!$A$18&PaM!$C50&PaM!$B$50,Dados!$I$2:$I$1081),VLOOKUP(TA!$D$18&$C50&$B$50,Dados!$A$2:$L$1081,9,0)) -> 562 | E50: =IF(D50=0,"",E46+D50) -> 7474 | F50: =IF(TA!$C$17=3,SUMIF(Dados!$B$2:$L$1081,TA!$A$18&PaM!$C50&PaM!$B$50,Dados!$J$2:$J$1081),VLOOKUP(TA!$D$18&$C50&$B$50,Dados!$A$2:$L$1081,10,0)) -> 1323 | G50: =IF(F50=0,"",G46+F50) -> 42304 | H50: =IF(TA!$C$17=3,SUMIF(Dados!$B$2:$L$1081,TA!$A$18&PaM!$C50&PaM!$B$50,Dados!$K$2:$K$1081),VLOOKUP(TA!$D$18&$C50&$B$50,Dados!$A$2:$L$1081,11,0)) -> 243 | I50: =IF(H50=0,"",I46+H50) -> 7615 | J50: =IF(TA!$C$17=3,SUMIF(Dados!$B$2:$L$1081,TA!$A$18&PaM!$C50&PaM!$B$50,Dados!$L$2:$L$1081),VLOOKUP(TA!$D$18&$C50&$B$50,Dados!$A$2:$L$1081,12,0)) -> 109315 | K50: -0.08097724196
C51: Juizados | D51: =IF(TA!$C$17=3,SUMIF(Dados!$B$2:$L$1081,TA!$A$18&PaM!$C51&PaM!$B$50,Dados!$I$2:$I$1081),VLOOKUP(TA!$D$18&$C51&$B$50,Dados!$A$2:$L$1081,9,0)) -> 2 | E51: =IF(D51=0,"",E47+D51) -> 42 | F51: =IF(TA!$C$17=3,SUMIF(Dados!$B$2:$L$1081,TA!$A$18&PaM!$C51&PaM!$B$50,Dados!$J$2:$J$1081),VLOOKUP(TA!$D$18&$C51&$B$50,Dados!$A$2:$L$1081,10,0)) -> 480 | G51: =IF(F51=0,"",G47+F51) -> 11167 | H51: =IF(TA!$C$17=3,SUMIF(Dados!$B$2:$L$1081,TA!$A$18&PaM!$C51&PaM!$B$50,Dados!$K$2:$K$1081),VLOOKUP(TA!$D$18&$C51&$B$50,Dados!$A$2:$L$1081,11,0)) -> 85 | I51: =IF(H51=0,"",I47+H51) -> 2953 | J51: =IF(TA!$C$17=3,SUMIF(Dados!$B$2:$L$1081,TA!$A$18&PaM!$C51&PaM!$B$50,Dados!$L$2:$L$1081),VLOOKUP(TA!$D$18&$C51&$B$50,Dados!$A$2:$L$1081,12,0)) -> 16675 | K51: -0.09103297901
C52: Turmas Recursais | D52: =IF(TA!$C$17=3,SUMIF(Dados!$B$2:$L$1081,TA!$A$18&PaM!$C52&PaM!$B$50,Dados!$I$2:$I$1081),VLOOKUP(TA!$D$18&$C52&$B$50,Dados!$A$2:$L$1081,9,0)) -> 100 | E52: =IF(D52=0,"",E48+D52) -> 3294 | F52: =IF(TA!$C$17=3,SUMIF(Dados!$B$2:$L$1081,TA!$A$18&PaM!$C52&PaM!$B$50,Dados!$J$2:$J$1081),VLOOKUP(TA!$D$18&$C52&$B$50,Dados!$A$2:$L$1081,10,0)) -> 721 | G52: =IF(F52=0,"",G48+F52) -> 28978 | H52: =IF(TA!$C$17=3,SUMIF(Dados!$B$2:$L$1081,TA!$A$18&PaM!$C52&PaM!$B$50,Dados!$K$2:$K$1081),VLOOKUP(TA!$D$18&$C52&$B$50,Dados!$A$2:$L$1081,11,0)) -> 0 | I52: =IF(H52=0,"",I48+H52) ->  | J52: =IF(TA!$C$17=3,SUMIF(Dados!$B$2:$L$1081,TA!$A$18&PaM!$C52&PaM!$B$50,Dados!$L$2:$L$1081),VLOOKUP(TA!$D$18&$C52&$B$50,Dados!$A$2:$L$1081,12,0)) -> 24537 | K52: -0.02235237868
B53: Total | D53: =SUM(D50:D52) -> 664 | E53: =IF(D53=0,"",SUM(E50:E52)) -> 10810 | F53: =SUM(F50:F52) -> 2524 | G53: =IF(F53=0,"",SUM(G50:G52)) -> 82449 | H53: =SUM(H50:H52) -> 328 | I53: =IF(H53=0,"",SUM(I50:I52)) -> 10568 | J53: =SUM(J50:J52) -> 150527 | K53: -0.07305252787
B54: Dezembro | C54: Varas | D54: =IF(TA!$C$17=3,SUMIF(Dados!$B$2:$L$1081,TA!$A$18&PaM!$C54&PaM!$B$54,Dados!$I$2:$I$1081),VLOOKUP(TA!$D$18&$C54&$B$54,Dados!$A$2:$L$1081,9,0)) -> 485 | E54: =IF(D54=0,"",E50+D54) -> 7959 | F54: =IF(TA!$C$17=3,SUMIF(Dados!$B$2:$L$1081,TA!$A$18&PaM!$C54&PaM!$B$54,Dados!$J$2:$J$1081),VLOOKUP(TA!$D$18&$C54&$B$54,Dados!$A$2:$L$1081,10,0)) -> 1067 | G54: =IF(F54=0,"",G50+F54) -> 43371 | H54: =IF(TA!$C$17=3,SUMIF(Dados!$B$2:$L$1081,TA!$A$18&PaM!$C54&PaM!$B$54,Dados!$K$2:$K$1081),VLOOKUP(TA!$D$18&$C54&$B$54,Dados!$A$2:$L$1081,11,0)) -> 191 | I54: =IF(H54=0,"",I50+H54) -> 7806 | J54: =IF(TA!$C$17=3,SUMIF(Dados!$B$2:$L$1081,TA!$A$18&PaM!$C54&PaM!$B$54,Dados!$L$2:$L$1081),VLOOKUP(TA!$D$18&$C54&$B$54,Dados!$A$2:$L$1081,12,0)) -> 100231 | K54: =IF(J54=0,"",(J54/J50)-1) -> -0.08309930019
C55: Juizados | D55: =IF(TA!$C$17=3,SUMIF(Dados!$B$2:$L$1081,TA!$A$18&PaM!$C55&PaM!$B$54,Dados!$I$2:$I$1081),VLOOKUP(TA!$D$18&$C55&$B$54,Dados!$A$2:$L$1081,9,0)) -> 3 | E55: =IF(D55=0,"",E51+D55) -> 45 | F55: =IF(TA!$C$17=3,SUMIF(Dados!$B$2:$L$1081,TA!$A$18&PaM!$C55&PaM!$B$54,Dados!$J$2:$J$1081),VLOOKUP(TA!$D$18&$C55&$B$54,Dados!$A$2:$L$1081,10,0)) -> 319 | G55: =IF(F55=0,"",G51+F55) -> 11486 | H55: =IF(TA!$C$17=3,SUMIF(Dados!$B$2:$L$1081,TA!$A$18&PaM!$C55&PaM!$B$54,Dados!$K$2:$K$1081),VLOOKUP(TA!$D$18&$C55&$B$54,Dados!$A$2:$L$1081,11,0)) -> 153 | I55: =IF(H55=0,"",I51+H55) -> 3106 | J55: =IF(TA!$C$17=3,SUMIF(Dados!$B$2:$L$1081,TA!$A$18&PaM!$C55&PaM!$B$54,Dados!$L$2:$L$1081),VLOOKUP(TA!$D$18&$C55&$B$54,Dados!$A$2:$L$1081,12,0)) -> 15130 | K55: =IF(J55=0,"",(J55/J51)-1) -> -0.09265367316
C56: Turmas Recursais | D56: =IF(TA!$C$17=3,SUMIF(Dados!$B$2:$L$1081,TA!$A$18&PaM!$C56&PaM!$B$54,Dados!$I$2:$I$1081),VLOOKUP(TA!$D$18&$C56&$B$54,Dados!$A$2:$L$1081,9,0)) -> 63 | E56: =IF(D56=0,"",E52+D56) -> 3357 | F56: =IF(TA!$C$17=3,SUMIF(Dados!$B$2:$L$1081,TA!$A$18&PaM!$C56&PaM!$B$54,Dados!$J$2:$J$1081),VLOOKUP(TA!$D$18&$C56&$B$54,Dados!$A$2:$L$1081,10,0)) -> 533 | G56: =IF(F56=0,"",G52+F56) -> 29511 | H56: =IF(TA!$C$17=3,SUMIF(Dados!$B$2:$L$1081,TA!$A$18&PaM!$C56&PaM!$B$54,Dados!$K$2:$K$1081),VLOOKUP(TA!$D$18&$C56&$B$54,Dados!$A$2:$L$1081,11,0)) -> 0 | I56: =IF(H56=0,"",I52+H56) ->  | J56: =IF(TA!$C$17=3,SUMIF(Dados!$B$2:$L$1081,TA!$A$18&PaM!$C56&PaM!$B$54,Dados!$L$2:$L$1081),VLOOKUP(TA!$D$18&$C56&$B$54,Dados!$A$2:$L$1081,12,0)) -> 24048 | K56: =IF(J56=0,"",(J56/J52)-1) -> -0.01992908669
B57: Total | D57: =SUM(D54:D56) -> 551 | E57: =IF(D57=0,"",SUM(E54:E56)) -> 11361 | F57: =SUM(F54:F56) -> 1919 | G57: =IF(F57=0,"",SUM(G54:G56)) -> 84368 | H57: =SUM(H54:H56) -> 344 | I57: =IF(H57=0,"",SUM(I54:I56)) -> 10912 | J57: =SUM(J54:J56) -> 139409 | K57: =IF(J57=0,"",(J57/J53)-1) -> -0.07386050343
B58: Consolidado | C58: Varas | D58: =D10+D14+D18+D22+D26+D30+D34+D38+D42+D46+D50+D54 -> 7959 | F58: =F10+F14+F18+F22+F26+F30+F34+F38+F42+F46+F50+F54 -> 43371 | H58: 7806
C59: Juizados | D59: =D11+D15+D19+D23+D27+D31+D35+D39+D43+D47+D51+D55 -> 45 | F59: 11486 | H59: 3106
C60: Turmas Recursais | D60: =D12+D16+D20+D24+D28+D32+D36+D40+D44+D48+D52+D56 -> 3357 | F60: 29511 | H60: 0
B61: Total | D61: =SUM(D58:D60) -> 11361 | F61: =SUM(F58:F60) -> 84368 | H61: =SUM(H58:H60) -> 10912
B63: OBS.: Os valores poderão ser alterados, em função de modificações na base de dados, por parte do usuário.
B65: _ Desde o dia 23 de Fevereiro de 2018, o NOVO sistema processual "Eproc" está em funcionamento na Justiça Federal da 2ª Região. (Inicialmente, a implantação do Eproc, ocorreu nos Juizados Especiais Federais de Vitória e Turmas Recursais do Espírito Santo.)

Sheet GTvM (hidden)
A1: TRAMITAÇÃO de Processos na Seção Judiciária: | K1: no Ano de: | X1: SpA

Sheet GDaM (hidden)
A1: Total de Processos DISTRIBUÍDOS na Seção Judiciária: | K1: no Ano de: | X1: SpA

Sheet GJaM (hidden)
A1: Total de Processos JULGADOS na Seção Judiciária: | K1: no Ano de: | X1: SpA

Sheet PvAAe (hidden)
D2: Seção Judiciária | I2: Mapa ACUMULADO do 1º Grau (2006 a 2017 Apolo) (2018 e 2019 Apolo e "Eproc")
D4: Distribuídos | K4: Julgados | R4: Remetidos ao TRF/TR | W4: Tramitação "Real"
B5: Mês | C5: Tipo de Juízo | D5: Apolo | E5: % Var | F5: Eproc | G5: % Var | H5: TOTAL | I5: % Var | K5: Apolo | L5: % Var | M5: Eproc | N5: % Var | O5: TOTAL | P5: % Var | R5: Apolo | S5: Eproc | T5: TOTAL | U5: % Var | W5: Apolo | X5: % Variação | Y5: Eproc | Z5: % Variação | AA5: TOTAL | AB5: % Variação
B6: 2005 | C6: Varas | D6: =IF(TA!$C$17=3,SUMIF(Dados!$D$2:$L$1081,$B$6&$C6,Dados!I$2:I$1081),SUMIF(Dados!$C$2:$L$1081,$B$6&TA!$C$18&$C6,Dados!I$2:I$1081)) -> 103539 | K6: =IF(TA!$C$17=3,SUMIF(Dados!$D$2:$L$1081,$B$6&$C6,Dados!J$2:J$1081),SUMIF(Dados!$C$2:$L$1081,$B$6&TA!$C$18&$C6,Dados!J$2:J$1081)) -> 61312 | R6: =IF(TA!$C$17=3,SUMIF(Dados!$D$2:$L$1081,$B$6&$C6,Dados!K$2:K$1081),SUMIF(Dados!$C$2:$L$1081,$B$6&TA!$C$18&$C6,Dados!K$2:K$1081)) -> 20345 | W6: =IF(TA!$C$17=3,SUMIF(Dados!$B$2:$L$1081,$B$6&$C6&TA!$F$17,Dados!L$2:L$1081),VLOOKUP($B$6&TA!$C$18&$C6&TA!$F$17,Dados!$A$2:$L$1081,12,0)) -> 611472
C7: Juizados | D7: =IF(TA!$C$17=3,SUMIF(Dados!$D$2:$L$1081,$B$6&$C7,Dados!I$2:I$1081),SUMIF(Dados!$C$2:$L$1081,$B$6&TA!$C$18&$C7,Dados!I$2:I$1081)) -> 179418 | K7: =IF(TA!$C$17=3,SUMIF(Dados!$D$2:$L$1081,$B$6&$C7,Dados!J$2:J$1081),SUMIF(Dados!$C$2:$L$1081,$B$6&TA!$C$18&$C7,Dados!J$2:J$1081)) -> 139210 | R7: =IF(TA!$C$17=3,SUMIF(Dados!$D$2:$L$1081,$B$6&$C7,Dados!K$2:K$1081),SUMIF(Dados!$C$2:$L$1081,$B$6&TA!$C$18&$C7,Dados!K$2:K$1081)) -> 26485 | W7: =IF(TA!$C$17=3,SUMIF(Dados!$B$2:$L$1081,$B$6&$C7&TA!$F$17,Dados!L$2:L$1081),VLOOKUP($B$6&TA!$C$18&$C7&TA!$F$17,Dados!$A$2:$L$1081,12,0)) -> 195008
C8: Turmas Recursais | D8: =IF(TA!$C$17=3,SUMIF(Dados!$D$2:$L$1081,$B$6&$C8,Dados!I$2:I$1081),SUMIF(Dados!$C$2:$L$1081,$B$6&TA!$C$18&$C8,Dados!I$2:I$1081)) -> 25874 | K8: =IF(TA!$C$17=3,SUMIF(Dados!$D$2:$L$1081,$B$6&$C8,Dados!J$2:J$1081),SUMIF(Dados!$C$2:$L$1081,$B$6&TA!$C$18&$C8,Dados!J$2:J$1081)) -> 3699 | R8: =IF(TA!$C$17=3,SUMIF(Dados!$D$2:$L$1081,$B$6&$C8,Dados!K$2:K$1081),SUMIF(Dados!$C$2:$L$1081,$B$6&TA!$C$18&$C8,Dados!K$2:K$1081)) -> 0 | W8: =IF(TA!$C$17=3,SUMIF(Dados!$B$2:$L$1081,$B$6&$C8&TA!$F$17,Dados!L$2:L$1081),VLOOKUP($B$6&TA!$C$18&$C8&TA!$F$17,Dados!$A$2:$L$1081,12,0)) -> 16499
B9: Total | D9: =SUM(D6:D8) -> 308831 | K9: =SUM(K6:K8) -> 204221 | R9: =SUM(R6:R8) -> 46830 | W9: =SUM(W6:W8) -> 822979
B10: 2006 | C10: Varas | D10: =IF(TA!$C$17=3,SUMIF(Dados!$D$2:$L$1081,$B$10&$C10,Dados!I$2:I$1081),SUMIF(Dados!$C$2:$L$1081,$B$10&TA!$C$18&$C10,Dados!I$2:I$1081)) -> 127713 | E10: =IF(D10=0,"",(D10/D6)-1) -> 0.2334772405 | K10: =IF(TA!$C$17=3,SUMIF(Dados!$D$2:$L$1081,$B$10&$C10,Dados!J$2:J$1081),SUMIF(Dados!$C$2:$L$1081,$B$10&TA!$C$18&$C10,Dados!J$2:J$1081)) -> 70566 | L10: =IF(K10=0,"",(K10/K6)-1) -> 0.1509329332 | R10: =IF(TA!$C$17=3,SUMIF(Dados!$D$2:$L$1081,$B$10&$C10,Dados!K$2:K$1081),SUMIF(Dados!$C$2:$L$1081,$B$10&TA!$C$18&$C10,Dados!K$2:K$1081)) -> 22501 | W10: =IF(TA!$C$17=3,SUMIF(Dados!$B$2:$L$1081,$B$10&$C10&TA!$F$17,Dados!L$2:L$1081),VLOOKUP($B$10&TA!$C$18&$C10&TA!$F$17,Dados!$A$2:$L$1081,12,0)) -> 642234 | X10: =IF(W10=0,"",(W10/W6)-1) -> 0.05030810896
C11: Juizados | D11: =IF(TA!$C$17=3,SUMIF(Dados!$D$2:$L$1081,$B$10&$C11,Dados!I$2:I$1081),SUMIF(Dados!$C$2:$L$1081,$B$10&TA!$C$18&$C11,Dados!I$2:I$1081)) -> 187586 | E11: 0.0455249752 | K11: =IF(TA!$C$17=3,SUMIF(Dados!$D$2:$L$1081,$B$10&$C11,Dados!J$2:J$1081),SUMIF(Dados!$C$2:$L$1081,$B$10&TA!$C$18&$C11,Dados!J$2:J$1081)) -> 201622 | L11: 0.4483298614 | R11: =IF(TA!$C$17=3,SUMIF(Dados!$D$2:$L$1081,$B$10&$C11,Dados!K$2:K$1081),SUMIF(Dados!$C$2:$L$1081,$B$10&TA!$C$18&$C11,Dados!K$2:K$1081)) -> 32844 | W11: =IF(TA!$C$17=3,SUMIF(Dados!$B$2:$L$1081,$B$10&$C11&TA!$F$17,Dados!L$2:L$1081),VLOOKUP($B$10&TA!$C$18&$C11&TA!$F$17,Dados!$A$2:$L$1081,12,0)) -> 143456 | X11: -0.2643583853
C12: Turmas Recursais | D12: =IF(TA!$C$17=3,SUMIF(Dados!$D$2:$L$1081,$B$10&$C12,Dados!I$2:I$1081),SUMIF(Dados!$C$2:$L$1081,$B$10&TA!$C$18&$C12,Dados!I$2:I$1081)) -> 32582 | E12: 0.2592563964 | K12: =IF(TA!$C$17=3,SUMIF(Dados!$D$2:$L$1081,$B$10&$C12,Dados!J$2:J$1081),SUMIF(Dados!$C$2:$L$1081,$B$10&TA!$C$18&$C12,Dados!J$2:J$1081)) -> 27176 | L12: 6.3468505 | R12: =IF(TA!$C$17=3,SUMIF(Dados!$D$2:$L$1081,$B$10&$C12,Dados!K$2:K$1081),SUMIF(Dados!$C$2:$L$1081,$B$10&TA!$C$18&$C12,Dados!K$2:K$1081)) -> 0 | W12: =IF(TA!$C$17=3,SUMIF(Dados!$B$2:$L$1081,$B$10&$C12&TA!$F$17,Dados!L$2:L$1081),VLOOKUP($B$10&TA!$C$18&$C12&TA!$F$17,Dados!$A$2:$L$1081,12,0)) -> 20495 | X12: 0.2421964968
B13: Total | D13: =SUM(D10:D12) -> 347881 | E13: 0.1264445603 | K13: =SUM(K10:K12) -> 299364 | L13: 0.4658825488 | R13: =SUM(R10:R12) -> 55345 | W13: =SUM(W10:W12) -> 806185 | X13: -0.02040635302
B14: 2007 | C14: Varas | D14: =IF(TA!$C$17=3,SUMIF(Dados!$D$2:$L$1081,$B$14&$C14,Dados!I$2:I$1081),SUMIF(Dados!$C$2:$L$1081,$B$14&TA!$C$18&$C14,Dados!I$2:I$1081)) -> 134929 | E14: 0.05650168738 | K14: =IF(TA!$C$17=3,SUMIF(Dados!$D$2:$L$1081,$B$14&$C14,Dados!J$2:J$1081),SUMIF(Dados!$C$2:$L$1081,$B$14&TA!$C$18&$C14,Dados!J$2:J$1081)) -> 72817 | L14: 0.03189921492 | R14: =IF(TA!$C$17=3,SUMIF(Dados!$D$2:$L$1081,$B$14&$C14,Dados!K$2:K$1081),SUMIF(Dados!$C$2:$L$1081,$B$14&TA!$C$18&$C14,Dados!K$2:K$1081)) -> 24587 | W14: =IF(TA!$C$17=3,SUMIF(Dados!$B$2:$L$1081,$B$14&$C14&TA!$F$17,Dados!L$2:L$1081),VLOOKUP($B$14&TA!$C$18&$C14&TA!$F$17,Dados!$A$2:$L$1081,12,0)) -> 672198 | X14: 0.04665589178
C15: Juizados | D15: =IF(TA!$C$17=3,SUMIF(Dados!$D$2:$L$1081,$B$14&$C15,Dados!I$2:I$1081),SUMIF(Dados!$C$2:$L$1081,$B$14&TA!$C$18&$C15,Dados!I$2:I$1081)) -> 199569 | E15: 0.06388003369 | K15: =IF(TA!$C$17=3,SUMIF(Dados!$D$2:$L$1081,$B$14&$C15,Dados!J$2:J$1081),SUMIF(Dados!$C$2:$L$1081,$B$14&TA!$C$18&$C15,Dados!J$2:J$1081)) -> 150066 | L15: -0.2557062225 | R15: =IF(TA!$C$17=3,SUMIF(Dados!$D$2:$L$1081,$B$14&$C15,Dados!K$2:K$1081),SUMIF(Dados!$C$2:$L$1081,$B$14&TA!$C$18&$C15,Dados!K$2:K$1081)) -> 27989 | W15: =IF(TA!$C$17=3,SUMIF(Dados!$B$2:$L$1081,$B$14&$C15&TA!$F$17,Dados!L$2:L$1081),VLOOKUP($B$14&TA!$C$18&$C15&TA!$F$17,Dados!$A$2:$L$1081,12,0)) -> 171510 | X15: 0.1955582199
C16: Turmas Recursais | D16: =IF(TA!$C$17=3,SUMIF(Dados!$D$2:$L$1081,$B$14&$C16,Dados!I$2:I$1081),SUMIF(Dados!$C$2:$L$1081,$B$14&TA!$C$18&$C16,Dados!I$2:I$1081)) -> 29581 | E16: -0.09210607084 | K16: =IF(TA!$C$17=3,SUMIF(Dados!$D$2:$L$1081,$B$14&$C16,Dados!J$2:J$1081),SUMIF(Dados!$C$2:$L$1081,$B$14&TA!$C$18&$C16,Dados!J$2:J$1081)) -> 39847 | L16: 0.4662569915 | R16: =IF(TA!$C$17=3,SUMIF(Dados!$D$2:$L$1081,$B$14&$C16,Dados!K$2:K$1081),SUMIF(Dados!$C$2:$L$1081,$B$14&TA!$C$18&$C16,Dados!K$2:K$1081)) -> 0 | W16: =IF(TA!$C$17=3,SUMIF(Dados!$B$2:$L$1081,$B$14&$C16&TA!$F$17,Dados!L$2:L$1081),VLOOKUP($B$14&TA!$C$18&$C16&TA!$F$17,Dados!$A$2:$L$1081,12,0)) -> 15098 | X16: -0.2633325201
B17: Total | D17: =SUM(D14:D16) -> 364079 | E17: 0.04656189904 | K17: =SUM(K14:K16) -> 262730 | L17: -0.1223727636 | R17: =SUM(R14:R16) -> 52576 | W17: =SUM(W14:W16) -> 858806 | X17: 0.0652716188
B18: 2008 | C18: Varas | D18: =IF(TA!$C$17=3,SUMIF(Dados!$D$2:$L$1081,$B$18&$C18,Dados!I$2:I$1081),SUMIF(Dados!$C$2:$L$1081,$B$18&TA!$C$18&$C18,Dados!I$2:I$1081)) -> 107561 | E18: -0.2028326008 | K18: =IF(TA!$C$17=3,SUMIF(Dados!$D$2:$L$1081,$B$18&$C18,Dados!J$2:J$1081),SUMIF(Dados!$C$2:$L$1081,$B$18&TA!$C$18&$C18,Dados!J$2:J$1081)) -> 72582 | L18: -0.003227268358 | R18: =IF(TA!$C$17=3,SUMIF(Dados!$D$2:$L$1081,$B$18&$C18,Dados!K$2:K$1081),SUMIF(Dados!$C$2:$L$1081,$B$18&TA!$C$18&$C18,Dados!K$2:K$1081)) -> 24210 | W18: =IF(TA!$C$17=3,SUMIF(Dados!$B$2:$L$1081,$B$18&$C18&TA!$F$17,Dados!L$2:L$1081),VLOOKUP($B$18&TA!$C$18&$C18&TA!$F$17,Dados!$A$2:$L$1081,12,0)) -> 677417 | X18: 0.007764081416
C19: Juizados | D19: =IF(TA!$C$17=3,SUMIF(Dados!$D$2:$L$1081,$B$18&$C19,Dados!I$2:I$1081),SUMIF(Dados!$C$2:$L$1081,$B$18&TA!$C$18&$C19,Dados!I$2:I$1081)) -> 137696 | E19: -0.3100331214 | K19: =IF(TA!$C$17=3,SUMIF(Dados!$D$2:$L$1081,$B$18&$C19,Dados!J$2:J$1081),SUMIF(Dados!$C$2:$L$1081,$B$18&TA!$C$18&$C19,Dados!J$2:J$1081)) -> 133912 | L19: -0.1076459691 | R19: =IF(TA!$C$17=3,SUMIF(Dados!$D$2:$L$1081,$B$18&$C19,Dados!K$2:K$1081),SUMIF(Dados!$C$2:$L$1081,$B$18&TA!$C$18&$C19,Dados!K$2:K$1081)) -> 50857 | W19: =IF(TA!$C$17=3,SUMIF(Dados!$B$2:$L$1081,$B$18&$C19&TA!$F$17,Dados!L$2:L$1081),VLOOKUP($B$18&TA!$C$18&$C19&TA!$F$17,Dados!$A$2:$L$1081,12,0)) -> 143213 | X19: -0.1649874643
C20: Turmas Recursais | D20: =IF(TA!$C$17=3,SUMIF(Dados!$D$2:$L$1081,$B$18&$C20,Dados!I$2:I$1081),SUMIF(Dados!$C$2:$L$1081,$B$18&TA!$C$18&$C20,Dados!I$2:I$1081)) -> 52023 | E20: 0.7586626551 | K20: =IF(TA!$C$17=3,SUMIF(Dados!$D$2:$L$1081,$B$18&$C20,Dados!J$2:J$1081),SUMIF(Dados!$C$2:$L$1081,$B$18&TA!$C$18&$C20,Dados!J$2:J$1081)) -> 54089 | L20: 0.3574171205 | R20: =IF(TA!$C$17=3,SUMIF(Dados!$D$2:$L$1081,$B$18&$C20,Dados!K$2:K$1081),SUMIF(Dados!$C$2:$L$1081,$B$18&TA!$C$18&$C20,Dados!K$2:K$1081)) -> 0 | W20: =IF(TA!$C$17=3,SUMIF(Dados!$B$2:$L$1081,$B$18&$C20&TA!$F$17,Dados!L$2:L$1081),VLOOKUP($B$18&TA!$C$18&$C20&TA!$F$17,Dados!$A$2:$L$1081,12,0)) -> 45288 | X20: 1.999602596
B21: Total | D21: =SUM(D18:D20) -> 297280 | E21: -0.1834739164 | K21: =SUM(K18:K20) -> 260583 | L21: -0.008171887489 | R21: =SUM(R18:R20) -> 75067 | W21: =SUM(W18:W20) -> 865918 | X21: 0.008281264919
B22: 2009 | C22: Varas | D22: =IF(TA!$C$17=3,SUMIF(Dados!$D$2:$L$1081,$B$22&$C22,Dados!I$2:I$1081),SUMIF(Dados!$C$2:$L$1081,$B$22&TA!$C$18&$C22,Dados!I$2:I$1081)) -> 123306 | E22: 0.146382053 | K22: =IF(TA!$C$17=3,SUMIF(Dados!$D$2:$L$1081,$B$22&$C22,Dados!J$2:J$1081),SUMIF(Dados!$C$2:$L$1081,$B$22&TA!$C$18&$C22,Dados!J$2:J$1081)) -> 91016 | L22: 0.2539748147 | R22: =IF(TA!$C$17=3,SUMIF(Dados!$D$2:$L$1081,$B$22&$C22,Dados!K$2:K$1081),SUMIF(Dados!$C$2:$L$1081,$B$22&TA!$C$18&$C22,Dados!K$2:K$1081)) -> 30673 | W22: =IF(TA!$C$17=3,SUMIF(Dados!$B$2:$L$1081,$B$22&$C22&TA!$F$17,Dados!L$2:L$1081),VLOOKUP($B$22&TA!$C$18&$C22&TA!$F$17,Dados!$A$2:$L$1081,12,0)) -> 685069 | X22: 0.01129584879
C23: Juizados | D23: =IF(TA!$C$17=3,SUMIF(Dados!$D$2:$L$1081,$B$22&$C23,Dados!I$2:I$1081),SUMIF(Dados!$C$2:$L$1081,$B$22&TA!$C$18&$C23,Dados!I$2:I$1081)) -> 139409 | E23: 0.01244044852 | K23: =IF(TA!$C$17=3,SUMIF(Dados!$D$2:$L$1081,$B$22&$C23,Dados!J$2:J$1081),SUMIF(Dados!$C$2:$L$1081,$B$22&TA!$C$18&$C23,Dados!J$2:J$1081)) -> 117736 | L23: -0.1207957465 | R23: =IF(TA!$C$17=3,SUMIF(Dados!$D$2:$L$1081,$B$22&$C23,Dados!K$2:K$1081),SUMIF(Dados!$C$2:$L$1081,$B$22&TA!$C$18&$C23,Dados!K$2:K$1081)) -> 46039 | W23: =IF(TA!$C$17=3,SUMIF(Dados!$B$2:$L$1081,$B$22&$C23&TA!$F$17,Dados!L$2:L$1081),VLOOKUP($B$22&TA!$C$18&$C23&TA!$F$17,Dados!$A$2:$L$1081,12,0)) -> 154408 | X23: 0.07817027784
C24: Turmas Recursais | D24: =IF(TA!$C$17=3,SUMIF(Dados!$D$2:$L$1081,$B$22&$C24,Dados!I$2:I$1081),SUMIF(Dados!$C$2:$L$1081,$B$22&TA!$C$18&$C24,Dados!I$2:I$1081)) -> 47148 | E24: -0.09370855199 | K24: =IF(TA!$C$17=3,SUMIF(Dados!$D$2:$L$1081,$B$22&$C24,Dados!J$2:J$1081),SUMIF(Dados!$C$2:$L$1081,$B$22&TA!$C$18&$C24,Dados!J$2:J$1081)) -> 47914 | L24: -0.1141636932 | R24: =IF(TA!$C$17=3,SUMIF(Dados!$D$2:$L$1081,$B$22&$C24,Dados!K$2:K$1081),SUMIF(Dados!$C$2:$L$1081,$B$22&TA!$C$18&$C24,Dados!K$2:K$1081)) -> 0 | W24: =IF(TA!$C$17=3,SUMIF(Dados!$B$2:$L$1081,$B$22&$C24&TA!$F$17,Dados!L$2:L$1081),VLOOKUP($B$22&TA!$C$18&$C24&TA!$F$17,Dados!$A$2:$L$1081,12,0)) -> 58182 | X24: 0.2847111818
B25: Total | D25: =SUM(D22:D24) -> 309863 | E25: 0.04232709903 | K25: =SUM(K22:K24) -> 256666 | L25: -0.01503167897 | R25: =SUM(R22:R24) -> 76712 | W25: =SUM(W22:W24) -> 897659 | X25: 0.03665589582
B26: 2010 | C26: Varas | D26: =IF(TA!$C$17=3,SUMIF(Dados!$D$2:$L$1081,$B$26&$C26,Dados!I$2:I$1081),SUMIF(Dados!$C$2:$L$1081,$B$26&TA!$C$18&$C26,Dados!I$2:I$1081)) -> 104040 | E26: -0.1562454382 | K26: =IF(TA!$C$17=3,SUMIF(Dados!$D$2:$L$1081,$B$26&$C26,Dados!J$2:J$1081),SUMIF(Dados!$C$2:$L$1081,$B$26&TA!$C$18&$C26,Dados!J$2:J$1081)) -> 101885 | L26: 0.1194185638 | R26: =IF(TA!$C$17=3,SUMIF(Dados!$D$2:$L$1081,$B$26&$C26,Dados!K$2:K$1081),SUMIF(Dados!$C$2:$L$1081,$B$26&TA!$C$18&$C26,Dados!K$2:K$1081)) -> 35165 | W26: =IF(TA!$C$17=3,SUMIF(Dados!$B$2:$L$1081,$B$26&$C26&TA!$F$17,Dados!L$2:L$1081),VLOOKUP($B$26&TA!$C$18&$C26&TA!$F$17,Dados!$A$2:$L$1081,12,0)) -> 666379 | X26: -0.02728192343
C27: Juizados | D27: =IF(TA!$C$17=3,SUMIF(Dados!$D$2:$L$1081,$B$26&$C27,Dados!I$2:I$1081),SUMIF(Dados!$C$2:$L$1081,$B$26&TA!$C$18&$C27,Dados!I$2:I$1081)) -> 116275 | E27: -0.1659433752 | K27: =IF(TA!$C$17=3,SUMIF(Dados!$D$2:$L$1081,$B$26&$C27,Dados!J$2:J$1081),SUMIF(Dados!$C$2:$L$1081,$B$26&TA!$C$18&$C27,Dados!J$2:J$1081)) -> 105828 | L27: -0.101141537 | R27: =IF(TA!$C$17=3,SUMIF(Dados!$D$2:$L$1081,$B$26&$C27,Dados!K$2:K$1081),SUMIF(Dados!$C$2:$L$1081,$B$26&TA!$C$18&$C27,Dados!K$2:K$1081)) -> 39439 | W27: =IF(TA!$C$17=3,SUMIF(Dados!$B$2:$L$1081,$B$26&$C27&TA!$F$17,Dados!L$2:L$1081),VLOOKUP($B$26&TA!$C$18&$C27&TA!$F$17,Dados!$A$2:$L$1081,12,0)) -> 163916 | X27: 0.06157712036
C28: Turmas Recursais | D28: =IF(TA!$C$17=3,SUMIF(Dados!$D$2:$L$1081,$B$26&$C28,Dados!I$2:I$1081),SUMIF(Dados!$C$2:$L$1081,$B$26&TA!$C$18&$C28,Dados!I$2:I$1081)) -> 38635 | E28: -0.1805590905 | K28: =IF(TA!$C$17=3,SUMIF(Dados!$D$2:$L$1081,$B$26&$C28,Dados!J$2:J$1081),SUMIF(Dados!$C$2:$L$1081,$B$26&TA!$C$18&$C28,Dados!J$2:J$1081)) -> 44105 | L28: -0.07949659807 | R28: =IF(TA!$C$17=3,SUMIF(Dados!$D$2:$L$1081,$B$26&$C28,Dados!K$2:K$1081),SUMIF(Dados!$C$2:$L$1081,$B$26&TA!$C$18&$C28,Dados!K$2:K$1081)) -> 0 | W28: =IF(TA!$C$17=3,SUMIF(Dados!$B$2:$L$1081,$B$26&$C28&TA!$F$17,Dados!L$2:L$1081),VLOOKUP($B$26&TA!$C$18&$C28&TA!$F$17,Dados!$A$2:$L$1081,12,0)) -> 43631 | X28: -0.250094531
B29: Total | D29: =SUM(D26:D28) -> 258950 | E29: -0.1643080974 | K29: =SUM(K26:K28) -> 251818 | L29: -0.01888836075 | R29: =SUM(R26:R28) -> 74604 | W29: =SUM(W26:W28) -> 873926 | X29: -0.02643877018
B30: 2011 | C30: Varas | D30: =IF(TA!$C$17=3,SUMIF(Dados!$D$2:$L$1081,$B$30&$C30,Dados!I$2:I$1081),SUMIF(Dados!$C$2:$L$1081,$B$30&TA!$C$18&$C30,Dados!I$2:I$1081)) -> 112490 | E30: 0.08121876201 | K30: =IF(TA!$C$17=3,SUMIF(Dados!$D$2:$L$1081,$B$30&$C30,Dados!J$2:J$1081),SUMIF(Dados!$C$2:$L$1081,$B$30&TA!$C$18&$C30,Dados!J$2:J$1081)) -> 104342 | L30: 0.02411542425 | R30: =IF(TA!$C$17=3,SUMIF(Dados!$D$2:$L$1081,$B$30&$C30,Dados!K$2:K$1081),SUMIF(Dados!$C$2:$L$1081,$B$30&TA!$C$18&$C30,Dados!K$2:K$1081)) -> 35631 | W30: =IF(TA!$C$17=3,SUMIF(Dados!$B$2:$L$1081,$B$30&$C30&TA!$F$17,Dados!L$2:L$1081),VLOOKUP($B$30&TA!$C$18&$C30&TA!$F$17,Dados!$A$2:$L$1081,12,0)) -> 642936 | X30: -0.03517968003
C31: Juizados | D31: =IF(TA!$C$17=3,SUMIF(Dados!$D$2:$L$1081,$B$30&$C31,Dados!I$2:I$1081),SUMIF(Dados!$C$2:$L$1081,$B$30&TA!$C$18&$C31,Dados!I$2:I$1081)) -> 93418 | E31: -0.1965770802 | K31: =IF(TA!$C$17=3,SUMIF(Dados!$D$2:$L$1081,$B$30&$C31,Dados!J$2:J$1081),SUMIF(Dados!$C$2:$L$1081,$B$30&TA!$C$18&$C31,Dados!J$2:J$1081)) -> 115712 | L31: 0.0933968326 | R31: =IF(TA!$C$17=3,SUMIF(Dados!$D$2:$L$1081,$B$30&$C31,Dados!K$2:K$1081),SUMIF(Dados!$C$2:$L$1081,$B$30&TA!$C$18&$C31,Dados!K$2:K$1081)) -> 42503 | W31: =IF(TA!$C$17=3,SUMIF(Dados!$B$2:$L$1081,$B$30&$C31&TA!$F$17,Dados!L$2:L$1081),VLOOKUP($B$30&TA!$C$18&$C31&TA!$F$17,Dados!$A$2:$L$1081,12,0)) -> 141923 | X31: -0.134172381
C32: Turmas Recursais | D32: =IF(TA!$C$17=3,SUMIF(Dados!$D$2:$L$1081,$B$30&$C32,Dados!I$2:I$1081),SUMIF(Dados!$C$2:$L$1081,$B$30&TA!$C$18&$C32,Dados!I$2:I$1081)) -> 43474 | E32: 0.1252491264 | K32: =IF(TA!$C$17=3,SUMIF(Dados!$D$2:$L$1081,$B$30&$C32,Dados!J$2:J$1081),SUMIF(Dados!$C$2:$L$1081,$B$30&TA!$C$18&$C32,Dados!J$2:J$1081)) -> 60032 | L32: 0.3611155198 | R32: =IF(TA!$C$17=3,SUMIF(Dados!$D$2:$L$1081,$B$30&$C32,Dados!K$2:K$1081),SUMIF(Dados!$C$2:$L$1081,$B$30&TA!$C$18&$C32,Dados!K$2:K$1081)) -> 0 | W32: =IF(TA!$C$17=3,SUMIF(Dados!$B$2:$L$1081,$B$30&$C32&TA!$F$17,Dados!L$2:L$1081),VLOOKUP($B$30&TA!$C$18&$C32&TA!$F$17,Dados!$A$2:$L$1081,12,0)) -> 50069 | X32: 0.147555637
B33: Total | D33: =SUM(D30:D32) -> 249382 | E33: -0.036949218 | K33: =SUM(K30:K32) -> 280086 | L33: 0.1122556767 | R33: =SUM(R30:R32) -> 78134 | W33: =SUM(W30:W32) -> 834928 | X33: -0.04462391553
B34: 2012 | C34: Varas | D34: =IF(TA!$C$17=3,SUMIF(Dados!$D$2:$L$1081,$B$34&$C34,Dados!I$2:I$1081),SUMIF(Dados!$C$2:$L$1081,$B$34&TA!$C$18&$C34,Dados!I$2:I$1081)) -> 96622 | E34: -0.1410614277 | K34: =IF(TA!$C$17=3,SUMIF(Dados!$D$2:$L$1081,$B$34&$C34,Dados!J$2:J$1081),SUMIF(Dados!$C$2:$L$1081,$B$34&TA!$C$18&$C34,Dados!J$2:J$1081)) -> 100642 | L34: -0.0354603132 | R34: =IF(TA!$C$17=3,SUMIF(Dados!$D$2:$L$1081,$B$34&$C34,Dados!K$2:K$1081),SUMIF(Dados!$C$2:$L$1081,$B$34&TA!$C$18&$C34,Dados!K$2:K$1081)) -> 32333 | W34: =IF(TA!$C$17=3,SUMIF(Dados!$B$2:$L$1081,$B$34&$C34&TA!$F$17,Dados!L$2:L$1081),VLOOKUP($B$34&TA!$C$18&$C34&TA!$F$17,Dados!$A$2:$L$1081,12,0)) -> 630103 | X34: -0.01995999602
C35: Juizados | D35: =IF(TA!$C$17=3,SUMIF(Dados!$D$2:$L$1081,$B$34&$C35,Dados!I$2:I$1081),SUMIF(Dados!$C$2:$L$1081,$B$34&TA!$C$18&$C35,Dados!I$2:I$1081)) -> 83039 | E35: -0.1111027853 | K35: =IF(TA!$C$17=3,SUMIF(Dados!$D$2:$L$1081,$B$34&$C35,Dados!J$2:J$1081),SUMIF(Dados!$C$2:$L$1081,$B$34&TA!$C$18&$C35,Dados!J$2:J$1081)) -> 99447 | L35: -0.140564505 | R35: =IF(TA!$C$17=3,SUMIF(Dados!$D$2:$L$1081,$B$34&$C35,Dados!K$2:K$1081),SUMIF(Dados!$C$2:$L$1081,$B$34&TA!$C$18&$C35,Dados!K$2:K$1081)) -> 39814 | W35: =IF(TA!$C$17=3,SUMIF(Dados!$B$2:$L$1081,$B$34&$C35&TA!$F$17,Dados!L$2:L$1081),VLOOKUP($B$34&TA!$C$18&$C35&TA!$F$17,Dados!$A$2:$L$1081,12,0)) -> 111759 | X35: -0.2125377846
C36: Turmas Recursais | D36: =IF(TA!$C$17=3,SUMIF(Dados!$D$2:$L$1081,$B$34&$C36,Dados!I$2:I$1081),SUMIF(Dados!$C$2:$L$1081,$B$34&TA!$C$18&$C36,Dados!I$2:I$1081)) -> 49427 | E36: 0.1369324194 | K36: =IF(TA!$C$17=3,SUMIF(Dados!$D$2:$L$1081,$B$34&$C36,Dados!J$2:J$1081),SUMIF(Dados!$C$2:$L$1081,$B$34&TA!$C$18&$C36,Dados!J$2:J$1081)) -> 49794 | L36: -0.1705423774 | R36: =IF(TA!$C$17=3,SUMIF(Dados!$D$2:$L$1081,$B$34&$C36,Dados!K$2:K$1081),SUMIF(Dados!$C$2:$L$1081,$B$34&TA!$C$18&$C36,Dados!K$2:K$1081)) -> 0 | W36: =IF(TA!$C$17=3,SUMIF(Dados!$B$2:$L$1081,$B$34&$C36&TA!$F$17,Dados!L$2:L$1081),VLOOKUP($B$34&TA!$C$18&$C36&TA!$F$17,Dados!$A$2:$L$1081,12,0)) -> 65235 | X36: 0.3029019952
B37: Total | D37: =SUM(D34:D36) -> 229088 | E37: -0.08137716435 | K37: =SUM(K34:K36) -> 249883 | L37: -0.1078347365 | R37: =SUM(R34:R36) -> 72147 | W37: =SUM(W34:W36) -> 807097 | X37: -0.03333341318
B38: 2013 | C38: Varas | D38: =IF(TA!$C$17=3,SUMIF(Dados!$D$2:$L$1081,$B$38&$C38,Dados!I$2:I$1081),SUMIF(Dados!$C$2:$L$1081,$B$38&TA!$C$18&$C38,Dados!I$2:I$1081)) -> 87961 | E38: -0.08963797065 | K38: =IF(TA!$C$17=3,SUMIF(Dados!$D$2:$L$1081,$B$38&$C38,Dados!J$2:J$1081),SUMIF(Dados!$C$2:$L$1081,$B$38&TA!$C$18&$C38,Dados!J$2:J$1081)) -> 122318 | L38: 0.2153772779 | R38: =IF(TA!$C$17=3,SUMIF(Dados!$D$2:$L$1081,$B$38&$C38,Dados!K$2:K$1081),SUMIF(Dados!$C$2:$L$1081,$B$38&TA!$C$18&$C38,Dados!K$2:K$1081)) -> 39274 | W38: =IF(TA!$C$17=3,SUMIF(Dados!$B$2:$L$1081,$B$38&$C38&TA!$F$17,Dados!L$2:L$1081),VLOOKUP($B$38&TA!$C$18&$C38&TA!$F$17,Dados!$A$2:$L$1081,12,0)) -> 584820 | X38: -0.07186602825
C39: Juizados | D39: =IF(TA!$C$17=3,SUMIF(Dados!$D$2:$L$1081,$B$38&$C39,Dados!I$2:I$1081),SUMIF(Dados!$C$2:$L$1081,$B$38&TA!$C$18&$C39,Dados!I$2:I$1081)) -> 104492 | E39: 0.2583484869 | K39: =IF(TA!$C$17=3,SUMIF(Dados!$D$2:$L$1081,$B$38&$C39,Dados!J$2:J$1081),SUMIF(Dados!$C$2:$L$1081,$B$38&TA!$C$18&$C39,Dados!J$2:J$1081)) -> 119912 | L39: 0.2057880077 | R39: =IF(TA!$C$17=3,SUMIF(Dados!$D$2:$L$1081,$B$38&$C39,Dados!K$2:K$1081),SUMIF(Dados!$C$2:$L$1081,$B$38&TA!$C$18&$C39,Dados!K$2:K$1081)) -> 46410 | W39: =IF(TA!$C$17=3,SUMIF(Dados!$B$2:$L$1081,$B$38&$C39&TA!$F$17,Dados!L$2:L$1081),VLOOKUP($B$38&TA!$C$18&$C39&TA!$F$17,Dados!$A$2:$L$1081,12,0)) -> 106558 | X39: -0.04653763903
C40: Turmas Recursais | D40: =IF(TA!$C$17=3,SUMIF(Dados!$D$2:$L$1081,$B$38&$C40,Dados!I$2:I$1081),SUMIF(Dados!$C$2:$L$1081,$B$38&TA!$C$18&$C40,Dados!I$2:I$1081)) -> 63673 | E40: 0.288223036 | K40: =IF(TA!$C$17=3,SUMIF(Dados!$D$2:$L$1081,$B$38&$C40,Dados!J$2:J$1081),SUMIF(Dados!$C$2:$L$1081,$B$38&TA!$C$18&$C40,Dados!J$2:J$1081)) -> 59086 | L40: 0.1866088284 | R40: =IF(TA!$C$17=3,SUMIF(Dados!$D$2:$L$1081,$B$38&$C40,Dados!K$2:K$1081),SUMIF(Dados!$C$2:$L$1081,$B$38&TA!$C$18&$C40,Dados!K$2:K$1081)) -> 0 | W40: =IF(TA!$C$17=3,SUMIF(Dados!$B$2:$L$1081,$B$38&$C40&TA!$F$17,Dados!L$2:L$1081),VLOOKUP($B$38&TA!$C$18&$C40&TA!$F$17,Dados!$A$2:$L$1081,12,0)) -> 77659 | X40: 0.1904499119
B41: Total | D41: =SUM(D38:D40) -> 256126 | E41: 0.1180245146 | K41: =SUM(K38:K40) -> 301316 | L41: 0.2058283277 | R41: =SUM(R38:R40) -> 85684 | W41: =SUM(W38:W40) -> 769037 | X41: -0.04715666147
B42: 2014 | C42: Varas | D42: =IF(TA!$C$17=3,SUMIF(Dados!$D$2:$L$1081,$B$42&$C42,Dados!I$2:I$1081),SUMIF(Dados!$C$2:$L$1081,$B$42&TA!$C$18&$C42,Dados!I$2:I$1081)) -> 121666 | E42: =IF(D42=0,"",(D42/D38)-1) -> 0.3831811826 | K42: =IF(TA!$C$17=3,SUMIF(Dados!$D$2:$L$1081,$B$42&$C42,Dados!J$2:J$1081),SUMIF(Dados!$C$2:$L$1081,$B$42&TA!$C$18&$C42,Dados!J$2:J$1081)) -> 122683 | L42: =IF(K42=0,"",(K42/K38)-1) -> 0.002984025246 | R42: =IF(TA!$C$17=3,SUMIF(Dados!$D$2:$L$1081,$B$42&$C42,Dados!K$2:K$1081),SUMIF(Dados!$C$2:$L$1081,$B$42&TA!$C$18&$C42,Dados!K$2:K$1081)) -> 46430 | W42: =IF(TA!$C$17=3,SUMIF(Dados!$B$2:$L$1081,$B$42&$C42&TA!$F$17,Dados!L$2:L$1081),VLOOKUP($B$42&TA!$C$18&$C42&TA!$F$17,Dados!$A$2:$L$1081,12,0)) -> 572508 | X42: =IF(W42=0,"",(W42/W38)-1) -> -0.02105263158
C43: Juizados | D43: =IF(TA!$C$17=3,SUMIF(Dados!$D$2:$L$1081,$B$42&$C43,Dados!I$2:I$1081),SUMIF(Dados!$C$2:$L$1081,$B$42&TA!$C$18&$C43,Dados!I$2:I$1081)) -> 114855 | E43: 0.09917505646 | K43: =IF(TA!$C$17=3,SUMIF(Dados!$D$2:$L$1081,$B$42&$C43,Dados!J$2:J$1081),SUMIF(Dados!$C$2:$L$1081,$B$42&TA!$C$18&$C43,Dados!J$2:J$1081)) -> 119417 | L43: -0.00412802722 | R43: =IF(TA!$C$17=3,SUMIF(Dados!$D$2:$L$1081,$B$42&$C43,Dados!K$2:K$1081),SUMIF(Dados!$C$2:$L$1081,$B$42&TA!$C$18&$C43,Dados!K$2:K$1081)) -> 50430 | W43: =IF(TA!$C$17=3,SUMIF(Dados!$B$2:$L$1081,$B$42&$C43&TA!$F$17,Dados!L$2:L$1081),VLOOKUP($B$42&TA!$C$18&$C43&TA!$F$17,Dados!$A$2:$L$1081,12,0)) -> 102785 | X43: -0.03540794685
C44: Turmas Recursais | D44: =IF(TA!$C$17=3,SUMIF(Dados!$D$2:$L$1081,$B$42&$C44,Dados!I$2:I$1081),SUMIF(Dados!$C$2:$L$1081,$B$42&TA!$C$18&$C44,Dados!I$2:I$1081)) -> 49996 | E44: -0.2148006219 | K44: =IF(TA!$C$17=3,SUMIF(Dados!$D$2:$L$1081,$B$42&$C44,Dados!J$2:J$1081),SUMIF(Dados!$C$2:$L$1081,$B$42&TA!$C$18&$C44,Dados!J$2:J$1081)) -> 73020 | L44: 0.2358257455 | R44: =IF(TA!$C$17=3,SUMIF(Dados!$D$2:$L$1081,$B$42&$C44,Dados!K$2:K$1081),SUMIF(Dados!$C$2:$L$1081,$B$42&TA!$C$18&$C44,Dados!K$2:K$1081)) -> 0 | W44: =IF(TA!$C$17=3,SUMIF(Dados!$B$2:$L$1081,$B$42&$C44&TA!$F$17,Dados!L$2:L$1081),VLOOKUP($B$42&TA!$C$18&$C44&TA!$F$17,Dados!$A$2:$L$1081,12,0)) -> 83589 | X44: 0.07635946896
B45: Total | D45: =SUM(D42:D44) -> 286517 | E45: 0.1186564425 | K45: =SUM(K42:K44) -> 315120 | L45: 0.04581236974 | R45: =SUM(R42:R44) -> 96860 | W45: =SUM(W42:W44) -> 758882 | X45: -0.0132048263
B46: 2015 | C46: Varas | D46: =IF(TA!$C$17=3,SUMIF(Dados!$D$2:$L$1081,$B$46&$C46,Dados!I$2:I$1081),SUMIF(Dados!$C$2:$L$1081,$B$46&TA!$C$18&$C46,Dados!I$2:I$1081)) -> 108911 | E46: -0.1048361909 | K46: =IF(TA!$C$17=3,SUMIF(Dados!$D$2:$L$1081,$B$46&$C46,Dados!J$2:J$1081),SUMIF(Dados!$C$2:$L$1081,$B$46&TA!$C$18&$C46,Dados!J$2:J$1081)) -> 97679 | L46: -0.2038098188 | R46: =IF(TA!$C$17=3,SUMIF(Dados!$D$2:$L$1081,$B$46&$C46,Dados!K$2:K$1081),SUMIF(Dados!$C$2:$L$1081,$B$46&TA!$C$18&$C46,Dados!K$2:K$1081)) -> 32606 | W46: =IF(TA!$C$17=3,SUMIF(Dados!$B$2:$L$1081,$B$46&$C46&TA!$F$17,Dados!L$2:L$1081),VLOOKUP($B$46&TA!$C$18&$C46&TA!$F$17,Dados!$A$2:$L$1081,12,0)) -> 571789 | X46: -0.001255877647
C47: Juizados | D47: =IF(TA!$C$17=3,SUMIF(Dados!$D$2:$L$1081,$B$46&$C47,Dados!I$2:I$1081),SUMIF(Dados!$C$2:$L$1081,$B$46&TA!$C$18&$C47,Dados!I$2:I$1081)) -> 98404 | E47: -0.1432327718 | K47: =IF(TA!$C$17=3,SUMIF(Dados!$D$2:$L$1081,$B$46&$C47,Dados!J$2:J$1081),SUMIF(Dados!$C$2:$L$1081,$B$46&TA!$C$18&$C47,Dados!J$2:J$1081)) -> 102541 | L47: -0.1413199126 | R47: =IF(TA!$C$17=3,SUMIF(Dados!$D$2:$L$1081,$B$46&$C47,Dados!K$2:K$1081),SUMIF(Dados!$C$2:$L$1081,$B$46&TA!$C$18&$C47,Dados!K$2:K$1081)) -> 36846 | W47: =IF(TA!$C$17=3,SUMIF(Dados!$B$2:$L$1081,$B$46&$C47&TA!$F$17,Dados!L$2:L$1081),VLOOKUP($B$46&TA!$C$18&$C47&TA!$F$17,Dados!$A$2:$L$1081,12,0)) -> 102983 | X47: 0.001926351121
C48: Turmas Recursais | D48: =IF(TA!$C$17=3,SUMIF(Dados!$D$2:$L$1081,$B$46&$C48,Dados!I$2:I$1081),SUMIF(Dados!$C$2:$L$1081,$B$46&TA!$C$18&$C48,Dados!I$2:I$1081)) -> 36910 | E48: -0.2617409393 | K48: =IF(TA!$C$17=3,SUMIF(Dados!$D$2:$L$1081,$B$46&$C48,Dados!J$2:J$1081),SUMIF(Dados!$C$2:$L$1081,$B$46&TA!$C$18&$C48,Dados!J$2:J$1081)) -> 47344 | L48: -0.3516296905 | R48: =IF(TA!$C$17=3,SUMIF(Dados!$D$2:$L$1081,$B$46&$C48,Dados!K$2:K$1081),SUMIF(Dados!$C$2:$L$1081,$B$46&TA!$C$18&$C48,Dados!K$2:K$1081)) -> 0 | W48: =IF(TA!$C$17=3,SUMIF(Dados!$B$2:$L$1081,$B$46&$C48&TA!$F$17,Dados!L$2:L$1081),VLOOKUP($B$46&TA!$C$18&$C48&TA!$F$17,Dados!$A$2:$L$1081,12,0)) -> 83891 | X48: 0.003612915575
B49: Total | D49: =SUM(D46:D48) -> 244225 | E49: -0.1476072973 | K49: =SUM(K46:K48) -> 247564 | L49: -0.2143818228 | R49: =SUM(R46:R48) -> 69452 | W49: =SUM(W46:W48) -> 758663 | X49: -0.0002885824147
B50: 2016 | C50: Varas | D50: =IF(TA!$C$17=3,SUMIF(Dados!$D$2:$L$1081,$B$50&$C50,Dados!I$2:I$1081),SUMIF(Dados!$C$2:$L$1081,$B$50&TA!$C$18&$C50,Dados!I$2:I$1081)) -> 101809 | E50: -0.06520920752 | K50: =IF(TA!$C$17=3,SUMIF(Dados!$D$2:$L$1081,$B$50&$C50,Dados!J$2:J$1081),SUMIF(Dados!$C$2:$L$1081,$B$50&TA!$C$18&$C50,Dados!J$2:J$1081)) -> 76760 | L50: -0.2141606691 | R50: =IF(TA!$C$17=3,SUMIF(Dados!$D$2:$L$1081,$B$50&$C50,Dados!K$2:K$1081),SUMIF(Dados!$C$2:$L$1081,$B$50&TA!$C$18&$C50,Dados!K$2:K$1081)) -> 24922 | W50: =IF(TA!$C$17=3,SUMIF(Dados!$B$2:$L$1081,$B$50&$C50&TA!$F$17,Dados!L$2:L$1081),VLOOKUP($B$50&TA!$C$18&$C50&TA!$F$17,Dados!$A$2:$L$1081,12,0)) -> 592525 | X50: 0.03626512577
C51: Juizados | D51: =IF(TA!$C$17=3,SUMIF(Dados!$D$2:$L$1081,$B$50&$C51,Dados!I$2:I$1081),SUMIF(Dados!$C$2:$L$1081,$B$50&TA!$C$18&$C51,Dados!I$2:I$1081)) -> 110348 | E51: 0.1213771798 | K51: =IF(TA!$C$17=3,SUMIF(Dados!$D$2:$L$1081,$B$50&$C51,Dados!J$2:J$1081),SUMIF(Dados!$C$2:$L$1081,$B$50&TA!$C$18&$C51,Dados!J$2:J$1081)) -> 100637 | L51: -0.01856818248 | R51: =IF(TA!$C$17=3,SUMIF(Dados!$D$2:$L$1081,$B$50&$C51,Dados!K$2:K$1081),SUMIF(Dados!$C$2:$L$1081,$B$50&TA!$C$18&$C51,Dados!K$2:K$1081)) -> 32608 | W51: =IF(TA!$C$17=3,SUMIF(Dados!$B$2:$L$1081,$B$50&$C51&TA!$F$17,Dados!L$2:L$1081),VLOOKUP($B$50&TA!$C$18&$C51&TA!$F$17,Dados!$A$2:$L$1081,12,0)) -> 120229 | X51: 0.167464533
C52: Turmas Recursais | D52: =IF(TA!$C$17=3,SUMIF(Dados!$D$2:$L$1081,$B$50&$C52,Dados!I$2:I$1081),SUMIF(Dados!$C$2:$L$1081,$B$50&TA!$C$18&$C52,Dados!I$2:I$1081)) -> 32732 | E52: -0.1131942563 | K52: =IF(TA!$C$17=3,SUMIF(Dados!$D$2:$L$1081,$B$50&$C52,Dados!J$2:J$1081),SUMIF(Dados!$C$2:$L$1081,$B$50&TA!$C$18&$C52,Dados!J$2:J$1081)) -> 43802 | L52: -0.07481412639 | R52: =IF(TA!$C$17=3,SUMIF(Dados!$D$2:$L$1081,$B$50&$C52,Dados!K$2:K$1081),SUMIF(Dados!$C$2:$L$1081,$B$50&TA!$C$18&$C52,Dados!K$2:K$1081)) -> 0 | W52: =IF(TA!$C$17=3,SUMIF(Dados!$B$2:$L$1081,$B$50&$C52&TA!$F$17,Dados!L$2:L$1081),VLOOKUP($B$50&TA!$C$18&$C52&TA!$F$17,Dados!$A$2:$L$1081,12,0)) -> 83901 | X52: 0.0001192022982
B53: Total | D53: =SUM(D50:D52) -> 244889 | E53: 0.002718804381 | K53: =SUM(K50:K52) -> 221199 | L53: -0.1064977137 | R53: =SUM(R50:R52) -> 57530 | W53: =SUM(W50:W52) -> 796655 | X53: 0.05007757067
B54: 2017 | C54: Varas | D54: =IF(TA!$C$17=3,SUMIF(Dados!$D$2:$L$217,$B$54&$C54,Dados!$I$2:$I$217),SUMIF(Dados!$C$2:$L$217,$B$54&TA!$C$18&$C54,Dados!$I$2:$I$217)) -> 151464 | E54: 0.4877270182 | K54: =IF(TA!$C$17=3,SUMIF(Dados!$D$2:$L$217,$B$54&$C54,Dados!$J$2:$J$217),SUMIF(Dados!$C$2:$L$217,$B$54&TA!$C$18&$C54,Dados!$J$2:$J$217)) -> 139362 | L54: 0.8155549766 | R54: =IF(TA!$C$17=3,SUMIF(Dados!$D$2:$L$217,$B$54&$C54,Dados!$K$2:$K$217),SUMIF(Dados!$C$2:$L$217,$B$54&TA!$C$18&$C54,Dados!$K$2:$K$217)) -> 24516 | W54: =IF(TA!$C$17=3,SUMIF(Dados!$B$2:$L$217,$B$54&$C54&TA!$F$17, Dados!$L$2:$L$217),VLOOKUP($B$54&TA!$C$18&$C54&TA!$F$17,Dados!$A$2:$L$217,12,0)) -> 621087 | X54: 0.04820387325 | AH54: range 2017 -> #
C55: Juizados | D55: =IF(TA!$C$17=3,SUMIF(Dados!$D$2:$L$217,$B$54&$C55,Dados!$I$2:$I$217),SUMIF(Dados!$C$2:$L$217,$B$54&TA!$C$18&$C55,Dados!$I$2:$I$217)) -> 114818 | E55: 0.04050821039 | K55: =IF(TA!$C$17=3,SUMIF(Dados!$D$2:$L$217,$B$54&$C55,Dados!$J$2:$J$217),SUMIF(Dados!$C$2:$L$217,$B$54&TA!$C$18&$C55,Dados!$J$2:$J$217)) -> 108028 | L55: 0.07344217336 | R55: =IF(TA!$C$17=3,SUMIF(Dados!$D$2:$L$217,$B$54&$C55,Dados!$K$2:$K$217),SUMIF(Dados!$C$2:$L$217,$B$54&TA!$C$18&$C55,Dados!$K$2:$K$217)) -> 32424 | W55: =IF(TA!$C$17=3,SUMIF(Dados!$B$2:$L$217,$B$54&$C55&TA!$F$17, Dados!$L$2:$L$217),VLOOKUP($B$54&TA!$C$18&$C55&TA!$F$17,Dados!$A$2:$L$217,12,0)) -> 139350 | X55: 0.1590381688
C56: Turmas Recursais | D56: =IF(TA!$C$17=3,SUMIF(Dados!$D$2:$L$217,$B$54&$C56,Dados!$I$2:$I$217),SUMIF(Dados!$C$2:$L$217,$B$54&TA!$C$18&$C56,Dados!$I$2:$I$217)) -> 32247 | E56: -0.01481730417 | K56: =IF(TA!$C$17=3,SUMIF(Dados!$D$2:$L$217,$B$54&$C56,Dados!$J$2:$J$217),SUMIF(Dados!$C$2:$L$217,$B$54&TA!$C$18&$C56,Dados!$J$2:$J$217)) -> 46970 | L56: 0.07232546459 | R56: =IF(TA!$C$17=3,SUMIF(Dados!$D$2:$L$217,$B$54&$C56,Dados!$K$2:$K$217),SUMIF(Dados!$C$2:$L$217,$B$54&TA!$C$18&$C56,Dados!$K$2:$K$217)) -> 0 | W56: =IF(TA!$C$17=3,SUMIF(Dados!$B$2:$L$217,$B$54&$C56&TA!$F$17, Dados!$L$2:$L$217),VLOOKUP($B$54&TA!$C$18&$C56&TA!$F$17,Dados!$A$2:$L$217,12,0)) -> 56454 | X56: -0.3271355526
B57: Total | D57: =SUM(D54:D56) -> 298529 | E57: 0.2190380131 | K57: =SUM(K54:K56) -> 294360 | L57: 0.3307474265 | R57: =SUM(R54:R56) -> 56940 | W57: =SUM(W54:W56) -> 816891 | X57: 0.0254012088
B58: 2018 | C58: Varas | D58: =IF(TA!$C$17=3,SUMIF(Dados!$D$2:$L$217,$B$58&$C58,Dados!$I$2:$I$217),SUMIF(Dados!$C$2:$L$217,$B$58&TA!$C$18&$C58,Dados!$I$2:$I$217)) -> 59120 | E58: -0.6096762267 | F58: =IF(TA!$C$17=3,SUMIF(Dados!$D$2:$P$217,$B$58&$C58,Dados!$M$2:$M$217 ),SUMIF(Dados!$C$2:$P$217,$B$58&TA!$C$18&$C58,Dados!$M$2:$M$217 )) -> 43793 | H58: =IF(D58=0,"",D58+F58) -> 102913 | I58: =IF(H58=0,"",(H58/D54)-1) -> -0.3205448159 | K58: =IF(TA!$C$17=3,SUMIF(Dados!$D$2:$L$217,$B$58&$C58,Dados!$J$2:$J$217),SUMIF(Dados!$C$2:$L$217,$B$58&TA!$C$18&$C58,Dados!$J$2:$J$217)) -> 109812 | L58: =IF(K58=0,"",(K58/K54)-1) -> -0.2120377147 | M58: =IF(TA!$C$17=3,SUMIF(Dados!$D$2:$P$217,$B$58&$C58,Dados!$N$2:$N$217 ),SUMIF(Dados!$C$2:$P$217,$B$58&TA!$C$18&$C58,Dados!$N$2:$N$217 )) -> 3530 | O58: =IF(K58=0,"",K58+M58) -> 113342 | P58: =IF(O58=0,"",(O58/K54)-1) -> -0.1867079979 | R58: =IF(TA!$C$17=3,SUMIF(Dados!$D$2:$L$217,$B$58&$C58,Dados!$K$2:$K$217),SUMIF(Dados!$C$2:$L$217,$B$58&TA!$C$18&$C58,Dados!$K$2:$K$217)) -> 24138 | S58: =IF(TA!$C$17=3,SUMIF(Dados!$D$2:$P$217,$B$58&$C58,Dados!$O$2:$O$217 ),SUMIF(Dados!$C$2:$P$217,$B$58&TA!$C$18&$C58,Dados!$O$2:$O$217 )) -> 471 | T58: =IF(AND(R58=0,S58=0),"",R58+S58) -> 24609 | U58: =IF(T58=0,"",(T58/R54)-1) -> 0.003793441018 | W58: =IF(TA!$C$17=3,SUMIF(Dados!$B$2:$L$217,$B$58&$C58&TA!$F$17, Dados!$L$2:$L$217),VLOOKUP($B$58&TA!$C$18&$C58&TA!$F$17,Dados!$A$2:$L$217,12,0)) -> 530063 | X58: =IF(W58=0,"",(W58/W54)-1) -> -0.1465559575 | Y58: =IF(TA!$C$17=3,SUMIF(Dados!$B$2:$P$217,$B$58&$C58&TA!$F$17, Dados!$P$2:$P$217),VLOOKUP($B$58&TA!$C$18&$C58&TA!$F$17,Dados!$A$2:$P$217,16,0)) -> 61696 | AA58: =IF(AND(W58=0,Y58=0),"",W58+Y58) -> 591759 | AB58: =IF(AA58="","",(AA58/W54)-1) -> -0.04722043772
C59: Juizados | D59: =IF(TA!$C$17=3,SUMIF(Dados!$D$2:$L$217,$B$58&$C59,Dados!$I$2:$I$217),SUMIF(Dados!$C$2:$L$217,$B$58&TA!$C$18&$C59,Dados!$I$2:$I$217)) -> 35108 | E59: -0.6942291278 | F59: =IF(TA!$C$17=3,SUMIF(Dados!$D$2:$P$217,$B$58&$C59,Dados!$M$2:$M$217 ),SUMIF(Dados!$C$2:$P$217,$B$58&TA!$C$18&$C59,Dados!$M$2:$M$217 )) -> 78214 | H59: 113322 | I59: =IF(H59=0,"",(H59/D55)-1) -> -0.01302931596 | K59: =IF(TA!$C$17=3,SUMIF(Dados!$D$2:$L$217,$B$58&$C59,Dados!$J$2:$J$217),SUMIF(Dados!$C$2:$L$217,$B$58&TA!$C$18&$C59,Dados!$J$2:$J$217)) -> 128374 | L59: 0.18834006 | M59: =IF(TA!$C$17=3,SUMIF(Dados!$D$2:$P$217,$B$58&$C59,Dados!$N$2:$N$217 ),SUMIF(Dados!$C$2:$P$217,$B$58&TA!$C$18&$C59,Dados!$N$2:$N$217 )) -> 28477 | O59: 156851 | P59: =IF(O59=0,"",(O59/K55)-1) -> 0.4519476432 | R59: =IF(TA!$C$17=3,SUMIF(Dados!$D$2:$L$217,$B$58&$C59,Dados!$K$2:$K$217),SUMIF(Dados!$C$2:$L$217,$B$58&TA!$C$18&$C59,Dados!$K$2:$K$217)) -> 33578 | S59: =IF(TA!$C$17=3,SUMIF(Dados!$D$2:$P$217,$B$58&$C59,Dados!$O$2:$O$217 ),SUMIF(Dados!$C$2:$P$217,$B$58&TA!$C$18&$C59,Dados!$O$2:$O$217 )) -> 5430 | T59: =IF(AND(R59=0,S59=0),"",R59+S59) -> 39008 | U59: =IF(T59=0,"",(T59/R55)-1) -> 0.2030594621 | W59: =IF(TA!$C$17=3,SUMIF(Dados!$B$2:$L$217,$B$58&$C59&TA!$F$17, Dados!$L$2:$L$217),VLOOKUP($B$58&TA!$C$18&$C59&TA!$F$17,Dados!$A$2:$L$217,12,0)) -> 36713 | X59: -0.7365410836 | Y59: =IF(TA!$C$17=3,SUMIF(Dados!$B$2:$P$217,$B$58&$C59&TA!$F$17, Dados!$P$2:$P$217),VLOOKUP($B$58&TA!$C$18&$C59&TA!$F$17,Dados!$A$2:$P$217,16,0)) -> 80327 | AA59: 117040 | AB59: =IF(AA59="","",(AA59/W55)-1) -> -0.1601004665
C60: Turmas Recursais | D60: =IF(TA!$C$17=3,SUMIF(Dados!$D$2:$L$217,$B$58&$C60,Dados!$I$2:$I$217),SUMIF(Dados!$C$2:$L$217,$B$58&TA!$C$18&$C60,Dados!$I$2:$I$217)) -> 32852 | E60: 0.01876143517 | F60: =IF(TA!$C$17=3,SUMIF(Dados!$D$2:$P$217,$B$58&$C60,Dados!$M$2:$M$217 ),SUMIF(Dados!$C$2:$P$217,$B$58&TA!$C$18&$C60,Dados!$M$2:$M$217 )) -> 5748 | H60: 38600 | I60: =IF(H60=0,"",(H60/D56)-1) -> 0.1970105746 | K60: =IF(TA!$C$17=3,SUMIF(Dados!$D$2:$L$217,$B$58&$C60,Dados!$J$2:$J$217),SUMIF(Dados!$C$2:$L$217,$B$58&TA!$C$18&$C60,Dados!$J$2:$J$217)) -> 48876 | L60: 0.04057909304 | M60: =IF(TA!$C$17=3,SUMIF(Dados!$D$2:$P$217,$B$58&$C60,Dados!$N$2:$N$217 ),SUMIF(Dados!$C$2:$P$217,$B$58&TA!$C$18&$C60,Dados!$N$2:$N$217 )) -> 1186 | O60: 50062 | P60: =IF(O60=0,"",(O60/K56)-1) -> 0.06582925271 | R60: =IF(TA!$C$17=3,SUMIF(Dados!$D$2:$L$217,$B$58&$C60,Dados!$K$2:$K$217),SUMIF(Dados!$C$2:$L$217,$B$58&TA!$C$18&$C60,Dados!$K$2:$K$217)) -> 0 | S60: =IF(TA!$C$17=3,SUMIF(Dados!$D$2:$P$217,$B$58&$C60,Dados!$O$2:$O$217 ),SUMIF(Dados!$C$2:$P$217,$B$58&TA!$C$18&$C60,Dados!$O$2:$O$217 )) -> 0 | T60: =IF(AND(R60=0,S60=0),"",R60+S60) ->  | W60: =IF(TA!$C$17=3,SUMIF(Dados!$B$2:$L$217,$B$58&$C60&TA!$F$17, Dados!$L$2:$L$217),VLOOKUP($B$58&TA!$C$18&$C60&TA!$F$17,Dados!$A$2:$L$217,12,0)) -> 50962 | X60: -0.09728274347 | Y60: =IF(TA!$C$17=3,SUMIF(Dados!$B$2:$P$217,$B$58&$C60&TA!$F$17, Dados!$P$2:$P$217),VLOOKUP($B$58&TA!$C$18&$C60&TA!$F$17,Dados!$A$2:$P$217,16,0)) -> 5497 | AA60: 56459 | AB60: =IF(AA60="","",(AA60/W56)-1) -> 8.856768342e-05
B61: Total | D61: =SUM(D58:D60) -> 127080 | E61: -0.5743127133 | F61: =SUM(F58:F60) -> 127755 | H61: 254835 | I61: =IF(H61=0,"",(H61/D57)-1) -> -0.1463643398 | K61: =SUM(K58:K60) -> 287062 | L61: -0.02479277076 | M61: =SUM(M58:M60) -> 33193 | O61: 320255 | P61: =IF(O61=0,"",(O61/K57)-1) -> 0.0879705123 | R61: =SUM(R58:R60) -> 57716 | S61: =SUM(S58:S60) -> 5901 | T61: =IF(R61=0,"",R61+S61) -> 63617 | U61: =IF(T61=0,"",(T61/R57)-1) -> 0.1172637864 | W61: =SUM(W58:W60) -> 617738 | X61: -0.2437938476 | Y61: =SUM(Y58:Y60) -> 147520 | AA61: 765258 | AB61: =IF(AA61="","",(AA61/W57)-1) -> -0.06320671913
B62: 2019 | C62: Varas | D62: =IF(TA!$C$17=3,SUMIF(Dados!$D$2:$L$217,$B$62&$C62,Dados!$I$2:$I$217),SUMIF(Dados!$C$2:$L$217,$B$62&TA!$C$18&$C62,Dados!$I$2:$I$217)) -> 7959 | E62: =IF(D62=0,"",(D62/D58)-1) -> -0.8653755074 | F62: =IF(TA!$C$17=3,SUMIF(Dados!$D$2:$P$217,$B$62&$C62,Dados!$M$2:$M$217 ),SUMIF(Dados!$C$2:$P$217,$B$62&TA!$C$18&$C62,Dados!$M$2:$M$217 )) -> 96298 | G62: =IF(F62=0,"",(F62/F58)-1) -> 1.198935903 | H62: =IF(D62=0,"",D62+F62) -> 104257 | I62: =IF(H62=0,"",(H62/H58)-1) -> 0.01305957459 | K62: =IF(TA!$C$17=3,SUMIF(Dados!$D$2:$L$217,$B$62&$C62,Dados!$J$2:$J$217),SUMIF(Dados!$C$2:$L$217,$B$62&TA!$C$18&$C62,Dados!$J$2:$J$217)) -> 43371 | L62: -0.6050431647 | M62: =IF(TA!$C$17=3,SUMIF(Dados!$D$2:$P$217,$B$62&$C62,Dados!$N$2:$N$217 ),SUMIF(Dados!$C$2:$P$217,$B$62&TA!$C$18&$C62,Dados!$N$2:$N$217 )) -> 62683 | N62: =IF(M62=0,"",(M62/M58)-1) -> 16.7572238 | O62: 106054 | P62: =IF(O62=0,"",(O62/O58)-1) -> -0.06430096522 | R62: =IF(TA!$C$17=3,SUMIF(Dados!$D$2:$L$217,$B$62&$C62,Dados!$K$2:$K$217),SUMIF(Dados!$C$2:$L$217,$B$62&TA!$C$18&$C62,Dados!$K$2:$K$217)) -> 7806 | S62: =IF(TA!$C$17=3,SUMIF(Dados!$D$2:$P$217,$B$62&$C62,Dados!$O$2:$O$217 ),SUMIF(Dados!$C$2:$P$217,$B$62&TA!$C$18&$C62,Dados!$O$2:$O$217 )) -> 40960 | T62: =IF(AND(R62=0,S62=0),"",R62+S62) -> 48766 | U62: =IF(T62=0,"",(T62/T58)-1) -> 0.981632736 | W62: =IF(TA!$C$17=3,SUMIF(Dados!$B$2:$L$217,$B$62&$C62&TA!$F$17, Dados!$L$2:$L$217),VLOOKUP($B$62&TA!$C$18&$C62&TA!$F$17,Dados!$A$2:$L$217,12,0)) -> 100231 | X62: -0.8109073827 | Y62: =IF(TA!$C$17=3,SUMIF(Dados!$B$2:$P$217,$B$62&$C62&TA!$F$17, Dados!$P$2:$P$217),VLOOKUP($B$62&TA!$C$18&$C62&TA!$F$17,Dados!$A$2:$P$217,16,0)) -> 483805 | Z62: =IF(Y62=0,"",(Y62/Y58)-1) -> 6.841756354 | AA62: 584036 | AB62: =IF(AA62="","",(AA62/AA58)-1) -> -0.01305092107 | AH62: inv e->A
C63: Juizados | D63: =IF(TA!$C$17=3,SUMIF(Dados!$D$2:$L$217,$B$62&$C63,Dados!$I$2:$I$217),SUMIF(Dados!$C$2:$L$217,$B$62&TA!$C$18&$C63,Dados!$I$2:$I$217)) -> 45 | E63: =IF(D63=0,"",(D63/D59)-1) -> -0.9987182409 | F63: =IF(TA!$C$17=3,SUMIF(Dados!$D$2:$P$217,$B$62&$C63,Dados!$M$2:$M$217 ),SUMIF(Dados!$C$2:$P$217,$B$62&TA!$C$18&$C63,Dados!$M$2:$M$217 )) -> 136095 | G63: =IF(F63=0,"",(F63/F59)-1) -> 0.7400337535 | H63: 136140 | I63: =IF(H63=0,"",(H63/H59)-1) -> 0.2013554297 | K63: =IF(TA!$C$17=3,SUMIF(Dados!$D$2:$L$217,$B$62&$C63,Dados!$J$2:$J$217),SUMIF(Dados!$C$2:$L$217,$B$62&TA!$C$18&$C63,Dados!$J$2:$J$217)) -> 11486 | L63: -0.9105270538 | M63: =IF(TA!$C$17=3,SUMIF(Dados!$D$2:$P$217,$B$62&$C63,Dados!$N$2:$N$217 ),SUMIF(Dados!$C$2:$P$217,$B$62&TA!$C$18&$C63,Dados!$N$2:$N$217 )) -> 117776 | N63: =IF(M63=0,"",(M63/M59)-1) -> 3.135828915 | O63: 129262 | P63: =IF(O63=0,"",(O63/O59)-1) -> -0.175893045 | R63: =IF(TA!$C$17=3,SUMIF(Dados!$D$2:$L$217,$B$62&$C63,Dados!$K$2:$K$217),SUMIF(Dados!$C$2:$L$217,$B$62&TA!$C$18&$C63,Dados!$K$2:$K$217)) -> 3106 | S63: =IF(TA!$C$17=3,SUMIF(Dados!$D$2:$P$217,$B$62&$C63,Dados!$O$2:$O$217 ),SUMIF(Dados!$C$2:$P$217,$B$62&TA!$C$18&$C63,Dados!$O$2:$O$217 )) -> 9245 | T63: =IF(AND(R63=0,S63=0),"",R63+S63) -> 12351 | U63: =IF(T63=0,"",(T63/T59)-1) -> -0.6833726415 | W63: =IF(TA!$C$17=3,SUMIF(Dados!$B$2:$L$217,$B$62&$C63&TA!$F$17, Dados!$L$2:$L$217),VLOOKUP($B$62&TA!$C$18&$C63&TA!$F$17,Dados!$A$2:$L$217,12,0)) -> 15130 | X63: -0.5878844006 | Y63: =IF(TA!$C$17=3,SUMIF(Dados!$B$2:$P$217,$B$62&$C63&TA!$F$17, Dados!$P$2:$P$217),VLOOKUP($B$62&TA!$C$18&$C63&TA!$F$17,Dados!$A$2:$P$217,16,0)) -> 128057 | Z63: =IF(Y63=0,"",(Y63/Y59)-1) -> 0.5941962229 | AA63: 143187 | AB63: =IF(AA63="","",(AA63/AA59)-1) -> 0.2234022556
C64: Turmas Recursais | D64: =IF(TA!$C$17=3,SUMIF(Dados!$D$2:$L$217,$B$62&$C64,Dados!$I$2:$I$217),SUMIF(Dados!$C$2:$L$217,$B$62&TA!$C$18&$C64,Dados!$I$2:$I$217)) -> 3357 | E64: =IF(D64=0,"",(D64/D60)-1) -> -0.8978144405 | F64: =IF(TA!$C$17=3,SUMIF(Dados!$D$2:$P$217,$B$62&$C64,Dados!$M$2:$M$217 ),SUMIF(Dados!$C$2:$P$217,$B$62&TA!$C$18&$C64,Dados!$M$2:$M$217 )) -> 33271 | G64: =IF(F64=0,"",(F64/F60)-1) -> 4.788274182 | H64: 36628 | I64: =IF(H64=0,"",(H64/H60)-1) -> -0.0510880829 | K64: =IF(TA!$C$17=3,SUMIF(Dados!$D$2:$L$217,$B$62&$C64,Dados!$J$2:$J$217),SUMIF(Dados!$C$2:$L$217,$B$62&TA!$C$18&$C64,Dados!$J$2:$J$217)) -> 29511 | L64: -0.3962067272 | M64: =IF(TA!$C$17=3,SUMIF(Dados!$D$2:$P$217,$B$62&$C64,Dados!$N$2:$N$217 ),SUMIF(Dados!$C$2:$P$217,$B$62&TA!$C$18&$C64,Dados!$N$2:$N$217 )) -> 25868 | N64: =IF(M64=0,"",(M64/M60)-1) -> 20.81112985 | O64: 55379 | P64: =IF(O64=0,"",(O64/O60)-1) -> 0.1062083017 | R64: =IF(TA!$C$17=3,SUMIF(Dados!$D$2:$L$217,$B$62&$C64,Dados!$K$2:$K$217),SUMIF(Dados!$C$2:$L$217,$B$62&TA!$C$18&$C64,Dados!$K$2:$K$217)) -> 0 | S64: =IF(TA!$C$17=3,SUMIF(Dados!$D$2:$P$217,$B$62&$C64,Dados!$O$2:$O$217 ),SUMIF(Dados!$C$2:$P$217,$B$62&TA!$C$18&$C64,Dados!$O$2:$O$217 )) -> 0 | T64: =IF(AND(R64=0,S64=0),"",R64+S64) ->  | W64: =IF(TA!$C$17=3,SUMIF(Dados!$B$2:$L$217,$B$62&$C64&TA!$F$17, Dados!$L$2:$L$217),VLOOKUP($B$62&TA!$C$18&$C64&TA!$F$17,Dados!$A$2:$L$217,12,0)) -> 24048 | X64: -0.5281189906 | Y64: =IF(TA!$C$17=3,SUMIF(Dados!$B$2:$P$217,$B$62&$C64&TA!$F$17, Dados!$P$2:$P$217),VLOOKUP($B$62&TA!$C$18&$C64&TA!$F$17,Dados!$A$2:$P$217,16,0)) -> 19969 | Z64: =IF(Y64=0,"",(Y64/Y60)-1) -> 2.63270875 | AA64: 44017 | AB64: =IF(AA64="","",(AA64/AA60)-1) -> -0.2203723056
B65: Total | D65: =SUM(D62:D64) -> 11361 | E65: =IF(D65=0,"",(D65/D61)-1) -> -0.9105996223 | F65: =SUM(F62:F64) -> 265664 | G65: =IF(F65=0,"",(F65/F61)-1) -> 1.079480255 | H65: 277025 | I65: =IF(H65=0,"",(H65/H61)-1) -> 0.08707595111 | K65: =SUM(K62:K64) -> 84368 | L65: -0.7060983342 | M65: =SUM(M62:M64) -> 206327 | N65: =IF(M65=0,"",(M65/M61)-1) -> 5.215979273 | O65: 290695 | P65: =IF(O65=0,"",(O65/O61)-1) -> -0.09230144728 | R65: =SUM(R62:R64) -> 10912 | S65: =SUM(S62:S64) -> 50205 | T65: =IF(R65=0,"",R65+S65) -> 61117 | U65: =IF(T65=0,"",(T65/T61)-1) -> -0.03929767201 | W65: =SUM(W62:W64) -> 139409 | X65: -0.7743234187 | Y65: =SUM(Y62:Y64) -> 631831 | Z65: =IF(Y65=0,"",(Y65/Y61)-1) -> 3.283019252 | AA65: 771240 | AB65: =IF(AA65="","",(AA65/AA61)-1) -> 0.007816971531
B66: Consolidado | C66: Varas | D66: =D10+D14+D18+D22+D26+D30+D34+D38+D42+D46+D50+D54+D58+D62 -> 1445551 | F66: =F58+F62 -> 140091 | H66: 1585642 | K66: =K10+K14+K18+K22+K26+K30+K34+K38+K42+K46+K50+K54+K58+K62 -> 1325835 | M66: =M58+M62 -> 66213 | O66: =IF(K66=0,"",K66+M66) -> 1392048 | R66: =R10+R14+R18+R22+R26+R30+R34+R38+R42+R46+R50+R54+R58+R62 -> 404792 | S66: =S58+S62 -> 41431 | T66: =IF(AND(R66=0,S66=0),"",R66+S66) -> 446223
C67: Juizados | D67: =D11+D15+D19+D23+D27+D31+D35+D39+D43+D47+D51+D55+D59+D63 -> 1535062 | F67: =F59+F63 -> 214309 | H67: 1749371 | K67: =K11+K15+K19+K23+K27+K31+K35+K39+K43+K47+K51+K55+K59+K63 -> 1614718 | M67: =M59+M63 -> 146253 | O67: =IF(K67=0,"",K67+M67) -> 1760971 | R67: =R11+R15+R19+R23+R27+R31+R35+R39+R43+R47+R51+R55+R59+R63 -> 514887 | S67: =S59+S63 -> 14675 | T67: =IF(AND(R67=0,S67=0),"",R67+S67) -> 529562
C68: Turmas Recursais | D68: =D12+D16+D20+D24+D28+D32+D36+D40+D44+D48+D52+D56+D60+D64 -> 544637 | F68: =F60+F64 -> 39019 | H68: 583656 | K68: =K12+K16+K20+K24+K28+K32+K36+K40+K44+K48+K52+K56+K60+K64 -> 671566 | M68: =M60+M64 -> 27054 | O68: =IF(K68=0,"",K68+M68) -> 698620 | R68: =R12+R16+R20+R24+R28+R32+R36+R40+R44+R48+R52+R56+R60+R64 -> 0 | S68: =S60+S64 -> 0 | T68: =IF(AND(R68=0,S68=0),"",R68+S68) -> 
B69: Total | D69: =SUM(D66:D68) -> 3525250 | F69: =SUM(F66:F68) -> 393419 | H69: 3918669 | K69: =SUM(K66:K68) -> 3612119 | M69: =SUM(M66:M68) -> 239520 | O69: =IF(K69=0,"",K69+M69) -> 3851639 | R69: =SUM(R66:R68) -> 919679 | S69: =SUM(S66:S68) -> 56106 | T69: =IF(R69=0,"",R69+S69) -> 975785
B71: Obs. 1: Os valores poderão ser alterados, em função de modificações na base de dados, por parte do usuário. | L71: Obs. 2: Os Processos Julgados nas Varas e Juizados incluem os Embargos. | W71: Obs. 3: Na Tramitação "Real", estão incluídos os Processos suspensos e os que aguardam julgamento de recurso.
B73: _ Desde o dia 23 de Fevereiro de 2018, o NOVO sistema processual "Eproc" está em funcionamento na Justiça Federal da 2ª Região.

Sheet GDvA (hidden)
A1: Total de Processos DISTRIBUÍDOS nos Anos 2006 a 2019 da Seção Judiciária:

Sheet GJvA (hidden)
A1: Total de Processos JULGADOS nos Anos 2006 a 2019 da Seção Judiciária:

Sheet GTvA (hidden)
A1: TRAMITAÇÃO de Processos em DEZEMBRO nos Anos 2006 a 2019 da Seção Judiciária:

Sheet GCA (hidden)
A1: COMPARATIVO de Processos dos Anos 2006 a 2019 da Seção Judiciária:

Sheet GCA_TvA (hidden)
A1: COMPARATIVO de Processos dos Anos 2006 a 2019 da Seção Judiciária:

Sheet GCA_DvA (hidden)
A1: COMPARATIVO de Processos dos Anos 2006 a 2019 da Seção Judiciária:

Sheet GCA_JvA (hidden)
A1: COMPARATIVO de Processos dos Anos 2006 a 2019 da Seção Judiciária:

Sheet PCAAe (hidden)
B1: Mapa Geral CONSOLIDADO do 1º Grau (2006 a 2017 Apolo) (2018 e 2019 Apolo e "Eproc") | X1: 3 | Y1: 4 | Z1: 5 | AA1: 6 | AC1: 8 | AD1: 9 | AE1: 10 | AF1: 11 | AH1: 13 | AI1: 14 | AJ1: 15 | AK1: 16 | AM1: 18 | AN1: 19 | AO1: 20 | AP1: 21
B2: SJRJ | C2: VARAS | H2: JUIZADOS | M2: TURMAS RECURSAIS | R2: CONSOLIDADO SJRJ | X2: V | AC2: J | AH2: T | AM2: C
C3: Distrib | D3: Julg | E3: Remeti | F3: TRAM | H3: Distrib | I3: Julg | J3: Remeti | K3: TRAM | M3: Distrib | N3: Julg | O3: Remeti | P3: TRAM | R3: Distrib | S3: Julg | T3: Remeti | U3: TRAM | X3: D | Y3: J | Z3: R | AA3: T | AC3: D | AD3: J | AE3: R | AF3: T | AH3: D | AI3: J | AJ3: R | AK3: T | AM3: D | AN3: J | AO3: R | AP3: T
B4: 2006 | C4: 127713 | D4: 70566 | E4: 22501 | F4: 642234 | H4: 187586 | I4: 201622 | J4: 32844 | K4: 143456 | M4: 32582 | N4: 27176 | P4: 20495 | R4: =C4+H4+M4 -> 347881 | S4: =D4+I4+N4 -> 299364 | T4: =E4+J4 -> 55345 | U4: =F4+K4+P4 -> 806185 | X4: S | Y4: S | Z4: S | AA4: S | AC4: S | AD4: S | AE4: S | AF4: S | AH4: S | AI4: S | AJ4: S | AK4: S | AM4: S | AN4: S | AO4: S | AP4: S
B5: 2007 | C5: 134929 | D5: 72817 | E5: 24587 | F5: 672198 | H5: 199569 | I5: 150066 | J5: 27989 | K5: 171510 | M5: 29581 | N5: 39847 | P5: 15098 | R5: =C5+H5+M5 -> 364079 | S5: 262730 | T5: =E5+J5 -> 52576 | U5: =F5+K5+P5 -> 858806 | X5: S | Y5: S | Z5: S | AA5: S | AC5: S | AD5: S | AE5: S | AF5: S | AH5: S | AI5: S | AJ5: S | AK5: S | AM5: S | AN5: S | AO5: S | AP5: S
B6: 2008 | C6: 107561 | D6: 72582 | E6: 24210 | F6: 677417 | H6: 137696 | I6: 133912 | J6: 50857 | K6: 143213 | M6: 52023 | N6: 54089 | P6: 45288 | R6: 297280 | S6: 260583 | T6: 75067 | U6: 865918 | X6: S | Y6: S | Z6: S | AA6: S | AC6: S | AD6: S | AE6: S | AF6: S | AH6: S | AI6: S | AJ6: S | AK6: S | AM6: S | AN6: S | AO6: S | AP6: S
B7: 2009 | C7: 123306 | D7: 91016 | E7: 30673 | F7: 685069 | H7: 139409 | I7: 117736 | J7: 46039 | K7: 154408 | M7: 47148 | N7: 47914 | P7: 58182 | R7: 309863 | S7: 256666 | T7: 76712 | U7: 897659 | X7: S | Y7: S | Z7: S | AA7: S | AC7: S | AD7: S | AE7: S | AF7: S | AH7: S | AI7: S | AJ7: S | AK7: S | AM7: S | AN7: S | AO7: S | AP7: S
B8: 2010 | C8: 104040 | D8: 101885 | E8: 35165 | F8: 666379 | H8: 116275 | I8: 105828 | J8: 39439 | K8: 163916 | M8: 38635 | N8: 44105 | P8: 43631 | R8: 258950 | S8: 251818 | T8: 74604 | U8: 873926 | X8: S | Y8: S | Z8: S | AA8: S | AC8: S | AD8: S | AE8: S | AF8: S | AH8: S | AI8: S | AJ8: S | AK8: S | AM8: S | AN8: S | AO8: S | AP8: S
B9: 2011 | C9: 112490 | D9: 104342 | E9: 35631 | F9: 642936 | H9: 93418 | I9: 115712 | J9: 42503 | K9: 141923 | M9: 43474 | N9: 60032 | P9: 50069 | R9: 249382 | S9: 280086 | T9: 78134 | U9: 834928 | X9: S | Y9: S | Z9: S | AA9: S | AC9: S | AD9: S | AE9: S | AF9: S | AH9: S | AI9: S | AJ9: S | AK9: S | AM9: S | AN9: S | AO9: S | AP9: S
B10: 2012 | C10: 96622 | D10: 100642 | E10: 32333 | F10: 630103 | H10: 83039 | I10: 99447 | J10: 39814 | K10: 111759 | M10: 49427 | N10: 49794 | P10: 65235 | R10: 229088 | S10: 249883 | T10: 72147 | U10: 807097 | X10: S | Y10: S | Z10: S | AA10: S | AC10: S | AD10: S | AE10: S | AF10: S | AH10: S | AI10: S | AJ10: S | AK10: S | AM10: S | AN10: S | AO10: S | AP10: S
B11: 2013 | C11: 87961 | D11: 122318 | E11: 39274 | F11: 584820 | H11: 104492 | I11: 119912 | J11: 46410 | K11: 106558 | M11: 63673 | N11: 59086 | P11: 77659 | R11: 256126 | S11: 301316 | T11: 85684 | U11: 769037 | X11: S | Y11: S | Z11: S | AA11: S | AC11: S | AD11: S | AE11: S | AF11: S | AH11: S | AI11: S | AJ11: S | AK11: S | AM11: S | AN11: S | AO11: S | AP11: S
B12: 2014 | C12: 121666 | D12: 122683 | E12: 46430 | F12: 572508 | H12: 114855 | I12: 119417 | J12: 50430 | K12: 102785 | M12: 49996 | N12: 73020 | P12: 83589 | R12: 286517 | S12: 315120 | T12: 96860 | U12: 758882 | X12: S | Y12: S | Z12: S | AA12: S | AC12: S | AD12: S | AE12: S | AF12: S | AH12: S | AI12: S | AJ12: S | AK12: S | AM12: S | AN12: S | AO12: S | AP12: S
B13: 2015 | C13: 108911 | D13: 97679 | E13: 32606 | F13: 571789 | H13: 98404 | I13: 102541 | J13: 36846 | K13: 102983 | M13: 36910 | N13: 47344 | P13: 83891 | R13: 244225 | S13: 247564 | T13: 69452 | U13: 758663 | X13: S | Y13: S | Z13: S | AA13: S | AC13: S | AD13: S | AE13: S | AF13: S | AH13: S | AI13: S | AJ13: S | AK13: S | AM13: S | AN13: S | AO13: S | AP13: S
B14: 2016 | C14: 101809 | D14: 76760 | E14: 24922 | F14: 592525 | H14: 110348 | I14: 100637 | J14: 32608 | K14: 120229 | M14: 32732 | N14: 43802 | P14: 83901 | R14: 244889 | S14: 221199 | T14: 57530 | U14: 796655 | X14: S | Y14: S | Z14: S | AA14: S | AC14: S | AD14: S | AE14: S | AF14: S | AH14: S | AI14: S | AJ14: S | AK14: S | AM14: S | AN14: S | AO14: S | AP14: S
B15: 2017 | C15: 151464 | D15: 139362 | E15: 24516 | F15: 621087 | H15: 114818 | I15: 108028 | J15: 32424 | K15: 139350 | M15: 32247 | N15: 46970 | P15: 56454 | R15: 298529 | S15: 294360 | T15: 56940 | U15: 816891 | X15: S | Y15: S | Z15: S | AA15: S | AC15: S | AD15: S | AE15: S | AF15: S | AH15: S | AI15: S | AJ15: S | AK15: S | AM15: S | AN15: S | AO15: S | AP15: S
B16: 2018 Apolo | C16: 59120 | D16: 109812 | E16: 24138 | F16: 530063 | H16: 35108 | I16: 128374 | J16: 33578 | K16: 36713 | M16: 32852 | N16: 48876 | P16: 50962 | R16: =C16+H16+M16 -> 127080 | S16: =D16+I16+N16 -> 287062 | T16: =E16+J16 -> 57716 | U16: 617738 | X16: S | Y16: S | Z16: S | AA16: S | AC16: S | AD16: S | AE16: S | AF16: S | AH16: S | AI16: S | AJ16: S | AK16: S | AM16: S | AN16: S | AO16: S | AP16: S
B17: 2018 Eproc | C17: 43793 | D17: 3530 | E17: 471 | F17: 61696 | H17: 78214 | I17: 28477 | J17: 5430 | K17: 80327 | M17: 5748 | N17: 1186 | P17: 5497 | R17: 127755 | S17: 33193 | T17: 5901 | U17: 147520 | X17: S | Y17: S | Z17: S | AA17: S | AC17: S | AD17: S | AE17: S | AF17: S | AH17: S | AI17: S | AJ17: S | AK17: S | AM17: S | AN17: S | AO17: S | AP17: S
B18: 2019 Apolo | C18: 7959 | D18: 43371 | E18: 7806 | F18: 100231 | H18: 45 | I18: 11486 | J18: 3106 | K18: 15130 | M18: 3357 | N18: 29511 | P18: 24048 | R18: =C18+H18+M18 -> 11361 | S18: =D18+I18+N18 -> 84368 | T18: =E18+J18 -> 10912 | U18: =F18+K18+P18 -> 139409 | X18: S | Y18: S | Z18: S | AA18: S | AC18: S | AD18: S | AE18: S | AF18: S | AH18: S | AI18: S | AJ18: S | AK18: S | AM18: S | AN18: S | AO18: S | AP18: S
B19: 2019 Eproc | C19: 96298 | D19: 62683 | E19: 40960 | F19: 483805 | H19: 136095 | I19: 117776 | J19: 9245 | K19: 128057 | M19: 33271 | N19: 25868 | P19: 19969 | R19: 265664 | S19: 206327 | T19: 50205 | U19: =F19+K19+P19 -> 631831 | X19: S | Y19: S | Z19: S | AA19: S | AC19: S | AD19: S | AE19: S | AF19: S | AH19: S | AI19: S | AJ19: S | AK19: S | AM19: S | AN19: S | AO19: S | AP19: S
B20: Consolidado | C20: =SUM(C4:C19) -> 1585642 | D20: =SUM(D4:D19) -> 1392048 | E20: =SUM(E4:E19) -> 446223 | F20: - | H20: =SUM(H4:H19) -> 1749371 | I20: =SUM(I4:I19) -> 1760971 | J20: =SUM(J4:J19) -> 529562 | K20: - | M20: =SUM(M4:M19) -> 583656 | N20: =SUM(N4:N19) -> 698620 | P20: - | R20: =C20+H20+M20 -> 3918669 | S20: =D20+I20+N20 -> 3851639 | T20: =E20+J20 -> 975785 | U20: - | X20: S | Y20: S | Z20: S | AA20: N | AC20: S | AD20: S | AE20: S | AF20: N | AH20: S | AI20: S | AJ20: S | AK20: N | AM20: S | AN20: S | AO20: S | AP20: N
B22: SJES | C22: VARAS | H22: JUIZADOS | M22: TURMAS RECURSAIS | R22: CONSOLIDADO SJES
C23: Distrib | D23: Julg | E23: Remeti | F23: TRAM | H23: Distrib | I23: Julg | J23: Remeti | K23: TRAM | M23: Distrib | N23: Julg | O23: Remeti | P23: TRAM | R23: Distrib | S23: Julg | T23: Remeti | U23: TRAM
B24: 2006 | C24: 17096 | D24: 15018 | E24: 4426 | F24: 101158 | H24: 12309 | I24: 14191 | J24: 3509 | K24: 16435 | M24: 3832 | N24: 4318 | P24: 3493 | R24: =C24+H24+M24 -> 33237 | S24: =D24+I24+N24 -> 33527 | T24: =E24+J24 -> 7935 | U24: =F24+K24+P24 -> 121086
B25: 2007 | C25: 20856 | D25: 14211 | E25: 4717 | F25: 100047 | H25: 20992 | I25: 9337 | J25: 2753 | K25: 25345 | M25: 2894 | N25: 5164 | P25: 2261 | R25: =C25+H25+M25 -> 44742 | S25: 28712 | T25: =E25+J25 -> 7470 | U25: =F25+K25+P25 -> 127653
B26: 2008 | C26: 21934 | D26: 14583 | E26: 4449 | F26: 103899 | H26: 15782 | I26: 13686 | J26: 3512 | K26: 27972 | M26: 3625 | N26: 3172 | P26: 3319 | R26: 41341 | S26: 31441 | T26: 7961 | U26: 135190
B27: 2009 | C27: 24218 | D27: 14990 | E27: 3929 | F27: 110035 | H27: 14939 | I27: 11410 | J27: 4638 | K27: 29148 | M27: 4651 | N27: 6535 | P27: 5490 | R27: 43808 | S27: 32935 | T27: 8567 | U27: 144673
B28: 2010 | C28: 21087 | D28: 14655 | E28: 4398 | F28: 111700 | H28: 13593 | I28: 13189 | J28: 4200 | K28: 29945 | M28: 4645 | N28: 4186 | P28: 6002 | R28: 39325 | S28: 32030 | T28: 8598 | U28: 147647
B29: 2011 | C29: 21704 | D29: 14437 | E29: 4047 | F29: 116456 | H29: 16238 | I29: 14399 | J29: 5572 | K29: 32798 | M29: 5857 | N29: 3804 | P29: 10015 | R29: 43799 | S29: 32640 | T29: 9619 | U29: 159269
B30: 2012 | C30: 21429 | D30: 19957 | E30: 5050 | F30: 117094 | H30: 17507 | I30: 20667 | J30: 5894 | K30: 31171 | M30: 7465 | N30: 4282 | P30: 12128 | R30: 46401 | S30: 44906 | T30: 10944 | U30: 160393
B31: 2013 | C31: 21489 | D31: 21842 | E31: 5546 | F31: 114324 | H31: 14559 | I31: 19727 | J31: 7663 | K31: 25192 | M31: 25270 | N31: 7598 | P31: 16755 | R31: 61318 | S31: 49167 | T31: 13209 | U31: 156271
B32: 2014 | C32: 22570 | D32: 16376 | E32: 5191 | F32: 112258 | H32: 22674 | I32: 17078 | J32: 6135 | K32: 30303 | M32: 6025 | N32: 9178 | P32: 17361 | R32: 51269 | S32: 42632 | T32: 11326 | U32: 159922
B33: 2015 | C33: 24352 | D33: 17778 | E33: 4433 | F33: 118569 | H33: 19382 | I33: 17357 | J33: 6043 | K33: 34381 | M33: 5986 | N33: 8921 | P33: 17796 | R33: 49720 | S33: 44056 | T33: 10476 | U33: 170746
B34: 2016 | C34: 23898 | D34: 16234 | E34: 5149 | F34: 122374 | H34: 21522 | I34: 17494 | J34: 7363 | K34: 39831 | M34: 7240 | N34: 11664 | P34: 18856 | R34: 52660 | S34: 45392 | T34: 12512 | U34: 181061
B35: 2017 | C35: 22848 | D35: 18844 | E35: 4489 | F35: 125316 | H35: 22122 | I35: 20707 | J35: 6730 | K35: 42922 | M35: 6602 | N35: 11823 | P35: 18600 | R35: 51572 | S35: 51374 | T35: 11219 | U35: 186838
B36: 2018 Apolo | C36: 12137 | D36: 20406 | E36: 4446 | F36: 95889 | H36: 4718 | I36: 33010 | J36: 8032 | K36: 11569 | M36: 7913 | N36: 18181 | P36: 13698 | R36: 24768 | S36: 71597 | T36: 12478 | U36: 121156
B37: 2018 Eproc | C37: 11857 | D37: 1197 | E37: 65 | F37: 30388 | H37: 20183 | I37: 5581 | J37: 1255 | K37: 21075 | M37: 1294 | N37: 239 | P37: 1182 | R37: 33334 | S37: 7017 | T37: 1320 | U37: =F37+K37+P37 -> 52645
B38: 2019 Apolo | C38: 1960 | D38: 7497 | E38: 1633 | F38: 13705 | H38: 13 | I38: 3016 | J38: 1716 | K38: 4559 | M38: 921 | N38: 12369 | P38: 5943 | R38: =C38+H38+M38 -> 2894 | S38: =D38+I38+N38 -> 22882 | T38: =E38+J38 -> 3349 | U38: =F38+K38+P38 -> 24207
B39: 2019 Eproc | C39: 22725 | D39: 13923 | E39: 7935 | F39: 112998 | H39: 32016 | I39: 24857 | J39: 4285 | K39: 36203 | M39: 8855 | N39: 6469 | P39: 5414 | R39: 63596 | S39: 45249 | T39: 12220 | U39: =F39+K39+P39 -> 154615
B40: Consolidado | C40: =SUM(C24:C39) -> 312160 | D40: =SUM(D24:D39) -> 241948 | E40: =SUM(E24:E39) -> 69903 | F40: - | H40: =SUM(H24:H39) -> 268549 | I40: =SUM(I24:I39) -> 255706 | J40: =SUM(J24:J39) -> 79300 | K40: - | M40: =SUM(M24:M39) -> 103075 | N40: =SUM(N24:N39) -> 117903 | P40: - | R40: =C40+H40+M40 -> 683784 | S40: =D40+I40+N40 -> 615557 | T40: =E40+J40 -> 149203 | U40: -
B42: SJRJ + SJES | C42: VARAS CONSOLIDADO | H42: JUIZADOS CONSOLIDADO | M42: TURMAS REC. CONSOLIDADO | R42: CONSOLIDADO GERAL
C43: Distrib | D43: Julg | E43: Remeti | F43: TRAM | H43: Distrib | I43: Julg | J43: Remeti | K43: TRAM | M43: Distrib | N43: Julg | O43: Remeti | P43: TRAM | R43: Distrib | S43: Julg | T43: Remeti | U43: TRAM
B44: 2006 | C44: =C4+C24 -> 144809 | D44: =D4+D24 -> 85584 | E44: 26927 | F44: 743392 | H44: =H4+H24 -> 199895 | I44: 215813 | J44: 36353 | K44: 159891 | M44: =M4+M24 -> 36414 | N44: 31494 | P44: =P4+P24 -> 23988 | R44: =R4+R24 -> 381118 | S44: 332891 | T44: 63280 | U44: 927271
B45: 2007 | C45: 155785 | D45: 87028 | E45: 29304 | F45: 772245 | H45: 220561 | I45: 159403 | J45: 30742 | K45: 196855 | M45: 32475 | N45: 45011 | P45: 17359 | R45: 408821 | S45: 291442 | T45: 60046 | U45: 986459
B46: 2008 | C46: 129495 | D46: 87165 | E46: 28659 | F46: 781316 | H46: 153478 | I46: 147598 | J46: 54369 | K46: 171185 | M46: 55648 | N46: 57261 | P46: 48607 | R46: 338621 | S46: 292024 | T46: 83028 | U46: 1001108
B47: 2009 | C47: 147524 | D47: 106006 | E47: 34602 | F47: 795104 | H47: 154348 | I47: 129146 | J47: 50677 | K47: 183556 | M47: 51799 | N47: 54449 | P47: 63672 | R47: 353671 | S47: 289601 | T47: 85279 | U47: 1042332
B48: 2010 | C48: 125127 | D48: 116540 | E48: 39563 | F48: 778079 | H48: 129868 | I48: 119017 | J48: 43639 | K48: 193861 | M48: 43280 | N48: 48291 | P48: 49633 | R48: 298275 | S48: 283848 | T48: 83202 | U48: 1021573
B49: 2011 | C49: 134194 | D49: 118779 | E49: 39678 | F49: 759392 | H49: 109656 | I49: 130111 | J49: 48075 | K49: 174721 | M49: 49331 | N49: 63836 | P49: 60084 | R49: 293181 | S49: 312726 | T49: 87753 | U49: 994197
B50: 2012 | C50: 118051 | D50: 120599 | E50: 37383 | F50: 747197 | H50: 100546 | I50: 120114 | J50: 45708 | K50: 142930 | M50: 56892 | N50: 54076 | P50: 77363 | R50: 275489 | S50: 294789 | T50: 83091 | U50: 967490
B51: 2013 | C51: 109450 | D51: 144160 | E51: 44820 | F51: 699144 | H51: 119051 | I51: 139639 | J51: 54073 | K51: 131750 | M51: 88943 | N51: 66684 | P51: 94414 | R51: 317444 | S51: 350483 | T51: 98893 | U51: 925308
B52: 2014 | C52: 144236 | D52: 139059 | E52: 51621 | F52: 684766 | H52: 137529 | I52: 136495 | J52: 56565 | K52: 133088 | M52: 56021 | N52: 82198 | P52: 100950 | R52: 337786 | S52: 357752 | T52: 108186 | U52: 918804
B53: 2015 | C53: 133263 | D53: 115457 | E53: 37039 | F53: 690358 | H53: 117786 | I53: 119898 | J53: 42889 | K53: 137364 | M53: 42896 | N53: 56265 | P53: 101687 | R53: 293945 | S53: 291620 | T53: 79928 | U53: 929409
B54: 2016 | C54: 125707 | D54: 92994 | E54: 30071 | F54: 714899 | H54: 131870 | I54: 118131 | J54: 39971 | K54: 160060 | M54: 39972 | N54: 55466 | P54: 102757 | R54: 297549 | S54: 266591 | T54: 70042 | U54: 977716
B55: 2017 | C55: 174312 | D55: 158206 | E55: 29005 | F55: 746403 | H55: 136940 | I55: 128735 | J55: 39154 | K55: 182272 | M55: 38849 | N55: 58793 | P55: 75054 | R55: 350101 | S55: 345734 | T55: 68159 | U55: 1003729
B56: 2018 Apolo | C56: 71257 | D56: 130218 | E56: 28584 | F56: 625952 | H56: 39826 | I56: 161384 | J56: 41610 | K56: 48282 | M56: 40765 | N56: 67057 | P56: 64660 | R56: 151848 | S56: 358659 | T56: 70194 | U56: 738894
B57: 2018 Eproc | C57: 55650 | D57: 4727 | E57: 536 | F57: 92084 | H57: 98397 | I57: 34058 | J57: 6685 | K57: 101402 | M57: 7042 | N57: 1425 | P57: 6679 | R57: 161089 | S57: 40210 | T57: 7221 | U57: 200165
B58: 2019 Apolo | C58: =C18+C38 -> 9919 | D58: 50868 | E58: 9439 | F58: 113936 | H58: =H18+H38 -> 58 | I58: 14502 | J58: 4822 | K58: 19689 | M58: =M18+M38 -> 4278 | N58: 41880 | P58: =P18+P38 -> 29991 | R58: =R18+R38 -> 14255 | S58: 107250 | T58: 14261 | U58: 163616
B59: 2019 Eproc | C59: 119023 | D59: 76606 | E59: 48895 | F59: =F19+F39 -> 596803 | H59: 168111 | I59: 142633 | J59: 13530 | K59: 164260 | M59: 42126 | N59: 32337 | P59: =P19+P39 -> 25383 | R59: 329260 | S59: 251576 | T59: 62425 | U59: 786446
B60: Até 2019 | C60: 1897802 | D60: 1633996 | E60: 516126 | F60: - | H60: =H20+H40 -> 2017920 | I60: =I20+I40 -> 2016677 | J60: =J20+J40 -> 608862 | K60: - | M60: 686731 | N60: 816523 | P60: - | R60: =R20+R40 -> 4602453 | S60: =S20+S40 -> 4467196 | T60: =T20+T40 -> 1124988 | U60: -
B61: OBS.: Os valores poderão ser alterados, em função de modificações na base de dados, por parte do usuário.
B63: _ Desde o dia 23 de Fevereiro de 2018, o NOVO sistema processual "Eproc" está em funcionamento na Justiça Federal da 2ª Região.

Sheet PaMAe (hidden)
B2: Ano | D2: Seção Judiciária | K2: Mapa Geral Judicial do 1º Grau (Apolo e "Eproc")
D4: 1ª Distribuição | K4: Julgados | R4: Remetidos ao TRF/TR | W4: Tramitação "Real"
B5: Mês | C5: Tipo de Juízo | D5: Apolo | E5: Acum | F5: Eproc | G5: Acum | H5: TOTAL | I5: Acum | K5: Apolo | L5: Acum | M5: Eproc | N5: Acum | O5: TOTAL | P5: Acum | R5: Apolo | S5: Eproc | T5: TOTAL | U5: Acum | W5: Apolo | X5: % Variação | Y5: Eproc | Z5: % Variação | AA5: TOTAL | AB5: % Variação
B6: Dezembro | C6: Varas | D6: =IF(TA!$C$17=3,SUMIF(Dados!$B$2:$L$217,TA!$A$42&PaMAe!$C6&PaMAe!$B$6,Dados!$I$2:$I$217),VLOOKUP(TA!$D$42&$C6&$B$6,Dados!$A$2:$L$217,9,0)) -> 620 | F6: =IF(TA!$C$17=3,SUMIF(Dados!$B$2:$P$217,TA!$A$42&PaMAe!$C6&PaMAe!$B$6,Dados!$M$2:$M$217),VLOOKUP(TA!$D$42&$C6&$B$6,Dados!$A$2:$P$217,13,0)) -> 9097 | H6: =IF(D6=0,"",D6+F6) -> 9717 | K6: =IF(TA!$C$17=3,SUMIF(Dados!$B$2:$L$217,TA!$A$42&PaMAe!$C6&PaMAe!$B$6,Dados!$J$2:$J$217),VLOOKUP(TA!$D$42&$C6&$B$6,Dados!$A$2:$L$217,10,0)) -> 5333 | M6: =IF(TA!$C$17=3,SUMIF(Dados!$B$2:$P$217, TA!$A$42&PaMAe!$C6&PaMAe!$B$6,Dados!$N$2:$N$217), VLOOKUP(TA!$D$42&$C6&$B$6,Dados!$A$2:$P$217,14,0)) -> 840 | O6: =IF(K6=0,"",K6+M6) -> 6173 | R6: =IF(TA!$C$17=3,SUMIF(Dados!$B$2:$L$217,TA!$A$42&PaMAe!$C6&PaMAe!$B$6,Dados!$K$2:$K$217),VLOOKUP(TA!$D$42&$C6&$B$6,Dados!$A$2:$L$217,11,0)) -> 1127 | S6: =IF(TA!$C$17=3,SUMIF(Dados!$B$2:$P$217, TA!$A$42&PaMAe!$C6&PaMAe!$B$6,Dados!$O$2:$O$217), VLOOKUP(TA!$D$42&$C6&$B$6,Dados!$A$2:$P$217,15,0)) -> 157 | T6: =IF(AND(R6=0,S6=0),"",R6+S6) -> 1284 | W6: =IF(TA!$C$17=3,SUMIF(Dados!$B$2:$L$217,TA!$A$42&PaMAe!$C6&PaMAe!$B$6,Dados!$L$2:$L$217),VLOOKUP(TA!$D$42&$C6&$B$6,Dados!$A$2:$L$217,12,0)) -> 530063 | X6: =IF(W6=0,"",(W6/TA!$G$40)-1) -> -0.05131422108 | Y6: =IF(TA!$C$17=3,SUMIF(Dados!$B$2:$P$217, TA!$A$42&PaMAe!$C6&PaMAe!$B$6,Dados!$P$2:$P$217), VLOOKUP(TA!$D$42&$C6&$B$6,Dados!$A$2:$P$217,16,0)) -> 61696 | Z6: =IF(Y6=0,"",(Y6/TA!$G$46)-1) -> 1.094442747 | AA6: =IF(AND(W6=0,Y6=0),"",W6+Y6) -> 591759
C7: Juizados | D7: =IF(TA!$C$17=3,SUMIF(Dados!$B$2:$L$217,TA!$A$42&PaMAe!$C7&PaMAe!$B$6,Dados!$I$2:$I$217),VLOOKUP(TA!$D$42&$C7&$B$6,Dados!$A$2:$L$217,9,0)) -> 2 | F7: =IF(TA!$C$17=3,SUMIF(Dados!$B$2:$P$217,TA!$A$42&PaMAe!$C7&PaMAe!$B$6,Dados!$M$2:$M$217),VLOOKUP(TA!$D$42&$C7&$B$6,Dados!$A$2:$P$217,13,0)) -> 8372 | H7: 8374 | K7: =IF(TA!$C$17=3,SUMIF(Dados!$B$2:$L$217,TA!$A$42&PaMAe!$C7&PaMAe!$B$6,Dados!$J$2:$J$217),VLOOKUP(TA!$D$42&$C7&$B$6,Dados!$A$2:$L$217,10,0)) -> 2556 | M7: =IF(TA!$C$17=3,SUMIF(Dados!$B$2:$P$217, TA!$A$42&PaMAe!$C7&PaMAe!$B$6,Dados!$N$2:$N$217), VLOOKUP(TA!$D$42&$C7&$B$6,Dados!$A$2:$P$217,14,0)) -> 5169 | O7: =IF(K7=0,"",K7+M7) -> 7725 | R7: =IF(TA!$C$17=3,SUMIF(Dados!$B$2:$L$217,TA!$A$42&PaMAe!$C7&PaMAe!$B$6,Dados!$K$2:$K$217),VLOOKUP(TA!$D$42&$C7&$B$6,Dados!$A$2:$L$217,11,0)) -> 580 | S7: =IF(TA!$C$17=3,SUMIF(Dados!$B$2:$P$217, TA!$A$42&PaMAe!$C7&PaMAe!$B$6,Dados!$O$2:$O$217), VLOOKUP(TA!$D$42&$C7&$B$6,Dados!$A$2:$P$217,15,0)) -> 1389 | T7: =IF(AND(R7=0,S7=0),"",R7+S7) -> 1969 | W7: =IF(TA!$C$17=3,SUMIF(Dados!$B$2:$L$217,TA!$A$42&PaMAe!$C7&PaMAe!$B$6,Dados!$L$2:$L$217),VLOOKUP(TA!$D$42&$C7&$B$6,Dados!$A$2:$L$217,12,0)) -> 36713 | X7: =IF(W7=0,"",(W7/TA!$G$41)-1) -> -0.1181119385 | Y7: =IF(TA!$C$17=3,SUMIF(Dados!$B$2:$P$217, TA!$A$42&PaMAe!$C7&PaMAe!$B$6,Dados!$P$2:$P$217), VLOOKUP(TA!$D$42&$C7&$B$6,Dados!$A$2:$P$217,16,0)) -> 80327 | Z7: =IF(Y7=0,"",(Y7/TA!$G$47)-1) -> 0.09237903555 | AA7: =IF(AND(W7=0,Y7=0),"",W7+Y7) -> 117040
C8: Turmas Recursais | D8: =IF(TA!$C$17=3,SUMIF(Dados!$B$2:$L$217,TA!$A$42&PaMAe!$C8&PaMAe!$B$6,Dados!$I$2:$I$217),VLOOKUP(TA!$D$42&$C8&$B$6,Dados!$A$2:$L$217,9,0)) -> 70 | F8: =IF(TA!$C$17=3,SUMIF(Dados!$B$2:$P$217,TA!$A$42&PaMAe!$C8&PaMAe!$B$6,Dados!$M$2:$M$217),VLOOKUP(TA!$D$42&$C8&$B$6,Dados!$A$2:$P$217,13,0)) -> 1424 | H8: 1494 | K8: =IF(TA!$C$17=3,SUMIF(Dados!$B$2:$L$217,TA!$A$42&PaMAe!$C8&PaMAe!$B$6,Dados!$J$2:$J$217),VLOOKUP(TA!$D$42&$C8&$B$6,Dados!$A$2:$L$217,10,0)) -> 1991 | M8: =IF(TA!$C$17=3,SUMIF(Dados!$B$2:$P$217, TA!$A$42&PaMAe!$C8&PaMAe!$B$6,Dados!$N$2:$N$217), VLOOKUP(TA!$D$42&$C8&$B$6,Dados!$A$2:$P$217,14,0)) -> 456 | O8: 2447 | R8: =IF(TA!$C$17=3,SUMIF(Dados!$B$2:$L$217,TA!$A$42&PaMAe!$C8&PaMAe!$B$6,Dados!$K$2:$K$217),VLOOKUP(TA!$D$42&$C8&$B$6,Dados!$A$2:$L$217,11,0)) -> 0 | S8: =IF(TA!$C$17=3,SUMIF(Dados!$B$2:$P$217, TA!$A$42&PaMAe!$C8&PaMAe!$B$6,Dados!$O$2:$O$217), VLOOKUP(TA!$D$42&$C8&$B$6,Dados!$A$2:$P$217,15,0)) -> 0 | T8: =IF(AND(R8=0,S8=0),"",R8+S8) ->  | W8: =IF(TA!$C$17=3,SUMIF(Dados!$B$2:$L$217,TA!$A$42&PaMAe!$C8&PaMAe!$B$6,Dados!$L$2:$L$217),VLOOKUP(TA!$D$42&$C8&$B$6,Dados!$A$2:$L$217,12,0)) -> 50962 | X8: =IF(W8=0,"",(W8/TA!$G$42)-1) -> -0.04311089414 | Y8: =IF(TA!$C$17=3,SUMIF(Dados!$B$2:$P$217, TA!$A$42&PaMAe!$C8&PaMAe!$B$6,Dados!$P$2:$P$217), VLOOKUP(TA!$D$42&$C8&$B$6,Dados!$A$2:$P$217,16,0)) -> 5497 | Z8: =IF(Y8=0,"",(Y8/TA!$G$48)-1) -> 0.2937161685 | AA8: =IF(AND(W8=0,Y8=0),"",W8+Y8) -> 56459
B9: Total | D9: =SUM(D6:D8) -> 692 | F9: =SUM(F6:F8) -> 18893 | H9: 19585 | K9: =SUM(K6:K8) -> 9880 | M9: =SUM(M6:M8) -> 6465 | O9: 16345 | R9: =SUM(R6:R8) -> 1707 | S9: =SUM(S6:S8) -> 1546 | T9: =IF(R9=0,"",R9+S9) -> 3253 | W9: =SUM(W6:W8) -> 617738 | X9: =IF(W9=0,"",(W9/TA!$G$43-1)) -> -0.05490023286 | Y9: =SUM(Y6:Y8) -> 147520 | Z9: =IF(Y9=0,"",(Y9/TA!$G$49-1)) -> 0.3756061171 | AA9: =IF(W9=0,"",W9+Y9) -> 765258
B10: Janeiro | C10: Varas | D10: =IF(TA!$C$17=3,SUMIF(Dados!$B$2:$L$217,TA!$A$40&PaMAe!$C10&PaMAe!$B$10,Dados!$I$2:$I$217),VLOOKUP(TA!$D$40&$C10&$B$10,Dados!$A$2:$L$217,9,0)) -> 827 | E10: =IF(D10=0,"",D10) -> 827 | F10: =IF(TA!$C$17=3,SUMIF(Dados!$B$2:$P$217,TA!$A$40&PaMAe!$C10&PaMAe!$B$10,Dados!$M$2:$M$217),VLOOKUP(TA!$D$40&$C10&$B$10,Dados!$A$2:$P$217,13,0)) -> 4840 | G10: =IF(F10=0,"",F10) -> 4840 | H10: 5667 | I10: =IF(H10="","",H10) -> 5667 | K10: =IF(TA!$C$17=3,SUMIF(Dados!$B$2:$L$217,TA!$A$40&PaMAe!$C10&PaMAe!$B$10,Dados!$J$2:$J$217),VLOOKUP(TA!$D$40&$C10&$B$10,Dados!$A$2:$L$217,10,0)) -> 4735 | L10: =IF(K10=0,"",K10) -> 4735 | M10: =IF(TA!$C$17=3,SUMIF(Dados!$B$2:$P$217, TA!$A$40&PaMAe!$C10&PaMAe!$B$10,Dados!$N$2:$N$217), VLOOKUP(TA!$D$40&$C10&$B$10,Dados!$A$2:$P$217,14,0)) -> 1134 | N10: =IF(M10=0,"",M10) -> 1134 | O10: =IF(K10=0,"",K10+M10) -> 5869 | P10: =IF(O10="","",O10) -> 5869 | R10: =IF(TA!$C$17=3,SUMIF(Dados!$B$2:$L$217,TA!$A$40&PaMAe!$C10&PaMAe!$B$10,Dados!$K$2:$K$217),VLOOKUP(TA!$D$40&$C10&$B$10,Dados!$A$2:$L$217,11,0)) -> 1009 | S10: =IF(TA!$C$17=3,SUMIF(Dados!$B$2:$P$217, TA!$A$40&PaMAe!$C10&PaMAe!$B$10,Dados!$O$2:$O$217), VLOOKUP(TA!$D$40&$C10&$B$10,Dados!$A$2:$P$217,15,0)) -> 1446 | T10: =IF(AND(R10=0,S10=0),"",R10+S10) -> 2455 | U10: =IF(T10="","",T10) -> 2455 | W10: =IF(TA!$C$17=3,SUMIF(Dados!$B$2:$L$217,TA!$A$40&PaMAe!$C10&PaMAe!$B$10,Dados!$L$2:$L$217),VLOOKUP(TA!$D$40&$C10&$B$10,Dados!$A$2:$L$217,12,0)) -> 513561 | X10: =IF(W10=0,"",(W10/W6)-1) -> -0.03113214844 | Y10: =IF(TA!$C$17=3,SUMIF(Dados!$B$2:$P$217, TA!$A$40&PaMAe!$C10&PaMAe!$B$10,Dados!$P$2:$P$217), VLOOKUP(TA!$D$40&$C10&$B$10,Dados!$A$2:$P$217,16,0)) -> 75081 | Z10: =IF(Y10=0,"",(Y10/Y6)-1) -> 0.2169508558 | AA10: =IF(AND(W10=0,Y10=0),"",W10+Y10) -> 588642 | AB10: =IF(AA10="","",(AA10/AA6)-1) -> -0.005267347011
C11: Juizados | D11: =IF(TA!$C$17=3,SUMIF(Dados!$B$2:$L$217,TA!$A$40&PaMAe!$C11&PaMAe!$B$10,Dados!$I$2:$I$217),VLOOKUP(TA!$D$40&$C11&$B$10,Dados!$A$2:$L$217,9,0)) -> 6 | E11: =IF(D11=0,0,D11) -> 6 | F11: =IF(TA!$C$17=3,SUMIF(Dados!$B$2:$P$217,TA!$A$40&PaMAe!$C11&PaMAe!$B$10,Dados!$M$2:$M$217),VLOOKUP(TA!$D$40&$C11&$B$10,Dados!$A$2:$P$217,13,0)) -> 6950 | G11: =IF(F11=0,"",F11) -> 6950 | H11: =IF(D11=0,IF(F11=0,"",D11+F11),D11+F11) -> 6956 | I11: =IF(H11="",0,H11) -> 6956 | K11: =IF(TA!$C$17=3,SUMIF(Dados!$B$2:$L$217,TA!$A$40&PaMAe!$C11&PaMAe!$B$10,Dados!$J$2:$J$217),VLOOKUP(TA!$D$40&$C11&$B$10,Dados!$A$2:$L$217,10,0)) -> 2186 | L11: =IF(K11=0,"",K11) -> 2186 | M11: =IF(TA!$C$17=3,SUMIF(Dados!$B$2:$P$217, TA!$A$40&PaMAe!$C11&PaMAe!$B$10,Dados!$N$2:$N$217), VLOOKUP(TA!$D$40&$C11&$B$10,Dados!$A$2:$P$217,14,0)) -> 6294 | N11: =IF(M11=0,"",M11) -> 6294 | O11: =IF(K11=0,"",K11+M11) -> 8480 | P11: =IF(O11="","",O11) -> 8480 | R11: =IF(TA!$C$17=3,SUMIF(Dados!$B$2:$L$217,TA!$A$40&PaMAe!$C11&PaMAe!$B$10,Dados!$K$2:$K$217),VLOOKUP(TA!$D$40&$C11&$B$10,Dados!$A$2:$L$217,11,0)) -> 592 | S11: =IF(TA!$C$17=3,SUMIF(Dados!$B$2:$P$217, TA!$A$40&PaMAe!$C11&PaMAe!$B$10,Dados!$O$2:$O$217), VLOOKUP(TA!$D$40&$C11&$B$10,Dados!$A$2:$P$217,15,0)) -> 369 | T11: =IF(AND(R11=0,S11=0),"",R11+S11) -> 961 | U11: =IF(T11="","",T11) -> 961 | W11: =IF(TA!$C$17=3,SUMIF(Dados!$B$2:$L$217,TA!$A$40&PaMAe!$C11&PaMAe!$B$10,Dados!$L$2:$L$217),VLOOKUP(TA!$D$40&$C11&$B$10,Dados!$A$2:$L$217,12,0)) -> 33022 | X11: =IF(W11=0,"",(W11/W7)-1) -> -0.1005365947 | Y11: =IF(TA!$C$17=3,SUMIF(Dados!$B$2:$P$217, TA!$A$40&PaMAe!$C11&PaMAe!$B$10,Dados!$P$2:$P$217), VLOOKUP(TA!$D$40&$C11&$B$10,Dados!$A$2:$P$217,16,0)) -> 84475 | Z11: 0.05163892589 | AA11: =IF(AND(W11=0,Y11=0),"",W11+Y11) -> 117497 | AB11: =IF(AA11="","",(AA11/AA7)-1) -> 0.003904647984
C12: Turmas Recursais | D12: =IF(TA!$C$17=3,SUMIF(Dados!$B$2:$L$217,TA!$A$40&PaMAe!$C12&PaMAe!$B$10,Dados!$I$2:$I$217),VLOOKUP(TA!$D$40&$C12&$B$10,Dados!$A$2:$L$217,9,0)) -> 1034 | E12: =IF(D12=0,"",D12) -> 1034 | F12: =IF(TA!$C$17=3,SUMIF(Dados!$B$2:$P$217,TA!$A$40&PaMAe!$C12&PaMAe!$B$10,Dados!$M$2:$M$217),VLOOKUP(TA!$D$40&$C12&$B$10,Dados!$A$2:$P$217,13,0)) -> 1536 | G12: =IF(F12=0,"",F12) -> 1536 | H12: 2570 | I12: =IF(H12="","",H12) -> 2570 | K12: =IF(TA!$C$17=3,SUMIF(Dados!$B$2:$L$217,TA!$A$40&PaMAe!$C12&PaMAe!$B$10,Dados!$J$2:$J$217),VLOOKUP(TA!$D$40&$C12&$B$10,Dados!$A$2:$L$217,10,0)) -> 1316 | L12: =IF(K12=0,"",K12) -> 1316 | M12: =IF(TA!$C$17=3,SUMIF(Dados!$B$2:$P$217, TA!$A$40&PaMAe!$C12&PaMAe!$B$10,Dados!$N$2:$N$217), VLOOKUP(TA!$D$40&$C12&$B$10,Dados!$A$2:$P$217,14,0)) -> 664 | N12: =IF(M12=0,"",M12) -> 664 | O12: 1980 | P12: =IF(O12="","",O12) -> 1980 | R12: =IF(TA!$C$17=3,SUMIF(Dados!$B$2:$L$217,TA!$A$40&PaMAe!$C12&PaMAe!$B$10,Dados!$K$2:$K$217),VLOOKUP(TA!$D$40&$C12&$B$10,Dados!$A$2:$L$217,11,0)) -> 0 | S12: =IF(TA!$C$17=3,SUMIF(Dados!$B$2:$P$217, TA!$A$40&PaMAe!$C12&PaMAe!$B$10,Dados!$O$2:$O$217), VLOOKUP(TA!$D$40&$C12&$B$10,Dados!$A$2:$P$217,15,0)) -> 0 | T12: =IF(AND(R12=0,S12=0),"",R12+S12) ->  | U12: =IF(T12="","",T12) ->  | W12: =IF(TA!$C$17=3,SUMIF(Dados!$B$2:$L$217,TA!$A$40&PaMAe!$C12&PaMAe!$B$10,Dados!$L$2:$L$217),VLOOKUP(TA!$D$40&$C12&$B$10,Dados!$A$2:$L$217,12,0)) -> 50625 | X12: =IF(W12=0,"",(W12/W8)-1) -> -0.006612770299 | Y12: =IF(TA!$C$17=3,SUMIF(Dados!$B$2:$P$217, TA!$A$40&PaMAe!$C12&PaMAe!$B$10,Dados!$P$2:$P$217), VLOOKUP(TA!$D$40&$C12&$B$10,Dados!$A$2:$P$217,16,0)) -> 6924 | Z12: 0.2595961434 | AA12: =IF(AND(W12=0,Y12=0),"",W12+Y12) -> 57549 | AB12: =IF(AA12="","",(AA12/AA8)-1) -> 0.01930604509
B13: Total | D13: =SUM(D10:D12) -> 1867 | E13: =IF(D13=0,"",SUM(E10:E12)) -> 1867 | F13: =SUM(F10:F12) -> 13326 | G13: =IF(F13=0,"",SUM(G10:G12)) -> 13326 | H13: 15193 | I13: =IF(H13="","",SUM(I10:I12)) -> 15193 | K13: =SUM(K10:K12) -> 8237 | L13: =IF(K13=0,"",SUM(L10:L12)) -> 8237 | M13: =SUM(M10:M12) -> 8092 | N13: =IF(M13=0,"",SUM(N10:N12)) -> 8092 | O13: 16329 | P13: =IF(O13="","",SUM(P10:P12)) -> 16329 | R13: =SUM(R10:R12) -> 1601 | S13: =SUM(S10:S12) -> 1815 | T13: =IF(R13=0,"",R13+S13) -> 3416 | U13: =IF(T13="","",SUM(U10:U12)) -> 3416 | W13: =SUM(W10:W12) -> 597208 | X13: =IF(W13=0,"",(W13/W9)-1) -> -0.03323415429 | Y13: =SUM(Y10:Y12) -> 166480 | Z13: 0.1285249458 | AA13: =IF(W13=0,"",W13+Y13) -> 763688 | AB13: =IF(AA13="","",(AA13/AA9)-1) -> -0.002051595671
B14: Fevereiro | C14: Varas | D14: =IF(TA!$C$17=3,SUMIF(Dados!$B$2:$L$217,TA!$A$40&PaMAe!$C14&PaMAe!$B$14,Dados!$I$2:$I$217),VLOOKUP(TA!$D$40&$C14&$B$14,Dados!$A$2:$L$217,9,0)) -> 816 | E14: =IF(D14=0,"",E10+D14) -> 1643 | F14: =IF(TA!$C$17=3,SUMIF(Dados!$B$2:$P$217,TA!$A$40&PaMAe!$C14&PaMAe!$B$14,Dados!$M$2:$M$217),VLOOKUP(TA!$D$40&$C14&$B$14,Dados!$A$2:$P$217,13,0)) -> 6355 | G14: =IF(F14=0,"",IF(G10="",F14,G10+F14)) -> 11195 | H14: 7171 | I14: =IF(H14="","",I10+H14) -> 12838 | K14: =IF(TA!$C$17=3,SUMIF(Dados!$B$2:$L$217,TA!$A$40&PaMAe!$C14&PaMAe!$B$14,Dados!$J$2:$J$217),VLOOKUP(TA!$D$40&$C14&$B$14,Dados!$A$2:$L$217,10,0)) -> 5988 | L14: =IF(K14=0,"",L10+K14) -> 10723 | M14: =IF(TA!$C$17=3,SUMIF(Dados!$B$2:$P$217, TA!$A$40&PaMAe!$C14&PaMAe!$B$14,Dados!$N$2:$N$217), VLOOKUP(TA!$D$40&$C14&$B$14,Dados!$A$2:$P$217,14,0)) -> 2828 | N14: =IF(M14=0,"",IF(N10="",M14,N10+M14)) -> 3962 | O14: 8816 | P14: =IF(O14="","",P10+O14) -> 14685 | R14: =IF(TA!$C$17=3,SUMIF(Dados!$B$2:$L$217,TA!$A$40&PaMAe!$C14&PaMAe!$B$14,Dados!$K$2:$K$217),VLOOKUP(TA!$D$40&$C14&$B$14,Dados!$A$2:$L$217,11,0)) -> 1030 | S14: =IF(TA!$C$17=3,SUMIF(Dados!$B$2:$P$217, TA!$A$40&PaMAe!$C14&PaMAe!$B$14,Dados!$O$2:$O$217), VLOOKUP(TA!$D$40&$C14&$B$14,Dados!$A$2:$P$217,15,0)) -> 3027 | T14: =IF(AND(R14=0,S14=0),"",R14+S14) -> 4057 | U14: =IF(T14="","",U10+T14) -> 6512 | W14: =IF(TA!$C$17=3,SUMIF(Dados!$B$2:$L$217,TA!$A$40&PaMAe!$C14&PaMAe!$B$14,Dados!$L$2:$L$217),VLOOKUP(TA!$D$40&$C14&$B$14,Dados!$A$2:$L$217,12,0)) -> 481199 | X14: =IF(W14=0,"",(W14/W10)-1) -> -0.06301490962 | Y14: =IF(TA!$C$17=3,SUMIF(Dados!$B$2:$P$217, TA!$A$40&PaMAe!$C14&PaMAe!$B$14,Dados!$P$2:$P$217), VLOOKUP(TA!$D$40&$C14&$B$14,Dados!$A$2:$P$217,16,0)) -> 106459 | Z14: 0.4179219776 | AA14: =IF(AND(W14=0,Y14=0),"",W14+Y14) -> 587658 | AB14: -0.001671644225
C15: Juizados | D15: =IF(TA!$C$17=3,SUMIF(Dados!$B$2:$L$217,TA!$A$40&PaMAe!$C15&PaMAe!$B$14,Dados!$I$2:$I$217),VLOOKUP(TA!$D$40&$C15&$B$14,Dados!$A$2:$L$217,9,0)) -> 3 | E15: =IF(D15=0,"",E11+D15) -> 9 | F15: =IF(TA!$C$17=3,SUMIF(Dados!$B$2:$P$217,TA!$A$40&PaMAe!$C15&PaMAe!$B$14,Dados!$M$2:$M$217),VLOOKUP(TA!$D$40&$C15&$B$14,Dados!$A$2:$P$217,13,0)) -> 9717 | G15: =IF(F15=0,"",IF(G11="",F15,G11+F15)) -> 16667 | H15: 9720 | I15: =IF(H15="","",I11+H15) -> 16676 | K15: =IF(TA!$C$17=3,SUMIF(Dados!$B$2:$L$217,TA!$A$40&PaMAe!$C15&PaMAe!$B$14,Dados!$J$2:$J$217),VLOOKUP(TA!$D$40&$C15&$B$14,Dados!$A$2:$L$217,10,0)) -> 1415 | L15: =IF(K15=0,"",L11+K15) -> 3601 | M15: =IF(TA!$C$17=3,SUMIF(Dados!$B$2:$P$217, TA!$A$40&PaMAe!$C15&PaMAe!$B$14,Dados!$N$2:$N$217), VLOOKUP(TA!$D$40&$C15&$B$14,Dados!$A$2:$P$217,14,0)) -> 9600 | N15: =IF(M15=0,"",IF(N11="",M15,N11+M15)) -> 15894 | O15: 11015 | P15: =IF(O15="","",P11+O15) -> 19495 | R15: =IF(TA!$C$17=3,SUMIF(Dados!$B$2:$L$217,TA!$A$40&PaMAe!$C15&PaMAe!$B$14,Dados!$K$2:$K$217),VLOOKUP(TA!$D$40&$C15&$B$14,Dados!$A$2:$L$217,11,0)) -> 632 | S15: =IF(TA!$C$17=3,SUMIF(Dados!$B$2:$P$217, TA!$A$40&PaMAe!$C15&PaMAe!$B$14,Dados!$O$2:$O$217), VLOOKUP(TA!$D$40&$C15&$B$14,Dados!$A$2:$P$217,15,0)) -> 765 | T15: =IF(AND(R15=0,S15=0),"",R15+S15) -> 1397 | U15: =IF(T15="","",U11+T15) -> 2358 | W15: =IF(TA!$C$17=3,SUMIF(Dados!$B$2:$L$217,TA!$A$40&PaMAe!$C15&PaMAe!$B$14,Dados!$L$2:$L$217),VLOOKUP(TA!$D$40&$C15&$B$14,Dados!$A$2:$L$217,12,0)) -> 24520 | X15: -0.2574647205 | Y15: =IF(TA!$C$17=3,SUMIF(Dados!$B$2:$P$217, TA!$A$40&PaMAe!$C15&PaMAe!$B$14,Dados!$P$2:$P$217), VLOOKUP(TA!$D$40&$C15&$B$14,Dados!$A$2:$P$217,16,0)) -> 89246 | Z15: 0.056478248 | AA15: =IF(AND(W15=0,Y15=0),"",W15+Y15) -> 113766 | AB15: -0.03175400223
C16: Turmas Recursais | D16: =IF(TA!$C$17=3,SUMIF(Dados!$B$2:$L$217,TA!$A$40&PaMAe!$C16&PaMAe!$B$14,Dados!$I$2:$I$217),VLOOKUP(TA!$D$40&$C16&$B$14,Dados!$A$2:$L$217,9,0)) -> 265 | E16: =IF(D16=0,"",E12+D16) -> 1299 | F16: =IF(TA!$C$17=3,SUMIF(Dados!$B$2:$P$217,TA!$A$40&PaMAe!$C16&PaMAe!$B$14,Dados!$M$2:$M$217),VLOOKUP(TA!$D$40&$C16&$B$14,Dados!$A$2:$P$217,13,0)) -> 3118 | G16: =IF(F16=0,"",IF(G12="",F16,G12+F16)) -> 4654 | H16: 3383 | I16: =IF(H16="","",I12+H16) -> 5953 | K16: =IF(TA!$C$17=3,SUMIF(Dados!$B$2:$L$217,TA!$A$40&PaMAe!$C16&PaMAe!$B$14,Dados!$J$2:$J$217),VLOOKUP(TA!$D$40&$C16&$B$14,Dados!$A$2:$L$217,10,0)) -> 2355 | L16: =IF(K16=0,"",L12+K16) -> 3671 | M16: =IF(TA!$C$17=3,SUMIF(Dados!$B$2:$P$217, TA!$A$40&PaMAe!$C16&PaMAe!$B$14,Dados!$N$2:$N$217), VLOOKUP(TA!$D$40&$C16&$B$14,Dados!$A$2:$P$217,14,0)) -> 860 | N16: =IF(M16=0,"",IF(N12="",M16,N12+M16)) -> 1524 | O16: 3215 | P16: =IF(O16="","",P12+O16) -> 5195 | R16: =IF(TA!$C$17=3,SUMIF(Dados!$B$2:$L$217,TA!$A$40&PaMAe!$C16&PaMAe!$B$14,Dados!$K$2:$K$217),VLOOKUP(TA!$D$40&$C16&$B$14,Dados!$A$2:$L$217,11,0)) -> 0 | S16: =IF(TA!$C$17=3,SUMIF(Dados!$B$2:$P$217, TA!$A$40&PaMAe!$C16&PaMAe!$B$14,Dados!$O$2:$O$217), VLOOKUP(TA!$D$40&$C16&$B$14,Dados!$A$2:$P$217,15,0)) -> 0 | T16: =IF(AND(R16=0,S16=0),"",R16+S16) ->  | U16: =IF(T16="","",U12+T16) ->  | W16: =IF(TA!$C$17=3,SUMIF(Dados!$B$2:$L$217,TA!$A$40&PaMAe!$C16&PaMAe!$B$14,Dados!$L$2:$L$217),VLOOKUP(TA!$D$40&$C16&$B$14,Dados!$A$2:$L$217,12,0)) -> 48799 | X16: -0.0360691358 | Y16: =IF(TA!$C$17=3,SUMIF(Dados!$B$2:$P$217, TA!$A$40&PaMAe!$C16&PaMAe!$B$14,Dados!$P$2:$P$217), VLOOKUP(TA!$D$40&$C16&$B$14,Dados!$A$2:$P$217,16,0)) -> 9296 | Z16: 0.3425765453 | AA16: =IF(AND(W16=0,Y16=0),"",W16+Y16) -> 58095 | AB16: 0.009487567117
B17: Total | D17: =SUM(D14:D16) -> 1084 | E17: =IF(D17=0,"",SUM(E14:E16)) -> 2951 | F17: =SUM(F14:F16) -> 19190 | G17: =IF(F17=0,"",SUM(G14:G16)) -> 32516 | H17: 20274 | I17: =IF(H17="","",SUM(I14:I16)) -> 35467 | K17: =SUM(K14:K16) -> 9758 | L17: =IF(K17=0,"",SUM(L14:L16)) -> 17995 | M17: =SUM(M14:M16) -> 13288 | N17: =IF(M17=0,"",SUM(N14:N16)) -> 21380 | O17: 23046 | P17: =IF(O17="","",SUM(P14:P16)) -> 39375 | R17: =SUM(R14:R16) -> 1662 | S17: =SUM(S14:S16) -> 3792 | T17: =IF(R17=0,"",R17+S17) -> 5454 | U17: =IF(T17="","",SUM(U14:U16)) -> 8870 | W17: =SUM(W14:W16) -> 554518 | X17: -0.07148263252 | Y17: =SUM(Y14:Y16) -> 205001 | Z17: 0.2313851514 | AA17: =IF(W17=0,"",W17+Y17) -> 759519 | AB17: -0.005459035627
B18: Março | C18: Varas | D18: =IF(TA!$C$17=3,SUMIF(Dados!$B$2:$L$217,TA!$A$40&PaMAe!$C18&PaMAe!$B$18,Dados!$I$2:$I$217),VLOOKUP(TA!$D$40&$C18&$B$18,Dados!$A$2:$L$217,9,0)) -> 616 | E18: =IF(D18=0,"",E14+D18) -> 2259 | F18: =IF(TA!$C$17=3,SUMIF(Dados!$B$2:$P$217,TA!$A$40&PaMAe!$C18&PaMAe!$B$18,Dados!$M$2:$M$217),VLOOKUP(TA!$D$40&$C18&$B$18,Dados!$A$2:$P$217,13,0)) -> 11446 | G18: =IF(F18=0,"",IF(G14="",F18,G14+F18)) -> 22641 | H18: 12062 | I18: =IF(H18="","",I14+H18) -> 24900 | K18: =IF(TA!$C$17=3,SUMIF(Dados!$B$2:$L$217,TA!$A$40&PaMAe!$C18&PaMAe!$B$18,Dados!$J$2:$J$217),VLOOKUP(TA!$D$40&$C18&$B$18,Dados!$A$2:$L$217,10,0)) -> 4023 | L18: =IF(K18=0,"",L14+K18) -> 14746 | M18: =IF(TA!$C$17=3,SUMIF(Dados!$B$2:$P$217, TA!$A$40&PaMAe!$C18&PaMAe!$B$18,Dados!$N$2:$N$217), VLOOKUP(TA!$D$40&$C18&$B$18,Dados!$A$2:$P$217,14,0)) -> 2814 | N18: =IF(M18=0,"",IF(N14="",M18,N14+M18)) -> 6776 | O18: 6837 | P18: =IF(O18="","",P14+O18) -> 21522 | R18: =IF(TA!$C$17=3,SUMIF(Dados!$B$2:$L$217,TA!$A$40&PaMAe!$C18&PaMAe!$B$18,Dados!$K$2:$K$217),VLOOKUP(TA!$D$40&$C18&$B$18,Dados!$A$2:$L$217,11,0)) -> 797 | S18: =IF(TA!$C$17=3,SUMIF(Dados!$B$2:$P$217, TA!$A$40&PaMAe!$C18&PaMAe!$B$18,Dados!$O$2:$O$217), VLOOKUP(TA!$D$40&$C18&$B$18,Dados!$A$2:$P$217,15,0)) -> 2545 | T18: =IF(AND(R18=0,S18=0),"",R18+S18) -> 3342 | U18: =IF(T18="","",U14+T18) -> 9854 | W18: =IF(TA!$C$17=3,SUMIF(Dados!$B$2:$L$217,TA!$A$40&PaMAe!$C18&PaMAe!$B$18,Dados!$L$2:$L$217),VLOOKUP(TA!$D$40&$C18&$B$18,Dados!$A$2:$L$217,12,0)) -> 460944 | X18: -0.04209277243 | Y18: =IF(TA!$C$17=3,SUMIF(Dados!$B$2:$P$217, TA!$A$40&PaMAe!$C18&PaMAe!$B$18,Dados!$P$2:$P$217), VLOOKUP(TA!$D$40&$C18&$B$18,Dados!$A$2:$P$217,16,0)) -> 132396 | Z18: 0.2436336994 | AA18: =IF(AND(W18=0,Y18=0),"",W18+Y18) -> 593340 | AB18: 0.009668889048
C19: Juizados | D19: =IF(TA!$C$17=3,SUMIF(Dados!$B$2:$L$217,TA!$A$40&PaMAe!$C19&PaMAe!$B$18,Dados!$I$2:$I$217),VLOOKUP(TA!$D$40&$C19&$B$18,Dados!$A$2:$L$217,9,0)) -> 1 | E19: =IF(D19=0,"",E15+D19) -> 10 | F19: =IF(TA!$C$17=3,SUMIF(Dados!$B$2:$P$217,TA!$A$40&PaMAe!$C19&PaMAe!$B$18,Dados!$M$2:$M$217),VLOOKUP(TA!$D$40&$C19&$B$18,Dados!$A$2:$P$217,13,0)) -> 8355 | G19: =IF(F19=0,"",IF(G15="",F19,G15+F19)) -> 25022 | H19: 8356 | I19: =IF(H19="","",I15+H19) -> 25032 | K19: =IF(TA!$C$17=3,SUMIF(Dados!$B$2:$L$217,TA!$A$40&PaMAe!$C19&PaMAe!$B$18,Dados!$J$2:$J$217),VLOOKUP(TA!$D$40&$C19&$B$18,Dados!$A$2:$L$217,10,0)) -> 867 | L19: =IF(K19=0,"",L15+K19) -> 4468 | M19: =IF(TA!$C$17=3,SUMIF(Dados!$B$2:$P$217, TA!$A$40&PaMAe!$C19&PaMAe!$B$18,Dados!$N$2:$N$217), VLOOKUP(TA!$D$40&$C19&$B$18,Dados!$A$2:$P$217,14,0)) -> 8220 | N19: =IF(M19=0,"",IF(N15="",M19,N15+M19)) -> 24114 | O19: 9087 | P19: =IF(O19="","",P15+O19) -> 28582 | R19: =IF(TA!$C$17=3,SUMIF(Dados!$B$2:$L$217,TA!$A$40&PaMAe!$C19&PaMAe!$B$18,Dados!$K$2:$K$217),VLOOKUP(TA!$D$40&$C19&$B$18,Dados!$A$2:$L$217,11,0)) -> 331 | S19: =IF(TA!$C$17=3,SUMIF(Dados!$B$2:$P$217, TA!$A$40&PaMAe!$C19&PaMAe!$B$18,Dados!$O$2:$O$217), VLOOKUP(TA!$D$40&$C19&$B$18,Dados!$A$2:$P$217,15,0)) -> 568 | T19: =IF(AND(R19=0,S19=0),"",R19+S19) -> 899 | U19: =IF(T19="","",U15+T19) -> 3257 | W19: =IF(TA!$C$17=3,SUMIF(Dados!$B$2:$L$217,TA!$A$40&PaMAe!$C19&PaMAe!$B$18,Dados!$L$2:$L$217),VLOOKUP(TA!$D$40&$C19&$B$18,Dados!$A$2:$L$217,12,0)) -> 21189 | X19: -0.1358482871 | Y19: =IF(TA!$C$17=3,SUMIF(Dados!$B$2:$P$217, TA!$A$40&PaMAe!$C19&PaMAe!$B$18,Dados!$P$2:$P$217), VLOOKUP(TA!$D$40&$C19&$B$18,Dados!$A$2:$P$217,16,0)) -> 91926 | Z19: 0.03002935706 | AA19: =IF(AND(W19=0,Y19=0),"",W19+Y19) -> 113115 | AB19: -0.005722272032
C20: Turmas Recursais | D20: =IF(TA!$C$17=3,SUMIF(Dados!$B$2:$L$217,TA!$A$40&PaMAe!$C20&PaMAe!$B$18,Dados!$I$2:$I$217),VLOOKUP(TA!$D$40&$C20&$B$18,Dados!$A$2:$L$217,9,0)) -> 492 | E20: =IF(D20=0,"",E16+D20) -> 1791 | F20: =IF(TA!$C$17=3,SUMIF(Dados!$B$2:$P$217,TA!$A$40&PaMAe!$C20&PaMAe!$B$18,Dados!$M$2:$M$217),VLOOKUP(TA!$D$40&$C20&$B$18,Dados!$A$2:$P$217,13,0)) -> 2419 | G20: =IF(F20=0,"",IF(G16="",F20,G16+F20)) -> 7073 | H20: 2911 | I20: =IF(H20="","",I16+H20) -> 8864 | K20: =IF(TA!$C$17=3,SUMIF(Dados!$B$2:$L$217,TA!$A$40&PaMAe!$C20&PaMAe!$B$18,Dados!$J$2:$J$217),VLOOKUP(TA!$D$40&$C20&$B$18,Dados!$A$2:$L$217,10,0)) -> 2338 | L20: =IF(K20=0,"",L16+K20) -> 6009 | M20: =IF(TA!$C$17=3,SUMIF(Dados!$B$2:$P$217, TA!$A$40&PaMAe!$C20&PaMAe!$B$18,Dados!$N$2:$N$217), VLOOKUP(TA!$D$40&$C20&$B$18,Dados!$A$2:$P$217,14,0)) -> 1860 | N20: =IF(M20=0,"",IF(N16="",M20,N16+M20)) -> 3384 | O20: 4198 | P20: =IF(O20="","",P16+O20) -> 9393 | R20: =IF(TA!$C$17=3,SUMIF(Dados!$B$2:$L$217,TA!$A$40&PaMAe!$C20&PaMAe!$B$18,Dados!$K$2:$K$217),VLOOKUP(TA!$D$40&$C20&$B$18,Dados!$A$2:$L$217,11,0)) -> 0 | S20: =IF(TA!$C$17=3,SUMIF(Dados!$B$2:$P$217, TA!$A$40&PaMAe!$C20&PaMAe!$B$18,Dados!$O$2:$O$217), VLOOKUP(TA!$D$40&$C20&$B$18,Dados!$A$2:$P$217,15,0)) -> 0 | T20: =IF(AND(R20=0,S20=0),"",R20+S20) ->  | U20: =IF(T20="","",U16+T20) ->  | W20: =IF(TA!$C$17=3,SUMIF(Dados!$B$2:$L$217,TA!$A$40&PaMAe!$C20&PaMAe!$B$18,Dados!$L$2:$L$217),VLOOKUP(TA!$D$40&$C20&$B$18,Dados!$A$2:$L$217,12,0)) -> 47420 | X20: -0.02825877579 | Y20: =IF(TA!$C$17=3,SUMIF(Dados!$B$2:$P$217, TA!$A$40&PaMAe!$C20&PaMAe!$B$18,Dados!$P$2:$P$217), VLOOKUP(TA!$D$40&$C20&$B$18,Dados!$A$2:$P$217,16,0)) -> 10848 | Z20: 0.1669535284 | AA20: =IF(AND(W20=0,Y20=0),"",W20+Y20) -> 58268 | AB20: 0.002977881057
B21: Total | D21: =SUM(D18:D20) -> 1109 | E21: =IF(D21=0,"",SUM(E18:E20)) -> 4060 | F21: =SUM(F18:F20) -> 22220 | G21: =IF(F21=0,"",SUM(G18:G20)) -> 54736 | H21: 23329 | I21: =IF(H21="","",SUM(I18:I20)) -> 58796 | K21: =SUM(K18:K20) -> 7228 | L21: =IF(K21=0,"",SUM(L18:L20)) -> 25223 | M21: =SUM(M18:M20) -> 12894 | N21: =IF(M21=0,"",SUM(N18:N20)) -> 34274 | O21: 20122 | P21: =IF(O21="","",SUM(P18:P20)) -> 59497 | R21: =SUM(R18:R20) -> 1128 | S21: =SUM(S18:S20) -> 3113 | T21: =IF(R21=0,"",R21+S21) -> 4241 | U21: =IF(T21="","",SUM(U18:U20)) -> 13111 | W21: =SUM(W18:W20) -> 529553 | X21: -0.04502108137 | Y21: =SUM(Y18:Y20) -> 235170 | Z21: 0.1471651358 | AA21: =IF(W21=0,"",W21+Y21) -> 764723 | AB21: 0.006851704829
B22: Abril | C22: Varas | D22: =IF(TA!$C$17=3,SUMIF(Dados!$B$2:$L$217,TA!$A$40&PaMAe!$C22&PaMAe!$B$22,Dados!$I$2:$I$217),VLOOKUP(TA!$D$40&$C22&$B$22,Dados!$A$2:$L$217,9,0)) -> 641 | E22: =IF(D22=0,"",E18+D22) -> 2900 | F22: =IF(TA!$C$17=3,SUMIF(Dados!$B$2:$P$217,TA!$A$40&PaMAe!$C22&PaMAe!$B$22,Dados!$M$2:$M$217),VLOOKUP(TA!$D$40&$C22&$B$22,Dados!$A$2:$P$217,13,0)) -> 6743 | G22: =IF(F22=0,"",IF(G18="",F22,G18+F22)) -> 29384 | H22: 7384 | I22: =IF(H22="","",I18+H22) -> 32284 | K22: =IF(TA!$C$17=3,SUMIF(Dados!$B$2:$L$217,TA!$A$40&PaMAe!$C22&PaMAe!$B$22,Dados!$J$2:$J$217),VLOOKUP(TA!$D$40&$C22&$B$22,Dados!$A$2:$L$217,10,0)) -> 4226 | L22: =IF(K22=0,"",L18+K22) -> 18972 | M22: =IF(TA!$C$17=3,SUMIF(Dados!$B$2:$P$217, TA!$A$40&PaMAe!$C22&PaMAe!$B$22,Dados!$N$2:$N$217), VLOOKUP(TA!$D$40&$C22&$B$22,Dados!$A$2:$P$217,14,0)) -> 3283 | N22: =IF(M22=0,"",IF(N18="",M22,N18+M22)) -> 10059 | O22: 7509 | P22: =IF(O22="","",P18+O22) -> 29031 | R22: =IF(TA!$C$17=3,SUMIF(Dados!$B$2:$L$217,TA!$A$40&PaMAe!$C22&PaMAe!$B$22,Dados!$K$2:$K$217),VLOOKUP(TA!$D$40&$C22&$B$22,Dados!$A$2:$L$217,11,0)) -> 771 | S22: =IF(TA!$C$17=3,SUMIF(Dados!$B$2:$P$217, TA!$A$40&PaMAe!$C22&PaMAe!$B$22,Dados!$O$2:$O$217), VLOOKUP(TA!$D$40&$C22&$B$22,Dados!$A$2:$P$217,15,0)) -> 2746 | T22: =IF(AND(R22=0,S22=0),"",R22+S22) -> 3517 | U22: =IF(T22="","",U18+T22) -> 13371 | W22: =IF(TA!$C$17=3,SUMIF(Dados!$B$2:$L$217,TA!$A$40&PaMAe!$C22&PaMAe!$B$22,Dados!$L$2:$L$217),VLOOKUP(TA!$D$40&$C22&$B$22,Dados!$A$2:$L$217,12,0)) -> 436204 | X22: -0.05367246347 | Y22: =IF(TA!$C$17=3,SUMIF(Dados!$B$2:$P$217, TA!$A$40&PaMAe!$C22&PaMAe!$B$22,Dados!$P$2:$P$217), VLOOKUP(TA!$D$40&$C22&$B$22,Dados!$A$2:$P$217,16,0)) -> 156924 | Z22: =IF(Y22=0,"",IF(Y18=0,"100,00%",(Y22/Y18)-1)) -> 0.1852623946 | AA22: =IF(AND(W22=0,Y22=0),"",W22+Y22) -> 593128 | AB22: -0.0003572993562
C23: Juizados | D23: =IF(TA!$C$17=3,SUMIF(Dados!$B$2:$L$217,TA!$A$40&PaMAe!$C23&PaMAe!$B$22,Dados!$I$2:$I$217),VLOOKUP(TA!$D$40&$C23&$B$22,Dados!$A$2:$L$217,9,0)) -> 2 | E23: =IF(D23=0,"",E19+D23) -> 12 | F23: =IF(TA!$C$17=3,SUMIF(Dados!$B$2:$P$217,TA!$A$40&PaMAe!$C23&PaMAe!$B$22,Dados!$M$2:$M$217),VLOOKUP(TA!$D$40&$C23&$B$22,Dados!$A$2:$P$217,13,0)) -> 9609 | G23: =IF(F23=0,"",IF(G19="",F23,G19+F23)) -> 34631 | H23: 9611 | I23: =IF(H23="","",I19+H23) -> 34643 | K23: =IF(TA!$C$17=3,SUMIF(Dados!$B$2:$L$217,TA!$A$40&PaMAe!$C23&PaMAe!$B$22,Dados!$J$2:$J$217),VLOOKUP(TA!$D$40&$C23&$B$22,Dados!$A$2:$L$217,10,0)) -> 597 | L23: =IF(K23=0,"",L19+K23) -> 5065 | M23: =IF(TA!$C$17=3,SUMIF(Dados!$B$2:$P$217, TA!$A$40&PaMAe!$C23&PaMAe!$B$22,Dados!$N$2:$N$217), VLOOKUP(TA!$D$40&$C23&$B$22,Dados!$A$2:$P$217,14,0)) -> 8286 | N23: =IF(M23=0,"",IF(N19="",M23,N19+M23)) -> 32400 | O23: 8883 | P23: =IF(O23="","",P19+O23) -> 37465 | R23: =IF(TA!$C$17=3,SUMIF(Dados!$B$2:$L$217,TA!$A$40&PaMAe!$C23&PaMAe!$B$22,Dados!$K$2:$K$217),VLOOKUP(TA!$D$40&$C23&$B$22,Dados!$A$2:$L$217,11,0)) -> 267 | S23: =IF(TA!$C$17=3,SUMIF(Dados!$B$2:$P$217, TA!$A$40&PaMAe!$C23&PaMAe!$B$22,Dados!$O$2:$O$217), VLOOKUP(TA!$D$40&$C23&$B$22,Dados!$A$2:$P$217,15,0)) -> 573 | T23: =IF(AND(R23=0,S23=0),"",R23+S23) -> 840 | U23: =IF(T23="","",U19+T23) -> 4097 | W23: =IF(TA!$C$17=3,SUMIF(Dados!$B$2:$L$217,TA!$A$40&PaMAe!$C23&PaMAe!$B$22,Dados!$L$2:$L$217),VLOOKUP(TA!$D$40&$C23&$B$22,Dados!$A$2:$L$217,12,0)) -> 18944 | X23: -0.1059512011 | Y23: =IF(TA!$C$17=3,SUMIF(Dados!$B$2:$P$217, TA!$A$40&PaMAe!$C23&PaMAe!$B$22,Dados!$P$2:$P$217), VLOOKUP(TA!$D$40&$C23&$B$22,Dados!$A$2:$P$217,16,0)) -> 94920 | Z23: =IF(Y23=0,"",IF(Y19=0,"100,00%",(Y23/Y19)-1)) -> 0.03256967561 | AA23: =IF(AND(W23=0,Y23=0),"",W23+Y23) -> 113864 | AB23: 0.006621579808
C24: Turmas Recursais | D24: =IF(TA!$C$17=3,SUMIF(Dados!$B$2:$L$217,TA!$A$40&PaMAe!$C24&PaMAe!$B$22,Dados!$I$2:$I$217),VLOOKUP(TA!$D$40&$C24&$B$22,Dados!$A$2:$L$217,9,0)) -> 473 | E24: =IF(D24=0,"",E20+D24) -> 2264 | F24: =IF(TA!$C$17=3,SUMIF(Dados!$B$2:$P$217,TA!$A$40&PaMAe!$C24&PaMAe!$B$22,Dados!$M$2:$M$217),VLOOKUP(TA!$D$40&$C24&$B$22,Dados!$A$2:$P$217,13,0)) -> 2404 | G24: =IF(F24=0,"",IF(G20="",F24,G20+F24)) -> 9477 | H24: =IF(D24=0,"",D24+F24) -> 2877 | I24: =IF(H24="","",I20+H24) -> 11741 | K24: =IF(TA!$C$17=3,SUMIF(Dados!$B$2:$L$217,TA!$A$40&PaMAe!$C24&PaMAe!$B$22,Dados!$J$2:$J$217),VLOOKUP(TA!$D$40&$C24&$B$22,Dados!$A$2:$L$217,10,0)) -> 2011 | L24: =IF(K24=0,"",L20+K24) -> 8020 | M24: =IF(TA!$C$17=3,SUMIF(Dados!$B$2:$P$217, TA!$A$40&PaMAe!$C24&PaMAe!$B$22,Dados!$N$2:$N$217), VLOOKUP(TA!$D$40&$C24&$B$22,Dados!$A$2:$P$217,14,0)) -> 1308 | N24: =IF(M24=0,"",IF(N20="",M24,N20+M24)) -> 4692 | O24: 3319 | P24: =IF(O24="","",P20+O24) -> 12712 | R24: =IF(TA!$C$17=3,SUMIF(Dados!$B$2:$L$217,TA!$A$40&PaMAe!$C24&PaMAe!$B$22,Dados!$K$2:$K$217),VLOOKUP(TA!$D$40&$C24&$B$22,Dados!$A$2:$L$217,11,0)) -> 0 | S24: =IF(TA!$C$17=3,SUMIF(Dados!$B$2:$P$217, TA!$A$40&PaMAe!$C24&PaMAe!$B$22,Dados!$O$2:$O$217), VLOOKUP(TA!$D$40&$C24&$B$22,Dados!$A$2:$P$217,15,0)) -> 0 | T24: =IF(AND(R24=0,S24=0),"",R24+S24) ->  | U24: =IF(T24="","",U20+T24) ->  | W24: =IF(TA!$C$17=3,SUMIF(Dados!$B$2:$L$217,TA!$A$40&PaMAe!$C24&PaMAe!$B$22,Dados!$L$2:$L$217),VLOOKUP(TA!$D$40&$C24&$B$22,Dados!$A$2:$L$217,12,0)) -> 46210 | X24: -0.02551665964 | Y24: =IF(TA!$C$17=3,SUMIF(Dados!$B$2:$P$217, TA!$A$40&PaMAe!$C24&PaMAe!$B$22,Dados!$P$2:$P$217), VLOOKUP(TA!$D$40&$C24&$B$22,Dados!$A$2:$P$217,16,0)) -> 12228 | Z24: =IF(Y24=0,"",IF(Y20=0,"100,00%",(Y24/Y20)-1)) -> 0.1272123894 | AA24: =IF(AND(W24=0,Y24=0),"",W24+Y24) -> 58438 | AB24: 0.002917553374
B25: Total | D25: =SUM(D22:D24) -> 1116 | E25: =IF(D25=0,"",SUM(E22:E24)) -> 5176 | F25: =SUM(F22:F24) -> 18756 | G25: =IF(F25=0,"",SUM(G22:G24)) -> 73492 | H25: 19872 | I25: =IF(H25="","",SUM(I22:I24)) -> 78668 | K25: =SUM(K22:K24) -> 6834 | L25: =IF(K25=0,"",SUM(L22:L24)) -> 32057 | M25: =SUM(M22:M24) -> 12877 | N25: =IF(M25=0,"",SUM(N22:N24)) -> 47151 | O25: 19711 | P25: =IF(O25="","",SUM(P22:P24)) -> 79208 | R25: =SUM(R22:R24) -> 1038 | S25: =SUM(S22:S24) -> 3319 | T25: =IF(R25=0,"",R25+S25) -> 4357 | U25: =IF(T25="","",SUM(U22:U24)) -> 17468 | W25: =SUM(W22:W24) -> 501358 | X25: -0.05324301817 | Y25: =SUM(Y22:Y24) -> 264072 | Z25: =IF(Y25=0,"",IF(Y21=0,"100,00%",(Y25/Y21)-1)) -> 0.1228983289 | AA25: =IF(W25=0,"",W25+Y25) -> 765430 | AB25: 0.0009245177666
B26: Maio | C26: Varas | D26: =IF(TA!$C$17=3,SUMIF(Dados!$B$2:$L$217,TA!$A$40&PaMAe!$C26&PaMAe!$B$26,Dados!$I$2:$I$217),VLOOKUP(TA!$D$40&$C26&$B$26,Dados!$A$2:$L$217,9,0)) -> 821 | E26: =IF(D26=0,"",E22+D26) -> 3721 | F26: =IF(TA!$C$17=3,SUMIF(Dados!$B$2:$P$217,TA!$A$40&PaMAe!$C26&PaMAe!$B$26,Dados!$M$2:$M$217),VLOOKUP(TA!$D$40&$C26&$B$26,Dados!$A$2:$P$217,13,0)) -> 7485 | G26: =IF(F26=0,"",IF(G22="",F26,G22+F26)) -> 36869 | H26: =IF(D26=0,"",D26+F26) -> 8306 | I26: =IF(H26="","",I22+H26) -> 40590 | K26: =IF(TA!$C$17=3,SUMIF(Dados!$B$2:$L$217,TA!$A$40&PaMAe!$C26&PaMAe!$B$26,Dados!$J$2:$J$217),VLOOKUP(TA!$D$40&$C26&$B$26,Dados!$A$2:$L$217,10,0)) -> 5621 | L26: =IF(K26=0,"",L22+K26) -> 24593 | M26: =IF(TA!$C$17=3,SUMIF(Dados!$B$2:$P$217, TA!$A$40&PaMAe!$C26&PaMAe!$B$26,Dados!$N$2:$N$217), VLOOKUP(TA!$D$40&$C26&$B$26,Dados!$A$2:$P$217,14,0)) -> 4718 | N26: =IF(M26=0,"",IF(N22="",M26,N22+M26)) -> 14777 | O26: 10339 | P26: =IF(O26="","",P22+O26) -> 39370 | R26: =IF(TA!$C$17=3,SUMIF(Dados!$B$2:$L$217,TA!$A$40&PaMAe!$C26&PaMAe!$B$26,Dados!$K$2:$K$217),VLOOKUP(TA!$D$40&$C26&$B$26,Dados!$A$2:$L$217,11,0)) -> 1045 | S26: =IF(TA!$C$17=3,SUMIF(Dados!$B$2:$P$217, TA!$A$40&PaMAe!$C26&PaMAe!$B$26,Dados!$O$2:$O$217), VLOOKUP(TA!$D$40&$C26&$B$26,Dados!$A$2:$P$217,15,0)) -> 3540 | T26: =IF(AND(R26=0,S26=0),"",R26+S26) -> 4585 | U26: =IF(T26="","",U22+T26) -> 17956 | W26: =IF(TA!$C$17=3,SUMIF(Dados!$B$2:$L$217,TA!$A$40&PaMAe!$C26&PaMAe!$B$26,Dados!$L$2:$L$217),VLOOKUP(TA!$D$40&$C26&$B$26,Dados!$A$2:$L$217,12,0)) -> 401153 | X26: -0.08035460473 | Y26: =IF(TA!$C$17=3,SUMIF(Dados!$B$2:$P$217, TA!$A$40&PaMAe!$C26&PaMAe!$B$26,Dados!$P$2:$P$217), VLOOKUP(TA!$D$40&$C26&$B$26,Dados!$A$2:$P$217,16,0)) -> 240346 | Z26: =IF(Y26=0,"",IF(Y22=0,"100,00%",(Y26/Y22)-1)) -> 0.5316076572 | AA26: =IF(AND(W26=0,Y26=0),"",W26+Y26) -> 641499 | AB26: 0.08155237992
C27: Juizados | D27: =IF(TA!$C$17=3,SUMIF(Dados!$B$2:$L$217,TA!$A$40&PaMAe!$C27&PaMAe!$B$26,Dados!$I$2:$I$217),VLOOKUP(TA!$D$40&$C27&$B$26,Dados!$A$2:$L$217,9,0)) -> 3 | E27: =IF(D27=0,"",E23+D27) -> 15 | F27: =IF(TA!$C$17=3,SUMIF(Dados!$B$2:$P$217,TA!$A$40&PaMAe!$C27&PaMAe!$B$26,Dados!$M$2:$M$217),VLOOKUP(TA!$D$40&$C27&$B$26,Dados!$A$2:$P$217,13,0)) -> 11209 | G27: =IF(F27=0,"",IF(G23="",F27,G23+F27)) -> 45840 | H27: 11212 | I27: =IF(H27="","",I23+H27) -> 45855 | K27: =IF(TA!$C$17=3,SUMIF(Dados!$B$2:$L$217,TA!$A$40&PaMAe!$C27&PaMAe!$B$26,Dados!$J$2:$J$217),VLOOKUP(TA!$D$40&$C27&$B$26,Dados!$A$2:$L$217,10,0)) -> 776 | L27: =IF(K27=0,"",L23+K27) -> 5841 | M27: =IF(TA!$C$17=3,SUMIF(Dados!$B$2:$P$217, TA!$A$40&PaMAe!$C27&PaMAe!$B$26,Dados!$N$2:$N$217), VLOOKUP(TA!$D$40&$C27&$B$26,Dados!$A$2:$P$217,14,0)) -> 11093 | N27: =IF(M27=0,"",IF(N23="",M27,N23+M27)) -> 43493 | O27: 11869 | P27: =IF(O27="","",P23+O27) -> 49334 | R27: =IF(TA!$C$17=3,SUMIF(Dados!$B$2:$L$217,TA!$A$40&PaMAe!$C27&PaMAe!$B$26,Dados!$K$2:$K$217),VLOOKUP(TA!$D$40&$C27&$B$26,Dados!$A$2:$L$217,11,0)) -> 273 | S27: =IF(TA!$C$17=3,SUMIF(Dados!$B$2:$P$217, TA!$A$40&PaMAe!$C27&PaMAe!$B$26,Dados!$O$2:$O$217), VLOOKUP(TA!$D$40&$C27&$B$26,Dados!$A$2:$P$217,15,0)) -> 734 | T27: =IF(AND(R27=0,S27=0),"",R27+S27) -> 1007 | U27: =IF(T27="","",U23+T27) -> 5104 | W27: =IF(TA!$C$17=3,SUMIF(Dados!$B$2:$L$217,TA!$A$40&PaMAe!$C27&PaMAe!$B$26,Dados!$L$2:$L$217),VLOOKUP(TA!$D$40&$C27&$B$26,Dados!$A$2:$L$217,12,0)) -> 16638 | X27: -0.1217271959 | Y27: =IF(TA!$C$17=3,SUMIF(Dados!$B$2:$P$217, TA!$A$40&PaMAe!$C27&PaMAe!$B$26,Dados!$P$2:$P$217), VLOOKUP(TA!$D$40&$C27&$B$26,Dados!$A$2:$P$217,16,0)) -> 98227 | Z27: =IF(Y27=0,"",(Y27/Y23)-1) -> 0.03483986515 | AA27: =IF(AND(W27=0,Y27=0),"",W27+Y27) -> 114865 | AB27: 0.008791189489
C28: Turmas Recursais | D28: =IF(TA!$C$17=3,SUMIF(Dados!$B$2:$L$217,TA!$A$40&PaMAe!$C28&PaMAe!$B$26,Dados!$I$2:$I$217),VLOOKUP(TA!$D$40&$C28&$B$26,Dados!$A$2:$L$217,9,0)) -> 277 | E28: =IF(D28=0,"",E24+D28) -> 2541 | F28: =IF(TA!$C$17=3,SUMIF(Dados!$B$2:$P$217,TA!$A$40&PaMAe!$C28&PaMAe!$B$26,Dados!$M$2:$M$217),VLOOKUP(TA!$D$40&$C28&$B$26,Dados!$A$2:$P$217,13,0)) -> 2815 | G28: =IF(F28=0,"",IF(G24="",F28,G24+F28)) -> 12292 | H28: 3092 | I28: =IF(H28="","",I24+H28) -> 14833 | K28: =IF(TA!$C$17=3,SUMIF(Dados!$B$2:$L$217,TA!$A$40&PaMAe!$C28&PaMAe!$B$26,Dados!$J$2:$J$217),VLOOKUP(TA!$D$40&$C28&$B$26,Dados!$A$2:$L$217,10,0)) -> 13070 | L28: =IF(K28=0,"",L24+K28) -> 21090 | M28: =IF(TA!$C$17=3,SUMIF(Dados!$B$2:$P$217, TA!$A$40&PaMAe!$C28&PaMAe!$B$26,Dados!$N$2:$N$217), VLOOKUP(TA!$D$40&$C28&$B$26,Dados!$A$2:$P$217,14,0)) -> 2246 | N28: =IF(M28=0,"",IF(N24="",M28,N24+M28)) -> 6938 | O28: 15316 | P28: =IF(O28="","",P24+O28) -> 28028 | R28: =IF(TA!$C$17=3,SUMIF(Dados!$B$2:$L$217,TA!$A$40&PaMAe!$C28&PaMAe!$B$26,Dados!$K$2:$K$217),VLOOKUP(TA!$D$40&$C28&$B$26,Dados!$A$2:$L$217,11,0)) -> 0 | S28: =IF(TA!$C$17=3,SUMIF(Dados!$B$2:$P$217, TA!$A$40&PaMAe!$C28&PaMAe!$B$26,Dados!$O$2:$O$217), VLOOKUP(TA!$D$40&$C28&$B$26,Dados!$A$2:$P$217,15,0)) -> 0 | T28: =IF(AND(R28=0,S28=0),"",R28+S28) ->  | U28: =IF(T28="","",U24+T28) ->  | W28: =IF(TA!$C$17=3,SUMIF(Dados!$B$2:$L$217,TA!$A$40&PaMAe!$C28&PaMAe!$B$26,Dados!$L$2:$L$217),VLOOKUP(TA!$D$40&$C28&$B$26,Dados!$A$2:$L$217,12,0)) -> 45393 | X28: -0.01768015581 | Y28: =IF(TA!$C$17=3,SUMIF(Dados!$B$2:$P$217, TA!$A$40&PaMAe!$C28&PaMAe!$B$26,Dados!$P$2:$P$217), VLOOKUP(TA!$D$40&$C28&$B$26,Dados!$A$2:$P$217,16,0)) -> 14078 | Z28: =IF(Y28=0,"",IF(Y24=0,"100,00%",(Y28/Y24)-1)) -> 0.1512921165 | AA28: =IF(AND(W28=0,Y28=0),"",W28+Y28) -> 59471 | AB28: 0.0176768541
B29: Total | D29: =SUM(D26:D28) -> 1101 | E29: =IF(D29=0,"",SUM(E26:E28)) -> 6277 | F29: =SUM(F26:F28) -> 21509 | G29: =IF(F29=0,"",SUM(G26:G28)) -> 95001 | H29: 22610 | I29: =IF(H29="","",SUM(I26:I28)) -> 101278 | K29: =SUM(K26:K28) -> 19467 | L29: =IF(K29=0,"",SUM(L26:L28)) -> 51524 | M29: =SUM(M26:M28) -> 18057 | N29: =IF(M29=0,"",SUM(N26:N28)) -> 65208 | O29: 37524 | P29: =IF(O29="","",SUM(P26:P28)) -> 116732 | R29: =SUM(R26:R28) -> 1318 | S29: =SUM(S26:S28) -> 4274 | T29: =IF(R29=0,"",R29+S29) -> 5592 | U29: =IF(T29="","",SUM(U26:U28)) -> 23060 | W29: =SUM(W26:W28) -> 463184 | X29: -0.0761412005 | Y29: =SUM(Y26:Y28) -> 352651 | Z29: 0.3354350329 | AA29: =IF(W29=0,"",W29+Y29) -> 815835 | AB29: 0.06585187411
B30: Junho | C30: Varas | D30: =IF(TA!$C$17=3,SUMIF(Dados!$B$2:$L$217,TA!$A$40&PaMAe!$C30&PaMAe!$B$30,Dados!$I$2:$I$217),VLOOKUP(TA!$D$40&$C30&$B$30,Dados!$A$2:$L$217,9,0)) -> 551 | E30: =IF(D30=0,"",E26+D30) -> 4272 | F30: =IF(TA!$C$17=3,SUMIF(Dados!$B$2:$P$217,TA!$A$40&PaMAe!$C30&PaMAe!$B$30,Dados!$M$2:$M$217),VLOOKUP(TA!$D$40&$C30&$B$30,Dados!$A$2:$P$217,13,0)) -> 5970 | G30: =IF(F30=0,"",IF(G26="",F30,G26+F30)) -> 42839 | H30: 6521 | I30: =IF(H30="","",I26+H30) -> 47111 | K30: =IF(TA!$C$17=3,SUMIF(Dados!$B$2:$L$217,TA!$A$40&PaMAe!$C30&PaMAe!$B$30,Dados!$J$2:$J$217),VLOOKUP(TA!$D$40&$C30&$B$30,Dados!$A$2:$L$217,10,0)) -> 3266 | L30: =IF(K30=0,"",L26+K30) -> 27859 | M30: =IF(TA!$C$17=3,SUMIF(Dados!$B$2:$P$217, TA!$A$40&PaMAe!$C30&PaMAe!$B$30,Dados!$N$2:$N$217), VLOOKUP(TA!$D$40&$C30&$B$30,Dados!$A$2:$P$217,14,0)) -> 4656 | N30: =IF(M30=0,"",IF(N26="",M30,N26+M30)) -> 19433 | O30: 7922 | P30: =IF(O30="","",P26+O30) -> 47292 | R30: =IF(TA!$C$17=3,SUMIF(Dados!$B$2:$L$217,TA!$A$40&PaMAe!$C30&PaMAe!$B$30,Dados!$K$2:$K$217),VLOOKUP(TA!$D$40&$C30&$B$30,Dados!$A$2:$L$217,11,0)) -> 680 | S30: =IF(TA!$C$17=3,SUMIF(Dados!$B$2:$P$217, TA!$A$40&PaMAe!$C30&PaMAe!$B$30,Dados!$O$2:$O$217), VLOOKUP(TA!$D$40&$C30&$B$30,Dados!$A$2:$P$217,15,0)) -> 3278 | T30: =IF(AND(R30=0,S30=0),"",R30+S30) -> 3958 | U30: =IF(T30="","",U26+T30) -> 21914 | W30: =IF(TA!$C$17=3,SUMIF(Dados!$B$2:$L$217,TA!$A$40&PaMAe!$C30&PaMAe!$B$30,Dados!$L$2:$L$217),VLOOKUP(TA!$D$40&$C30&$B$30,Dados!$A$2:$L$217,12,0)) -> 268732 | X30: -0.3301009839 | Y30: =IF(TA!$C$17=3,SUMIF(Dados!$B$2:$P$217, TA!$A$40&PaMAe!$C30&PaMAe!$B$30,Dados!$P$2:$P$217), VLOOKUP(TA!$D$40&$C30&$B$30,Dados!$A$2:$P$217,16,0)) -> 320014 | Z30: 0.3314721277 | AA30: =IF(AND(W30=0,Y30=0),"",W30+Y30) -> 588746 | AB30: -0.08223395516
C31: Juizados | D31: =IF(TA!$C$17=3,SUMIF(Dados!$B$2:$L$217,TA!$A$40&PaMAe!$C31&PaMAe!$B$30,Dados!$I$2:$I$217),VLOOKUP(TA!$D$40&$C31&$B$30,Dados!$A$2:$L$217,9,0)) -> 5 | E31: =IF(D31=0,"",E27+D31) -> 20 | F31: =IF(TA!$C$17=3,SUMIF(Dados!$B$2:$P$217,TA!$A$40&PaMAe!$C31&PaMAe!$B$30,Dados!$M$2:$M$217),VLOOKUP(TA!$D$40&$C31&$B$30,Dados!$A$2:$P$217,13,0)) -> 9276 | G31: =IF(F31=0,"",IF(G27="",F31,G27+F31)) -> 55116 | H31: 9281 | I31: =IF(H31="","",I27+H31) -> 55136 | K31: =IF(TA!$C$17=3,SUMIF(Dados!$B$2:$L$217,TA!$A$40&PaMAe!$C31&PaMAe!$B$30,Dados!$J$2:$J$217),VLOOKUP(TA!$D$40&$C31&$B$30,Dados!$A$2:$L$217,10,0)) -> 538 | L31: =IF(K31=0,"",L27+K31) -> 6379 | M31: =IF(TA!$C$17=3,SUMIF(Dados!$B$2:$P$217, TA!$A$40&PaMAe!$C31&PaMAe!$B$30,Dados!$N$2:$N$217), VLOOKUP(TA!$D$40&$C31&$B$30,Dados!$A$2:$P$217,14,0)) -> 9850 | N31: =IF(M31=0,"",IF(N27="",M31,N27+M31)) -> 53343 | O31: 10388 | P31: =IF(O31="","",P27+O31) -> 59722 | R31: =IF(TA!$C$17=3,SUMIF(Dados!$B$2:$L$217,TA!$A$40&PaMAe!$C31&PaMAe!$B$30,Dados!$K$2:$K$217),VLOOKUP(TA!$D$40&$C31&$B$30,Dados!$A$2:$L$217,11,0)) -> 162 | S31: =IF(TA!$C$17=3,SUMIF(Dados!$B$2:$P$217, TA!$A$40&PaMAe!$C31&PaMAe!$B$30,Dados!$O$2:$O$217), VLOOKUP(TA!$D$40&$C31&$B$30,Dados!$A$2:$P$217,15,0)) -> 754 | T31: =IF(AND(R31=0,S31=0),"",R31+S31) -> 916 | U31: =IF(T31="","",U27+T31) -> 6020 | W31: =IF(TA!$C$17=3,SUMIF(Dados!$B$2:$L$217,TA!$A$40&PaMAe!$C31&PaMAe!$B$30,Dados!$L$2:$L$217),VLOOKUP(TA!$D$40&$C31&$B$30,Dados!$A$2:$L$217,12,0)) -> 18370 | X31: 0.1040990504 | Y31: =IF(TA!$C$17=3,SUMIF(Dados!$B$2:$P$217, TA!$A$40&PaMAe!$C31&PaMAe!$B$30,Dados!$P$2:$P$217), VLOOKUP(TA!$D$40&$C31&$B$30,Dados!$A$2:$P$217,16,0)) -> 100045 | Z31: 0.01850814949 | AA31: =IF(AND(W31=0,Y31=0),"",W31+Y31) -> 118415 | AB31: 0.03090584599
C32: Turmas Recursais | D32: =IF(TA!$C$17=3,SUMIF(Dados!$B$2:$L$217,TA!$A$40&PaMAe!$C32&PaMAe!$B$30,Dados!$I$2:$I$217),VLOOKUP(TA!$D$40&$C32&$B$30,Dados!$A$2:$L$217,9,0)) -> 164 | E32: =IF(D32=0,"",E28+D32) -> 2705 | F32: =IF(TA!$C$17=3,SUMIF(Dados!$B$2:$P$217,TA!$A$40&PaMAe!$C32&PaMAe!$B$30,Dados!$M$2:$M$217),VLOOKUP(TA!$D$40&$C32&$B$30,Dados!$A$2:$P$217,13,0)) -> 2683 | G32: =IF(F32=0,"",IF(G28="",F32,G28+F32)) -> 14975 | H32: 2847 | I32: =IF(H32="","",I28+H32) -> 17680 | K32: =IF(TA!$C$17=3,SUMIF(Dados!$B$2:$L$217,TA!$A$40&PaMAe!$C32&PaMAe!$B$30,Dados!$J$2:$J$217),VLOOKUP(TA!$D$40&$C32&$B$30,Dados!$A$2:$L$217,10,0)) -> 2398 | L32: =IF(K32=0,"",L28+K32) -> 23488 | M32: =IF(TA!$C$17=3,SUMIF(Dados!$B$2:$P$217, TA!$A$40&PaMAe!$C32&PaMAe!$B$30,Dados!$N$2:$N$217), VLOOKUP(TA!$D$40&$C32&$B$30,Dados!$A$2:$P$217,14,0)) -> 1834 | N32: =IF(M32=0,"",IF(N28="",M32,N28+M32)) -> 8772 | O32: 4232 | P32: =IF(O32="","",P28+O32) -> 32260 | R32: =IF(TA!$C$17=3,SUMIF(Dados!$B$2:$L$217,TA!$A$40&PaMAe!$C32&PaMAe!$B$30,Dados!$K$2:$K$217),VLOOKUP(TA!$D$40&$C32&$B$30,Dados!$A$2:$L$217,11,0)) -> 0 | S32: =IF(TA!$C$17=3,SUMIF(Dados!$B$2:$P$217, TA!$A$40&PaMAe!$C32&PaMAe!$B$30,Dados!$O$2:$O$217), VLOOKUP(TA!$D$40&$C32&$B$30,Dados!$A$2:$P$217,15,0)) -> 0 | T32: =IF(AND(R32=0,S32=0),"",R32+S32) ->  | U32: =IF(T32="","",U28+T32) ->  | W32: =IF(TA!$C$17=3,SUMIF(Dados!$B$2:$L$217,TA!$A$40&PaMAe!$C32&PaMAe!$B$30,Dados!$L$2:$L$217),VLOOKUP(TA!$D$40&$C32&$B$30,Dados!$A$2:$L$217,12,0)) -> 39786 | X32: -0.1235212478 | Y32: =IF(TA!$C$17=3,SUMIF(Dados!$B$2:$P$217, TA!$A$40&PaMAe!$C32&PaMAe!$B$30,Dados!$P$2:$P$217), VLOOKUP(TA!$D$40&$C32&$B$30,Dados!$A$2:$P$217,16,0)) -> 14875 | Z32: 0.05661315528 | AA32: =IF(AND(W32=0,Y32=0),"",W32+Y32) -> 54661 | AB32: -0.08087975652
B33: Total | D33: =SUM(D30:D32) -> 720 | E33: =IF(D33=0,"",SUM(E30:E32)) -> 6997 | F33: =SUM(F30:F32) -> 17929 | G33: =IF(F33=0,"",SUM(G30:G32)) -> 112930 | H33: 18649 | I33: =IF(H33="","",SUM(I30:I32)) -> 119927 | K33: =SUM(K30:K32) -> 6202 | L33: =IF(K33=0,"",SUM(L30:L32)) -> 57726 | M33: =SUM(M30:M32) -> 16340 | N33: =IF(M33=0,"",SUM(N30:N32)) -> 81548 | O33: 22542 | P33: =IF(O33="","",SUM(P30:P32)) -> 139274 | R33: =SUM(R30:R32) -> 842 | S33: =SUM(S30:S32) -> 4032 | T33: =IF(R33=0,"",R33+S33) -> 4874 | U33: =IF(T33="","",SUM(U30:U32)) -> 27934 | W33: =SUM(W30:W32) -> 326888 | X33: -0.294258869 | Y33: =SUM(Y30:Y32) -> 434934 | Z33: 0.2333270003 | AA33: =IF(W33=0,"",W33+Y33) -> 761822 | AB33: -0.06620578916
B34: Julho | C34: Varas | D34: =IF(TA!$C$17=3,SUMIF(Dados!$B$2:$L$217,TA!$A$40&PaMAe!$C34&PaMAe!$B$34,Dados!$I$2:$I$217),VLOOKUP(TA!$D$40&$C34&$B$34,Dados!$A$2:$L$217,9,0)) -> 760 | E34: =IF(D34=0,"",E30+D34) -> 5032 | F34: =IF(TA!$C$17=3,SUMIF(Dados!$B$2:$P$217,TA!$A$40&PaMAe!$C34&PaMAe!$B$34,Dados!$M$2:$M$217),VLOOKUP(TA!$D$40&$C34&$B$34,Dados!$A$2:$P$217,13,0)) -> 8257 | G34: =IF(F34=0,"",IF(G30="",F34,G30+F34)) -> 51096 | H34: 9017 | I34: =IF(H34="","",I30+H34) -> 56128 | K34: =IF(TA!$C$17=3,SUMIF(Dados!$B$2:$L$217,TA!$A$40&PaMAe!$C34&PaMAe!$B$34,Dados!$J$2:$J$217),VLOOKUP(TA!$D$40&$C34&$B$34,Dados!$A$2:$L$217,10,0)) -> 3973 | L34: =IF(K34=0,"",L30+K34) -> 31832 | M34: =IF(TA!$C$17=3,SUMIF(Dados!$B$2:$P$217, TA!$A$40&PaMAe!$C34&PaMAe!$B$34,Dados!$N$2:$N$217), VLOOKUP(TA!$D$40&$C34&$B$34,Dados!$A$2:$P$217,14,0)) -> 6676 | N34: =IF(M34=0,"",IF(N30="",M34,N30+M34)) -> 26109 | O34: 10649 | P34: =IF(O34="","",P30+O34) -> 57941 | R34: =IF(TA!$C$17=3,SUMIF(Dados!$B$2:$L$217,TA!$A$40&PaMAe!$C34&PaMAe!$B$34,Dados!$K$2:$K$217),VLOOKUP(TA!$D$40&$C34&$B$34,Dados!$A$2:$L$217,11,0)) -> 659 | S34: =IF(TA!$C$17=3,SUMIF(Dados!$B$2:$P$217, TA!$A$40&PaMAe!$C34&PaMAe!$B$34,Dados!$O$2:$O$217), VLOOKUP(TA!$D$40&$C34&$B$34,Dados!$A$2:$P$217,15,0)) -> 4527 | T34: =IF(AND(R34=0,S34=0),"",R34+S34) -> 5186 | U34: =IF(T34="","",U30+T34) -> 27100 | W34: =IF(TA!$C$17=3,SUMIF(Dados!$B$2:$L$217,TA!$A$40&PaMAe!$C34&PaMAe!$B$34,Dados!$L$2:$L$217),VLOOKUP(TA!$D$40&$C34&$B$34,Dados!$A$2:$L$217,12,0)) -> 258410 | X34: -0.03841001444 | Y34: =IF(TA!$C$17=3,SUMIF(Dados!$B$2:$P$217, TA!$A$40&PaMAe!$C34&PaMAe!$B$34,Dados!$P$2:$P$217), VLOOKUP(TA!$D$40&$C34&$B$34,Dados!$A$2:$P$217,16,0)) -> 327480 | Z34: 0.0233302293 | AA34: =IF(AND(W34=0,Y34=0),"",W34+Y34) -> 585890 | AB34: -0.004850988372
C35: Juizados | D35: =IF(TA!$C$17=3,SUMIF(Dados!$B$2:$L$217,TA!$A$40&PaMAe!$C35&PaMAe!$B$34,Dados!$I$2:$I$217),VLOOKUP(TA!$D$40&$C35&$B$34,Dados!$A$2:$L$217,9,0)) -> 2 | E35: =IF(D35=0,"",E31+D35) -> 22 | F35: =IF(TA!$C$17=3,SUMIF(Dados!$B$2:$P$217,TA!$A$40&PaMAe!$C35&PaMAe!$B$34,Dados!$M$2:$M$217),VLOOKUP(TA!$D$40&$C35&$B$34,Dados!$A$2:$P$217,13,0)) -> 11862 | G35: =IF(F35=0,"",IF(G31="",F35,G31+F35)) -> 66978 | H35: 11864 | I35: =IF(H35="","",I31+H35) -> 67000 | K35: =IF(TA!$C$17=3,SUMIF(Dados!$B$2:$L$217,TA!$A$40&PaMAe!$C35&PaMAe!$B$34,Dados!$J$2:$J$217),VLOOKUP(TA!$D$40&$C35&$B$34,Dados!$A$2:$L$217,10,0)) -> 983 | L35: =IF(K35=0,"",L31+K35) -> 7362 | M35: =IF(TA!$C$17=3,SUMIF(Dados!$B$2:$P$217, TA!$A$40&PaMAe!$C35&PaMAe!$B$34,Dados!$N$2:$N$217), VLOOKUP(TA!$D$40&$C35&$B$34,Dados!$A$2:$P$217,14,0)) -> 11845 | N35: =IF(M35=0,"",IF(N31="",M35,N31+M35)) -> 65188 | O35: 12828 | P35: =IF(O35="","",P31+O35) -> 72550 | R35: =IF(TA!$C$17=3,SUMIF(Dados!$B$2:$L$217,TA!$A$40&PaMAe!$C35&PaMAe!$B$34,Dados!$K$2:$K$217),VLOOKUP(TA!$D$40&$C35&$B$34,Dados!$A$2:$L$217,11,0)) -> 174 | S35: =IF(TA!$C$17=3,SUMIF(Dados!$B$2:$P$217, TA!$A$40&PaMAe!$C35&PaMAe!$B$34,Dados!$O$2:$O$217), VLOOKUP(TA!$D$40&$C35&$B$34,Dados!$A$2:$P$217,15,0)) -> 1042 | T35: =IF(AND(R35=0,S35=0),"",R35+S35) -> 1216 | U35: =IF(T35="","",U31+T35) -> 7236 | W35: =IF(TA!$C$17=3,SUMIF(Dados!$B$2:$L$217,TA!$A$40&PaMAe!$C35&PaMAe!$B$34,Dados!$L$2:$L$217),VLOOKUP(TA!$D$40&$C35&$B$34,Dados!$A$2:$L$217,12,0)) -> 20586 | X35: 0.1206314643 | Y35: =IF(TA!$C$17=3,SUMIF(Dados!$B$2:$P$217, TA!$A$40&PaMAe!$C35&PaMAe!$B$34,Dados!$P$2:$P$217), VLOOKUP(TA!$D$40&$C35&$B$34,Dados!$A$2:$P$217,16,0)) -> 102569 | Z35: 0.02522864711 | AA35: =IF(AND(W35=0,Y35=0),"",W35+Y35) -> 123155 | AB35: 0.04002871258
C36: Turmas Recursais | D36: =IF(TA!$C$17=3,SUMIF(Dados!$B$2:$L$217,TA!$A$40&PaMAe!$C36&PaMAe!$B$34,Dados!$I$2:$I$217),VLOOKUP(TA!$D$40&$C36&$B$34,Dados!$A$2:$L$217,9,0)) -> 142 | E36: =IF(D36=0,"",E32+D36) -> 2847 | F36: =IF(TA!$C$17=3,SUMIF(Dados!$B$2:$P$217,TA!$A$40&PaMAe!$C36&PaMAe!$B$34,Dados!$M$2:$M$217),VLOOKUP(TA!$D$40&$C36&$B$34,Dados!$A$2:$P$217,13,0)) -> 3571 | G36: =IF(F36=0,"",IF(G32="",F36,G32+F36)) -> 18546 | H36: 3713 | I36: =IF(H36="","",I32+H36) -> 21393 | K36: =IF(TA!$C$17=3,SUMIF(Dados!$B$2:$L$217,TA!$A$40&PaMAe!$C36&PaMAe!$B$34,Dados!$J$2:$J$217),VLOOKUP(TA!$D$40&$C36&$B$34,Dados!$A$2:$L$217,10,0)) -> 1747 | L36: =IF(K36=0,"",L32+K36) -> 25235 | M36: =IF(TA!$C$17=3,SUMIF(Dados!$B$2:$P$217, TA!$A$40&PaMAe!$C36&PaMAe!$B$34,Dados!$N$2:$N$217), VLOOKUP(TA!$D$40&$C36&$B$34,Dados!$A$2:$P$217,14,0)) -> 1943 | N36: =IF(M36=0,"",IF(N32="",M36,N32+M36)) -> 10715 | O36: 3690 | P36: =IF(O36="","",P32+O36) -> 35950 | R36: =IF(TA!$C$17=3,SUMIF(Dados!$B$2:$L$217,TA!$A$40&PaMAe!$C36&PaMAe!$B$34,Dados!$K$2:$K$217),VLOOKUP(TA!$D$40&$C36&$B$34,Dados!$A$2:$L$217,11,0)) -> 0 | S36: =IF(TA!$C$17=3,SUMIF(Dados!$B$2:$P$217, TA!$A$40&PaMAe!$C36&PaMAe!$B$34,Dados!$O$2:$O$217), VLOOKUP(TA!$D$40&$C36&$B$34,Dados!$A$2:$P$217,15,0)) -> 0 | T36: =IF(AND(R36=0,S36=0),"",R36+S36) ->  | U36: =IF(T36="","",U32+T36) ->  | W36: =IF(TA!$C$17=3,SUMIF(Dados!$B$2:$L$217,TA!$A$40&PaMAe!$C36&PaMAe!$B$34,Dados!$L$2:$L$217),VLOOKUP(TA!$D$40&$C36&$B$34,Dados!$A$2:$L$217,12,0)) -> 33433 | X36: -0.1596792842 | Y36: =IF(TA!$C$17=3,SUMIF(Dados!$B$2:$P$217, TA!$A$40&PaMAe!$C36&PaMAe!$B$34,Dados!$P$2:$P$217), VLOOKUP(TA!$D$40&$C36&$B$34,Dados!$A$2:$P$217,16,0)) -> 16257 | Z36: 0.09290756303 | AA36: =IF(AND(W36=0,Y36=0),"",W36+Y36) -> 49690 | AB36: -0.09094235378
B37: Total | D37: =SUM(D34:D36) -> 904 | E37: =IF(D37=0,"",SUM(E34:E36)) -> 7901 | F37: =SUM(F34:F36) -> 23690 | G37: =IF(F37=0,"",SUM(G34:G36)) -> 136620 | H37: 24594 | I37: =IF(H37="","",SUM(I34:I36)) -> 144521 | K37: =SUM(K34:K36) -> 6703 | L37: =IF(K37=0,"",SUM(L34:L36)) -> 64429 | M37: =SUM(M34:M36) -> 20464 | N37: =IF(M37=0,"",SUM(N34:N36)) -> 102012 | O37: 27167 | P37: =IF(O37="","",SUM(P34:P36)) -> 166441 | R37: =SUM(R34:R36) -> 833 | S37: =SUM(S34:S36) -> 5569 | T37: =IF(R37=0,"",R37+S37) -> 6402 | U37: =IF(T37="","",SUM(U34:U36)) -> 34336 | W37: =SUM(W34:W36) -> 312429 | X37: -0.04423227527 | Y37: =SUM(Y34:Y36) -> 446306 | Z37: 0.02614649579 | AA37: =IF(W37=0,"",W37+Y37) -> 758735 | AB37: -0.004052127662
B38: Agosto | C38: Varas | D38: =IF(TA!$C$17=3,SUMIF(Dados!$B$2:$L$217,TA!$A$40&PaMAe!$C38&PaMAe!$B$38,Dados!$I$2:$I$217),VLOOKUP(TA!$D$40&$C38&$B$38,Dados!$A$2:$L$217,9,0)) -> 640 | E38: =IF(D38=0,"",E34+D38) -> 5672 | F38: =IF(TA!$C$17=3,SUMIF(Dados!$B$2:$P$217,TA!$A$40&PaMAe!$C38&PaMAe!$B$38,Dados!$M$2:$M$217),VLOOKUP(TA!$D$40&$C38&$B$38,Dados!$A$2:$P$217,13,0)) -> 7965 | G38: =IF(F38=0,"",IF(G34="",F38,G34+F38)) -> 59061 | H38: 8605 | I38: =IF(H38="","",I34+H38) -> 64733 | K38: =IF(TA!$C$17=3,SUMIF(Dados!$B$2:$L$217,TA!$A$40&PaMAe!$C38&PaMAe!$B$38,Dados!$J$2:$J$217),VLOOKUP(TA!$D$40&$C38&$B$38,Dados!$A$2:$L$217,10,0)) -> 4279 | L38: =IF(K38=0,"",L34+K38) -> 36111 | M38: =IF(TA!$C$17=3,SUMIF(Dados!$B$2:$P$217, TA!$A$40&PaMAe!$C38&PaMAe!$B$38,Dados!$N$2:$N$217), VLOOKUP(TA!$D$40&$C38&$B$38,Dados!$A$2:$P$217,14,0)) -> 8359 | N38: =IF(M38=0,"",IF(N34="",M38,N34+M38)) -> 34468 | O38: 12638 | P38: =IF(O38="","",P34+O38) -> 70579 | R38: =IF(TA!$C$17=3,SUMIF(Dados!$B$2:$L$217,TA!$A$40&PaMAe!$C38&PaMAe!$B$38,Dados!$K$2:$K$217),VLOOKUP(TA!$D$40&$C38&$B$38,Dados!$A$2:$L$217,11,0)) -> 542 | S38: =IF(TA!$C$17=3,SUMIF(Dados!$B$2:$P$217, TA!$A$40&PaMAe!$C38&PaMAe!$B$38,Dados!$O$2:$O$217), VLOOKUP(TA!$D$40&$C38&$B$38,Dados!$A$2:$P$217,15,0)) -> 4559 | T38: =IF(AND(R38=0,S38=0),"",R38+S38) -> 5101 | U38: =IF(T38="","",U34+T38) -> 32201 | W38: =IF(TA!$C$17=3,SUMIF(Dados!$B$2:$L$217,TA!$A$40&PaMAe!$C38&PaMAe!$B$38,Dados!$L$2:$L$217),VLOOKUP(TA!$D$40&$C38&$B$38,Dados!$A$2:$L$217,12,0)) -> 154374 | X38: -0.4026005186 | Y38: =IF(TA!$C$17=3,SUMIF(Dados!$B$2:$P$217, TA!$A$40&PaMAe!$C38&PaMAe!$B$38,Dados!$P$2:$P$217), VLOOKUP(TA!$D$40&$C38&$B$38,Dados!$A$2:$P$217,16,0)) -> 428772 | Z38: 0.3093074386 | AA38: =IF(AND(W38=0,Y38=0),"",W38+Y38) -> 583146 | AB38: -0.004683473007
C39: Juizados | D39: =IF(TA!$C$17=3,SUMIF(Dados!$B$2:$L$217,TA!$A$40&PaMAe!$C39&PaMAe!$B$38,Dados!$I$2:$I$217),VLOOKUP(TA!$D$40&$C39&$B$38,Dados!$A$2:$L$217,9,0)) -> 9 | E39: =IF(D39=0,"",E35+D39) -> 31 | F39: =IF(TA!$C$17=3,SUMIF(Dados!$B$2:$P$217,TA!$A$40&PaMAe!$C39&PaMAe!$B$38,Dados!$M$2:$M$217),VLOOKUP(TA!$D$40&$C39&$B$38,Dados!$A$2:$P$217,13,0)) -> 11077 | G39: =IF(F39=0,"",IF(G35="",F39,G35+F39)) -> 78055 | H39: =IF(D39=0,IF(F39=0,"",D39+F39),D39+F39) -> 11086 | I39: =IF(H39="","",I35+H39) -> 78086 | K39: =IF(TA!$C$17=3,SUMIF(Dados!$B$2:$L$217,TA!$A$40&PaMAe!$C39&PaMAe!$B$38,Dados!$J$2:$J$217),VLOOKUP(TA!$D$40&$C39&$B$38,Dados!$A$2:$L$217,10,0)) -> 913 | L39: =IF(K39=0,"",L35+K39) -> 8275 | M39: =IF(TA!$C$17=3,SUMIF(Dados!$B$2:$P$217, TA!$A$40&PaMAe!$C39&PaMAe!$B$38,Dados!$N$2:$N$217), VLOOKUP(TA!$D$40&$C39&$B$38,Dados!$A$2:$P$217,14,0)) -> 12639 | N39: =IF(M39=0,"",IF(N35="",M39,N35+M39)) -> 77827 | O39: 13552 | P39: =IF(O39="","",P35+O39) -> 86102 | R39: =IF(TA!$C$17=3,SUMIF(Dados!$B$2:$L$217,TA!$A$40&PaMAe!$C39&PaMAe!$B$38,Dados!$K$2:$K$217),VLOOKUP(TA!$D$40&$C39&$B$38,Dados!$A$2:$L$217,11,0)) -> 151 | S39: =IF(TA!$C$17=3,SUMIF(Dados!$B$2:$P$217, TA!$A$40&PaMAe!$C39&PaMAe!$B$38,Dados!$O$2:$O$217), VLOOKUP(TA!$D$40&$C39&$B$38,Dados!$A$2:$P$217,15,0)) -> 1044 | T39: =IF(AND(R39=0,S39=0),"",R39+S39) -> 1195 | U39: =IF(T39="","",U35+T39) -> 8431 | W39: =IF(TA!$C$17=3,SUMIF(Dados!$B$2:$L$217,TA!$A$40&PaMAe!$C39&PaMAe!$B$38,Dados!$L$2:$L$217),VLOOKUP(TA!$D$40&$C39&$B$38,Dados!$A$2:$L$217,12,0)) -> 19869 | X39: -0.03482949577 | Y39: =IF(TA!$C$17=3,SUMIF(Dados!$B$2:$P$217, TA!$A$40&PaMAe!$C39&PaMAe!$B$38,Dados!$P$2:$P$217), VLOOKUP(TA!$D$40&$C39&$B$38,Dados!$A$2:$P$217,16,0)) -> 103180 | Z39: 0.005956965555 | AA39: =IF(AND(W39=0,Y39=0),"",W39+Y39) -> 123049 | AB39: -0.0008607039909
C40: Turmas Recursais | D40: =IF(TA!$C$17=3,SUMIF(Dados!$B$2:$L$217,TA!$A$40&PaMAe!$C40&PaMAe!$B$38,Dados!$I$2:$I$217),VLOOKUP(TA!$D$40&$C40&$B$38,Dados!$A$2:$L$217,9,0)) -> 124 | E40: =IF(D40=0,"",E36+D40) -> 2971 | F40: =IF(TA!$C$17=3,SUMIF(Dados!$B$2:$P$217,TA!$A$40&PaMAe!$C40&PaMAe!$B$38,Dados!$M$2:$M$217),VLOOKUP(TA!$D$40&$C40&$B$38,Dados!$A$2:$P$217,13,0)) -> 3460 | G40: =IF(F40=0,"",IF(G36="",F40,G36+F40)) -> 22006 | H40: 3584 | I40: =IF(H40="","",I36+H40) -> 24977 | K40: =IF(TA!$C$17=3,SUMIF(Dados!$B$2:$L$217,TA!$A$40&PaMAe!$C40&PaMAe!$B$38,Dados!$J$2:$J$217),VLOOKUP(TA!$D$40&$C40&$B$38,Dados!$A$2:$L$217,10,0)) -> 1300 | L40: =IF(K40=0,"",L36+K40) -> 26535 | M40: =IF(TA!$C$17=3,SUMIF(Dados!$B$2:$P$217, TA!$A$40&PaMAe!$C40&PaMAe!$B$38,Dados!$N$2:$N$217), VLOOKUP(TA!$D$40&$C40&$B$38,Dados!$A$2:$P$217,14,0)) -> 2603 | N40: =IF(M40=0,"",IF(N36="",M40,N36+M40)) -> 13318 | O40: 3903 | P40: =IF(O40="","",P36+O40) -> 39853 | R40: =IF(TA!$C$17=3,SUMIF(Dados!$B$2:$L$217,TA!$A$40&PaMAe!$C40&PaMAe!$B$38,Dados!$K$2:$K$217),VLOOKUP(TA!$D$40&$C40&$B$38,Dados!$A$2:$L$217,11,0)) -> 0 | S40: =IF(TA!$C$17=3,SUMIF(Dados!$B$2:$P$217, TA!$A$40&PaMAe!$C40&PaMAe!$B$38,Dados!$O$2:$O$217), VLOOKUP(TA!$D$40&$C40&$B$38,Dados!$A$2:$P$217,15,0)) -> 0 | T40: =IF(AND(R40=0,S40=0),"",R40+S40) ->  | U40: =IF(T40="","",U36+T40) ->  | W40: =IF(TA!$C$17=3,SUMIF(Dados!$B$2:$L$217,TA!$A$40&PaMAe!$C40&PaMAe!$B$38,Dados!$L$2:$L$217),VLOOKUP(TA!$D$40&$C40&$B$38,Dados!$A$2:$L$217,12,0)) -> 29722 | X40: -0.1109981156 | Y40: =IF(TA!$C$17=3,SUMIF(Dados!$B$2:$P$217, TA!$A$40&PaMAe!$C40&PaMAe!$B$38,Dados!$P$2:$P$217), VLOOKUP(TA!$D$40&$C40&$B$38,Dados!$A$2:$P$217,16,0)) -> 18107 | Z40: 0.1137971335 | AA40: =IF(AND(W40=0,Y40=0),"",W40+Y40) -> 47829 | AB40: -0.03745220366
B41: Total | D41: =SUM(D38:D40) -> 773 | E41: =IF(D41=0,"",SUM(E38:E40)) -> 8674 | F41: =SUM(F38:F40) -> 22502 | G41: =IF(F41=0,"",SUM(G38:G40)) -> 159122 | H41: 23275 | I41: =IF(H41="","",SUM(I38:I40)) -> 167796 | K41: =SUM(K38:K40) -> 6492 | L41: =IF(K41=0,"",SUM(L38:L40)) -> 70921 | M41: =SUM(M38:M40) -> 23601 | N41: =IF(M41=0,"",SUM(N38:N40)) -> 125613 | O41: 30093 | P41: =IF(O41="","",SUM(P38:P40)) -> 196534 | R41: =SUM(R38:R40) -> 693 | S41: =SUM(S38:S40) -> 5603 | T41: =IF(R41=0,"",R41+S41) -> 6296 | U41: =IF(T41="","",SUM(U38:U40)) -> 40632 | W41: =SUM(W38:W40) -> 203965 | X41: -0.3471636756 | Y41: =SUM(Y38:Y40) -> 550059 | Z41: 0.2324705471 | AA41: =IF(W41=0,"",W41+Y41) -> 754024 | AB41: -0.006209018959
B42: Setembro | C42: Varas | D42: =IF(TA!$C$17=3,SUMIF(Dados!$B$2:$L$217,TA!$A$40&PaMAe!$C42&PaMAe!$B$42,Dados!$I$2:$I$217),VLOOKUP(TA!$D$40&$C42&$B$42,Dados!$A$2:$L$217,9,0)) -> 673 | E42: =IF(D42=0,"",E38+D42) -> 6345 | F42: =IF(TA!$C$17=3,SUMIF(Dados!$B$2:$P$217,TA!$A$40&PaMAe!$C42&PaMAe!$B$42,Dados!$M$2:$M$217),VLOOKUP(TA!$D$40&$C42&$B$42,Dados!$A$2:$P$217,13,0)) -> 7127 | G42: =IF(F42=0,"",IF(G38="",F42,G38+F42)) -> 66188 | H42: 7800 | I42: =IF(H42="","",I38+H42) -> 72533 | K42: =IF(TA!$C$17=3,SUMIF(Dados!$B$2:$L$217,TA!$A$40&PaMAe!$C42&PaMAe!$B$42,Dados!$J$2:$J$217),VLOOKUP(TA!$D$40&$C42&$B$42,Dados!$A$2:$L$217,10,0)) -> 2512 | L42: =IF(K42=0,"",L38+K42) -> 38623 | M42: =IF(TA!$C$17=3,SUMIF(Dados!$B$2:$P$217, TA!$A$40&PaMAe!$C42&PaMAe!$B$42,Dados!$N$2:$N$217), VLOOKUP(TA!$D$40&$C42&$B$42,Dados!$A$2:$P$217,14,0)) -> 8264 | N42: =IF(M42=0,"",IF(N38="",M42,N38+M42)) -> 42732 | O42: 10776 | P42: =IF(O42="","",P38+O42) -> 81355 | R42: =IF(TA!$C$17=3,SUMIF(Dados!$B$2:$L$217,TA!$A$40&PaMAe!$C42&PaMAe!$B$42,Dados!$K$2:$K$217),VLOOKUP(TA!$D$40&$C42&$B$42,Dados!$A$2:$L$217,11,0)) -> 397 | S42: =IF(TA!$C$17=3,SUMIF(Dados!$B$2:$P$217, TA!$A$40&PaMAe!$C42&PaMAe!$B$42,Dados!$O$2:$O$217), VLOOKUP(TA!$D$40&$C42&$B$42,Dados!$A$2:$P$217,15,0)) -> 4561 | T42: =IF(AND(R42=0,S42=0),"",R42+S42) -> 4958 | U42: =IF(T42="","",U38+T42) -> 37159 | W42: =IF(TA!$C$17=3,SUMIF(Dados!$B$2:$L$217,TA!$A$40&PaMAe!$C42&PaMAe!$B$42,Dados!$L$2:$L$217),VLOOKUP(TA!$D$40&$C42&$B$42,Dados!$A$2:$L$217,12,0)) -> 132698 | X42: -0.1404122456 | Y42: =IF(TA!$C$17=3,SUMIF(Dados!$B$2:$P$217, TA!$A$40&PaMAe!$C42&PaMAe!$B$42,Dados!$P$2:$P$217), VLOOKUP(TA!$D$40&$C42&$B$42,Dados!$A$2:$P$217,16,0)) -> 447088 | Z42: 0.04271734162 | AA42: =IF(AND(W42=0,Y42=0),"",W42+Y42) -> 579786 | AB42: -0.005761850377
C43: Juizados | D43: =IF(TA!$C$17=3,SUMIF(Dados!$B$2:$L$217,TA!$A$40&PaMAe!$C43&PaMAe!$B$42,Dados!$I$2:$I$217),VLOOKUP(TA!$D$40&$C43&$B$42,Dados!$A$2:$L$217,9,0)) -> 4 | E43: =IF(D43=0,0,E39+D43) -> 35 | F43: =IF(TA!$C$17=3,SUMIF(Dados!$B$2:$P$217,TA!$A$40&PaMAe!$C43&PaMAe!$B$42,Dados!$M$2:$M$217),VLOOKUP(TA!$D$40&$C43&$B$42,Dados!$A$2:$P$217,13,0)) -> 10457 | G43: =IF(F43=0,"",IF(G39="",F43,G39+F43)) -> 88512 | H43: =IF(D43=0,IF(F43=0,"",D43+F43),D43+F43) -> 10461 | I43: =IF(H43="",0,I39+H43) -> 88547 | K43: =IF(TA!$C$17=3,SUMIF(Dados!$B$2:$L$217,TA!$A$40&PaMAe!$C43&PaMAe!$B$42,Dados!$J$2:$J$217),VLOOKUP(TA!$D$40&$C43&$B$42,Dados!$A$2:$L$217,10,0)) -> 1043 | L43: =IF(K43=0,"",L39+K43) -> 9318 | M43: =IF(TA!$C$17=3,SUMIF(Dados!$B$2:$P$217, TA!$A$40&PaMAe!$C43&PaMAe!$B$42,Dados!$N$2:$N$217), VLOOKUP(TA!$D$40&$C43&$B$42,Dados!$A$2:$P$217,14,0)) -> 10656 | N43: =IF(M43=0,"",IF(N39="",M43,N39+M43)) -> 88483 | O43: 11699 | P43: =IF(O43="","",P39+O43) -> 97801 | R43: =IF(TA!$C$17=3,SUMIF(Dados!$B$2:$L$217,TA!$A$40&PaMAe!$C43&PaMAe!$B$42,Dados!$K$2:$K$217),VLOOKUP(TA!$D$40&$C43&$B$42,Dados!$A$2:$L$217,11,0)) -> 142 | S43: =IF(TA!$C$17=3,SUMIF(Dados!$B$2:$P$217, TA!$A$40&PaMAe!$C43&PaMAe!$B$42,Dados!$O$2:$O$217), VLOOKUP(TA!$D$40&$C43&$B$42,Dados!$A$2:$P$217,15,0)) -> 1034 | T43: =IF(AND(R43=0,S43=0),"",R43+S43) -> 1176 | U43: =IF(T43="","",U39+T43) -> 9607 | W43: =IF(TA!$C$17=3,SUMIF(Dados!$B$2:$L$217,TA!$A$40&PaMAe!$C43&PaMAe!$B$42,Dados!$L$2:$L$217),VLOOKUP(TA!$D$40&$C43&$B$42,Dados!$A$2:$L$217,12,0)) -> 21248 | X43: 0.06940460013 | Y43: =IF(TA!$C$17=3,SUMIF(Dados!$B$2:$P$217, TA!$A$40&PaMAe!$C43&PaMAe!$B$42,Dados!$P$2:$P$217), VLOOKUP(TA!$D$40&$C43&$B$42,Dados!$A$2:$P$217,16,0)) -> 104121 | Z43: 0.009119984493 | AA43: =IF(AND(W43=0,Y43=0),"",W43+Y43) -> 125369 | AB43: 0.01885427756
C44: Turmas Recursais | D44: =IF(TA!$C$17=3,SUMIF(Dados!$B$2:$L$217,TA!$A$40&PaMAe!$C44&PaMAe!$B$42,Dados!$I$2:$I$217),VLOOKUP(TA!$D$40&$C44&$B$42,Dados!$A$2:$L$217,9,0)) -> 91 | E44: =IF(D44=0,"",E40+D44) -> 3062 | F44: =IF(TA!$C$17=3,SUMIF(Dados!$B$2:$P$217,TA!$A$40&PaMAe!$C44&PaMAe!$B$42,Dados!$M$2:$M$217),VLOOKUP(TA!$D$40&$C44&$B$42,Dados!$A$2:$P$217,13,0)) -> 3445 | G44: =IF(F44=0,"",IF(G40="",F44,G40+F44)) -> 25451 | H44: 3536 | I44: =IF(H44="","",I40+H44) -> 28513 | K44: =IF(TA!$C$17=3,SUMIF(Dados!$B$2:$L$217,TA!$A$40&PaMAe!$C44&PaMAe!$B$42,Dados!$J$2:$J$217),VLOOKUP(TA!$D$40&$C44&$B$42,Dados!$A$2:$L$217,10,0)) -> 916 | L44: =IF(K44=0,"",L40+K44) -> 27451 | M44: =IF(TA!$C$17=3,SUMIF(Dados!$B$2:$P$217, TA!$A$40&PaMAe!$C44&PaMAe!$B$42,Dados!$N$2:$N$217), VLOOKUP(TA!$D$40&$C44&$B$42,Dados!$A$2:$P$217,14,0)) -> 3625 | N44: =IF(M44=0,"",IF(N40="",M44,N40+M44)) -> 16943 | O44: 4541 | P44: =IF(O44="","",P40+O44) -> 44394 | R44: =IF(TA!$C$17=3,SUMIF(Dados!$B$2:$L$217,TA!$A$40&PaMAe!$C44&PaMAe!$B$42,Dados!$K$2:$K$217),VLOOKUP(TA!$D$40&$C44&$B$42,Dados!$A$2:$L$217,11,0)) -> 0 | S44: =IF(TA!$C$17=3,SUMIF(Dados!$B$2:$P$217, TA!$A$40&PaMAe!$C44&PaMAe!$B$42,Dados!$O$2:$O$217), VLOOKUP(TA!$D$40&$C44&$B$42,Dados!$A$2:$P$217,15,0)) -> 0 | T44: =IF(AND(R44=0,S44=0),"",R44+S44) ->  | U44: =IF(T44="","",U40+T44) ->  | W44: =IF(TA!$C$17=3,SUMIF(Dados!$B$2:$L$217,TA!$A$40&PaMAe!$C44&PaMAe!$B$42,Dados!$L$2:$L$217),VLOOKUP(TA!$D$40&$C44&$B$42,Dados!$A$2:$L$217,12,0)) -> 26449 | X44: -0.1101204495 | Y44: =IF(TA!$C$17=3,SUMIF(Dados!$B$2:$P$217, TA!$A$40&PaMAe!$C44&PaMAe!$B$42,Dados!$P$2:$P$217), VLOOKUP(TA!$D$40&$C44&$B$42,Dados!$A$2:$P$217,16,0)) -> 19884 | Z44: 0.09813884133 | AA44: =IF(AND(W44=0,Y44=0),"",W44+Y44) -> 46333 | AB44: -0.03127809488
B45: Total | D45: =SUM(D42:D44) -> 768 | E45: =IF(D45=0,"",SUM(E42:E44)) -> 9442 | F45: =SUM(F42:F44) -> 21029 | G45: =IF(F45=0,"",SUM(G42:G44)) -> 180151 | H45: 21797 | I45: =IF(H45="","",SUM(I42:I44)) -> 189593 | K45: =SUM(K42:K44) -> 4471 | L45: =IF(K45=0,"",SUM(L42:L44)) -> 75392 | M45: =SUM(M42:M44) -> 22545 | N45: =IF(M45=0,"",SUM(N42:N44)) -> 148158 | O45: 27016 | P45: =IF(O45="","",SUM(P42:P44)) -> 223550 | R45: =SUM(R42:R44) -> 539 | S45: =SUM(S42:S44) -> 5595 | T45: =IF(R45=0,"",R45+S45) -> 6134 | U45: =IF(T45="","",SUM(U42:U44)) -> 46766 | W45: =SUM(W42:W44) -> 180395 | X45: -0.115559042 | Y45: =SUM(Y42:Y44) -> 571093 | Z45: 0.0382395343 | AA45: =IF(W45=0,"",W45+Y45) -> 751488 | AB45: -0.003363288171
B46: Outubro | C46: Varas | D46: =IF(TA!$C$17=3,SUMIF(Dados!$B$2:$L$217,TA!$A$40&PaMAe!$C46&PaMAe!$B$46,Dados!$I$2:$I$217),VLOOKUP(TA!$D$40&$C46&$B$46,Dados!$A$2:$L$217,9,0)) -> 567 | E46: =IF(D46=0,"",E42+D46) -> 6912 | F46: =IF(TA!$C$17=3,SUMIF(Dados!$B$2:$P$217,TA!$A$40&PaMAe!$C46&PaMAe!$B$46,Dados!$M$2:$M$217),VLOOKUP(TA!$D$40&$C46&$B$46,Dados!$A$2:$P$217,13,0)) -> 8176 | G46: =IF(F46=0,"",IF(G42="",F46,G42+F46)) -> 74364 | H46: 8743 | I46: =IF(H46="","",I42+H46) -> 81276 | K46: =IF(TA!$C$17=3,SUMIF(Dados!$B$2:$L$217,TA!$A$40&PaMAe!$C46&PaMAe!$B$46,Dados!$J$2:$J$217),VLOOKUP(TA!$D$40&$C46&$B$46,Dados!$A$2:$L$217,10,0)) -> 2358 | L46: =IF(K46=0,"",L42+K46) -> 40981 | M46: =IF(TA!$C$17=3,SUMIF(Dados!$B$2:$P$217, TA!$A$40&PaMAe!$C46&PaMAe!$B$46,Dados!$N$2:$N$217), VLOOKUP(TA!$D$40&$C46&$B$46,Dados!$A$2:$P$217,14,0)) -> 7642 | N46: =IF(M46=0,"",IF(N42="",M46,N42+M46)) -> 50374 | O46: 10000 | P46: =IF(O46="","",P42+O46) -> 91355 | R46: =IF(TA!$C$17=3,SUMIF(Dados!$B$2:$L$217,TA!$A$40&PaMAe!$C46&PaMAe!$B$46,Dados!$K$2:$K$217),VLOOKUP(TA!$D$40&$C46&$B$46,Dados!$A$2:$L$217,11,0)) -> 442 | S46: =IF(TA!$C$17=3,SUMIF(Dados!$B$2:$P$217, TA!$A$40&PaMAe!$C46&PaMAe!$B$46,Dados!$O$2:$O$217), VLOOKUP(TA!$D$40&$C46&$B$46,Dados!$A$2:$P$217,15,0)) -> 4497 | T46: =IF(AND(R46=0,S46=0),"",R46+S46) -> 4939 | U46: =IF(T46="","",U42+T46) -> 42098 | W46: =IF(TA!$C$17=3,SUMIF(Dados!$B$2:$L$217,TA!$A$40&PaMAe!$C46&PaMAe!$B$46,Dados!$L$2:$L$217),VLOOKUP(TA!$D$40&$C46&$B$46,Dados!$A$2:$L$217,12,0)) -> 118947 | X46: -0.1036262792 | Y46: =IF(TA!$C$17=3,SUMIF(Dados!$B$2:$P$217, TA!$A$40&PaMAe!$C46&PaMAe!$B$46,Dados!$P$2:$P$217), VLOOKUP(TA!$D$40&$C46&$B$46,Dados!$A$2:$P$217,16,0)) -> 457423 | Z46: 0.02311625452 | AA46: =IF(AND(W46=0,Y46=0),"",W46+Y46) -> 576370 | AB46: -0.005891829054
C47: Juizados | D47: =IF(TA!$C$17=3,SUMIF(Dados!$B$2:$L$217,TA!$A$40&PaMAe!$C47&PaMAe!$B$46,Dados!$I$2:$I$217),VLOOKUP(TA!$D$40&$C47&$B$46,Dados!$A$2:$L$217,9,0)) -> 5 | E47: =IF(D47=0,"",E43+D47) -> 40 | F47: =IF(TA!$C$17=3,SUMIF(Dados!$B$2:$P$217,TA!$A$40&PaMAe!$C47&PaMAe!$B$46,Dados!$M$2:$M$217),VLOOKUP(TA!$D$40&$C47&$B$46,Dados!$A$2:$P$217,13,0)) -> 13300 | G47: =IF(F47=0,"",IF(G43="",F47,G43+F47)) -> 101812 | H47: 13305 | I47: =IF(H47="","",I43+H47) -> 101852 | K47: =IF(TA!$C$17=3,SUMIF(Dados!$B$2:$L$217,TA!$A$40&PaMAe!$C47&PaMAe!$B$46,Dados!$J$2:$J$217),VLOOKUP(TA!$D$40&$C47&$B$46,Dados!$A$2:$L$217,10,0)) -> 1369 | L47: =IF(K47=0,"",L43+K47) -> 10687 | M47: =IF(TA!$C$17=3,SUMIF(Dados!$B$2:$P$217, TA!$A$40&PaMAe!$C47&PaMAe!$B$46,Dados!$N$2:$N$217), VLOOKUP(TA!$D$40&$C47&$B$46,Dados!$A$2:$P$217,14,0)) -> 11175 | N47: =IF(M47=0,"",IF(N43="",M47,N43+M47)) -> 99658 | O47: 12544 | P47: =IF(O47="","",P43+O47) -> 110345 | R47: =IF(TA!$C$17=3,SUMIF(Dados!$B$2:$L$217,TA!$A$40&PaMAe!$C47&PaMAe!$B$46,Dados!$K$2:$K$217),VLOOKUP(TA!$D$40&$C47&$B$46,Dados!$A$2:$L$217,11,0)) -> 144 | S47: =IF(TA!$C$17=3,SUMIF(Dados!$B$2:$P$217, TA!$A$40&PaMAe!$C47&PaMAe!$B$46,Dados!$O$2:$O$217), VLOOKUP(TA!$D$40&$C47&$B$46,Dados!$A$2:$P$217,15,0)) -> 1019 | T47: =IF(AND(R47=0,S47=0),"",R47+S47) -> 1163 | U47: =IF(T47="","",U43+T47) -> 10770 | W47: =IF(TA!$C$17=3,SUMIF(Dados!$B$2:$L$217,TA!$A$40&PaMAe!$C47&PaMAe!$B$46,Dados!$L$2:$L$217),VLOOKUP(TA!$D$40&$C47&$B$46,Dados!$A$2:$L$217,12,0)) -> 18345 | X47: -0.1366246235 | Y47: =IF(TA!$C$17=3,SUMIF(Dados!$B$2:$P$217, TA!$A$40&PaMAe!$C47&PaMAe!$B$46,Dados!$P$2:$P$217), VLOOKUP(TA!$D$40&$C47&$B$46,Dados!$A$2:$P$217,16,0)) -> 107979 | Z47: 0.03705304405 | AA47: =IF(AND(W47=0,Y47=0),"",W47+Y47) -> 126324 | AB47: 0.007617513101
C48: Turmas Recursais | D48: =IF(TA!$C$17=3,SUMIF(Dados!$B$2:$L$217,TA!$A$40&PaMAe!$C48&PaMAe!$B$46,Dados!$I$2:$I$217),VLOOKUP(TA!$D$40&$C48&$B$46,Dados!$A$2:$L$217,9,0)) -> 132 | E48: =IF(D48=0,"",E44+D48) -> 3194 | F48: =IF(TA!$C$17=3,SUMIF(Dados!$B$2:$P$217,TA!$A$40&PaMAe!$C48&PaMAe!$B$46,Dados!$M$2:$M$217),VLOOKUP(TA!$D$40&$C48&$B$46,Dados!$A$2:$P$217,13,0)) -> 3260 | G48: =IF(F48=0,"",IF(G44="",F48,G44+F48)) -> 28711 | H48: 3392 | I48: =IF(H48="","",I44+H48) -> 31905 | K48: =IF(TA!$C$17=3,SUMIF(Dados!$B$2:$L$217,TA!$A$40&PaMAe!$C48&PaMAe!$B$46,Dados!$J$2:$J$217),VLOOKUP(TA!$D$40&$C48&$B$46,Dados!$A$2:$L$217,10,0)) -> 806 | L48: =IF(K48=0,"",L44+K48) -> 28257 | M48: =IF(TA!$C$17=3,SUMIF(Dados!$B$2:$P$217, TA!$A$40&PaMAe!$C48&PaMAe!$B$46,Dados!$N$2:$N$217), VLOOKUP(TA!$D$40&$C48&$B$46,Dados!$A$2:$P$217,14,0)) -> 3515 | N48: =IF(M48=0,"",IF(N44="",M48,N44+M48)) -> 20458 | O48: 4321 | P48: =IF(O48="","",P44+O48) -> 48715 | R48: =IF(TA!$C$17=3,SUMIF(Dados!$B$2:$L$217,TA!$A$40&PaMAe!$C48&PaMAe!$B$46,Dados!$K$2:$K$217),VLOOKUP(TA!$D$40&$C48&$B$46,Dados!$A$2:$L$217,11,0)) -> 0 | S48: =IF(TA!$C$17=3,SUMIF(Dados!$B$2:$P$217, TA!$A$40&PaMAe!$C48&PaMAe!$B$46,Dados!$O$2:$O$217), VLOOKUP(TA!$D$40&$C48&$B$46,Dados!$A$2:$P$217,15,0)) -> 0 | T48: =IF(AND(R48=0,S48=0),"",R48+S48) ->  | U48: =IF(T48="","",U44+T48) ->  | W48: =IF(TA!$C$17=3,SUMIF(Dados!$B$2:$L$217,TA!$A$40&PaMAe!$C48&PaMAe!$B$46,Dados!$L$2:$L$217),VLOOKUP(TA!$D$40&$C48&$B$46,Dados!$A$2:$L$217,12,0)) -> 25098 | X48: -0.0510794359 | Y48: =IF(TA!$C$17=3,SUMIF(Dados!$B$2:$P$217, TA!$A$40&PaMAe!$C48&PaMAe!$B$46,Dados!$P$2:$P$217), VLOOKUP(TA!$D$40&$C48&$B$46,Dados!$A$2:$P$217,16,0)) -> 19449 | Z48: -0.02187688594 | AA48: =IF(AND(W48=0,Y48=0),"",W48+Y48) -> 44547 | AB48: -0.03854703991
B49: Total | D49: =SUM(D46:D48) -> 704 | E49: =IF(D49=0,"",SUM(E46:E48)) -> 10146 | F49: =SUM(F46:F48) -> 24736 | G49: =IF(F49=0,"",SUM(G46:G48)) -> 204887 | H49: 25440 | I49: =IF(H49="","",SUM(I46:I48)) -> 215033 | K49: =SUM(K46:K48) -> 4533 | L49: =IF(K49=0,"",SUM(L46:L48)) -> 79925 | M49: =SUM(M46:M48) -> 22332 | N49: =IF(M49=0,"",SUM(N46:N48)) -> 170490 | O49: 26865 | P49: =IF(O49="","",SUM(P46:P48)) -> 250415 | R49: =SUM(R46:R48) -> 586 | S49: =SUM(S46:S48) -> 5516 | T49: =IF(R49=0,"",R49+S49) -> 6102 | U49: =IF(T49="","",SUM(U46:U48)) -> 52868 | W49: =SUM(W46:W48) -> 162390 | X49: -0.09980875301 | Y49: =SUM(Y46:Y48) -> 584851 | Z49: 0.02409064723 | AA49: =IF(W49=0,"",W49+Y49) -> 747241 | AB49: -0.005651454182
B50: Novembro | C50: Varas | D50: =IF(TA!$C$17=3,SUMIF(Dados!$B$2:$L$217,TA!$A$40&PaMAe!$C50&PaMAe!$B$50,Dados!$I$2:$I$217),VLOOKUP(TA!$D$40&$C50&$B$50,Dados!$A$2:$L$217,9,0)) -> 562 | E50: =IF(D50=0,"",E46+D50) -> 7474 | F50: =IF(TA!$C$17=3,SUMIF(Dados!$B$2:$P$217,TA!$A$40&PaMAe!$C50&PaMAe!$B$50,Dados!$M$2:$M$217),VLOOKUP(TA!$D$40&$C50&$B$50,Dados!$A$2:$P$217,13,0)) -> 11226 | G50: =IF(F50=0,"",IF(G46="",F50,G46+F50)) -> 85590 | H50: 11788 | I50: =IF(H50="","",I46+H50) -> 93064 | K50: =IF(TA!$C$17=3,SUMIF(Dados!$B$2:$L$217,TA!$A$40&PaMAe!$C50&PaMAe!$B$50,Dados!$J$2:$J$217),VLOOKUP(TA!$D$40&$C50&$B$50,Dados!$A$2:$L$217,10,0)) -> 1323 | L50: =IF(K50=0,"",L46+K50) -> 42304 | M50: =IF(TA!$C$17=3,SUMIF(Dados!$B$2:$P$217, TA!$A$40&PaMAe!$C50&PaMAe!$B$50,Dados!$N$2:$N$217), VLOOKUP(TA!$D$40&$C50&$B$50,Dados!$A$2:$P$217,14,0)) -> 6652 | N50: =IF(M50=0,"",IF(N46="",M50,N46+M50)) -> 57026 | O50: 7975 | P50: =IF(O50="","",P46+O50) -> 99330 | R50: =IF(TA!$C$17=3,SUMIF(Dados!$B$2:$L$217,TA!$A$40&PaMAe!$C50&PaMAe!$B$50,Dados!$K$2:$K$217),VLOOKUP(TA!$D$40&$C50&$B$50,Dados!$A$2:$L$217,11,0)) -> 243 | S50: =IF(TA!$C$17=3,SUMIF(Dados!$B$2:$P$217, TA!$A$40&PaMAe!$C50&PaMAe!$B$50,Dados!$O$2:$O$217), VLOOKUP(TA!$D$40&$C50&$B$50,Dados!$A$2:$P$217,15,0)) -> 3494 | T50: =IF(AND(R50=0,S50=0),"",R50+S50) -> 3737 | U50: =IF(T50="","",U46+T50) -> 45835 | W50: =IF(TA!$C$17=3,SUMIF(Dados!$B$2:$L$217,TA!$A$40&PaMAe!$C50&PaMAe!$B$50,Dados!$L$2:$L$217),VLOOKUP(TA!$D$40&$C50&$B$50,Dados!$A$2:$L$217,12,0)) -> 109315 | X50: -0.08097724196 | Y50: =IF(TA!$C$17=3,SUMIF(Dados!$B$2:$P$217, TA!$A$40&PaMAe!$C50&PaMAe!$B$50,Dados!$P$2:$P$217), VLOOKUP(TA!$D$40&$C50&$B$50,Dados!$A$2:$P$217,16,0)) -> 469916 | Z50: 0.02731170055 | AA50: =IF(AND(W50=0,Y50=0),"",W50+Y50) -> 579231 | AB50: 0.004963825321
C51: Juizados | D51: =IF(TA!$C$17=3,SUMIF(Dados!$B$2:$L$217,TA!$A$40&PaMAe!$C51&PaMAe!$B$50,Dados!$I$2:$I$217),VLOOKUP(TA!$D$40&$C51&$B$50,Dados!$A$2:$L$217,9,0)) -> 2 | E51: =IF(D51=0,"",E47+D51) -> 42 | F51: =IF(TA!$C$17=3,SUMIF(Dados!$B$2:$P$217,TA!$A$40&PaMAe!$C51&PaMAe!$B$50,Dados!$M$2:$M$217),VLOOKUP(TA!$D$40&$C51&$B$50,Dados!$A$2:$P$217,13,0)) -> 24928 | G51: =IF(F51=0,"",IF(G47="",F51,G47+F51)) -> 126740 | H51: 24930 | I51: =IF(H51="","",I47+H51) -> 126782 | K51: =IF(TA!$C$17=3,SUMIF(Dados!$B$2:$L$217,TA!$A$40&PaMAe!$C51&PaMAe!$B$50,Dados!$J$2:$J$217),VLOOKUP(TA!$D$40&$C51&$B$50,Dados!$A$2:$L$217,10,0)) -> 480 | L51: =IF(K51=0,"",L47+K51) -> 11167 | M51: =IF(TA!$C$17=3,SUMIF(Dados!$B$2:$P$217, TA!$A$40&PaMAe!$C51&PaMAe!$B$50,Dados!$N$2:$N$217), VLOOKUP(TA!$D$40&$C51&$B$50,Dados!$A$2:$P$217,14,0)) -> 10091 | N51: =IF(M51=0,"",IF(N47="",M51,N47+M51)) -> 109749 | O51: 10571 | P51: =IF(O51="","",P47+O51) -> 120916 | R51: =IF(TA!$C$17=3,SUMIF(Dados!$B$2:$L$217,TA!$A$40&PaMAe!$C51&PaMAe!$B$50,Dados!$K$2:$K$217),VLOOKUP(TA!$D$40&$C51&$B$50,Dados!$A$2:$L$217,11,0)) -> 85 | S51: =IF(TA!$C$17=3,SUMIF(Dados!$B$2:$P$217, TA!$A$40&PaMAe!$C51&PaMAe!$B$50,Dados!$O$2:$O$217), VLOOKUP(TA!$D$40&$C51&$B$50,Dados!$A$2:$P$217,15,0)) -> 776 | T51: =IF(AND(R51=0,S51=0),"",R51+S51) -> 861 | U51: =IF(T51="","",U47+T51) -> 11631 | W51: =IF(TA!$C$17=3,SUMIF(Dados!$B$2:$L$217,TA!$A$40&PaMAe!$C51&PaMAe!$B$50,Dados!$L$2:$L$217),VLOOKUP(TA!$D$40&$C51&$B$50,Dados!$A$2:$L$217,12,0)) -> 16675 | X51: -0.09103297901 | Y51: =IF(TA!$C$17=3,SUMIF(Dados!$B$2:$P$217, TA!$A$40&PaMAe!$C51&PaMAe!$B$50,Dados!$P$2:$P$217), VLOOKUP(TA!$D$40&$C51&$B$50,Dados!$A$2:$P$217,16,0)) -> 125479 | Z51: 0.1620685504 | AA51: =IF(AND(W51=0,Y51=0),"",W51+Y51) -> 142154 | AB51: 0.125312688
C52: Turmas Recursais | D52: =IF(TA!$C$17=3,SUMIF(Dados!$B$2:$L$217,TA!$A$40&PaMAe!$C52&PaMAe!$B$50,Dados!$I$2:$I$217),VLOOKUP(TA!$D$40&$C52&$B$50,Dados!$A$2:$L$217,9,0)) -> 100 | E52: =IF(D52=0,"",E48+D52) -> 3294 | F52: =IF(TA!$C$17=3,SUMIF(Dados!$B$2:$P$217,TA!$A$40&PaMAe!$C52&PaMAe!$B$50,Dados!$M$2:$M$217),VLOOKUP(TA!$D$40&$C52&$B$50,Dados!$A$2:$P$217,13,0)) -> 2503 | G52: =IF(F52=0,"",IF(G48="",F52,G48+F52)) -> 31214 | H52: 2603 | I52: =IF(H52="","",I48+H52) -> 34508 | K52: =IF(TA!$C$17=3,SUMIF(Dados!$B$2:$L$217,TA!$A$40&PaMAe!$C52&PaMAe!$B$50,Dados!$J$2:$J$217),VLOOKUP(TA!$D$40&$C52&$B$50,Dados!$A$2:$L$217,10,0)) -> 721 | L52: =IF(K52=0,"",L48+K52) -> 28978 | M52: =IF(TA!$C$17=3,SUMIF(Dados!$B$2:$P$217, TA!$A$40&PaMAe!$C52&PaMAe!$B$50,Dados!$N$2:$N$217), VLOOKUP(TA!$D$40&$C52&$B$50,Dados!$A$2:$P$217,14,0)) -> 2594 | N52: =IF(M52=0,"",IF(N48="",M52,N48+M52)) -> 23052 | O52: 3315 | P52: =IF(O52="","",P48+O52) -> 52030 | R52: =IF(TA!$C$17=3,SUMIF(Dados!$B$2:$L$217,TA!$A$40&PaMAe!$C52&PaMAe!$B$50,Dados!$K$2:$K$217),VLOOKUP(TA!$D$40&$C52&$B$50,Dados!$A$2:$L$217,11,0)) -> 0 | S52: =IF(TA!$C$17=3,SUMIF(Dados!$B$2:$P$217, TA!$A$40&PaMAe!$C52&PaMAe!$B$50,Dados!$O$2:$O$217), VLOOKUP(TA!$D$40&$C52&$B$50,Dados!$A$2:$P$217,15,0)) -> 0 | T52: =IF(AND(R52=0,S52=0),"",R52+S52) ->  | U52: =IF(T52="","",U48+T52) ->  | W52: =IF(TA!$C$17=3,SUMIF(Dados!$B$2:$L$217,TA!$A$40&PaMAe!$C52&PaMAe!$B$50,Dados!$L$2:$L$217),VLOOKUP(TA!$D$40&$C52&$B$50,Dados!$A$2:$L$217,12,0)) -> 24537 | X52: -0.02235237868 | Y52: =IF(TA!$C$17=3,SUMIF(Dados!$B$2:$P$217, TA!$A$40&PaMAe!$C52&PaMAe!$B$50,Dados!$P$2:$P$217), VLOOKUP(TA!$D$40&$C52&$B$50,Dados!$A$2:$P$217,16,0)) -> 19654 | Z52: 0.01054038768 | AA52: =IF(AND(W52=0,Y52=0),"",W52+Y52) -> 44191 | AB52: -0.007991559477
B53: Total | D53: =SUM(D50:D52) -> 664 | E53: =IF(D53=0,"",SUM(E50:E52)) -> 10810 | F53: =SUM(F50:F52) -> 38657 | G53: =IF(F53=0,"",SUM(G50:G52)) -> 243544 | H53: 39321 | I53: =IF(H53="","",SUM(I50:I52)) -> 254354 | K53: =SUM(K50:K52) -> 2524 | L53: =IF(K53=0,"",SUM(L50:L52)) -> 82449 | M53: =SUM(M50:M52) -> 19337 | N53: =IF(M53=0,"",SUM(N50:N52)) -> 189827 | O53: 21861 | P53: =IF(O53="","",SUM(P50:P52)) -> 272276 | R53: =SUM(R50:R52) -> 328 | S53: =SUM(S50:S52) -> 4270 | T53: =IF(R53=0,"",R53+S53) -> 4598 | U53: =IF(T53="","",SUM(U50:U52)) -> 57466 | W53: =SUM(W50:W52) -> 150527 | X53: -0.07305252787 | Y53: =SUM(Y50:Y52) -> 615049 | Z53: 0.05163366396 | AA53: =IF(W53=0,"",W53+Y53) -> 765576 | AB53: 0.02453692985
B54: Dezembro | C54: Varas | D54: =IF(TA!$C$17=3,SUMIF(Dados!$B$2:$L$217,TA!$A$40&PaMAe!$C54&PaMAe!$B$54,Dados!$I$2:$I$217),VLOOKUP(TA!$D$40&$C54&$B$54,Dados!$A$2:$L$217,9,0)) -> 485 | E54: =IF(D54=0,"",E50+D54) -> 7959 | F54: =IF(TA!$C$17=3,SUMIF(Dados!$B$2:$P$217,TA!$A$40&PaMAe!$C54&PaMAe!$B$54,Dados!$M$2:$M$217),VLOOKUP(TA!$D$40&$C54&$B$54,Dados!$A$2:$P$217,13,0)) -> 10708 | G54: =IF(F54=0,"",IF(G50="",F54,G50+F54)) -> 96298 | H54: 11193 | I54: =IF(H54="","",I50+H54) -> 104257 | K54: =IF(TA!$C$17=3,SUMIF(Dados!$B$2:$L$217,TA!$A$40&PaMAe!$C54&PaMAe!$B$54,Dados!$J$2:$J$217),VLOOKUP(TA!$D$40&$C54&$B$54,Dados!$A$2:$L$217,10,0)) -> 1067 | L54: =IF(K54=0,"",L50+K54) -> 43371 | M54: =IF(TA!$C$17=3,SUMIF(Dados!$B$2:$P$217, TA!$A$40&PaMAe!$C54&PaMAe!$B$54,Dados!$N$2:$N$217), VLOOKUP(TA!$D$40&$C54&$B$54,Dados!$A$2:$P$217,14,0)) -> 5657 | N54: =IF(M54=0,"",IF(N50="",M54,N50+M54)) -> 62683 | O54: 6724 | P54: =IF(O54="","",P50+O54) -> 106054 | R54: =IF(TA!$C$17=3,SUMIF(Dados!$B$2:$L$217,TA!$A$40&PaMAe!$C54&PaMAe!$B$54,Dados!$K$2:$K$217),VLOOKUP(TA!$D$40&$C54&$B$54,Dados!$A$2:$L$217,11,0)) -> 191 | S54: =IF(TA!$C$17=3,SUMIF(Dados!$B$2:$P$217, TA!$A$40&PaMAe!$C54&PaMAe!$B$54,Dados!$O$2:$O$217), VLOOKUP(TA!$D$40&$C54&$B$54,Dados!$A$2:$P$217,15,0)) -> 2740 | T54: =IF(AND(R54=0,S54=0),"",R54+S54) -> 2931 | U54: =IF(T54="","",U50+T54) -> 48766 | W54: =IF(TA!$C$17=3,SUMIF(Dados!$B$2:$L$217,TA!$A$40&PaMAe!$C54&PaMAe!$B$54,Dados!$L$2:$L$217),VLOOKUP(TA!$D$40&$C54&$B$54,Dados!$A$2:$L$217,12,0)) -> 100231 | X54: -0.08309930019 | Y54: =IF(TA!$C$17=3,SUMIF(Dados!$B$2:$P$217, TA!$A$40&PaMAe!$C54&PaMAe!$B$54,Dados!$P$2:$P$217), VLOOKUP(TA!$D$40&$C54&$B$54,Dados!$A$2:$P$217,16,0)) -> 483805 | Z54: 0.02955634624 | AA54: =IF(AND(W54=0,Y54=0),"",W54+Y54) -> 584036 | AB54: 0.008295481423
C55: Juizados | D55: =IF(TA!$C$17=3,SUMIF(Dados!$B$2:$L$217,TA!$A$40&PaMAe!$C55&PaMAe!$B$54,Dados!$I$2:$I$217),VLOOKUP(TA!$D$40&$C55&$B$54,Dados!$A$2:$L$217,9,0)) -> 3 | E55: =IF(D55=0,"",E51+D55) -> 45 | F55: =IF(TA!$C$17=3,SUMIF(Dados!$B$2:$P$217,TA!$A$40&PaMAe!$C55&PaMAe!$B$54,Dados!$M$2:$M$217),VLOOKUP(TA!$D$40&$C55&$B$54,Dados!$A$2:$P$217,13,0)) -> 9355 | G55: =IF(F55=0,"",IF(G51="",F55,G51+F55)) -> 136095 | H55: 9358 | I55: =IF(H55="","",I51+H55) -> 136140 | K55: =IF(TA!$C$17=3,SUMIF(Dados!$B$2:$L$217,TA!$A$40&PaMAe!$C55&PaMAe!$B$54,Dados!$J$2:$J$217),VLOOKUP(TA!$D$40&$C55&$B$54,Dados!$A$2:$L$217,10,0)) -> 319 | L55: =IF(K55=0,"",L51+K55) -> 11486 | M55: =IF(TA!$C$17=3,SUMIF(Dados!$B$2:$P$217, TA!$A$40&PaMAe!$C55&PaMAe!$B$54,Dados!$N$2:$N$217), VLOOKUP(TA!$D$40&$C55&$B$54,Dados!$A$2:$P$217,14,0)) -> 8027 | N55: =IF(M55=0,"",IF(N51="",M55,N51+M55)) -> 117776 | O55: 8346 | P55: =IF(O55="","",P51+O55) -> 129262 | R55: =IF(TA!$C$17=3,SUMIF(Dados!$B$2:$L$217,TA!$A$40&PaMAe!$C55&PaMAe!$B$54,Dados!$K$2:$K$217),VLOOKUP(TA!$D$40&$C55&$B$54,Dados!$A$2:$L$217,11,0)) -> 153 | S55: =IF(TA!$C$17=3,SUMIF(Dados!$B$2:$P$217, TA!$A$40&PaMAe!$C55&PaMAe!$B$54,Dados!$O$2:$O$217), VLOOKUP(TA!$D$40&$C55&$B$54,Dados!$A$2:$P$217,15,0)) -> 567 | T55: =IF(AND(R55=0,S55=0),"",R55+S55) -> 720 | U55: =IF(T55="","",U51+T55) -> 12351 | W55: =IF(TA!$C$17=3,SUMIF(Dados!$B$2:$L$217,TA!$A$40&PaMAe!$C55&PaMAe!$B$54,Dados!$L$2:$L$217),VLOOKUP(TA!$D$40&$C55&$B$54,Dados!$A$2:$L$217,12,0)) -> 15130 | X55: -0.09265367316 | Y55: =IF(TA!$C$17=3,SUMIF(Dados!$B$2:$P$217, TA!$A$40&PaMAe!$C55&PaMAe!$B$54,Dados!$P$2:$P$217), VLOOKUP(TA!$D$40&$C55&$B$54,Dados!$A$2:$P$217,16,0)) -> 128057 | Z55: 0.02054527052 | AA55: =IF(AND(W55=0,Y55=0),"",W55+Y55) -> 143187 | AB55: 0.007266767027
C56: Turmas Recursais | D56: =IF(TA!$C$17=3,SUMIF(Dados!$B$2:$L$217,TA!$A$40&PaMAe!$C56&PaMAe!$B$54,Dados!$I$2:$I$217),VLOOKUP(TA!$D$40&$C56&$B$54,Dados!$A$2:$L$217,9,0)) -> 63 | E56: =IF(D56=0,"",E52+D56) -> 3357 | F56: =IF(TA!$C$17=3,SUMIF(Dados!$B$2:$P$217,TA!$A$40&PaMAe!$C56&PaMAe!$B$54,Dados!$M$2:$M$217),VLOOKUP(TA!$D$40&$C56&$B$54,Dados!$A$2:$P$217,13,0)) -> 2057 | G56: =IF(F56=0,"",IF(G52="",F56,G52+F56)) -> 33271 | H56: 2120 | I56: =IF(H56="","",I52+H56) -> 36628 | K56: =IF(TA!$C$17=3,SUMIF(Dados!$B$2:$L$217,TA!$A$40&PaMAe!$C56&PaMAe!$B$54,Dados!$J$2:$J$217),VLOOKUP(TA!$D$40&$C56&$B$54,Dados!$A$2:$L$217,10,0)) -> 533 | L56: =IF(K56=0,"",L52+K56) -> 29511 | M56: =IF(TA!$C$17=3,SUMIF(Dados!$B$2:$P$217, TA!$A$40&PaMAe!$C56&PaMAe!$B$54,Dados!$N$2:$N$217), VLOOKUP(TA!$D$40&$C56&$B$54,Dados!$A$2:$P$217,14,0)) -> 2816 | N56: =IF(M56=0,"",IF(N52="",M56,N52+M56)) -> 25868 | O56: 3349 | P56: =IF(O56="","",P52+O56) -> 55379 | R56: =IF(TA!$C$17=3,SUMIF(Dados!$B$2:$L$217,TA!$A$40&PaMAe!$C56&PaMAe!$B$54,Dados!$K$2:$K$217),VLOOKUP(TA!$D$40&$C56&$B$54,Dados!$A$2:$L$217,11,0)) -> 0 | S56: =IF(TA!$C$17=3,SUMIF(Dados!$B$2:$P$217, TA!$A$40&PaMAe!$C56&PaMAe!$B$54,Dados!$O$2:$O$217), VLOOKUP(TA!$D$40&$C56&$B$54,Dados!$A$2:$P$217,15,0)) -> 0 | T56: =IF(AND(R56=0,S56=0),"",R56+S56) ->  | U56: =IF(T56="","",U52+T56) ->  | W56: =IF(TA!$C$17=3,SUMIF(Dados!$B$2:$L$217,TA!$A$40&PaMAe!$C56&PaMAe!$B$54,Dados!$L$2:$L$217),VLOOKUP(TA!$D$40&$C56&$B$54,Dados!$A$2:$L$217,12,0)) -> 24048 | X56: -0.01992908669 | Y56: =IF(TA!$C$17=3,SUMIF(Dados!$B$2:$P$217, TA!$A$40&PaMAe!$C56&PaMAe!$B$54,Dados!$P$2:$P$217), VLOOKUP(TA!$D$40&$C56&$B$54,Dados!$A$2:$P$217,16,0)) -> 19969 | Z56: 0.0160272718 | AA56: =IF(AND(W56=0,Y56=0),"",W56+Y56) -> 44017 | AB56: -0.003937453328
B57: Total | D57: =SUM(D54:D56) -> 551 | E57: =IF(D57=0,"",SUM(E54:E56)) -> 11361 | F57: =SUM(F54:F56) -> 22120 | G57: =IF(F57=0,"",SUM(G54:G56)) -> 265664 | H57: 22671 | I57: =IF(H57="","",SUM(I54:I56)) -> 277025 | K57: =SUM(K54:K56) -> 1919 | L57: =IF(K57=0,"",SUM(L54:L56)) -> 84368 | M57: =SUM(M54:M56) -> 16500 | N57: =IF(M57=0,"",SUM(N54:N56)) -> 206327 | O57: 18419 | P57: =IF(O57="","",SUM(P54:P56)) -> 290695 | R57: =SUM(R54:R56) -> 344 | S57: =SUM(S54:S56) -> 3307 | T57: =IF(R57=0,"",R57+S57) -> 3651 | U57: =IF(T57="","",SUM(U54:U56)) -> 61117 | W57: =SUM(W54:W56) -> 139409 | X57: -0.07386050343 | Y57: =SUM(Y54:Y56) -> 631831 | Z57: 0.0272856309 | AA57: =IF(W57=0,"",W57+Y57) -> 771240 | AB57: 0.007398351045
B59: Obs. 1: Os valores poderão ser alterados, em função de modificações na base de dados, por parte do usuário. | L59: Obs. 2: Os Processos Julgados nas Varas e Juizados incluem os Embargos. | W59: Obs. 3: Na Tramitação "Real", estão incluídos os Processos suspensos e os que aguardam julgamento de recurso.
B61: _ Desde o dia 23 de Fevereiro de 2018, o NOVO sistema processual "Eproc" está em funcionamento na Justiça Federal da 2ª Região.

Sheet GTvMAe (hidden)
A1: TRAMITAÇÃO de Processos na Seção Judiciária: | K1: no Ano de:

Sheet GDaMAe (hidden)
A1: Total de Processos DISTRIBUÍDOS na Seção Judiciária: | K1: no Ano de:

Sheet GJaMAe (hidden)
A1: Total de Processos JULGADOS na Seção Judiciária: | K1: no Ano de:

Sheet TA (hidden)
A1: Anos | B1: AnosAe | C1: Meses | D1: Sites | E1: Localidades | F1: Meses Abrev | G1: IPC Anos | M1: 1
A2: 2006 | B2: 2018 | C2: Janeiro | D2: SJRJ | E2: Varas | F2: Jan | G2: Mês Public | H2: Ano Public | M2: =M1+1 -> 2
A3: 2007 | B3: 2019 | C3: Fevereiro | D3: SJES | E3: Juizados | F3: Fev | G3: 12 | H3: 2019 | M3: =M2+1 -> 3
A4: 2008 | C4: Março | D4: SJRJ e SJES | E4: Turmas Recursais | F4: Mar | G4: nu | H4: TD | M4: 4
A5: 2009 | C5: Abril | F5: Abr | M5: 5
A6: 2010 | C6: Maio | F6: Mai | M6: 6
A7: 2011 | C7: Junho | F7: Jun | G7: A | J7: e | M7: 7
A8: 2012 | C8: Julho | F8: Jul | G8: TA!$A$17 | H8: TA!$C$17 | J8: TA!$A$39 | M8: 8
A9: 2013 | C9: Agosto | F9: Ago | G9: TA!$A$18 | H9: TA!$C$18 | I9: TA!$D$18 | J9: TA!$A$40 | K9: TA!$D$40 | M9: 9
A10: 2014 | C10: Setembro | F10: Set | G10: TA!$A$19 | H10: TA!$C$19 | J10: TA!$A$41 | M10: 10
A11: 2015 | C11: Outubro | F11: Out | G11: TA!$A$20 | H11: TA!$C$20 | I11: TA!$D$20 | J11: TA!$A$42 | K11: TA!$D$42 | M11: 11
A12: 2016 | C12: Novembro | F12: Nov | M12: 12
A13: 2017 | C13: Dezembro | F13: Dez | M13: 13
A14: 2018 | M14: 14
A15: 2019 | M15: 15
A16: A | F16: T | H16: D | J16: J | M16: 16
A17: 14 | C17: 1 | F17: Dezembro | G17: Novembro | H17: Dezembro | I17: Novembro | J17: Dezembro | K17: Novembro | M17: 17
A18: =INDEX(ListaAnos,A17) -> 2019 | C18: =INDEX(ListaSites,C17) -> SJRJ | D18: =A18&C18 -> 2019SJRJ | E18: Varas | F18: =IF(TA!$C$17=3,SUMIF(Dados!$B$2:$L$1081,TA!$A$20&$E$2&"Dezembro",Dados!$L$2:$L$1081),VLOOKUP($D$20&$E$2&"Dezembro",Dados!$A$2:$L$1081,12,0)) -> 530063 | G18: =IF(TA!$C$17=3,SUMIF(Dados!$B$2:$L$1081,TA!$A$20&$E$2&"Novembro",Dados!$L$2:$L$1081),VLOOKUP($D$20&$E$2&"Novembro",Dados!$A$2:$L$1081,12,0)) -> 558734 | H18: =IF(TA!$C$17=3,SUMIF(Dados!$B$2:$L$1081,TA!$A$20&$E$2&"Dezembro",Dados!$I$2:$I$1081),VLOOKUP($D$20&$E$2&"Dezembro",Dados!$A$2:$L$1081,9,0)) -> 620 | I18: =IF(TA!$C$17=3,SUMIF(Dados!$B$2:$L$1081,TA!$A$20&$E$2&"Novembro",Dados!$I$2:$I$1081),VLOOKUP($D$20&$E$2&"Novembro",Dados!$A$2:$L$1081,9,0)) -> 809 | J18: =IF(TA!$C$17=3,SUMIF(Dados!$B$2:$L$1081,TA!$A$20&$E$2&"Dezembro",Dados!$J$2:$J$1081),VLOOKUP($D$20&$E$2&"Dezembro",Dados!$A$2:$L$1081,10,0)) -> 5333 | K18: =IF(TA!$C$17=3,SUMIF(Dados!$B$2:$L$1081,TA!$A$20&$E$2&"Novembro",Dados!$J$2:$J$1081),VLOOKUP($D$20&$E$2&"Novembro",Dados!$A$2:$L$1081,10,0)) -> 7058 | M18: 18
A19: =A17-1 -> 13 | C19: =C17 -> 1 | E19: Juizados | F19: =IF(TA!$C$17=3,SUMIF(Dados!$B$2:$L$1081,TA!$A$20&$E$3&"Dezembro",Dados!$L$2:$L$1081),VLOOKUP($D$20&$E$3&"Dezembro",Dados!$A$2:$L$1081,12,0)) -> 36713 | G19: =IF(TA!$C$17=3,SUMIF(Dados!$B$2:$L$1081,TA!$A$20&$E$3&"Novembro",Dados!$L$2:$L$1081),VLOOKUP($D$20&$E$3&"Novembro",Dados!$A$2:$L$1081,12,0)) -> 41630 | H19: =IF(TA!$C$17=3,SUMIF(Dados!$B$2:$L$1081,TA!$A$20&$E$3&"Dezembro",Dados!$I$2:$I$1081),VLOOKUP($D$20&$E$3&"Dezembro",Dados!$A$2:$L$1081,9,0)) -> 2 | I19: =IF(TA!$C$17=3,SUMIF(Dados!$B$2:$L$1081,TA!$A$20&$E$3&"Novembro",Dados!$I$2:$I$1081),VLOOKUP($D$20&$E$3&"Novembro",Dados!$A$2:$L$1081,9,0)) -> 1 | J19: =IF(TA!$C$17=3,SUMIF(Dados!$B$2:$L$1081,TA!$A$20&$E$3&"Dezembro",Dados!$J$2:$J$1081),VLOOKUP($D$20&$E$3&"Dezembro",Dados!$A$2:$L$1081,10,0)) -> 2556 | K19: =IF(TA!$C$17=3,SUMIF(Dados!$B$2:$L$1081,TA!$A$20&$E$3&"Novembro",Dados!$J$2:$J$1081),VLOOKUP($D$20&$E$3&"Novembro",Dados!$A$2:$L$1081,10,0)) -> 4212 | M19: 19
A20: =IF(A19=0,2005,IF(A18>2018,A18-1,INDEX(ListaAnos,A19))) -> 2018 | C20: =IF(C19=3,"",INDEX(ListaSites,C19)) -> SJRJ | D20: =A20&C20 -> 2018SJRJ | E20: Turmas Recursais | F20: =IF(TA!$C$17=3,SUMIF(Dados!$B$2:$L$1081,TA!$A$20&$E$4&"Dezembro",Dados!$L$2:$L$1081),VLOOKUP($D$20&$E$4&"Dezembro",Dados!$A$2:$L$1081,12,0)) -> 50962 | G20: =IF(TA!$C$17=3,SUMIF(Dados!$B$2:$L$1081,TA!$A$20&$E$4&"Novembro",Dados!$L$2:$L$1081),VLOOKUP($D$20&$E$4&"Novembro",Dados!$A$2:$L$1081,12,0)) -> 53258 | H20: =IF(TA!$C$17=3,SUMIF(Dados!$B$2:$L$1081,TA!$A$20&$E$4&"Dezembro",Dados!$I$2:$I$1081),VLOOKUP($D$20&$E$4&"Dezembro",Dados!$A$2:$L$1081,9,0)) -> 70 | I20: =IF(TA!$C$17=3,SUMIF(Dados!$B$2:$L$1081,TA!$A$20&$E$4&"Novembro",Dados!$I$2:$I$1081),VLOOKUP($D$20&$E$4&"Novembro",Dados!$A$2:$L$1081,9,0)) -> 992 | J20: =IF(TA!$C$17=3,SUMIF(Dados!$B$2:$L$1081,TA!$A$20&$E$4&"Dezembro",Dados!$J$2:$J$1081),VLOOKUP($D$20&$E$4&"Dezembro",Dados!$A$2:$L$1081,10,0)) -> 1991 | K20: =IF(TA!$C$17=3,SUMIF(Dados!$B$2:$L$1081,TA!$A$20&$E$4&"Novembro",Dados!$J$2:$J$1081),VLOOKUP($D$20&$E$4&"Novembro",Dados!$A$2:$L$1081,10,0)) -> 2711 | M20: 20
E21: Total | F21: =SUM(F18:F20) -> 617738 | G21: 653622 | H21: 692 | I21: 1802 | J21: 9880 | K21: 13981 | M21: 21
A22: Aanual | E22: Acomp | I22: Ae | M22: 22
A23: =$C$18 & " - Tramitação nas VARAS" -> SJRJ - Tramitação nas VARAS | E23: =$C$18 & " - Comparativo da TRAMITAÇÃO" -> SJRJ - Comparativo da TRAMITAÇÃO | I23: =$C$18 & " - Tramitação nas VARAS " & $D$46 -> SJRJ - Tramitação nas VARAS (Eproc) | M23: 23
A24: =$C$18 & " - Tramitação nos JUIZADOS ESPECIAIS" -> SJRJ - Tramitação nos JUIZADOS ESPECIAIS | E24: =$C$18 & " - Comparativo de DISTRIBUÍDOS" -> SJRJ - Comparativo de DISTRIBUÍDOS | I24: =$C$18 & " - Tramitação nos JUIZADOS ESPECIAIS " & $D$46 -> SJRJ - Tramitação nos JUIZADOS ESPECIAIS (Eproc) | M24: 24
A25: =$C$18 & " - Tramitação nas TURMAS RECURSAIS" -> SJRJ - Tramitação nas TURMAS RECURSAIS | E25: =$C$18 & " - Comparativo de JULGADOS" -> SJRJ - Comparativo de JULGADOS | I25: =$C$18 & " - Tramitação nas TURMAS RECURSAIS " & $D$46 -> SJRJ - Tramitação nas TURMAS RECURSAIS (Eproc) | M25: 25
A26: =$C$18 & " - Tramitação TOTAL no 1º Grau" -> SJRJ - Tramitação TOTAL no 1º Grau | I26: =$C$18 & " - Tramitação TOTAL no 1º Grau " & $D$46 -> SJRJ - Tramitação TOTAL no 1º Grau (Eproc) | M26: 26
M27: 27
A28: =$C$18 & " - Distribuídos nas VARAS" -> SJRJ - Distribuídos nas VARAS | I28: =$C$18 & " - Distribuídos nas VARAS " & $D$46 -> SJRJ - Distribuídos nas VARAS (Eproc) | M28: 28
A29: =$C$18 & " - Distribuídos nos JUIZADOS ESPECIAIS" -> SJRJ - Distribuídos nos JUIZADOS ESPECIAIS | I29: =$C$18 & " - Distribuídos nos JUIZADOS ESPECIAIS " & $D$46 -> SJRJ - Distribuídos nos JUIZADOS ESPECIAIS (Eproc) | M29: 29
A30: =$C$18 & " - Distribuídos nas TURMAS RECURSAIS" -> SJRJ - Distribuídos nas TURMAS RECURSAIS | I30: =$C$18 & " - Distribuídos nas TURMAS RECURSAIS " & $D$46 -> SJRJ - Distribuídos nas TURMAS RECURSAIS (Eproc) | M30: 30
A31: =$C$18 & " - TOTAL de Distribuídos no 1º Grau" -> SJRJ - TOTAL de Distribuídos no 1º Grau | I31: =$C$18 & " - TOTAL de Distribuídos no 1º Grau " & $D$46 -> SJRJ - TOTAL de Distribuídos no 1º Grau (Eproc) | M31: 31
M32: 32
A33: =$C$18 & " - Julgados nas VARAS" -> SJRJ - Julgados nas VARAS | I33: =$C$18 & " - Julgados nas VARAS " & $D$46 -> SJRJ - Julgados nas VARAS (Eproc) | M33: 33
A34: =$C$18 & " - Julgados nos JUIZADOS ESPECIAIS" -> SJRJ - Julgados nos JUIZADOS ESPECIAIS | I34: =$C$18 & " - Julgados nos JUIZADOS ESPECIAIS " & $D$46 -> SJRJ - Julgados nos JUIZADOS ESPECIAIS (Eproc) | M34: 34
A35: =$C$18 & " - Julgados nas TURMAS RECURSAIS" -> SJRJ - Julgados nas TURMAS RECURSAIS | I35: =$C$18 & " - Julgados nas TURMAS RECURSAIS " & $D$46 -> SJRJ - Julgados nas TURMAS RECURSAIS (Eproc) | M35: 35
A36: =$C$18 & " - TOTAL de Julgados no 1º Grau" -> SJRJ - TOTAL de Julgados no 1º Grau | I36: =$C$18 & " - TOTAL de Julgados no 1º Grau " & $D$46 -> SJRJ - TOTAL de Julgados no 1º Grau (Eproc) | M36: 36
I37: =" Mapa Geral Judicial do 1º Grau " & $D$46 -> Mapa Geral Judicial do 1º Grau (Eproc) | M37: 37
A38: Ae | M38: 38
A39: 2 | F39: Dezembro | G39: Novembro | H39: Dezembro | I39: Novembro | J39: Dezembro | K39: Novembro | L39: %T | M39: 39
A40: =INDEX(ListaAnosAe,A39) -> 2019 | D40: =A40&C18 -> 2019SJRJ | E40: Varas | F40: =IF(TA!$C$17=3,SUMIF(Dados!$B$2:$L$217,TA!$A$42&$E$2&"Dezembro",Dados!$L$2:$L$217),VLOOKUP($D$42&$E$2&"Dezembro",Dados!$A$2:$L$217,12,0)) -> 530063 | G40: =IF(TA!$C$17=3,SUMIF(Dados!$B$2:$L$217,TA!$A$42&$E$2&"Novembro",Dados!$L$2:$L$217),VLOOKUP($D$42&$E$2&"Novembro",Dados!$A$2:$L$217,12,0)) -> 558734 | H40: =IF(TA!$C$17=3,SUMIF(Dados!$B$2:$L$217,TA!$A$42&$E$2&"Dezembro",Dados!$I$2:$I$217),VLOOKUP($D$42&$E$2&"Dezembro",Dados!$A$2:$L$217,9,0)) -> 620 | I40: =IF(TA!$C$17=3,SUMIF(Dados!$B$2:$L$217,TA!$A$42&$E$2&"Novembro",Dados!$I$2:$I$217),VLOOKUP($D$42&$E$2&"Novembro",Dados!$A$2:$L$217,9,0)) -> 809 | J40: =IF(TA!$C$17=3,SUMIF(Dados!$B$2:$L$217,TA!$A$42&$E$2&"Dezembro",Dados!$J$2:$J$217),VLOOKUP($D$42&$E$2&"Dezembro",Dados!$A$2:$L$217,10,0)) -> 5333 | K40: =IF(TA!$C$17=3,SUMIF(Dados!$B$2:$L$217,TA!$A$42&$E$2&"Novembro",Dados!$J$2:$J$217),VLOOKUP($D$42&$E$2&"Novembro",Dados!$A$2:$L$217,10,0)) -> 7058 | L40: =(F40/G40)-1 -> -0.05131422108 | M40: 40
A41: =A39-1 -> 1 | E41: Juizados | F41: =IF(TA!$C$17=3,SUMIF(Dados!$B$2:$L$217,TA!$A$42&$E$3&"Dezembro",Dados!$L$2:$L$217),VLOOKUP($D$42&$E$3&"Dezembro",Dados!$A$2:$L$217,12,0)) -> 36713 | G41: =IF(TA!$C$17=3,SUMIF(Dados!$B$2:$L$217,TA!$A$42&$E$3&"Novembro",Dados!$L$2:$L$217),VLOOKUP($D$42&$E$3&"Novembro",Dados!$A$2:$L$217,12,0)) -> 41630 | H41: =IF(TA!$C$17=3,SUMIF(Dados!$B$2:$L$217,TA!$A$42&$E$3&"Dezembro",Dados!$I$2:$I$217),VLOOKUP($D$42&$E$3&"Dezembro",Dados!$A$2:$L$217,9,0)) -> 2 | I41: =IF(TA!$C$17=3,SUMIF(Dados!$B$2:$L$217,TA!$A$42&$E$3&"Novembro",Dados!$I$2:$I$217),VLOOKUP($D$42&$E$3&"Novembro",Dados!$A$2:$L$217,9,0)) -> 1 | J41: =IF(TA!$C$17=3,SUMIF(Dados!$B$2:$L$217,TA!$A$42&$E$3&"Dezembro",Dados!$J$2:$J$217),VLOOKUP($D$42&$E$3&"Dezembro",Dados!$A$2:$L$217,10,0)) -> 2556 | K41: =IF(TA!$C$17=3,SUMIF(Dados!$B$2:$L$217,TA!$A$42&$E$3&"Novembro",Dados!$J$2:$J$217),VLOOKUP($D$42&$E$3&"Novembro",Dados!$A$2:$L$217,10,0)) -> 4212 | L41: =(F41/G41)-1 -> -0.1181119385 | M41: 41
A42: =IF(A41=0,2017,INDEX(ListaAnosAe,A41)) -> 2018 | D42: =A42&C20 -> 2018SJRJ | E42: Turmas Recursais | F42: =IF(TA!$C$17=3,SUMIF(Dados!$B$2:$L$217,TA!$A$42&$E$4&"Dezembro",Dados!$L$2:$L$217),VLOOKUP($D$42&$E$4&"Dezembro",Dados!$A$2:$L$217,12,0)) -> 50962 | G42: =IF(TA!$C$17=3,SUMIF(Dados!$B$2:$L$217,TA!$A$42&$E$4&"Novembro",Dados!$L$2:$L$217),VLOOKUP($D$42&$E$4&"Novembro",Dados!$A$2:$L$217,12,0)) -> 53258 | H42: =IF(TA!$C$17=3,SUMIF(Dados!$B$2:$L$217,TA!$A$42&$E$4&"Dezembro",Dados!$I$2:$I$217),VLOOKUP($D$42&$E$4&"Dezembro",Dados!$A$2:$L$217,9,0)) -> 70 | I42: =IF(TA!$C$17=3,SUMIF(Dados!$B$2:$L$217,TA!$A$42&$E$4&"Novembro",Dados!$I$2:$I$217),VLOOKUP($D$42&$E$4&"Novembro",Dados!$A$2:$L$217,9,0)) -> 992 | J42: =IF(TA!$C$17=3,SUMIF(Dados!$B$2:$L$217,TA!$A$42&$E$4&"Dezembro",Dados!$J$2:$J$217),VLOOKUP($D$42&$E$4&"Dezembro",Dados!$A$2:$L$217,10,0)) -> 1991 | K42: =IF(TA!$C$17=3,SUMIF(Dados!$B$2:$L$217,TA!$A$42&$E$4&"Novembro",Dados!$J$2:$J$217),VLOOKUP($D$42&$E$4&"Novembro",Dados!$A$2:$L$217,10,0)) -> 2711 | L42: =(F42/G42)-1 -> -0.04311089414 | M42: 42
B43: only when PaM=2020 (2020 only Eproc) | D43: (Apolo) | E43: Total | F43: =SUM(F40:F42) -> 617738 | G43: 653622 | H43: 692 | I43: 1802 | J43: 9880 | K43: 13981 | L43: =(F43/G43)-1 -> -0.05490023286 | M43: 43
B44: only2019EDez | C44: for use to 2019Ae | M44: 44
B45: =IF(TA!$C$17=3,SUMIF(Dados!$B$2:$P$145,"2019"&$E$2&"Dezembro",Dados!$P$2:$P$145),VLOOKUP("2019"&$C$18&$E$2&"Dezembro",Dados!$A$2:$P$145,16,0)) -> 483805 | C45: =F18+B45 -> 1013868 | D45: Ano PaM (?) | F45: Dezembro | G45: Novembro | H45: Dezembro | I45: Novembro | J45: Dezembro | K45: Novembro | L45: %T | M45: 45
B46: =IF(TA!$C$17=3,SUMIF(Dados!$B$2:$P$145,"2019"&$E$3&"Dezembro",Dados!$P$2:$P$145),VLOOKUP("2019"&$C$18&$E$3&"Dezembro",Dados!$A$2:$P$145,16,0)) -> 128057 | C46: =F19+B46 -> 164770 | D46: =IF($A$18<2018,$D$43,$D$49) -> (Eproc) | E46: Varas | F46: =IF(TA!$C$17=3,SUMIF(Dados!$B$2:$P$217,TA!$A$42&$E$2&"Dezembro",Dados!$P$2:$P$217),VLOOKUP($D$42&$E$2&"Dezembro",Dados!$A$2:$P$217,16,0)) -> 61696 | G46: =IF(TA!$C$17=3,SUMIF(Dados!$B$2:$P$217,TA!$A$42&$E$2&"Novembro",Dados!$P$2:$P$217),VLOOKUP($D$42&$E$2&"Novembro",Dados!$A$2:$P$217,16,0)) -> 29457 | H46: =IF(TA!$C$17=3,SUMIF(Dados!$B$2:$P$217,TA!$A$42&$E$2&"Dezembro",Dados!$M$2:$M$217),VLOOKUP($D$42&$E$2&"Dezembro",Dados!$A$2:$P$217,13,0)) -> 9097 | I46: =IF(TA!$C$17=3,SUMIF(Dados!$B$2:$P$217,TA!$A$42&$E$2&"Novembro",Dados!$M$2:$M$217),VLOOKUP($D$42&$E$2&"Novembro",Dados!$A$2:$P$217,13,0)) -> 5834 | J46: =IF(TA!$C$17=3,SUMIF(Dados!$B$2:$P$217,TA!$A$42&$E$2&"Dezembro",Dados!$N$2:$N$217),VLOOKUP($D$42&$E$2&"Dezembro",Dados!$A$2:$P$217,14,0)) -> 840 | K46: =IF(TA!$C$17=3,SUMIF(Dados!$B$2:$P$217,TA!$A$42&$E$2&"Novembro",Dados!$N$2:$N$217),VLOOKUP($D$42&$E$2&"Novembro",Dados!$A$2:$P$217,14,0)) -> 744 | L46: =(F46/G46)-1 -> 1.094442747 | M46: 46
B47: =IF(TA!$C$17=3,SUMIF(Dados!$B$2:$P$145,"2019"&$E$4&"Dezembro",Dados!$P$2:$P$145),VLOOKUP("2019"&$C$18&$E$4&"Dezembro",Dados!$A$2:$P$145,16,0)) -> 19969 | C47: =F20+B47 -> 70931 | D47: =A42&C20 -> 2018SJRJ | E47: Juizados | F47: =IF(TA!$C$17=3,SUMIF(Dados!$B$2:$P$217,TA!$A$42&$E$3&"Dezembro",Dados!$P$2:$P$217),VLOOKUP($D$42&$E$3&"Dezembro",Dados!$A$2:$P$217,16,0)) -> 80327 | G47: =IF(TA!$C$17=3,SUMIF(Dados!$B$2:$P$217,TA!$A$42&$E$3&"Novembro",Dados!$P$2:$P$217),VLOOKUP($D$42&$E$3&"Novembro",Dados!$A$2:$P$217,16,0)) -> 73534 | H47: =IF(TA!$C$17=3,SUMIF(Dados!$B$2:$P$217,TA!$A$42&$E$3&"Dezembro",Dados!$M$2:$M$217),VLOOKUP($D$42&$E$3&"Dezembro",Dados!$A$2:$P$217,13,0)) -> 8372 | I47: =IF(TA!$C$17=3,SUMIF(Dados!$B$2:$P$217,TA!$A$42&$E$3&"Novembro",Dados!$M$2:$M$217),VLOOKUP($D$42&$E$3&"Novembro",Dados!$A$2:$P$217,13,0)) -> 8901 | J47: =IF(TA!$C$17=3,SUMIF(Dados!$B$2:$P$217,TA!$A$42&$E$3&"Dezembro",Dados!$N$2:$N$217),VLOOKUP($D$42&$E$3&"Dezembro",Dados!$A$2:$P$217,14,0)) -> 5169 | K47: =IF(TA!$C$17=3,SUMIF(Dados!$B$2:$P$217,TA!$A$42&$E$3&"Novembro",Dados!$N$2:$N$217),VLOOKUP($D$42&$E$3&"Novembro",Dados!$A$2:$P$217,14,0)) -> 5680 | L47: =(F47/G47)-1 -> 0.09237903555 | M47: 47
B48: =SUM(B45:B47) -> 631831 | C48: =F21+B48 -> 1249569 | E48: Turmas Recursais | F48: =IF(TA!$C$17=3,SUMIF(Dados!$B$2:$P$217,TA!$A$42&$E$4&"Dezembro",Dados!$P$2:$P$217),VLOOKUP($D$42&$E$4&"Dezembro",Dados!$A$2:$P$217,16,0)) -> 5497 | G48: =IF(TA!$C$17=3,SUMIF(Dados!$B$2:$P$217,TA!$A$42&$E$4&"Novembro",Dados!$P$2:$P$217),VLOOKUP($D$42&$E$4&"Novembro",Dados!$A$2:$P$217,16,0)) -> 4249 | H48: =IF(TA!$C$17=3,SUMIF(Dados!$B$2:$P$217,TA!$A$42&$E$4&"Dezembro",Dados!$M$2:$M$217),VLOOKUP($D$42&$E$4&"Dezembro",Dados!$A$2:$P$217,13,0)) -> 1424 | I48: =IF(TA!$C$17=3,SUMIF(Dados!$B$2:$P$217,TA!$A$42&$E$4&"Novembro",Dados!$M$2:$M$217),VLOOKUP($D$42&$E$4&"Novembro",Dados!$A$2:$P$217,13,0)) -> 1895 | J48: =IF(TA!$C$17=3,SUMIF(Dados!$B$2:$P$217,TA!$A$42&$E$4&"Dezembro",Dados!$N$2:$N$217),VLOOKUP($D$42&$E$4&"Dezembro",Dados!$A$2:$P$217,14,0)) -> 456 | K48: =IF(TA!$C$17=3,SUMIF(Dados!$B$2:$P$217,TA!$A$42&$E$4&"Novembro",Dados!$N$2:$N$217),VLOOKUP($D$42&$E$4&"Novembro",Dados!$A$2:$P$217,14,0)) -> 387 | L48: =(F48/G48)-1 -> 0.2937161685 | M48: 48
C49: (?) 2018 + 2049 | D49: (Eproc) | E49: Total | F49: =SUM(F46:F48) -> 147520 | G49: =SUM(G46:G48) -> 107240 | H49: 18893 | I49: 16630 | J49: =SUM(J46:J48) -> 6465 | K49: =SUM(K46:K48) -> 6811 | L49: =(F49/G49)-1 -> 0.3756061171 | M49: 49
A50: A1 | B50: B2 | C50: C3 | D50: D4 | E50: E5 | F50: F6 | G50: G7 | H50: H8 | I50: I9 | J50: J10 | K50: K11 | L50: L12 | M50: 50
A51: =$C$18 & " - Tramitação nas VARAS (Apolo)" -> SJRJ - Tramitação nas VARAS (Apolo) | E51: =$C$18 & " - Tramitação nas VARAS (Eproc)" -> SJRJ - Tramitação nas VARAS (Eproc) | I51: =$C$18 & " - Tramitação nas VARAS (TOTAL)" -> SJRJ - Tramitação nas VARAS (TOTAL) | M51: 51
A52: =$C$18 & " - Tramitação nos JUIZADOS ESPECIAIS (Apolo)" -> SJRJ - Tramitação nos JUIZADOS ESPECIAIS (Apolo) | E52: =$C$18 & " - Tramitação nos JUIZADOS ESPECIAIS (Eproc)" -> SJRJ - Tramitação nos JUIZADOS ESPECIAIS (Eproc) | I52: =$C$18 & " - Tramitação nos JUIZADOS ESPECIAIS (TOTAL)" -> SJRJ - Tramitação nos JUIZADOS ESPECIAIS (TOTAL) | M52: 52
A53: =$C$18 & " - Tramitação nas TURMAS RECURSAIS (Apolo)" -> SJRJ - Tramitação nas TURMAS RECURSAIS (Apolo) | E53: =$C$18 & " - Tramitação nas TURMAS RECURSAIS (Eproc)" -> SJRJ - Tramitação nas TURMAS RECURSAIS (Eproc) | I53: =$C$18 & " - Tramitação nas TURMAS RECURSAIS (TOTAL)" -> SJRJ - Tramitação nas TURMAS RECURSAIS (TOTAL) | M53: 53
A54: =$C$18 & " - Tramitação TOTAL no 1º Grau (Apolo)" -> SJRJ - Tramitação TOTAL no 1º Grau (Apolo) | E54: =$C$18 & " - Tramitação TOTAL no 1º Grau (Eproc)" -> SJRJ - Tramitação TOTAL no 1º Grau (Eproc) | I54: =$C$18 & " - Tramitação TOTAL no 1º Grau (GERAL)" -> SJRJ - Tramitação TOTAL no 1º Grau (GERAL) | M54: 54
M55: 55
A56: =$C$18 & " - Distribuídos nas VARAS (Apolo)" -> SJRJ - Distribuídos nas VARAS (Apolo) | E56: =$C$18 & " - Distribuídos nas VARAS (Eproc)" -> SJRJ - Distribuídos nas VARAS (Eproc) | I56: =$C$18 & " - Distribuídos nas VARAS (TOTAL)" -> SJRJ - Distribuídos nas VARAS (TOTAL) | M56: 56
A57: =$C$18 & " - Distribuídos nos JUIZADOS ESPECIAIS (Apolo)" -> SJRJ - Distribuídos nos JUIZADOS ESPECIAIS (Apolo) | E57: =$C$18 & " - Distribuídos nos JUIZADOS ESPECIAIS (Eproc)" -> SJRJ - Distribuídos nos JUIZADOS ESPECIAIS (Eproc) | I57: =$C$18 & " - Distribuídos nos JUIZADOS ESPECIAIS (TOTAL)" -> SJRJ - Distribuídos nos JUIZADOS ESPECIAIS (TOTAL) | M57: 57
A58: =$C$18 & " - Distribuídos nas TURMAS RECURSAIS (Apolo)" -> SJRJ - Distribuídos nas TURMAS RECURSAIS (Apolo) | E58: =$C$18 & " - Distribuídos nas TURMAS RECURSAIS (Eproc)" -> SJRJ - Distribuídos nas TURMAS RECURSAIS (Eproc) | I58: =$C$18 & " - Distribuídos nas TURMAS RECURSAIS (TOTAL)" -> SJRJ - Distribuídos nas TURMAS RECURSAIS (TOTAL) | M58: 58
A59: =$C$18 & " - TOTAL de Distribuídos no 1º Grau (Apolo)" -> SJRJ - TOTAL de Distribuídos no 1º Grau (Apolo) | E59: =$C$18 & " - TOTAL de Distribuídos no 1º Grau (Eproc)" -> SJRJ - TOTAL de Distribuídos no 1º Grau (Eproc) | I59: =$C$18 & " - TOTAL de Distribuídos no 1º Grau (GERAL)" -> SJRJ - TOTAL de Distribuídos no 1º Grau (GERAL) | M59: 59
M60: 60
A61: =$C$18 & " - Julgados nas VARAS (Apolo)" -> SJRJ - Julgados nas VARAS (Apolo) | E61: =$C$18 & " - Julgados nas VARAS (Eproc)" -> SJRJ - Julgados nas VARAS (Eproc) | I61: =$C$18 & " - Julgados nas VARAS (TOTAL)" -> SJRJ - Julgados nas VARAS (TOTAL) | M61: 61
A62: =$C$18 & " - Julgados nos JUIZADOS ESPECIAIS (Apolo)" -> SJRJ - Julgados nos JUIZADOS ESPECIAIS (Apolo) | E62: =$C$18 & " - Julgados nos JUIZADOS ESPECIAIS (Eproc)" -> SJRJ - Julgados nos JUIZADOS ESPECIAIS (Eproc) | I62: =$C$18 & " - Julgados nos JUIZADOS ESPECIAIS (TOTAL)" -> SJRJ - Julgados nos JUIZADOS ESPECIAIS (TOTAL) | M62: 62
A63: =$C$18 & " - Julgados nas TURMAS RECURSAIS (Apolo)" -> SJRJ - Julgados nas TURMAS RECURSAIS (Apolo) | E63: =$C$18 & " - Julgados nas TURMAS RECURSAIS (Eproc)" -> SJRJ - Julgados nas TURMAS RECURSAIS (Eproc) | I63: =$C$18 & " - Julgados nas TURMAS RECURSAIS (TOTAL)" -> SJRJ - Julgados nas TURMAS RECURSAIS (TOTAL) | M63: 63
A64: =$C$18 & " - TOTAL de Julgados no 1º Grau (Apolo)" -> SJRJ - TOTAL de Julgados no 1º Grau (Apolo) | E64: =$C$18 & " - TOTAL de Julgados no 1º Grau (Eproc)" -> SJRJ - TOTAL de Julgados no 1º Grau (Eproc) | I64: =$C$18 & " - TOTAL de Julgados no 1º Grau (GERAL)" -> SJRJ - TOTAL de Julgados no 1º Grau (GERAL) | M64: 64
M65: 65
M66: 66
M67: =M66+1 -> 67
A68: PaM | B68: NOT USED | C68: <= used by Sub PaMAe_PaM() for the return of PvAAe | M68: 68
A69: GDaMAe | B69: destiny | C69: <=used by Sub ig_AnoG() when any G??M=2018e2019 (Initiate for G??M) | M69: 69
M70: 70
M71: 71
M72: 72
A73: A1 | B73: B2 | C73: C3 | D73: D4 | E73: E5 | F73: F6 | G73: G7 | H73: H8 | I73: I9 | J73: J10 | K73: K11 | L73: L12 | M73: M
A80: Histórico de Alterações:
A81: 2015-01-29 | C81: Alterado a forma de contabilizar os Distribuídos, all 2014 agora contabiliza somente os DISTRIBUÍDOS,
C82: de 2013 pra trás, contabilizava os DISTRIBUÍDOS JUNTO com os REDISTRIBUÍDOS.
C83: Houve tb alterações nos Julgados, provavelmente por lançamentos retroativos.
A85: 2018-05-04 | C85: Início da adaptação para o eProc
A86: 2018-09-17 | C86: - PvA -PCA
A87: 2018-12-05 | C87: 2018Ae início ok
A88: 2018-12-06 | C88: - PvAdesat | D88: 2018Ae ok
A89: 2018-12-13 | C89: 2019Ae início ok
A90: 2018-12-20 | C90: 2019Ae ok
B91: A | C91: Ae
A92: 2019 | B92: a2l73 | C92: a2p73
A93: 2018 | B93: a74l145 | C93: a74p145
A94: 2017 | B94: a146l217

Sheet Dados (hidden)
A1: ColAux1 | B1: ColAux2 | C1: ColAux3 | D1: ColAux4 | E1: Ano | F1: Seção Judiciária | G1: Tipo de Juízo | H1: Mês | I1: Dist | J1: Julg | K1: Remetidos TRF/TR | L1: Tram R | M1: Dist_E | N1: Julg_E | O1: Remetidos TRF/TR_E | P1: Tram R_E | R1: J A | V1: S A | Z1: Conf A | AE1: 1#D | AF1: 1#J | AG1: 1#R | AH1: 1#T | AI1: 2#J | AJ1: 3#D | AK1: 3#J | AL1: 3#R | AM1: 3#T | AN1: 4#J | AO1: 5#J | AP1: 6#J | AQ1: 7#J | AR1: 8#J | AS1: 9#J | AT1: 10#J | AU1: 11#J | AW1: J e | BA1: S e | BE1: Conf e | BJ1: 1#J | BK1: 2#J | BL1: 3#J | BM1: 4#J | BN1: 5#J | BO1: 6#J | BP1: 7#J | BQ1: 8#J | BR1: 9#J | BS1: 10#J | BT1: 11#J
A2: =E2&F2&G2&H2 -> 2019SJESVarasJaneiro | B2: =E2&G2&H2 -> 2019VarasJaneiro | C2: =E2&F2&G2 -> 2019SJESVaras | D2: =E2&G2 -> 2019Varas | E2: 2019 | F2: SJES | G2: Varas | H2: Janeiro | I2: 188 | J2: 631 | K2: 144 | L2: 93508 | M2: 1347 | N2: 285 | O2: 354 | P2: 33235
A3: 2019SJESJuizadosJaneiro | B3: 2019JuizadosJaneiro | C3: 2019SJESJuizados | D3: 2019Juizados | E3: 2019 | F3: SJES | G3: Juizados | H3: Janeiro | I3: 0 | J3: 630 | K3: 104 | L3: 10002 | M3: 1623 | N3: 1252 | O3: 88 | P3: 21795
A4: 2019SJESTurmas RecursaisJaneiro | B4: 2019Turmas RecursaisJaneiro | C4: 2019SJESTurmas Recursais | D4: 2019Turmas Recursais | E4: 2019 | F4: SJES | G4: Turmas Recursais | H4: Janeiro | I4: 103 | J4: 822 | K4: 0 | L4: 13487 | M4: 286 | N4: 190 | O4: 0 | P4: 1458
A5: 2019SJESVarasFevereiro | B5: 2019VarasFevereiro | C5: 2019SJESVaras | D5: 2019Varas | E5: 2019 | F5: SJES | G5: Varas | H5: Fevereiro | I5: 189 | J5: 840 | K5: 231 | L5: 90396 | M5: 1506 | N5: 634 | O5: 529 | P5: 36336
A6: 2019SJESJuizadosFevereiro | B6: 2019JuizadosFevereiro | C6: 2019SJESJuizados | D6: 2019Juizados | E6: 2019 | F6: SJES | G6: Juizados | H6: Fevereiro | I6: 1 | J6: 459 | K6: 210 | L6: 9128 | M6: 2115 | N6: 1773 | O6: 231 | P6: 22358
A7: 2019SJESTurmas RecursaisFevereiro | B7: 2019Turmas RecursaisFevereiro | C7: 2019SJESTurmas Recursais | D7: 2019Turmas Recursais | E7: 2019 | F7: SJES | G7: Turmas Recursais | H7: Fevereiro | I7: 206 | J7: 1593 | K7: 0 | L7: 12990 | M7: 536 | N7: 155 | O7: 0 | P7: 1931
A8: 2019SJESVarasMarço | B8: 2019VarasMarço | C8: 2019SJESVaras | D8: 2019Varas | E8: 2019 | F8: SJES | G8: Varas | H8: Março | I8: 435 | J8: 749 | K8: 169 | L8: 88137 | M8: 1383 | N8: 627 | O8: 451 | P8: 38713
A9: 2019SJESJuizadosMarço | B9: 2019JuizadosMarço | C9: 2019SJESJuizados | D9: 2019Juizados | E9: 2019 | F9: SJES | G9: Juizados | H9: Março | I9: 2 | J9: 382 | K9: 221 | L9: 8434 | M9: 1988 | N9: 1861 | O9: 151 | P9: 23019
A10: 2019SJESTurmas RecursaisMarço | B10: 2019Turmas RecursaisMarço | C10: 2019SJESTurmas Recursais | D10: 2019Turmas Recursais | E10: 2019 | F10: SJES | G10: Turmas Recursais | H10: Março | I10: 208 | J10: 836 | K10: 0 | L10: 12592 | M10: 432 | N10: 99 | O10: 0 | P10: 2251
A11: 2019SJESVarasAbril | B11: 2019VarasAbril | C11: 2019SJESVaras | D11: 2019Varas | E11: 2019 | F11: SJES | G11: Varas | H11: Abril | I11: 112 | J11: 814 | K11: 243 | L11: 84572 | M11: 1420 | N11: 843 | O11: 675 | P11: 41798
A12: 2019SJESJuizadosAbril | B12: 2019JuizadosAbril | C12: 2019SJESJuizados | D12: 2019Juizados | E12: 2019 | F12: SJES | G12: Juizados | H12: Abril | I12: 3 | J12: 388 | K12: 186 | L12: 7103 | M12: 2197 | N12: 1811 | O12: 239 | P12: 24607
A13: 2019SJESTurmas RecursaisAbril | B13: 2019Turmas RecursaisAbril | C13: 2019SJESTurmas Recursais | D13: 2019Turmas Recursais | E13: 2019 | F13: SJES | G13: Turmas Recursais | H13: Abril | I13: 102 | J13: 1349 | K13: 0 | L13: 11906 | M13: 641 | N13: 308 | O13: 0 | P13: 2812
A14: 2019SJESVarasMaio | B14: 2019VarasMaio | C14: 2019SJESVaras | D14: 2019Varas | E14: 2019 | F14: SJES | G14: Varas | H14: Maio | I14: 524 | J14: 981 | K14: 201 | L14: 82488 | M14: 1751 | N14: 1124 | O14: 754 | P14: 43714
A15: 2019SJESJuizadosMaio | B15: 2019JuizadosMaio | C15: 2019SJESJuizados | D15: 2019Juizados | E15: 2019 | F15: SJES | G15: Juizados | H15: Maio | I15: 2 | J15: 479 | K15: 111 | L15: 5742 | M15: 2520 | N15: 2348 | O15: 323 | P15: 26621
A16: 2019SJESTurmas RecursaisMaio | B16: 2019Turmas RecursaisMaio | C16: 2019SJESTurmas Recursais | D16: 2019Turmas Recursais | E16: 2019 | F16: SJES | G16: Turmas Recursais | H16: Maio | I16: 112 | J16: 1447 | K16: 0 | L16: 11045 | M16: 823 | N16: 273 | O16: 0 | P16: 3488
A17: 2019SJESVarasJunho | B17: 2019VarasJunho | C17: 2019SJESVaras | D17: 2019Varas | E17: 2019 | F17: SJES | G17: Varas | H17: Junho | I17: 156 | J17: 853 | K17: 92 | L17: 79541 | M17: 2173 | N17: 981 | O17: 624 | P17: 47106
A18: 2019SJESJuizadosJunho | B18: 2019JuizadosJunho | C18: 2019SJESJuizados | D18: 2019Juizados | E18: 2019 | F18: SJES | G18: Juizados | H18: Junho | I18: 1 | J18: 179 | K18: 57 | L18: 5364 | M18: 1856 | N18: 2029 | O18: 437 | P18: 26877
A19: 2019SJESTurmas RecursaisJunho | B19: 2019Turmas RecursaisJunho | C19: 2019SJESTurmas Recursais | D19: 2019Turmas Recursais | E19: 2019 | F19: SJES | G19: Turmas Recursais | H19: Junho | I19: 60 | J19: 1123 | K19: 0 | L19: 10129 | M19: 874 | N19: 492 | O19: 0 | P19: 4096
A20: 2019SJESVarasJulho | B20: 2019VarasJulho | C20: 2019SJESVaras | D20: 2019Varas | E20: 2019 | F20: SJES | G20: Varas | H20: Julho | I20: 118 | J20: 764 | K20: 141 | L20: 77441 | M20: 2311 | N20: 1345 | O20: 862 | P20: 49279
A21: 2019SJESJuizadosJulho | B21: 2019JuizadosJulho | C21: 2019SJESJuizados | D21: 2019Juizados | E21: 2019 | F21: SJES | G21: Juizados | H21: Julho | I21: 1 | J21: 165 | K21: 66 | L21: 5522 | M21: 2635 | N21: 2267 | O21: 572 | P21: 27705
A22: 2019SJESTurmas RecursaisJulho | B22: 2019Turmas RecursaisJulho | C22: 2019SJESTurmas Recursais | D22: 2019Turmas Recursais | E22: 2019 | F22: SJES | G22: Turmas Recursais | H22: Julho | I22: 54 | J22: 1070 | K22: 0 | L22: 9091 | M22: 1076 | N22: 670 | O22: 0 | P22: 4699
A23: 2019SJESVarasAgosto | B23: 2019VarasAgosto | C23: 2019SJESVaras | D23: 2019Varas | E23: 2019 | F23: SJES | G23: Varas | H23: Agosto | I23: 57 | J23: 665 | K23: 88 | L23: 63102 | M23: 1929 | N23: 1817 | O23: 755 | P23: 63204
A24: 2019SJESJuizadosAgosto | B24: 2019JuizadosAgosto | C24: 2019SJESJuizados | D24: 2019Juizados | E24: 2019 | F24: SJES | G24: Juizados | H24: Agosto | I24: 0 | J24: 93 | K24: 24 | L24: 4882 | M24: 2512 | N24: 2462 | O24: 424 | P24: 28600
A25: 2019SJESTurmas RecursaisAgosto | B25: 2019Turmas RecursaisAgosto | C25: 2019SJESTurmas Recursais | D25: 2019Turmas Recursais | E25: 2019 | F25: SJES | G25: Turmas Recursais | H25: Agosto | I25: 26 | J25: 1680 | K25: 0 | L25: 8570 | M25: 887 | N25: 886 | O25: 0 | P25: 5176
A26: 2019SJESVarasSetembro | B26: 2019VarasSetembro | C26: 2019SJESVaras | D26: 2019Varas | E26: 2019 | F26: SJES | G26: Varas | H26: Setembro | I26: 65 | J26: 518 | K26: 123 | L26: 32269 | M26: 1765 | N26: 1688 | O26: 761 | P26: 93354
A27: 2019SJESJuizadosSetembro | B27: 2019JuizadosSetembro | C27: 2019SJESJuizados | D27: 2019Juizados | E27: 2019 | F27: SJES | G27: Juizados | H27: Setembro | I27: 0 | J27: 62 | K27: 701 | L27: 4531 | M27: 2479 | N27: 2611 | O27: 457 | P27: 28941
A28: 2019SJESTurmas RecursaisSetembro | B28: 2019Turmas RecursaisSetembro | C28: 2019SJESTurmas Recursais | D28: 2019Turmas Recursais | E28: 2019 | F28: SJES | G28: Turmas Recursais | H28: Setembro | I28: 17 | J28: 1046 | K28: 0 | L28: 7804 | M28: 870 | N28: 900 | O28: 0 | P28: 5523
A29: 2019SJESVarasOutubro | B29: 2019VarasOutubro | C29: 2019SJESVaras | D29: 2019Varas | E29: 2019 | F29: SJES | G29: Varas | H29: Outubro | I29: 41 | J29: 287 | K29: 96 | L29: 21334 | M29: 2068 | N29: 1701 | O29: 774 | P29: 105883
A30: 2019SJESJuizadosOutubro | B30: 2019JuizadosOutubro | C30: 2019SJESJuizados | D30: 2019Juizados | E30: 2019 | F30: SJES | G30: Juizados | H30: Outubro | I30: 1 | J30: 85 | K30: 16 | L30: 4263 | M30: 3350 | N30: 2488 | O30: 526 | P30: 30209
A31: 2019SJESTurmas RecursaisOutubro | B31: 2019Turmas RecursaisOutubro | C31: 2019SJESTurmas Recursais | D31: 2019Turmas Recursais | E31: 2019 | F31: SJES | G31: Turmas Recursais | H31: Outubro | I31: 15 | J31: 698 | K31: 0 | L31: 7093 | M31: 899 | N31: 943 | O31: 0 | P31: 5647
A32: 2019SJESVarasNovembro | B32: 2019VarasNovembro | C32: 2019SJESVaras | D32: 2019Varas | E32: 2019 | F32: SJES | G32: Varas | H32: Novembro | I32: 28 | J32: 240 | K32: 54 | L32: 14539 | M32: 2713 | N32: 1535 | O32: 833 | P32: 111359
A33: 2019SJESJuizadosNovembro | B33: 2019JuizadosNovembro | C33: 2019SJESJuizados | D33: 2019Juizados | E33: 2019 | F33: SJES | G33: Juizados | H33: Novembro | I33: 1 | J33: 47 | K33: 11 | L33: 4299 | M33: 6375 | N33: 2471 | O33: 496 | P33: 34975
A34: 2019SJESTurmas RecursaisNovembro | B34: 2019Turmas RecursaisNovembro | C34: 2019SJESTurmas Recursais | D34: 2019Turmas Recursais | E34: 2019 | F34: SJES | G34: Turmas Recursais | H34: Novembro | I34: 6 | J34: 280 | K34: 0 | L34: 6558 | M34: 935 | N34: 945 | O34: 0 | P34: 5829
A35: 2019SJESVarasDezembro | B35: 2019VarasDezembro | C35: 2019SJESVaras | D35: 2019Varas | E35: 2019 | F35: SJES | G35: Varas | H35: Dezembro | I35: 47 | J35: 155 | K35: 51 | L35: 13705 | M35: 2359 | N35: 1343 | O35: 563 | P35: 112998
A36: 2019SJESJuizadosDezembro | B36: 2019JuizadosDezembro | C36: 2019SJESJuizados | D36: 2019Juizados | E36: 2019 | F36: SJES | G36: Juizados | H36: Dezembro | I36: 1 | J36: 47 | K36: 9 | L36: 4559 | M36: 2366 | N36: 1484 | O36: 341 | P36: 36203
A37: 2019SJESTurmas RecursaisDezembro | B37: 2019Turmas RecursaisDezembro | C37: 2019SJESTurmas Recursais | D37: 2019Turmas Recursais | E37: 2019 | F37: SJES | G37: Turmas Recursais | H37: Dezembro | I37: 12 | J37: 425 | K37: 0 | L37: 5943 | M37: 596 | N37: 608 | O37: 0 | P37: 5414
A38: =E38&F38&G38&H38 -> 2019SJRJVarasJaneiro | B38: 2019VarasJaneiro | C38: 2019SJRJVaras | D38: 2019Varas | E38: 2019 | F38: SJRJ | G38: Varas | H38: Janeiro | I38: 827 | J38: 4735 | K38: 1009 | L38: 513561 | M38: 4840 | N38: 1134 | O38: 1446 | P38: 75081
A39: =E39&F39&G39&H39 -> 2019SJRJJuizadosJaneiro | B39: 2019JuizadosJaneiro | C39: 2019SJRJJuizados | D39: 2019Juizados | E39: 2019 | F39: SJRJ | G39: Juizados | H39: Janeiro | I39: 6 | J39: 2186 | K39: 592 | L39: 33022 | M39: 6950 | N39: 6294 | O39: 369 | P39: 84475
A40: 2019SJRJTurmas RecursaisJaneiro | B40: 2019Turmas RecursaisJaneiro | C40: 2019SJRJTurmas Recursais | D40: 2019Turmas Recursais | E40: 2019 | F40: SJRJ | G40: Turmas Recursais | H40: Janeiro | I40: 1034 | J40: 1316 | K40: 0 | L40: 50625 | M40: 1536 | N40: 664 | O40: 0 | P40: 6924
A41: 2019SJRJVarasFevereiro | B41: 2019VarasFevereiro | C41: 2019SJRJVaras | D41: 2019Varas | E41: 2019 | F41: SJRJ | G41: Varas | H41: Fevereiro | I41: 816 | J41: 5988 | K41: 1030 | L41: 481199 | M41: 6355 | N41: 2828 | O41: 3027 | P41: 106459
A42: 2019SJRJJuizadosFevereiro | B42: 2019JuizadosFevereiro | C42: 2019SJRJJuizados | D42: 2019Juizados | E42: 2019 | F42: SJRJ | G42: Juizados | H42: Fevereiro | I42: 3 | J42: 1415 | K42: 632 | L42: 24520 | M42: 9717 | N42: 9600 | O42: 765 | P42: 89246
A43: 2019SJRJTurmas RecursaisFevereiro | B43: 2019Turmas RecursaisFevereiro | C43: 2019SJRJTurmas Recursais | D43: 2019Turmas Recursais | E43: 2019 | F43: SJRJ | G43: Turmas Recursais | H43: Fevereiro | I43: 265 | J43: 2355 | K43: 0 | L43: 48799 | M43: 3118 | N43: 860 | O43: 0 | P43: 9296
A44: 2019SJRJVarasMarço | B44: 2019VarasMarço | C44: 2019SJRJVaras | D44: 2019Varas | E44: 2019 | F44: SJRJ | G44: Varas | H44: Março | I44: 616 | J44: 4023 | K44: 797 | L44: 460944 | M44: 11446 | N44: 2814 | O44: 2545 | P44: 132396
A45: 2019SJRJJuizadosMarço | B45: 2019JuizadosMarço | C45: 2019SJRJJuizados | D45: 2019Juizados | E45: 2019 | F45: SJRJ | G45: Juizados | H45: Março | I45: 1 | J45: 867 | K45: 331 | L45: 21189 | M45: 8355 | N45: 8220 | O45: 568 | P45: 91926
A46: 2019SJRJTurmas RecursaisMarço | B46: 2019Turmas RecursaisMarço | C46: 2019SJRJTurmas Recursais | D46: 2019Turmas Recursais | E46: 2019 | F46: SJRJ | G46: Turmas Recursais | H46: Março | I46: 492 | J46: 2338 | K46: 0 | L46: 47420 | M46: 2419 | N46: 1860 | O46: 0 | P46: 10848
A47: 2019SJRJVarasAbril | B47: 2019VarasAbril | C47: 2019SJRJVaras | D47: 2019Varas | E47: 2019 | F47: SJRJ | G47: Varas | H47: Abril | I47: 641 | J47: 4226 | K47: 771 | L47: 436204 | M47: 6743 | N47: 3283 | O47: 2746 | P47: 156924
A48: 2019SJRJJuizadosAbril | B48: 2019JuizadosAbril | C48: 2019SJRJJuizados | D48: 2019Juizados | E48: 2019 | F48: SJRJ | G48: Juizados | H48: Abril | I48: 2 | J48: 597 | K48: 267 | L48: 18944 | M48: 9609 | N48: 8286 | O48: 573 | P48: 94920
A49: 2019SJRJTurmas RecursaisAbril | B49: 2019Turmas RecursaisAbril | C49: 2019SJRJTurmas Recursais | D49: 2019Turmas Recursais | E49: 2019 | F49: SJRJ | G49: Turmas Recursais | H49: Abril | I49: 473 | J49: 2011 | K49: 0 | L49: 46210 | M49: 2404 | N49: 1308 | O49: 0 | P49: 12228
A50: 2019SJRJVarasMaio | B50: 2019VarasMaio | C50: 2019SJRJVaras | D50: 2019Varas | E50: 2019 | F50: SJRJ | G50: Varas | H50: Maio | I50: 821 | J50: 5621 | K50: 1045 | L50: 401153 | M50: 7485 | N50: 4718 | O50: 3540 | P50: 240346
A51: 2019SJRJJuizadosMaio | B51: 2019JuizadosMaio | C51: 2019SJRJJuizados | D51: 2019Juizados | E51: 2019 | F51: SJRJ | G51: Juizados | H51: Maio | I51: 3 | J51: 776 | K51: 273 | L51: 16638 | M51: 11209 | N51: 11093 | O51: 734 | P51: 98227
A52: 2019SJRJTurmas RecursaisMaio | B52: 2019Turmas RecursaisMaio | C52: 2019SJRJTurmas Recursais | D52: 2019Turmas Recursais | E52: 2019 | F52: SJRJ | G52: Turmas Recursais | H52: Maio | I52: 277 | J52: 13070 | K52: 0 | L52: 45393 | M52: 2815 | N52: 2246 | O52: 0 | P52: 14078
A53: 2019SJRJVarasJunho | B53: 2019VarasJunho | C53: 2019SJRJVaras | D53: 2019Varas | E53: 2019 | F53: SJRJ | G53: Varas | H53: Junho | I53: 551 | J53: 3266 | K53: 680 | L53: 268732 | M53: 5970 | N53: 4656 | O53: 3278 | P53: 320014
A54: 2019SJRJJuizadosJunho | B54: 2019JuizadosJunho | C54: 2019SJRJJuizados | D54: 2019Juizados | E54: 2019 | F54: SJRJ | G54: Juizados | H54: Junho | I54: 5 | J54: 538 | K54: 162 | L54: 18370 | M54: 9276 | N54: 9850 | O54: 754 | P54: 100045
A55: 2019SJRJTurmas RecursaisJunho | B55: 2019Turmas RecursaisJunho | C55: 2019SJRJTurmas Recursais | D55: 2019Turmas Recursais | E55: 2019 | F55: SJRJ | G55: Turmas Recursais | H55: Junho | I55: 164 | J55: 2398 | K55: 0 | L55: 39786 | M55: 2683 | N55: 1834 | O55: 0 | P55: 14875
A56: 2019SJRJVarasJulho | B56: 2019VarasJulho | C56: 2019SJRJVaras | D56: 2019Varas | E56: 2019 | F56: SJRJ | G56: Varas | H56: Julho | I56: 760 | J56: 3973 | K56: 659 | L56: 258410 | M56: 8257 | N56: 6676 | O56: 4527 | P56: 327480
A57: 2019SJRJJuizadosJulho | B57: 2019JuizadosJulho | C57: 2019SJRJJuizados | D57: 2019Juizados | E57: 2019 | F57: SJRJ | G57: Juizados | H57: Julho | I57: 2 | J57: 983 | K57: 174 | L57: 20586 | M57: 11862 | N57: 11845 | O57: 1042 | P57: 102569
A58: 2019SJRJTurmas RecursaisJulho | B58: 2019Turmas RecursaisJulho | C58: 2019SJRJTurmas Recursais | D58: 2019Turmas Recursais | E58: 2019 | F58: SJRJ | G58: Turmas Recursais | H58: Julho | I58: 142 | J58: 1747 | K58: 0 | L58: 33433 | M58: 3571 | N58: 1943 | O58: 0 | P58: 16257
A59: 2019SJRJVarasAgosto | B59: 2019VarasAgosto | C59: 2019SJRJVaras | D59: 2019Varas | E59: 2019 | F59: SJRJ | G59: Varas | H59: Agosto | I59: 640 | J59: 4279 | K59: 542 | L59: 154374 | M59: 7965 | N59: 8359 | O59: 4559 | P59: 428772
A60: 2019SJRJJuizadosAgosto | B60: 2019JuizadosAgosto | C60: 2019SJRJJuizados | D60: 2019Juizados | E60: 2019 | F60: SJRJ | G60: Juizados | H60: Agosto | I60: 9 | J60: 913 | K60: 151 | L60: 19869 | M60: 11077 | N60: 12639 | O60: 1044 | P60: 103180
A61: 2019SJRJTurmas RecursaisAgosto | B61: 2019Turmas RecursaisAgosto | C61: 2019SJRJTurmas Recursais | D61: 2019Turmas Recursais | E61: 2019 | F61: SJRJ | G61: Turmas Recursais | H61: Agosto | I61: 124 | J61: 1300 | K61: 0 | L61: 29722 | M61: 3460 | N61: 2603 | O61: 0 | P61: 18107
A62: 2019SJRJVarasSetembro | B62: 2019VarasSetembro | C62: 2019SJRJVaras | D62: 2019Varas | E62: 2019 | F62: SJRJ | G62: Varas | H62: Setembro | I62: 673 | J62: 2512 | K62: 397 | L62: 132698 | M62: 7127 | N62: 8264 | O62: 4561 | P62: 447088
A63: 2019SJRJJuizadosSetembro | B63: 2019JuizadosSetembro | C63: 2019SJRJJuizados | D63: 2019Juizados | E63: 2019 | F63: SJRJ | G63: Juizados | H63: Setembro | I63: 4 | J63: 1043 | K63: 142 | L63: 21248 | M63: 10457 | N63: 10656 | O63: 1034 | P63: 104121
A64: 2019SJRJTurmas RecursaisSetembro | B64: 2019Turmas RecursaisSetembro | C64: 2019SJRJTurmas Recursais | D64: 2019Turmas Recursais | E64: 2019 | F64: SJRJ | G64: Turmas Recursais | H64: Setembro | I64: 91 | J64: 916 | K64: 0 | L64: 26449 | M64: 3445 | N64: 3625 | O64: 0 | P64: 19884
A65: 2019SJRJVarasOutubro | B65: 2019VarasOutubro | C65: 2019SJRJVaras | D65: 2019Varas | E65: 2019 | F65: SJRJ | G65: Varas | H65: Outubro | I65: 567 | J65: 2358 | K65: 442 | L65: 118947 | M65: 8176 | N65: 7642 | O65: 4497 | P65: 457423
A66: 2019SJRJJuizadosOutubro | B66: =E66&G66&H66 -> 2019JuizadosOutubro | C66: =E66&F66&G66 -> 2019SJRJJuizados | D66: =E66&G66 -> 2019Juizados | E66: 2019 | F66: SJRJ | G66: Juizados | H66: Outubro | I66: 5 | J66: 1369 | K66: 144 | L66: 18345 | M66: 13300 | N66: 11175 | O66: 1019 | P66: 107979
A67: 2019SJRJTurmas RecursaisOutubro | B67: 2019Turmas RecursaisOutubro | C67: 2019SJRJTurmas Recursais | D67: 2019Turmas Recursais | E67: 2019 | F67: SJRJ | G67: Turmas Recursais | H67: Outubro | I67: 132 | J67: 806 | K67: 0 | L67: 25098 | M67: 3260 | N67: 3515 | O67: 0 | P67: 19449
A68: 2019SJRJVarasNovembro | B68: 2019VarasNovembro | C68: 2019SJRJVaras | D68: 2019Varas | E68: 2019 | F68: SJRJ | G68: Varas | H68: Novembro | I68: 562 | J68: 1323 | K68: 243 | L68: 109315 | M68: 11226 | N68: 6652 | O68: 3494 | P68: 469916
A69: 2019SJRJJuizadosNovembro | B69: 2019JuizadosNovembro | C69: 2019SJRJJuizados | D69: 2019Juizados | E69: 2019 | F69: SJRJ | G69: Juizados | H69: Novembro | I69: 2 | J69: 480 | K69: 85 | L69: 16675 | M69: 24928 | N69: 10091 | O69: 776 | P69: 125479
A70: 2019SJRJTurmas RecursaisNovembro | B70: 2019Turmas RecursaisNovembro | C70: 2019SJRJTurmas Recursais | D70: 2019Turmas Recursais | E70: 2019 | F70: SJRJ | G70: Turmas Recursais | H70: Novembro | I70: 100 | J70: 721 | K70: 0 | L70: 24537 | M70: 2503 | N70: 2594 | O70: 0 | P70: 19654
A71: 2019SJRJVarasDezembro | B71: 2019VarasDezembro | C71: 2019SJRJVaras | D71: 2019Varas | E71: 2019 | F71: SJRJ | G71: Varas | H71: Dezembro | I71: 485 | J71: 1067 | K71: 191 | L71: 100231 | M71: 10708 | N71: 5657 | O71: 2740 | P71: 483805
A72: 2019SJRJJuizadosDezembro | B72: 2019JuizadosDezembro | C72: 2019SJRJJuizados | D72: 2019Juizados | E72: 2019 | F72: SJRJ | G72: Juizados | H72: Dezembro | I72: 3 | J72: 319 | K72: 153 | L72: 15130 | M72: 9355 | N72: 8027 | O72: 567 | P72: 128057
A73: 2019SJRJTurmas RecursaisDezembro | B73: 2019Turmas RecursaisDezembro | C73: 2019SJRJTurmas Recursais | D73: 2019Turmas Recursais | E73: 2019 | F73: SJRJ | G73: Turmas Recursais | H73: Dezembro | I73: 63 | J73: 533 | K73: 0 | L73: 24048 | M73: 2057 | N73: 2816 | O73: 0 | P73: 19969
A74: =E74&F74&G74&H74 -> 2018SJESVarasJaneiro | B74: =E74&G74&H74 -> 2018VarasJaneiro | C74: =E74&F74&G74 -> 2018SJESVaras | D74: =E74&G74 -> 2018Varas | E74: 2018 | F74: SJES | G74: Varas | H74: Janeiro | I74: 2530 | J74: 1271 | K74: 292 | L74: 126813 | M74: 0 | N74: 0 | O74: 0 | P74: 0 | R74: 01Ant | S74: 01Atu | V74: 2530 | W74: 1271 | X74: 292 | Y74: 126813 | Z74: =IF(I74=V74,"Ok",I74-V74) -> Ok | AA74: =IF(J74=W74,"Ok",J74-W74) -> Ok | AB74: =IF(K74=X74,"Ok",K74-X74) -> Ok | AC74: =IF(L74=Y74,"Ok",L74-Y74) -> Ok | AF74: Ok | AI74: Ok | AK74: Ok | AN74: Ok | AO74: Ok | AP74: Ok | AQ74: Ok | AR74: Ok | AS74: Ok | AT74: Ok | AU74: Ok | AW74: 01Ant | AX74: 01Atu | BA74: 0 | BB74: 0 | BC74: 0 | BD74: 0 | BE74: =IF(M74=BA74,"Ok",M74-BA74) -> Ok | BF74: =IF(N74=BB74,"Ok",N74-BB74) -> Ok | BG74: =IF(O74=BC74,"Ok",O74-BC74) -> Ok | BH74: =IF(P74=BD74,"Ok",P74-BD74) -> Ok | BJ74: Ok | BK74: Ok | BL74: Ok | BM74: Ok | BN74: Ok | BO74: Ok | BP74: Ok | BQ74: Ok | BR74: Ok | BS74: Ok | BT74: Ok
A75: 2018SJESJuizadosJaneiro | B75: 2018JuizadosJaneiro | C75: 2018SJESJuizados | D75: 2018Juizados | E75: 2018 | F75: SJES | G75: Juizados | H75: Janeiro | I75: 1669 | J75: 1401 | K75: 431 | L75: 43396 | M75: 0 | N75: 0 | O75: 0 | P75: 0 | R75: 2920 | S75: 2938 | T75: =S75-R75 -> 18 | V75: 1669 | W75: 1401 | X75: 431 | Y75: 43396 | Z75: =IF(I75=V75,"Ok",I75-V75) -> Ok | AA75: =IF(J75=W75,"Ok",J75-W75) -> Ok | AB75: =IF(K75=X75,"Ok",K75-X75) -> Ok | AC75: =IF(L75=Y75,"Ok",L75-Y75) -> Ok | AF75: Ok | AI75: Ok | AK75: Ok | AN75: Ok | AO75: Ok | AP75: Ok | AQ75: Ok | AR75: Ok | AS75: Ok | AT75: Ok | AU75: Ok | AW75: 0 | AX75: 0 | AY75: =AX75-AW75 -> 0 | BA75: 0 | BB75: 0 | BC75: 0 | BD75: 0 | BE75: =IF(M75=BA75,"Ok",M75-BA75) -> Ok | BF75: =IF(N75=BB75,"Ok",N75-BB75) -> Ok | BG75: =IF(O75=BC75,"Ok",O75-BC75) -> Ok | BH75: =IF(P75=BD75,"Ok",P75-BD75) -> Ok | BJ75: Ok | BK75: Ok | BL75: Ok | BM75: Ok | BN75: Ok | BO75: Ok | BP75: Ok | BQ75: Ok | BR75: Ok | BS75: Ok | BT75: Ok
A76: 2018SJESTurmas RecursaisJaneiro | B76: 2018Turmas RecursaisJaneiro | C76: 2018SJESTurmas Recursais | D76: 2018Turmas Recursais | E76: 2018 | F76: SJES | G76: Turmas Recursais | H76: Janeiro | I76: 445 | J76: 266 | K76: 0 | L76: 18156 | M76: 0 | N76: 0 | O76: 0 | P76: 0 | V76: 445 | W76: 266 | X76: 0 | Y76: 18156 | Z76: Ok | AA76: =IF(J76=W76,"Ok",J76-W76) -> Ok | AB76: =IF(K76=X76,"Ok",K76-X76) -> Ok | AC76: Ok | AF76: Ok | AI76: 14 | AK76: Ok | AN76: 2 | AO76: Ok | AP76: Ok | AQ76: Ok | AR76: Ok | AS76: Ok | AT76: 2 | AU76: Ok | BA76: 0 | BB76: 0 | BC76: 0 | BD76: 0 | BE76: Ok | BF76: Ok | BG76: Ok | BH76: Ok | BJ76: Ok | BK76: Ok | BL76: Ok | BM76: Ok | BN76: Ok | BO76: Ok | BP76: Ok | BQ76: Ok | BR76: Ok | BS76: Ok | BT76: Ok
A77: 2018SJESVarasFevereiro | B77: 2018VarasFevereiro | C77: 2018SJESVaras | D77: 2018Varas | E77: 2018 | F77: SJES | G77: Varas | H77: Fevereiro | I77: 1475 | J77: 1759 | K77: 285 | L77: 126791 | M77: 0 | N77: 0 | O77: 0 | P77: 0 | R77: 02Ant | S77: 02Atu | V77: 1475 | W77: 1759 | X77: 285 | Y77: 126791 | Z77: Ok | AA77: Ok | AB77: Ok | AC77: =IF(L77=Y77,"Ok",L77-Y77) -> Ok | AK77: Ok | AN77: Ok | AO77: Ok | AP77: Ok | AQ77: Ok | AR77: Ok | AS77: Ok | AT77: Ok | AU77: Ok | AW77: 02Ant | AX77: 02Atu | BA77: 0 | BB77: 0 | BC77: 0 | BD77: 0 | BE77: Ok | BF77: Ok | BG77: Ok | BH77: Ok | BL77: Ok | BM77: Ok | BN77: Ok | BO77: Ok | BP77: Ok | BQ77: Ok | BR77: Ok | BS77: Ok | BT77: Ok
A78: 2018SJESJuizadosFevereiro | B78: 2018JuizadosFevereiro | C78: 2018SJESJuizados | D78: 2018Juizados | E78: 2018 | F78: SJES | G78: Juizados | H78: Fevereiro | I78: 1370 | J78: 1999 | K78: 632 | L78: 42617 | M78: 134 | N78: 1 | O78: 0 | P78: 0 | R78: 5199 | S78: 5224 | T78: =S78-R78 -> 25 | V78: 1370 | W78: 1999 | X78: 632 | Y78: 42617 | Z78: Ok | AA78: Ok | AB78: Ok | AC78: Ok | AK78: Ok | AN78: Ok | AO78: Ok | AP78: Ok | AQ78: Ok | AR78: Ok | AS78: Ok | AT78: Ok | AU78: Ok | AW78: 1 | AX78: 1 | AY78: =AX78-AW78 -> 0 | BA78: 134 | BB78: 1 | BC78: 0 | BD78: 0 | BE78: Ok | BF78: Ok | BG78: Ok | BH78: Ok | BL78: Ok | BM78: Ok | BN78: Ok | BO78: Ok | BP78: Ok | BQ78: Ok | BR78: Ok | BS78: Ok | BT78: Ok
A79: 2018SJESTurmas RecursaisFevereiro | B79: 2018Turmas RecursaisFevereiro | C79: 2018SJESTurmas Recursais | D79: 2018Turmas Recursais | E79: 2018 | F79: SJES | G79: Turmas Recursais | H79: Fevereiro | I79: 508 | J79: 1466 | K79: 0 | L79: 17748 | M79: 0 | N79: 0 | O79: 0 | P79: 0 | V79: 508 | W79: 1466 | X79: 0 | Y79: 17748 | Z79: Ok | AA79: Ok | AB79: Ok | AC79: Ok | AK79: Ok | AN79: 21 | AO79: 1 | AP79: Ok | AQ79: 2 | AR79: Ok | AS79: 1 | AT79: Ok | AU79: Ok | BA79: 0 | BB79: 0 | BC79: 0 | BD79: 0 | BE79: Ok | BF79: Ok | BG79: Ok | BH79: Ok | BL79: Ok | BM79: Ok | BN79: Ok | BO79: Ok | BP79: Ok | BQ79: Ok | BR79: Ok | BS79: Ok | BT79: Ok
A80: 2018SJESVarasMarço | B80: 2018VarasMarço | C80: 2018SJESVaras | D80: 2018Varas | E80: 2018 | F80: SJES | G80: Varas | H80: Março | I80: 1586 | J80: 2209 | K80: 337 | L80: 126287 | M80: 0 | N80: 0 | O80: 0 | P80: 0 | R80: 03Ant | S80: 03Atu | V80: 1586 | W80: 2209 | X80: 337 | Y80: 126287 | Z80: Ok | AA80: Ok | AB80: Ok | AC80: Ok | AN80: Ok | AO80: Ok | AP80: Ok | AQ80: Ok | AR80: Ok | AS80: Ok | AT80: Ok | AU80: Ok | AW80: 03Ant | AX80: 03Atu | BA80: 0 | BB80: 0 | BC80: 0 | BD80: 0 | BE80: Ok | BF80: Ok | BG80: Ok | BH80: Ok | BM80: Ok | BN80: Ok | BO80: Ok | BP80: Ok | BQ80: Ok | BR80: Ok | BS80: Ok | BT80: Ok
A81: 2018SJESJuizadosMarço | B81: 2018JuizadosMarço | C81: 2018SJESJuizados | D81: 2018Juizados | E81: 2018 | F81: SJES | G81: Juizados | H81: Março | I81: 983 | J81: 2033 | K81: 559 | L81: 41321 | M81: 967 | N81: 29 | O81: 0 | P81: 0 | R81: 5826 | S81: 5838 | T81: =S81-R81 -> 12 | V81: 983 | W81: 2033 | X81: 559 | Y81: 41321 | Z81: Ok | AA81: Ok | AB81: Ok | AC81: Ok | AN81: Ok | AO81: Ok | AP81: Ok | AQ81: Ok | AR81: Ok | AS81: Ok | AT81: Ok | AU81: Ok | AW81: 29 | AX81: 29 | AY81: =AX81-AW81 -> 0 | BA81: 967 | BB81: 29 | BC81: 0 | BD81: 0 | BE81: Ok | BF81: Ok | BG81: Ok | BH81: Ok | BM81: Ok | BN81: Ok | BO81: Ok | BP81: Ok | BQ81: Ok | BR81: Ok | BS81: Ok | BT81: Ok
A82: 2018SJESTurmas RecursaisMarço | B82: 2018Turmas RecursaisMarço | C82: 2018SJESTurmas Recursais | D82: 2018Turmas Recursais | E82: 2018 | F82: SJES | G82: Turmas Recursais | H82: Março | I82: 552 | J82: 1596 | K82: 0 | L82: 17689 | M82: 0 | N82: 0 | O82: 0 | P82: 0 | V82: 552 | W82: 1596 | X82: 0 | Y82: 17689 | Z82: Ok | AA82: Ok | AB82: Ok | AC82: Ok | AN82: Ok | AO82: 7 | AP82: Ok | AQ82: 1 | AR82: 1 | AS82: 1 | AT82: 1 | AU82: 1 | BA82: 0 | BB82: 0 | BC82: 0 | BD82: 0 | BE82: Ok | BF82: Ok | BG82: Ok | BH82: Ok | BM82: Ok | BN82: Ok | BO82: Ok | BP82: Ok | BQ82: Ok | BR82: Ok | BS82: Ok | BT82: Ok
A83: 2018SJESVarasAbril | B83: 2018VarasAbril | C83: 2018SJESVaras | D83: 2018Varas | E83: 2018 | F83: SJES | G83: Varas | H83: Abril | I83: 2178 | J83: 1377 | K83: 327 | L83: 126689 | M83: 11 | N83: 0 | O83: 0 | P83: 5 | R83: 04Ant | S83: 04Atu | V83: 2178 | W83: 1377 | X83: 327 | Y83: 126689 | Z83: Ok | AA83: Ok | AB83: Ok | AC83: Ok | AO83: Ok | AP83: Ok | AQ83: Ok | AR83: Ok | AS83: Ok | AT83: Ok | AU83: Ok | AW83: 04Ant | AX83: 04Atu | BA83: 11 | BB83: 0 | BC83: 0 | BD83: 5 | BE83: Ok | BF83: Ok | BG83: Ok | BH83: Ok | BN83: Ok | BO83: Ok | BP83: Ok | BQ83: Ok | BR83: Ok | BS83: Ok | BT83: Ok
A84: 2018SJESJuizadosAbril | B84: 2018JuizadosAbril | C84: 2018SJESJuizados | D84: 2018Juizados | E84: 2018 | F84: SJES | G84: Juizados | H84: Abril | I84: 660 | J84: 1280 | K84: 623 | L84: 40287 | M84: 1511 | N84: 52 | O84: 0 | P84: 2523 | R84: 3753 | S84: 3784 | T84: =S84-R84 -> 31 | V84: 660 | W84: 1280 | X84: 623 | Y84: 40287 | Z84: Ok | AA84: Ok | AB84: Ok | AC84: Ok | AO84: Ok | AP84: Ok | AQ84: Ok | AR84: Ok | AS84: Ok | AT84: Ok | AU84: Ok | AW84: 52 | AX84: 52 | AY84: =AX84-AW84 -> 0 | BA84: 1511 | BB84: 52 | BC84: 0 | BD84: 2523 | BE84: Ok | BF84: Ok | BG84: Ok | BH84: Ok | BN84: Ok | BO84: Ok | BP84: Ok | BQ84: Ok | BR84: Ok | BS84: Ok | BT84: Ok
A85: 2018SJESTurmas RecursaisAbril | B85: 2018Turmas RecursaisAbril | C85: 2018SJESTurmas Recursais | D85: 2018Turmas Recursais | E85: 2018 | F85: SJES | G85: Turmas Recursais | H85: Abril | I85: 722 | J85: 1127 | K85: 0 | L85: 17544 | M85: 0 | N85: 0 | O85: 0 | P85: 0 | V85: 722 | W85: 1127 | X85: 0 | Y85: 17544 | Z85: Ok | AA85: Ok | AB85: Ok | AC85: Ok | AO85: 15 | AP85: 2 | AQ85: 4 | AR85: 1 | AS85: 4 | AT85: 4 | AU85: 1 | BA85: 0 | BB85: 0 | BC85: 0 | BD85: 0 | BE85: Ok | BF85: Ok | BG85: Ok | BH85: Ok | BN85: Ok | BO85: Ok | BP85: Ok | BQ85: Ok | BR85: Ok | BS85: Ok | BT85: Ok
A86: 2018SJESVarasMaio | B86: 2018VarasMaio | C86: 2018SJESVaras | D86: 2018Varas | E86: 2018 | F86: SJES | G86: Varas | H86: Maio | I86: 1632 | J86: 2116 | K86: 355 | L86: 126457 | M86: 250 | N86: 3 | O86: 0 | P86: 226 | R86: 05Ant | S86: 05Atu | V86: 1632 | W86: 2116 | X86: 355 | Y86: 126457 | Z86: Ok | AA86: Ok | AB86: Ok | AC86: Ok | AP86: Ok | AQ86: Ok | AR86: Ok | AS86: Ok | AT86: Ok | AU86: Ok | AW86: 05Ant | AX86: 05Atu | BA86: 250 | BB86: 3 | BC86: 0 | BD86: 226 | BE86: Ok | BF86: Ok | BG86: Ok | BH86: Ok | BO86: Ok | BP86: Ok | BQ86: Ok | BR86: Ok | BS86: Ok | BT86: Ok
A87: 2018SJESJuizadosMaio | B87: 2018JuizadosMaio | C87: 2018SJESJuizados | D87: 2018Juizados | E87: 2018 | F87: SJES | G87: Juizados | H87: Maio | I87: 8 | J87: 2509 | K87: 573 | L87: 38694 | M87: 2218 | N87: 114 | O87: 5 | P87: 4447 | R87: 6051 | S87: 6079 | T87: =S87-R87 -> 28 | V87: 8 | W87: 2509 | X87: 573 | Y87: 38694 | Z87: Ok | AA87: Ok | AB87: Ok | AC87: Ok | AP87: Ok | AQ87: Ok | AR87: Ok | AS87: Ok | AT87: Ok | AU87: Ok | AW87: 117 | AX87: 117 | AY87: =AX87-AW87 -> 0 | BA87: 2218 | BB87: 114 | BC87: 5 | BD87: 4447 | BE87: Ok | BF87: Ok | BG87: Ok | BH87: Ok | BO87: Ok | BP87: Ok | BQ87: Ok | BR87: Ok | BS87: Ok | BT87: Ok
A88: 2018SJESTurmas RecursaisMaio | B88: 2018Turmas RecursaisMaio | C88: 2018SJESTurmas Recursais | D88: 2018Turmas Recursais | E88: 2018 | F88: SJES | G88: Turmas Recursais | H88: Maio | I88: 581 | J88: 1454 | K88: 0 | L88: 17083 | M88: 7 | N88: 0 | O88: 0 | P88: 7 | V88: 581 | W88: 1454 | X88: 0 | Y88: 17083 | Z88: Ok | AA88: Ok | AB88: Ok | AC88: Ok | AP88: 10 | AQ88: 7 | AR88: 4 | AS88: 6 | AT88: 1 | AU88: Ok | BA88: 7 | BB88: 0 | BC88: 0 | BD88: 7 | BE88: Ok | BF88: Ok | BG88: Ok | BH88: Ok | BO88: Ok | BP88: Ok | BQ88: Ok | BR88: Ok | BS88: Ok | BT88: Ok
A89: 2018SJESVarasJunho | B89: 2018VarasJunho | C89: 2018SJESVaras | D89: 2018Varas | E89: 2018 | F89: SJES | G89: Varas | H89: Junho | I89: 993 | J89: 2216 | K89: 396 | L89: 125574 | M89: 649 | N89: 4 | O89: 0 | P89: 891 | R89: 06Ant | S89: 06Atu | V89: 993 | W89: 2216 | X89: 396 | Y89: 125574 | Z89: Ok | AA89: Ok | AB89: Ok | AC89: Ok | AQ89: Ok | AR89: Ok | AS89: Ok | AT89: Ok | AU89: Ok | AW89: 06Ant | AX89: 06Atu | BA89: 649 | BB89: 4 | BC89: 0 | BD89: 891 | BE89: Ok | BF89: Ok | BG89: Ok | BH89: Ok | BP89: Ok | BQ89: Ok | BR89: Ok | BS89: Ok | BT89: Ok
A90: 2018SJESJuizadosJunho | B90: 2018JuizadosJunho | C90: 2018SJESJuizados | D90: 2018Juizados | E90: 2018 | F90: SJES | G90: Juizados | H90: Junho | I90: 3 | J90: 8237 | K90: 860 | L90: 35376 | M90: 2134 | N90: 186 | O90: 16 | P90: 6794 | R90: 11734 | S90: 11777 | T90: =S90-R90 -> 43 | V90: 3 | W90: 8237 | X90: 860 | Y90: 35376 | Z90: Ok | AA90: Ok | AB90: Ok | AC90: Ok | AQ90: Ok | AR90: Ok | AS90: Ok | AT90: Ok | AU90: Ok | AW90: 190 | AX90: 190 | AY90: =AX90-AW90 -> 0 | BA90: 2134 | BB90: 186 | BC90: 16 | BD90: 6794 | BE90: Ok | BF90: Ok | BG90: Ok | BH90: Ok | BP90: Ok | BQ90: Ok | BR90: Ok | BS90: Ok | BT90: Ok
A91: 2018SJESTurmas RecursaisJunho | B91: 2018Turmas RecursaisJunho | C91: 2018SJESTurmas Recursais | D91: 2018Turmas Recursais | E91: 2018 | F91: SJES | G91: Turmas Recursais | H91: Junho | I91: 581 | J91: 1324 | K91: 0 | L91: 16623 | M91: 19 | N91: 0 | O91: 0 | P91: 26 | V91: 581 | W91: 1324 | X91: 0 | Y91: 16623 | Z91: Ok | AA91: Ok | AB91: Ok | AC91: Ok | AQ91: 20 | AR91: 9 | AS91: 5 | AT91: 8 | AU91: 1 | BA91: 19 | BB91: 0 | BC91: 0 | BD91: 26 | BE91: Ok | BF91: Ok | BG91: Ok | BH91: Ok | BP91: Ok | BQ91: Ok | BR91: Ok | BS91: Ok | BT91: Ok
A92: 2018SJESVarasJulho | B92: 2018VarasJulho | C92: 2018SJESVaras | D92: 2018Varas | E92: 2018 | F92: SJES | G92: Varas | H92: Julho | I92: 262 | J92: 1578 | K92: 477 | L92: 123714 | M92: 1340 | N92: 39 | O92: 0 | P92: 2106 | R92: 07Ant | S92: 07Atu | V92: 262 | W92: 1578 | X92: 477 | Y92: 123714 | Z92: Ok | AA92: Ok | AB92: Ok | AC92: Ok | AR92: Ok | AS92: Ok | AT92: Ok | AU92: Ok | AW92: 07Ant | AX92: 07Atu | BA92: 1340 | BB92: 39 | BC92: 0 | BD92: 2106 | BE92: Ok | BF92: Ok | BG92: =IF(O92=BC92,"Ok",O92-BC92) -> Ok | BH92: Ok | BQ92: Ok | BR92: Ok | BS92: Ok | BT92: Ok
A93: 2018SJESJuizadosJulho | B93: 2018JuizadosJulho | C93: 2018SJESJuizados | D93: 2018Juizados | E93: 2018 | F93: SJES | G93: Juizados | H93: Julho | I93: 4 | J93: 3934 | K93: 1587 | L93: 31179 | M93: 2261 | N93: 372 | O93: 49 | P93: 8771 | R93: 7355 | S93: 7390 | T93: =S93-R93 -> 35 | V93: 4 | W93: 3934 | X93: 1587 | Y93: 31179 | Z93: Ok | AA93: Ok | AB93: Ok | AC93: Ok | AR93: Ok | AS93: Ok | AT93: Ok | AU93: Ok | AW93: 415 | AX93: 415 | AY93: =AX93-AW93 -> 0 | BA93: 2261 | BB93: 372 | BC93: 49 | BD93: 8771 | BE93: Ok | BF93: Ok | BG93: Ok | BH93: Ok | BQ93: Ok | BR93: Ok | BS93: Ok | BT93: Ok
A94: 2018SJESTurmas RecursaisJulho | B94: 2018Turmas RecursaisJulho | C94: 2018SJESTurmas Recursais | D94: 2018Turmas Recursais | E94: 2018 | F94: SJES | G94: Turmas Recursais | H94: Julho | I94: 1820 | J94: 1878 | K94: 0 | L94: 17362 | M94: 52 | N94: 4 | O94: 0 | P94: 78 | V94: 1820 | W94: 1878 | X94: 0 | Y94: 17362 | Z94: Ok | AA94: Ok | AB94: Ok | AC94: Ok | AR94: 24 | AS94: 7 | AT94: 2 | AU94: 2 | BA94: 52 | BB94: 4 | BC94: 0 | BD94: 78 | BE94: Ok | BF94: Ok | BG94: Ok | BH94: Ok | BQ94: Ok | BR94: Ok | BS94: Ok | BT94: Ok
A95: 2018SJESVarasAgosto | B95: 2018VarasAgosto | C95: 2018SJESVaras | D95: 2018Varas | E95: 2018 | F95: SJES | G95: Varas | H95: Agosto | I95: 334 | J95: 2049 | K95: 571 | L95: 121440 | M95: 1391 | N95: 46 | O95: 1 | P95: 3338 | R95: 08Ant | S95: 08Atu | V95: 334 | W95: 2049 | X95: 571 | Y95: 121440 | Z95: Ok | AA95: Ok | AB95: Ok | AC95: Ok | AS95: Ok | AT95: Ok | AU95: Ok | AW95: 08Ant | AX95: 08Atu | BA95: 1391 | BB95: 46 | BC95: 1 | BD95: 3338 | BE95: Ok | BF95: Ok | BG95: Ok | BH95: Ok | BR95: Ok | BS95: Ok | BT95: Ok
A96: 2018SJESJuizadosAgosto | B96: 2018JuizadosAgosto | C96: 2018SJESJuizados | D96: 2018Juizados | E96: 2018 | F96: SJES | G96: Juizados | H96: Agosto | I96: 6 | J96: 6605 | K96: 1031 | L96: 25106 | M96: 2514 | N96: 625 | O96: 29 | P96: 12029 | R96: 10867 | S96: 10882 | T96: =S96-R96 -> 15 | V96: 6 | W96: 6605 | X96: 1031 | Y96: 25106 | Z96: Ok | AA96: Ok | AB96: Ok | AC96: Ok | AS96: Ok | AT96: Ok | AU96: Ok | AW96: 676 | AX96: 676 | AY96: =AX96-AW96 -> 0 | BA96: 2514 | BB96: 625 | BC96: 29 | BD96: 12029 | BE96: Ok | BF96: Ok | BG96: Ok | BH96: Ok | BR96: Ok | BS96: Ok | BT96: Ok
A97: 2018SJESTurmas RecursaisAgosto | B97: 2018Turmas RecursaisAgosto | C97: 2018SJESTurmas Recursais | D97: 2018Turmas Recursais | E97: 2018 | F97: SJES | G97: Turmas Recursais | H97: Agosto | I97: 874 | J97: 2228 | K97: 0 | L97: 17043 | M97: 37 | N97: 5 | O97: 0 | P97: 105 | V97: 874 | W97: 2228 | X97: 0 | Y97: 17043 | Z97: Ok | AA97: Ok | AB97: Ok | AC97: Ok | AS97: 9 | AT97: 4 | AU97: 2 | BA97: 37 | BB97: 5 | BC97: 0 | BD97: 105 | BE97: Ok | BF97: Ok | BG97: Ok | BH97: Ok | BR97: Ok | BS97: Ok | BT97: Ok
A98: 2018SJESVarasSetembro | B98: 2018VarasSetembro | C98: 2018SJESVaras | D98: 2018Varas | E98: 2018 | F98: SJES | G98: Varas | H98: Setembro | I98: 248 | J98: 1969 | K98: 336 | L98: 119772 | M98: 1575 | N98: 66 | O98: 3 | P98: 4802 | R98: 09Ant | S98: 09Atu | V98: 248 | W98: 1969 | X98: 336 | Y98: 119772 | Z98: Ok | AA98: Ok | AB98: Ok | AC98: Ok | AT98: Ok | AU98: Ok | AW98: 09Ant | AX98: 09Atu | BA98: 1575 | BB98: 66 | BC98: 3 | BD98: 4802 | BE98: Ok | BF98: Ok | BG98: Ok | BH98: Ok | BS98: Ok | BT98: Ok
A99: 2018SJESJuizadosSetembro | B99: 2018JuizadosSetembro | C99: 2018SJESJuizados | D99: 2018Juizados | E99: 2018 | F99: SJES | G99: Juizados | H99: Setembro | I99: 3 | J99: 1117 | K99: 911 | L99: 19042 | M99: 2029 | N99: 726 | O99: 123 | P99: 15205 | R99: 5636 | S99: 5654 | T99: =S99-R99 -> 18 | V99: 3 | W99: 1117 | X99: 911 | Y99: 19042 | Z99: Ok | AA99: Ok | AB99: Ok | AC99: Ok | AT99: Ok | AU99: Ok | AW99: 817 | AX99: 817 | AY99: =AX99-AW99 -> 0 | BA99: 2029 | BB99: 726 | BC99: 123 | BD99: 15205 | BE99: Ok | BF99: Ok | BG99: Ok | BH99: Ok | BS99: Ok | BT99: Ok
A100: 2018SJESTurmas RecursaisSetembro | B100: 2018Turmas RecursaisSetembro | C100: 2018SJESTurmas Recursais | D100: 2018Turmas Recursais | E100: 2018 | F100: SJES | G100: Turmas Recursais | H100: Setembro | I100: 1049 | J100: 2568 | K100: 0 | L100: 16645 | M100: 133 | N100: 25 | O100: 0 | P100: 238 | V100: 1049 | W100: 2568 | X100: 0 | Y100: 16645 | Z100: Ok | AA100: Ok | AB100: Ok | AC100: Ok | AT100: 19 | AU100: -1 | BA100: 133 | BB100: 25 | BC100: 0 | BD100: 238 | BE100: Ok | BF100: Ok | BG100: Ok | BH100: Ok | BS100: Ok | BT100: Ok
A101: 2018SJESVarasOutubro | B101: 2018VarasOutubro | C101: 2018SJESVaras | D101: 2018Varas | E101: 2018 | F101: SJES | G101: Varas | H101: Outubro | I101: 276 | J101: 1483 | K101: 503 | L101: 117913 | M101: 2634 | N101: 331 | O101: 10 | P101: 7063 | R101: 10Ant | S101: 10Atu | V101: 276 | W101: 1483 | X101: 503 | Y101: 117913 | Z101: Ok | AA101: Ok | AB101: Ok | AC101: Ok | AU101: Ok | AW101: 10Ant | AX101: 10Atu | BA101: 2634 | BB101: 331 | BC101: 10 | BD101: 7063 | BE101: Ok | BF101: Ok | BG101: Ok | BH101: Ok | BT101: Ok
A102: 2018SJESJuizadosOutubro | B102: 2018JuizadosOutubro | C102: 2018SJESJuizados | D102: 2018Juizados | E102: 2018 | F102: SJES | G102: Juizados | H102: Outubro | I102: 6 | J102: 1542 | K102: 266 | L102: 14813 | M102: 2418 | N102: 1228 | O102: 313 | P102: 17262 | R102: 5045 | S102: 5061 | T102: =S102-R102 -> 16 | V102: 6 | W102: 1542 | X102: 266 | Y102: 14813 | Z102: Ok | AA102: Ok | AB102: Ok | AC102: Ok | AU102: Ok | AW102: 1593 | AX102: 1593 | AY102: =AX102-AW102 -> 0 | BA102: 2418 | BB102: 1228 | BC102: 313 | BD102: 17262 | BE102: Ok | BF102: Ok | BG102: Ok | BH102: Ok | BT102: Ok
A103: =E103&F103&G103&H103 -> 2018SJESTurmas RecursaisOutubro | B103: 2018Turmas RecursaisOutubro | C103: 2018SJESTurmas Recursais | D103: 2018Turmas Recursais | E103: 2018 | F103: SJES | G103: Turmas Recursais | H103: Outubro | I103: 249 | J103: 2036 | K103: 0 | L103: 14897 | M103: 319 | N103: 34 | O103: 0 | P103: 535 | V103: 249 | W103: 2036 | X103: 0 | Y103: 14897 | Z103: Ok | AA103: Ok | AB103: Ok | AC103: Ok | AU103: 16 | BA103: 319 | BB103: 34 | BC103: 0 | BD103: 535 | BE103: Ok | BF103: Ok | BG103: Ok | BH103: Ok | BT103: Ok
A104: 2018SJESVarasNovembro | B104: 2018VarasNovembro | C104: 2018SJESVaras | D104: 2018Varas | E104: 2018 | F104: SJES | G104: Varas | H104: Novembro | I104: 358 | J104: 1548 | K104: 354 | L104: 116782 | M104: 1727 | N104: 439 | O104: 15 | P104: 8702 | R104: 11Ant | S104: 11Atu | V104: 358 | W104: 1548 | X104: 354 | Y104: 116782 | Z104: =IF(I104=V104,"Ok",I104-V104) -> Ok | AA104: Ok | AB104: Ok | AC104: Ok | AW104: 11Ant | AX104: 11Atu | BA104: 1727 | BB104: 439 | BC104: 15 | BD104: 8702 | BE104: Ok | BF104: Ok | BG104: Ok | BH104: Ok
A105: 2018SJESJuizadosNovembro | B105: 2018JuizadosNovembro | C105: 2018SJESJuizados | D105: 2018Juizados | E105: 2018 | F105: SJES | G105: Juizados | H105: Novembro | I105: 3 | J105: 1876 | K105: 308 | L105: 13476 | M105: 1982 | N105: 1466 | O105: 443 | P105: 18587 | R105: 4697 | S105: 4715 | T105: =S105-R105 -> 18 | V105: 3 | W105: 1876 | X105: 308 | Y105: 13476 | Z105: Ok | AA105: Ok | AB105: Ok | AC105: Ok | AW105: 1964 | AX105: 1964 | AY105: =AX105-AW105 -> 0 | BA105: 1982 | BB105: 1466 | BC105: 443 | BD105: 18587 | BE105: Ok | BF105: Ok | BG105: Ok | BH105: Ok
A106: 2018SJESTurmas RecursaisNovembro | B106: 2018Turmas RecursaisNovembro | C106: 2018SJESTurmas Recursais | D106: 2018Turmas Recursais | E106: 2018 | F106: SJES | G106: Turmas Recursais | H106: Novembro | I106: 299 | J106: 1291 | K106: 0 | L106: 14560 | M106: 446 | N106: 59 | O106: 0 | P106: 957 | V106: 299 | W106: 1291 | X106: 0 | Y106: 14560 | Z106: Ok | AA106: Ok | AB106: Ok | AC106: Ok | BA106: 446 | BB106: 59 | BC106: 0 | BD106: 957 | BE106: Ok | BF106: Ok | BG106: Ok | BH106: Ok
A107: 2018SJESVarasDezembro | B107: 2018VarasDezembro | C107: 2018SJESVaras | D107: 2018Varas | E107: 2018 | F107: SJES | G107: Varas | H107: Dezembro | I107: 265 | J107: 831 | K107: 213 | L107: 95889 | M107: 2280 | N107: 269 | O107: 36 | P107: 30388 | R107: 12Ant | S107: 12Atu | V107: 265 | W107: 831 | X107: 213 | Y107: 95889 | AW107: 12Ant | AX107: 12Atu | BA107: 2280 | BB107: 269 | BC107: 36 | BD107: 30388
A108: 2018SJESJuizadosDezembro | B108: 2018JuizadosDezembro | C108: 2018SJESJuizados | D108: 2018Juizados | E108: 2018 | F108: SJES | G108: Juizados | H108: Dezembro | I108: 3 | J108: 477 | K108: 251 | L108: 11569 | M108: 2015 | N108: 782 | O108: 277 | P108: 21075 | R108: 2255 | S108: 2255 | T108: =S108-R108 -> 0 | V108: 3 | W108: 477 | X108: 251 | Y108: 11569 | AW108: 1163 | AX108: 1163 | AY108: =AX108-AW108 -> 0 | BA108: 2015 | BB108: 782 | BC108: 277 | BD108: 21075
A109: 2018SJESTurmas RecursaisDezembro | B109: 2018Turmas RecursaisDezembro | C109: 2018SJESTurmas Recursais | D109: 2018Turmas Recursais | E109: 2018 | F109: SJES | G109: Turmas Recursais | H109: Dezembro | I109: 233 | J109: 947 | K109: 0 | L109: 13698 | M109: 281 | N109: 112 | O109: 0 | P109: 1182 | V109: 233 | W109: 947 | X109: 0 | Y109: 13698 | BA109: 281 | BB109: 112 | BC109: 0 | BD109: 1182
A110: =E110&F110&G110&H110 -> 2018SJRJVarasJaneiro | B110: 2018VarasJaneiro | C110: 2018SJRJVaras | D110: 2018Varas | E110: 2018 | F110: SJRJ | G110: Varas | H110: Janeiro | I110: 9338 | J110: 8260 | K110: 1356 | L110: 622019 | M110: 0 | N110: 0 | O110: 0 | P110: 0 | R110: 01Ant | S110: 01Atu | V110: 9338 | W110: 8260 | X110: 1356 | Y110: 622019 | Z110: Ok | AA110: Ok | AB110: Ok | AC110: Ok | AF110: Ok | AI110: Ok | AK110: Ok | AN110: Ok | AO110: Ok | AP110: Ok | AQ110: Ok | AR110: Ok | AS110: Ok | AT110: Ok | AU110: Ok | AW110: 01Ant | AX110: 01Atu | BA110: 0 | BB110: 0 | BC110: 0 | BD110: 0 | BE110: Ok | BF110: Ok | BG110: Ok | BH110: Ok | BJ110: Ok | BK110: Ok | BL110: Ok | BM110: Ok | BN110: Ok | BO110: Ok | BP110: Ok | BQ110: Ok | BR110: Ok | BS110: Ok | BT110: Ok
A111: 2018SJRJJuizadosJaneiro | B111: 2018JuizadosJaneiro | C111: 2018SJRJJuizados | D111: 2018Juizados | E111: 2018 | F111: SJRJ | G111: Juizados | H111: Janeiro | I111: 8591 | J111: 6660 | K111: 1973 | L111: 141802 | M111: 0 | N111: 0 | O111: 0 | P111: 0 | R111: 16849 | S111: 17137 | T111: =S111-R111 -> 288 | V111: 8591 | W111: 6660 | X111: 1973 | Y111: 141802 | Z111: Ok | AA111: Ok | AB111: Ok | AC111: Ok | AF111: Ok | AI111: Ok | AK111: Ok | AN111: Ok | AO111: Ok | AP111: Ok | AQ111: Ok | AR111: Ok | AS111: Ok | AT111: Ok | AU111: Ok | AW111: 0 | AX111: 0 | AY111: =AX111-AW111 -> 0 | BA111: 0 | BB111: 0 | BC111: 0 | BD111: 0 | BE111: Ok | BF111: Ok | BG111: Ok | BH111: Ok | BJ111: Ok | BK111: Ok | BL111: Ok | BM111: Ok | BN111: Ok | BO111: Ok | BP111: Ok | BQ111: Ok | BR111: Ok | BS111: Ok | BT111: Ok
A112: 2018SJRJTurmas RecursaisJaneiro | B112: 2018Turmas RecursaisJaneiro | C112: 2018SJRJTurmas Recursais | D112: 2018Turmas Recursais | E112: 2018 | F112: SJRJ | G112: Turmas Recursais | H112: Janeiro | I112: 1958 | J112: 2217 | K112: 0 | L112: 57812 | M112: 0 | N112: 0 | O112: 0 | P112: 0 | V112: 1958 | W112: 2217 | X112: 0 | Y112: 57812 | Z112: Ok | AA112: Ok | AB112: Ok | AC112: Ok | AF112: Ok | AI112: 193 | AK112: Ok | AN112: 82 | AO112: 3 | AP112: 2 | AQ112: 1 | AR112: 5 | AS112: Ok | AT112: 1 | AU112: 1 | BA112: 0 | BB112: 0 | BC112: 0 | BD112: 0 | BE112: Ok | BF112: Ok | BG112: Ok | BH112: Ok | BJ112: Ok | BK112: Ok | BL112: Ok | BM112: Ok | BN112: Ok | BO112: Ok | BP112: Ok | BQ112: Ok | BR112: Ok | BS112: Ok | BT112: Ok
A113: 2018SJRJVarasFevereiro | B113: 2018VarasFevereiro | C113: 2018SJRJVaras | D113: 2018Varas | E113: 2018 | F113: SJRJ | G113: Varas | H113: Fevereiro | I113: 6065 | J113: 7432 | K113: 1349 | L113: 613659 | M113: 0 | N113: 0 | O113: 0 | P113: 0 | R113: 02Ant | S113: 02Atu | V113: 6065 | W113: 7432 | X113: 1349 | Y113: 613659 | Z113: Ok | AA113: Ok | AB113: Ok | AC113: Ok | AK113: Ok | AN113: Ok | AO113: Ok | AP113: Ok | AQ113: Ok | AR113: Ok | AS113: Ok | AT113: Ok | AU113: Ok | AW113: 02Ant | AX113: 02Atu | BA113: 0 | BB113: 0 | BC113: 0 | BD113: 0 | BE113: Ok | BF113: Ok | BG113: Ok | BH113: Ok | BL113: Ok | BM113: Ok | BN113: Ok | BO113: Ok | BP113: Ok | BQ113: Ok | BR113: Ok | BS113: Ok | BT113: Ok
A114: 2018SJRJJuizadosFevereiro | B114: 2018JuizadosFevereiro | C114: 2018SJRJJuizados | D114: 2018Juizados | E114: 2018 | F114: SJRJ | G114: Juizados | H114: Fevereiro | I114: 7287 | J114: 8778 | K114: 2506 | L114: 141269 | M114: 0 | N114: 0 | O114: 0 | P114: 0 | R114: 19502 | S114: 19679 | T114: =S114-R114 -> 177 | V114: 7287 | W114: 8778 | X114: 2506 | Y114: 141269 | Z114: Ok | AA114: Ok | AB114: Ok | AC114: Ok | AK114: Ok | AN114: Ok | AO114: Ok | AP114: Ok | AQ114: Ok | AR114: Ok | AS114: Ok | AT114: Ok | AU114: Ok | AW114: 0 | AX114: 0 | AY114: =AX114-AW114 -> 0 | BA114: 0 | BB114: 0 | BC114: 0 | BD114: 0 | BE114: Ok | BF114: Ok | BG114: Ok | BH114: Ok | BL114: Ok | BM114: Ok | BN114: Ok | BO114: Ok | BP114: Ok | BQ114: Ok | BR114: Ok | BS114: Ok | BT114: Ok
A115: 2018SJRJTurmas RecursaisFevereiro | B115: 2018Turmas RecursaisFevereiro | C115: 2018SJRJTurmas Recursais | D115: 2018Turmas Recursais | E115: 2018 | F115: SJRJ | G115: Turmas Recursais | H115: Fevereiro | I115: 2644 | J115: 3469 | K115: 0 | L115: 57441 | M115: 0 | N115: 0 | O115: 0 | P115: 0 | V115: 2644 | W115: 3469 | X115: 0 | Y115: 57441 | Z115: Ok | AA115: Ok | AB115: Ok | AC115: Ok | AK115: Ok | AN115: 166 | AO115: 5 | AP115: -1 | AQ115: 1 | AR115: 1 | AS115: Ok | AT115: Ok | AU115: 5 | BA115: 0 | BB115: 0 | BC115: 0 | BD115: 0 | BE115: Ok | BF115: Ok | BG115: Ok | BH115: Ok | BL115: Ok | BM115: Ok | BN115: Ok | BO115: Ok | BP115: Ok | BQ115: Ok | BR115: Ok | BS115: Ok | BT115: Ok
A116: 2018SJRJVarasMarço | B116: 2018VarasMarço | C116: 2018SJRJVaras | D116: 2018Varas | E116: 2018 | F116: SJRJ | G116: Varas | H116: Março | I116: 6598 | J116: 9747 | K116: 1740 | L116: 608484 | M116: 0 | N116: 0 | O116: 0 | P116: 0 | R116: 03Ant | S116: 03Atu | V116: 6598 | W116: 9747 | X116: 1740 | Y116: 608484 | Z116: Ok | AA116: Ok | AB116: Ok | AC116: Ok | AN116: Ok | AO116: Ok | AP116: Ok | AQ116: Ok | AR116: Ok | AS116: Ok | AT116: Ok | AU116: Ok | AW116: 03Ant | AX116: 03Atu | BA116: 0 | BB116: 0 | BC116: 0 | BD116: 0 | BE116: Ok | BF116: Ok | BG116: Ok | BH116: Ok | BM116: Ok | BN116: Ok | BO116: Ok | BP116: Ok | BQ116: Ok | BR116: Ok | BS116: Ok | BT116: Ok
A117: 2018SJRJJuizadosMarço | B117: 2018JuizadosMarço | C117: 2018SJRJJuizados | D117: 2018Juizados | E117: 2018 | F117: SJRJ | G117: Juizados | H117: Março | I117: 8985 | J117: 10344 | K117: 2635 | L117: 142338 | M117: 342 | N117: 5 | O117: 0 | P117: 0 | R117: 23796 | S117: 23856 | T117: =S117-R117 -> 60 | V117: 8985 | W117: 10344 | X117: 2635 | Y117: 142338 | Z117: Ok | AA117: Ok | AB117: Ok | AC117: Ok | AN117: Ok | AO117: Ok | AP117: Ok | AQ117: Ok | AR117: Ok | AS117: Ok | AT117: Ok | AU117: Ok | AW117: 5 | AX117: 5 | AY117: =AX117-AW117 -> 0 | BA117: 342 | BB117: 5 | BC117: 0 | BD117: 0 | BE117: Ok | BF117: Ok | BG117: Ok | BH117: Ok | BM117: Ok | BN117: Ok | BO117: Ok | BP117: Ok | BQ117: Ok | BR117: Ok | BS117: Ok | BT117: Ok
A118: 2018SJRJTurmas RecursaisMarço | B118: 2018Turmas RecursaisMarço | C118: 2018SJRJTurmas Recursais | D118: 2018Turmas Recursais | E118: 2018 | F118: SJRJ | G118: Turmas Recursais | H118: Março | I118: 2590 | J118: 3765 | K118: 0 | L118: 56872 | M118: 0 | N118: 0 | O118: 0 | P118: 0 | V118: 2590 | W118: 3765 | X118: 0 | Y118: 56872 | Z118: Ok | AA118: Ok | AB118: Ok | AC118: Ok | AN118: Ok | AO118: 43 | AP118: 5 | AQ118: 4 | AR118: 1 | AS118: Ok | AT118: 2 | AU118: 5 | BA118: 0 | BB118: 0 | BC118: 0 | BD118: 0 | BE118: Ok | BF118: Ok | BG118: Ok | BH118: Ok | BM118: Ok | BN118: Ok | BO118: Ok | BP118: Ok | BQ118: Ok | BR118: Ok | BS118: Ok | BT118: Ok
A119: 2018SJRJVarasAbril | B119: 2018VarasAbril | C119: 2018SJRJVaras | D119: 2018Varas | E119: 2018 | F119: SJRJ | G119: Varas | H119: Abril | I119: 15884 | J119: 10595 | K119: 1717 | L119: 613541 | M119: 14 | N119: 0 | O119: 0 | P119: 0 | R119: 04Ant | S119: 04Atu | V119: 15884 | W119: 10595 | X119: 1717 | Y119: 613541 | Z119: Ok | AA119: Ok | AB119: Ok | AC119: Ok | AO119: Ok | AP119: Ok | AQ119: Ok | AR119: Ok | AS119: Ok | AT119: Ok | AU119: Ok | AW119: 04Ant | AX119: 04Atu | BA119: 14 | BB119: 0 | BC119: 0 | BD119: 0 | BE119: Ok | BF119: Ok | BG119: Ok | BH119: Ok | BN119: Ok | BO119: Ok | BP119: Ok | BQ119: Ok | BR119: Ok | BS119: Ok | BT119: Ok
A120: 2018SJRJJuizadosAbril | B120: 2018JuizadosAbril | C120: 2018SJRJJuizados | D120: 2018Juizados | E120: 2018 | F120: SJRJ | G120: Juizados | H120: Abril | I120: 5855 | J120: 10336 | K120: 3193 | L120: 140316 | M120: 3492 | N120: 125 | O120: 1 | P120: 3648 | R120: 24204 | S120: 24454 | T120: =S120-R120 -> 250 | V120: 5855 | W120: 10336 | X120: 3193 | Y120: 140316 | Z120: Ok | AA120: Ok | AB120: Ok | AC120: Ok | AO120: Ok | AP120: Ok | AQ120: Ok | AR120: Ok | AS120: Ok | AT120: Ok | AU120: Ok | AW120: 125 | AX120: 125 | AY120: =AX120-AW120 -> 0 | BA120: 3492 | BB120: 125 | BC120: 1 | BD120: 3648 | BE120: Ok | BF120: Ok | BG120: Ok | BH120: Ok | BN120: Ok | BO120: Ok | BP120: Ok | BQ120: Ok | BR120: Ok | BS120: Ok | BT120: Ok
A121: 2018SJRJTurmas RecursaisAbril | B121: 2018Turmas RecursaisAbril | C121: 2018SJRJTurmas Recursais | D121: 2018Turmas Recursais | E121: 2018 | F121: SJRJ | G121: Turmas Recursais | H121: Abril | I121: 3177 | J121: 3523 | K121: 0 | L121: 56110 | M121: 2 | N121: 0 | O121: 0 | P121: 2 | V121: 3177 | W121: 3523 | X121: 0 | Y121: 56110 | Z121: Ok | AA121: Ok | AB121: Ok | AC121: Ok | AO121: 191 | AP121: 35 | AQ121: 16 | AR121: 2 | AS121: -1 | AT121: 4 | AU121: 3 | BA121: 2 | BB121: 0 | BC121: 0 | BD121: 2 | BE121: Ok | BF121: Ok | BG121: Ok | BH121: Ok | BN121: Ok | BO121: Ok | BP121: Ok | BQ121: Ok | BR121: Ok | BS121: Ok | BT121: Ok
A122: 2018SJRJVarasMaio | B122: 2018VarasMaio | C122: 2018SJRJVaras | D122: 2018Varas | E122: 2018 | F122: SJRJ | G122: Varas | H122: Maio | I122: 8077 | J122: 12527 | K122: 2252 | L122: 610014 | M122: 997 | N122: 30 | O122: 0 | P122: 916 | R122: 05Ant | S122: 05Atu | V122: 8077 | W122: 12527 | X122: 2252 | Y122: 610014 | Z122: Ok | AA122: Ok | AB122: Ok | AC122: Ok | AP122: Ok | AQ122: Ok | AR122: Ok | AS122: Ok | AT122: Ok | AU122: Ok | AW122: 05Ant | AX122: 05Atu | BA122: 997 | BB122: 30 | BC122: 0 | BD122: 916 | BE122: Ok | BF122: Ok | BG122: Ok | BH122: Ok | BO122: Ok | BP122: Ok | BQ122: Ok | BR122: Ok | BS122: Ok | BT122: Ok
A123: 2018SJRJJuizadosMaio | B123: 2018JuizadosMaio | C123: 2018SJRJJuizados | D123: 2018Juizados | E123: 2018 | F123: SJRJ | G123: Juizados | H123: Maio | I123: 3452 | J123: 19064 | K123: 2956 | L123: 134356 | M123: 7712 | N123: 443 | O123: 1 | P123: 10975 | R123: 35520 | S123: 35961 | T123: =S123-R123 -> 441 | V123: 3452 | W123: 19064 | X123: 2956 | Y123: 134356 | Z123: Ok | AA123: Ok | AB123: Ok | AC123: Ok | AP123: Ok | AQ123: Ok | AR123: Ok | AS123: Ok | AT123: Ok | AU123: Ok | AW123: 475 | AX123: 475 | AY123: =AX123-AW123 -> 0 | BA123: 7712 | BB123: 443 | BC123: 1 | BD123: 10975 | BE123: Ok | BF123: Ok | BG123: Ok | BH123: Ok | BO123: Ok | BP123: Ok | BQ123: Ok | BR123: Ok | BS123: Ok | BT123: Ok
A124: 2018SJRJTurmas RecursaisMaio | B124: 2018Turmas RecursaisMaio | C124: 2018SJRJTurmas Recursais | D124: 2018Turmas Recursais | E124: 2018 | F124: SJRJ | G124: Turmas Recursais | H124: Maio | I124: 2890 | J124: 4370 | K124: 0 | L124: 56361 | M124: 21 | N124: 2 | O124: 0 | P124: 23 | V124: 2890 | W124: 4370 | X124: 0 | Y124: 56361 | Z124: Ok | AA124: Ok | AB124: Ok | AC124: Ok | AP124: 206 | AQ124: 88 | AR124: 34 | AS124: 94 | AT124: 9 | AU124: 10 | BA124: 21 | BB124: 2 | BC124: 0 | BD124: 23 | BE124: Ok | BF124: Ok | BG124: Ok | BH124: Ok | BO124: Ok | BP124: Ok | BQ124: Ok | BR124: Ok | BS124: Ok | BT124: Ok
A125: 2018SJRJVarasJunho | B125: 2018VarasJunho | C125: 2018SJRJVaras | D125: 2018Varas | E125: 2018 | F125: SJRJ | G125: Varas | H125: Junho | I125: 6180 | J125: 10491 | K125: 2141 | L125: 606727 | M125: 1487 | N125: 68 | O125: 7 | P125: 2317 | R125: 06Ant | S125: 06Atu | V125: 6180 | W125: 10491 | X125: 2141 | Y125: 606727 | Z125: Ok | AA125: Ok | AB125: Ok | AC125: Ok | AQ125: Ok | AR125: Ok | AS125: Ok | AT125: Ok | AU125: Ok | AW125: 06Ant | AX125: 06Atu | BA125: 1487 | BB125: 68 | BC125: 7 | BD125: 2317 | BE125: Ok | BF125: Ok | BG125: Ok | BH125: Ok | BP125: Ok | BQ125: Ok | BR125: Ok | BS125: Ok | BT125: Ok
A126: 2018SJRJJuizadosJunho | B126: 2018JuizadosJunho | C126: 2018SJRJJuizados | D126: 2018Juizados | E126: 2018 | F126: SJRJ | G126: Juizados | H126: Junho | I126: 889 | J126: 23419 | K126: 4433 | L126: 114265 | M126: 8427 | N126: 1117 | O126: 44 | P126: 19446 | R126: 39500 | S126: 39882 | T126: =S126-R126 -> 382 | V126: 889 | W126: 23419 | X126: 4433 | Y126: 114265 | Z126: Ok | AA126: Ok | AB126: Ok | AC126: Ok | AQ126: Ok | AR126: Ok | AS126: Ok | AT126: Ok | AU126: Ok | AW126: 1186 | AX126: 1186 | AY126: =AX126-AW126 -> 0 | BA126: 8427 | BB126: 1117 | BC126: 44 | BD126: 19446 | BE126: Ok | BF126: Ok | BG126: Ok | BH126: Ok | BP126: Ok | BQ126: Ok | BR126: Ok | BS126: Ok | BT126: Ok
A127: 2018SJRJTurmas RecursaisJunho | B127: 2018Turmas RecursaisJunho | C127: 2018SJRJTurmas Recursais | D127: 2018Turmas Recursais | E127: 2018 | F127: SJRJ | G127: Turmas Recursais | H127: Junho | I127: 4361 | J127: 5972 | K127: 0 | L127: 57838 | M127: 69 | N127: 1 | O127: 0 | P127: 91 | V127: 4361 | W127: 5972 | X127: 0 | Y127: 57838 | Z127: Ok | AA127: Ok | AB127: Ok | AC127: Ok | AQ127: 321 | AR127: 44 | AS127: 10 | AT127: 2 | AU127: 5 | BA127: 69 | BB127: 1 | BC127: 0 | BD127: 91 | BE127: Ok | BF127: Ok | BG127: Ok | BH127: Ok | BP127: Ok | BQ127: Ok | BR127: Ok | BS127: Ok | BT127: Ok
A128: 2018SJRJVarasJulho | B128: 2018VarasJulho | C128: 2018SJRJVaras | D128: 2018Varas | E128: 2018 | F128: SJRJ | G128: Varas | H128: Julho | I128: 1516 | J128: 7879 | K128: 2893 | L128: 597546 | M128: 5601 | N128: 142 | O128: 6 | P128: 7334 | R128: 07Ant | S128: 07Atu | V128: 1516 | W128: 7879 | X128: 2893 | Y128: 597546 | Z128: Ok | AA128: Ok | AB128: Ok | AC128: Ok | AR128: Ok | AS128: Ok | AT128: Ok | AU128: Ok | AW128: 07Ant | AX128: 07Atu | BA128: 5601 | BB128: 142 | BC128: 6 | BD128: 7334 | BE128: Ok | BF128: Ok | BG128: Ok | BH128: Ok | BQ128: Ok | BR128: Ok | BS128: Ok | BT128: Ok
A129: 2018SJRJJuizadosJulho | B129: 2018JuizadosJulho | C129: 2018SJRJJuizados | D129: 2018Juizados | E129: 2018 | F129: SJRJ | G129: Juizados | H129: Julho | I129: 20 | J129: 12310 | K129: 5438 | L129: 98178 | M129: 9933 | N129: 2026 | O129: 148 | P129: 28126 | R129: 24774 | S129: 25670 | T129: =S129-R129 -> 896 | V129: 20 | W129: 12310 | X129: 5438 | Y129: 98178 | Z129: Ok | AA129: Ok | AB129: Ok | AC129: Ok | AR129: Ok | AS129: Ok | AT129: Ok | AU129: Ok | AW129: 2172 | AX129: 2172 | AY129: =AX129-AW129 -> 0 | BA129: 9933 | BB129: 2026 | BC129: 148 | BD129: 28126 | BE129: Ok | BF129: Ok | BG129: Ok | BH129: Ok | BQ129: Ok | BR129: Ok | BS129: Ok | BT129: Ok
A130: 2018SJRJTurmas RecursaisJulho | B130: =E130&G130&H130 -> 2018Turmas RecursaisJulho | C130: =E130&F130&G130 -> 2018SJRJTurmas Recursais | D130: =E130&G130 -> 2018Turmas Recursais | E130: 2018 | F130: SJRJ | G130: Turmas Recursais | H130: Julho | I130: 4912 | J130: 5481 | K130: 0 | L130: 58101 | M130: 173 | N130: 4 | O130: 0 | P130: 261 | V130: 4912 | W130: 5481 | X130: 0 | Y130: 58101 | Z130: Ok | AA130: Ok | AB130: Ok | AC130: Ok | AR130: 828 | AS130: 41 | AT130: 14 | AU130: 13 | BA130: 173 | BB130: 4 | BC130: 0 | BD130: 261 | BE130: Ok | BF130: Ok | BG130: Ok | BH130: Ok | BQ130: Ok | BR130: Ok | BS130: Ok | BT130: Ok
A131: 2018SJRJVarasAgosto | B131: 2018VarasAgosto | C131: 2018SJRJVaras | D131: 2018Varas | E131: 2018 | F131: SJRJ | G131: Varas | H131: Agosto | I131: 1514 | J131: 11873 | K131: 2777 | L131: 585316 | M131: 7772 | N131: 383 | O131: 23 | P131: 14301 | R131: 08Ant | S131: 08Atu | V131: 1514 | W131: 11873 | X131: 2777 | Y131: 585316 | Z131: Ok | AA131: Ok | AB131: Ok | AC131: Ok | AS131: Ok | AT131: Ok | AU131: Ok | AW131: 08Ant | AX131: 08Atu | BA131: 7772 | BB131: 383 | BC131: 23 | BD131: 14301 | BE131: Ok | BF131: Ok | BG131: Ok | BH131: Ok | BR131: Ok | BS131: Ok | BT131: Ok
A132: 2018SJRJJuizadosAgosto | B132: 2018JuizadosAgosto | C132: 2018SJRJJuizados | D132: 2018Juizados | E132: 2018 | F132: SJRJ | G132: Juizados | H132: Agosto | I132: 10 | J132: 12558 | K132: 3708 | L132: 83467 | M132: 10846 | N132: 3549 | O132: 285 | P132: 37369 | R132: 30274 | S132: 30362 | T132: =S132-R132 -> 88 | V132: 10 | W132: 12558 | X132: 3708 | Y132: 83467 | Z132: Ok | AA132: Ok | AB132: Ok | AC132: Ok | AS132: Ok | AT132: Ok | AU132: Ok | AW132: 3946 | AX132: 3946 | AY132: =AX132-AW132 -> 0 | BA132: 10846 | BB132: 3549 | BC132: 285 | BD132: 37369 | BE132: Ok | BF132: Ok | BG132: Ok | BH132: Ok | BR132: Ok | BS132: Ok | BT132: Ok
A133: 2018SJRJTurmas RecursaisAgosto | B133: 2018Turmas RecursaisAgosto | C133: 2018SJRJTurmas Recursais | D133: 2018Turmas Recursais | E133: 2018 | F133: SJRJ | G133: Turmas Recursais | H133: Agosto | I133: 4171 | J133: 5931 | K133: 0 | L133: 59073 | M133: 338 | N133: 14 | O133: 0 | P133: 596 | V133: 4171 | W133: 5931 | X133: 0 | Y133: 59073 | Z133: Ok | AA133: Ok | AB133: Ok | AC133: Ok | AS133: 73 | AT133: 7 | AU133: 8 | BA133: 338 | BB133: 14 | BC133: 0 | BD133: 596 | BE133: Ok | BF133: Ok | BG133: Ok | BH133: Ok | BR133: Ok | BS133: Ok | BT133: Ok
A134: 2018SJRJVarasSetembro | B134: 2018VarasSetembro | C134: 2018SJRJVaras | D134: 2018Varas | E134: 2018 | F134: SJRJ | G134: Varas | H134: Setembro | I134: 1229 | J134: 8888 | K134: 2231 | L134: 576834 | M134: 5731 | N134: 517 | O134: 44 | P134: 19107 | R134: 09Ant | S134: 09Atu | V134: 1229 | W134: 8888 | X134: 2231 | Y134: 576834 | Z134: Ok | AA134: Ok | AB134: Ok | AC134: Ok | AT134: Ok | AU134: Ok | AW134: 09Ant | AX134: 09Atu | BA134: 5731 | BB134: 517 | BC134: 44 | BD134: 19107 | BE134: Ok | BF134: Ok | BG134: Ok | BH134: Ok | BS134: Ok | BT134: Ok
A135: 2018SJRJJuizadosSetembro | B135: 2018JuizadosSetembro | C135: 2018SJRJJuizados | D135: 2018Juizados | E135: 2018 | F135: SJRJ | G135: Juizados | H135: Setembro | I135: 8 | J135: 10413 | K135: 2984 | L135: 70234 | M135: 9447 | N135: 3964 | O135: 515 | P135: 45387 | R135: 23972 | S135: 24268 | T135: =S135-R135 -> 296 | V135: 8 | W135: 10413 | X135: 2984 | Y135: 70234 | Z135: Ok | AA135: Ok | AB135: Ok | AC135: Ok | AT135: Ok | AU135: Ok | AW135: 4501 | AX135: 4501 | AY135: =AX135-AW135 -> 0 | BA135: 9447 | BB135: 3964 | BC135: 515 | BD135: 45387 | BE135: Ok | BF135: Ok | BG135: Ok | BH135: Ok | BS135: Ok | BT135: Ok
A136: 2018SJRJTurmas RecursaisSetembro | B136: 2018Turmas RecursaisSetembro | C136: 2018SJRJTurmas Recursais | D136: 2018Turmas Recursais | E136: 2018 | F136: SJRJ | G136: Turmas Recursais | H136: Setembro | I136: 2965 | J136: 4967 | K136: 0 | L136: 58083 | M136: 564 | N136: 20 | O136: 0 | P136: 1156 | V136: 2965 | W136: 4967 | X136: 0 | Y136: 58083 | Z136: Ok | AA136: Ok | AB136: Ok | AC136: Ok | AT136: 280 | AU136: 16 | BA136: 564 | BB136: 20 | BC136: 0 | BD136: 1156 | BE136: Ok | BF136: Ok | BG136: Ok | BH136: Ok | BS136: Ok | BT136: Ok
A137: 2018SJRJVarasOutubro | B137: 2018VarasOutubro | C137: 2018SJRJVaras | D137: 2018Varas | E137: 2018 | F137: SJRJ | G137: Varas | H137: Outubro | I137: 1290 | J137: 9729 | K137: 2858 | L137: 565794 | M137: 7260 | N137: 806 | O137: 129 | P137: 24620 | R137: 10Ant | S137: 10Atu | V137: 1290 | W137: 9729 | X137: 2858 | Y137: 565794 | Z137: Ok | AA137: Ok | AB137: Ok | AC137: Ok | AU137: Ok | AW137: 10Ant | AX137: 10Atu | BA137: 7260 | BB137: 806 | BC137: 129 | BD137: 24620 | BE137: Ok | BF137: Ok | BG137: Ok | BH137: Ok | BT137: Ok
A138: 2018SJRJJuizadosOutubro | B138: 2018JuizadosOutubro | C138: 2018SJRJJuizados | D138: 2018Juizados | E138: 2018 | F138: SJRJ | G138: Juizados | H138: Outubro | I138: 8 | J138: 7724 | K138: 2181 | L138: 51846 | M138: 10742 | N138: 6399 | O138: 1196 | P138: 62845 | R138: 21873 | S138: 21932 | T138: =S138-R138 -> 59 | V138: 8 | W138: 7724 | X138: 2181 | Y138: 51846 | Z138: Ok | AA138: Ok | AB138: Ok | AC138: Ok | AU138: Ok | AW138: 7507 | AX138: 7507 | AY138: =AX138-AW138 -> 0 | BA138: 10742 | BB138: 6399 | BC138: 1196 | BD138: 62845 | BE138: Ok | BF138: Ok | BG138: Ok | BH138: Ok | BT138: Ok
A139: 2018SJRJTurmas RecursaisOutubro | B139: 2018Turmas RecursaisOutubro | C139: 2018SJRJTurmas Recursais | D139: 2018Turmas Recursais | E139: 2018 | F139: SJRJ | G139: Turmas Recursais | H139: Outubro | I139: 2122 | J139: 4479 | K139: 0 | L139: 55392 | M139: 1262 | N139: 302 | O139: 0 | P139: 2398 | V139: 2122 | W139: 4479 | X139: 0 | Y139: 55392 | Z139: =IF(I139=V139,"Ok",I139-V139) -> Ok | AA139: =IF(J139=W139,"Ok",J139-W139) -> Ok | AB139: =IF(K139=X139,"Ok",K139-X139) -> Ok | AC139: =IF(L139=Y139,"Ok",L139-Y139) -> Ok | AU139: 59 | BA139: 1262 | BB139: 302 | BC139: 0 | BD139: 2398 | BE139: =IF(M139=BA139,"Ok",M139-BA139) -> Ok | BF139: =IF(N139=BB139,"Ok",N139-BB139) -> Ok | BG139: =IF(O139=BC139,"Ok",O139-BC139) -> Ok | BH139: =IF(P139=BD139,"Ok",P139-BD139) -> Ok | BT139: Ok
A140: 2018SJRJVarasNovembro | B140: 2018VarasNovembro | C140: 2018SJRJVaras | D140: 2018Varas | E140: 2018 | F140: SJRJ | G140: Varas | H140: Novembro | I140: 809 | J140: 7058 | K140: 1697 | L140: 558734 | M140: 5834 | N140: 744 | O140: 105 | P140: 29457 | R140: 11Ant | S140: 11Atu | V140: 809 | W140: 7058 | X140: 1697 | Y140: 558734 | Z140: =IF(I140=V140,"Ok",I140-V140) -> Ok | AA140: Ok | AB140: Ok | AC140: Ok | AW140: 11Ant | AX140: 11Atu | BA140: 5834 | BB140: 744 | BC140: 105 | BD140: 29457 | BE140: Ok | BF140: Ok | BG140: Ok | BH140: Ok
A141: 2018SJRJJuizadosNovembro | B141: 2018JuizadosNovembro | C141: 2018SJRJJuizados | D141: 2018Juizados | E141: 2018 | F141: SJRJ | G141: Juizados | H141: Novembro | I141: 1 | J141: 4212 | K141: 991 | L141: 41630 | M141: 8901 | N141: 5680 | O141: 1851 | P141: 73534 | R141: 13893 | S141: 13981 | T141: =S141-R141 -> 88 | V141: 1 | W141: 4212 | X141: 991 | Y141: 41630 | Z141: Ok | AA141: Ok | AB141: Ok | AC141: Ok | AW141: 6811 | AX141: 6811 | AY141: =AX141-AW141 -> 0 | BA141: 8901 | BB141: 5680 | BC141: 1851 | BD141: 73534 | BE141: Ok | BF141: Ok | BG141: Ok | BH141: Ok
A142: 2018SJRJTurmas RecursaisNovembro | B142: 2018Turmas RecursaisNovembro | C142: 2018SJRJTurmas Recursais | D142: 2018Turmas Recursais | E142: 2018 | F142: SJRJ | G142: Turmas Recursais | H142: Novembro | I142: 992 | J142: 2711 | K142: 0 | L142: 53258 | M142: 1895 | N142: 387 | O142: 0 | P142: 4249 | V142: 992 | W142: 2711 | X142: 0 | Y142: 53258 | Z142: Ok | AA142: Ok | AB142: Ok | AC142: Ok | BA142: 1895 | BB142: 387 | BC142: 0 | BD142: 4249 | BE142: =IF(M142=BA142,"Ok",M142-BA142) -> Ok | BF142: =IF(N142=BB142,"Ok",N142-BB142) -> Ok | BG142: =IF(O142=BC142,"Ok",O142-BC142) -> Ok | BH142: =IF(P142=BD142,"Ok",P142-BD142) -> Ok
A143: 2018SJRJVarasDezembro | B143: 2018VarasDezembro | C143: 2018SJRJVaras | D143: 2018Varas | E143: 2018 | F143: SJRJ | G143: Varas | H143: Dezembro | I143: 620 | J143: 5333 | K143: 1127 | L143: 530063 | M143: 9097 | N143: 840 | O143: 157 | P143: 61696 | R143: 12Ant | S143: 12Atu | V143: 620 | W143: 5333 | X143: 1127 | Y143: 530063 | AW143: 12Ant | AX143: 12Atu | BA143: 9097 | BB143: 840 | BC143: 157 | BD143: 61696
A144: 2018SJRJJuizadosDezembro | B144: 2018JuizadosDezembro | C144: 2018SJRJJuizados | D144: 2018Juizados | E144: 2018 | F144: SJRJ | G144: Juizados | H144: Dezembro | I144: 2 | J144: 2556 | K144: 580 | L144: 36713 | M144: 8372 | N144: 5169 | O144: 1389 | P144: 80327 | R144: 9880 | S144: 9880 | T144: =S144-R144 -> 0 | V144: 2 | W144: 2556 | X144: 580 | Y144: 36713 | AW144: 6465 | AX144: 6465 | AY144: =AX144-AW144 -> 0 | BA144: 8372 | BB144: 5169 | BC144: 1389 | BD144: 80327
A145: 2018SJRJTurmas RecursaisDezembro | B145: 2018Turmas RecursaisDezembro | C145: 2018SJRJTurmas Recursais | D145: 2018Turmas Recursais | E145: 2018 | F145: SJRJ | G145: Turmas Recursais | H145: Dezembro | I145: 70 | J145: 1991 | K145: 0 | L145: 50962 | M145: 1424 | N145: 456 | O145: 0 | P145: 5497 | V145: 70 | W145: 1991 | X145: 0 | Y145: 50962 | BA145: 1424 | BB145: 456 | BC145: 0 | BD145: 5497
A146: 2017SJESVarasJaneiro | B146: 2017VarasJaneiro | C146: 2017SJESVaras | D146: 2017Varas | E146: 2017 | F146: SJES | G146: Varas | H146: Janeiro | I146: 2955 | J146: 792 | K146: 233 | L146: 124525 | R146: 01Ant | S146: 01Atu | V146: 2955 | W146: 792 | X146: 233 | Y146: 124525 | Z146: Ok | AA146: Ok | AB146: Ok | AC146: Ok | AE146: 1 | AF146: Ok | AG146: Ok | AH146: 1 | AI146: Ok | AJ146: 1 | AK146: Ok | AL146: Ok | AM146: 1 | AN146: Ok | AO146: Ok | AP146: Ok | AQ146: Ok | AR146: Ok | AS146: Ok | AT146: Ok | AU146: Ok
A147: 2017SJESJuizadosJaneiro | B147: 2017JuizadosJaneiro | C147: 2017SJESJuizados | D147: 2017Juizados | E147: 2017 | F147: SJES | G147: Juizados | H147: Janeiro | I147: 1543 | J147: 1182 | K147: 415 | L147: 40309 | R147: 2037 | S147: 2047 | T147: =S147-R147 -> 10 | V147: 1543 | W147: 1182 | X147: 415 | Y147: 40309 | Z147: Ok | AA147: Ok | AB147: Ok | AC147: Ok | AE147: Ok | AF147: Ok | AG147: Ok | AH147: Ok | AI147: Ok | AJ147: Ok | AK147: Ok | AL147: Ok | AM147: Ok | AN147: Ok | AO147: Ok | AP147: Ok | AQ147: Ok | AR147: Ok | AS147: Ok | AT147: Ok | AU147: Ok
A148: 2017SJESTurmas RecursaisJaneiro | B148: 2017Turmas RecursaisJaneiro | C148: 2017SJESTurmas Recursais | D148: 2017Turmas Recursais | E148: 2017 | F148: SJES | G148: Turmas Recursais | H148: Janeiro | I148: 397 | J148: 73 | K148: 0 | L148: 18895 | V148: 397 | W148: 73 | X148: 0 | Y148: 18895 | Z148: Ok | AA148: Ok | AB148: Ok | AC148: Ok | AE148: -1 | AF148: -10 | AG148: Ok | AH148: -1 | AI148: Ok | AJ148: -1 | AK148: Ok | AL148: Ok | AM148: -1 | AN148: Ok | AO148: Ok | AP148: Ok | AQ148: Ok | AR148: Ok | AS148: Ok | AT148: Ok | AU148: Ok
A149: 2017SJESVarasFevereiro | B149: 2017VarasFevereiro | C149: 2017SJESVaras | D149: 2017Varas | E149: 2017 | F149: SJES | G149: Varas | H149: Fevereiro | I149: 1011 | J149: 906 | K149: 367 | L149: 124801 | R149: 02Ant | S149: 02Atu | V149: 1011 | W149: 906 | X149: 367 | Y149: 124801 | Z149: Ok | AA149: Ok | AB149: Ok | AC149: Ok | AI149: Ok | AJ149: -454 | AK149: -651 | AL149: -303 | AM149: 6884 | AN149: Ok | AO149: Ok | AP149: Ok | AQ149: Ok | AR149: Ok | AS149: Ok | AT149: Ok | AU149: Ok
A150: 2017SJESJuizadosFevereiro | B150: 2017JuizadosFevereiro | C150: 2017SJESJuizados | D150: 2017Juizados | E150: 2017 | F150: SJES | G150: Juizados | H150: Fevereiro | I150: 1278 | J150: 1020 | K150: 364 | L150: 40810 | R150: 4031 | S150: 3104 | T150: =S150-R150 -> -927 | V150: 1278 | W150: 1020 | X150: 364 | Y150: 40810 | Z150: Ok | AA150: Ok | AB150: Ok | AC150: Ok | AI150: Ok | AJ150: -172 | AK150: -475 | AL150: -296 | AM150: 5563 | AN150: Ok | AO150: Ok | AP150: Ok | AQ150: Ok | AR150: Ok | AS150: Ok | AT150: Ok | AU150: Ok
A151: 2017SJESTurmas RecursaisFevereiro | B151: 2017Turmas RecursaisFevereiro | C151: 2017SJESTurmas Recursais | D151: 2017Turmas Recursais | E151: 2017 | F151: SJES | G151: Turmas Recursais | H151: Fevereiro | I151: 374 | J151: 1178 | K151: 0 | L151: 18432 | V151: 374 | W151: 1178 | X151: 0 | Y151: 18432 | Z151: Ok | AA151: Ok | AB151: Ok | AC151: Ok | AI151: Ok | AJ151: -272 | AK151: 198 | AL151: Ok | AM151: 374 | AN151: Ok | AO151: 1 | AP151: Ok | AQ151: Ok | AR151: Ok | AS151: Ok | AT151: Ok | AU151: Ok
A152: 2017SJESVarasMarço | B152: 2017VarasMarço | C152: 2017SJESVaras | D152: 2017Varas | E152: 2017 | F152: SJES | G152: Varas | H152: Março | I152: 2692 | J152: 1481 | K152: 380 | L152: 125458 | R152: 03Ant | S152: 03Atu | V152: 2692 | W152: 1481 | X152: 380 | Y152: 125458 | Z152: Ok | AA152: Ok | AB152: Ok | AC152: Ok | AJ152: 1345 | AK152: -289 | AL152: -134 | AM152: 7776 | AN152: Ok | AO152: Ok | AP152: Ok | AQ152: Ok | AR152: Ok | AS152: Ok | AT152: Ok | AU152: Ok
A153: 2017SJESJuizadosMarço | B153: 2017JuizadosMarço | C153: 2017SJESJuizados | D153: 2017Juizados | E153: 2017 | F153: SJES | G153: Juizados | H153: Março | I153: 2157 | J153: 1970 | K153: 790 | L153: 40884 | R153: 4467 | S153: 4276 | T153: =S153-R153 -> -191 | V153: 2157 | W153: 1970 | X153: 790 | Y153: 40884 | Z153: Ok | AA153: Ok | AB153: Ok | AC153: Ok | AJ153: 360 | AK153: 415 | AL153: 232 | AM153: 5247 | AN153: Ok | AO153: Ok | AP153: Ok | AQ153: Ok | AR153: Ok | AS153: Ok | AT153: Ok | AU153: Ok
A154: 2017SJESTurmas RecursaisMarço | B154: 2017Turmas RecursaisMarço | C154: 2017SJESTurmas Recursais | D154: 2017Turmas Recursais | E154: 2017 | F154: SJES | G154: Turmas Recursais | H154: Março | I154: 748 | J154: 825 | K154: 0 | L154: 18612 | V154: 748 | W154: 825 | X154: 0 | Y154: 18612 | Z154: Ok | AA154: Ok | AB154: Ok | AC154: Ok | AJ154: 365 | AK154: -322 | AL154: Ok | AM154: 774 | AN154: 4 | AO154: Ok | AP154: 1 | AQ154: Ok | AR154: Ok | AS154: Ok | AT154: Ok | AU154: Ok
A155: 2017SJESVarasAbril | B155: 2017VarasAbril | C155: 2017SJESVaras | D155: 2017Varas | E155: 2017 | F155: SJES | G155: Varas | H155: Abril | I155: 1515 | J155: 1015 | K155: 257 | L155: 125696 | R155: 04Ant | S155: 04Atu | V155: 1515 | W155: 1015 | X155: 257 | Y155: 125696 | Z155: Ok | AA155: Ok | AB155: Ok | AC155: Ok | AN155: Ok | AO155: Ok | AP155: Ok | AQ155: Ok | AR155: Ok | AS155: Ok | AT155: Ok | AU155: Ok
A156: 2017SJESJuizadosAbril | B156: 2017JuizadosAbril | C156: 2017SJESJuizados | D156: 2017Juizados | E156: 2017 | F156: SJES | G156: Juizados | H156: Abril | I156: 1667 | J156: 1031 | K156: 432 | L156: 41501 | R156: 2529 | S156: 2545 | T156: =S156-R156 -> 16 | V156: 1667 | W156: 1031 | X156: 432 | Y156: 41501 | Z156: Ok | AA156: Ok | AB156: Ok | AC156: Ok | AN156: Ok | AO156: Ok | AP156: Ok | AQ156: Ok | AR156: Ok | AS156: Ok | AT156: Ok | AU156: Ok
A157: 2017SJESTurmas RecursaisAbril | B157: 2017Turmas RecursaisAbril | C157: 2017SJESTurmas Recursais | D157: 2017Turmas Recursais | E157: 2017 | F157: SJES | G157: Turmas Recursais | H157: Abril | I157: 385 | J157: 499 | K157: 0 | L157: 18392 | V157: 385 | W157: 499 | X157: 0 | Y157: 18392 | Z157: Ok | AA157: Ok | AB157: Ok | AC157: Ok | AN157: 8 | AO157: 8 | AP157: Ok | AQ157: Ok | AR157: Ok | AS157: Ok | AT157: Ok | AU157: Ok
A158: 2017SJESVarasMaio | B158: 2017VarasMaio | C158: 2017SJESVaras | D158: 2017Varas | E158: 2017 | F158: SJES | G158: Varas | H158: Maio | I158: 1392 | J158: 1954 | K158: 431 | L158: 125499 | R158: 05Ant | S158: 05Atu | V158: 1392 | W158: 1954 | X158: 431 | Y158: 125499 | Z158: Ok | AA158: Ok | AB158: Ok | AC158: Ok | AO158: Ok | AP158: Ok | AQ158: Ok | AR158: Ok | AS158: Ok | AT158: Ok | AU158: Ok
A159: 2017SJESJuizadosMaio | B159: 2017JuizadosMaio | C159: 2017SJESJuizados | D159: 2017Juizados | E159: 2017 | F159: SJES | G159: Juizados | H159: Maio | I159: 2217 | J159: 1930 | K159: 485 | L159: 42410 | R159: 5638 | S159: 5680 | T159: =S159-R159 -> 42 | V159: 2217 | W159: 1930 | X159: 485 | Y159: 42410 | Z159: Ok | AA159: Ok | AB159: Ok | AC159: Ok | AO159: Ok | AP159: Ok | AQ159: Ok | AR159: Ok | AS159: Ok | AT159: Ok | AU159: Ok
A160: 2017SJESTurmas RecursaisMaio | B160: 2017Turmas RecursaisMaio | C160: 2017SJESTurmas Recursais | D160: 2017Turmas Recursais | E160: 2017 | F160: SJES | G160: Turmas Recursais | H160: Maio | I160: 522 | J160: 1796 | K160: 0 | L160: 18424 | V160: 522 | W160: 1796 | X160: 0 | Y160: 18424 | Z160: Ok | AA160: Ok | AB160: Ok | AC160: Ok | AO160: 42 | AP160: Ok | AQ160: Ok | AR160: Ok | AS160: Ok | AT160: Ok | AU160: Ok
A161: 2017SJESVarasJunho | B161: 2017VarasJunho | C161: 2017SJESVaras | D161: 2017Varas | E161: 2017 | F161: SJES | G161: Varas | H161: Junho | I161: 1535 | J161: 1789 | K161: 294 | L161: 125442 | R161: 06Ant | S161: 06Atu | V161: 1535 | W161: 1789 | X161: 294 | Y161: 125442 | Z161: Ok | AA161: Ok | AB161: Ok | AC161: Ok | AP161: Ok | AQ161: Ok | AR161: Ok | AS161: Ok | AT161: Ok | AU161: Ok
A162: 2017SJESJuizadosJunho | B162: 2017JuizadosJunho | C162: 2017SJESJuizados | D162: 2017Juizados | E162: 2017 | F162: SJES | G162: Juizados | H162: Junho | I162: 2080 | J162: 2014 | K162: 512 | L162: 43073 | R162: 4893 | S162: 4896 | T162: =S162-R162 -> 3 | V162: 2080 | W162: 2014 | X162: 512 | Y162: 43073 | Z162: Ok | AA162: Ok | AB162: Ok | AC162: Ok | AP162: Ok | AQ162: Ok | AR162: Ok | AS162: Ok | AT162: Ok | AU162: Ok
A163: 2017SJESTurmas RecursaisJunho | B163: 2017Turmas RecursaisJunho | C163: 2017SJESTurmas Recursais | D163: 2017Turmas Recursais | E163: 2017 | F163: SJES | G163: Turmas Recursais | H163: Junho | I163: 443 | J163: 1093 | K163: 0 | L163: 18303 | V163: 443 | W163: 1093 | X163: 0 | Y163: 18303 | Z163: Ok | AA163: Ok | AB163: Ok | AC163: Ok | AP163: 2 | AQ163: Ok | AR163: 1 | AS163: Ok | AT163: Ok | AU163: Ok
A164: 2017SJESVarasJulho | B164: 2017VarasJulho | C164: 2017SJESVaras | D164: 2017Varas | E164: 2017 | F164: SJES | G164: Varas | H164: Julho | I164: 1971 | J164: 1675 | K164: 341 | L164: 125609 | R164: 07Ant | S164: 07Atu | V164: 1971 | W164: 1675 | X164: 341 | Y164: 125609 | Z164: Ok | AA164: Ok | AB164: Ok | AC164: Ok | AQ164: Ok | AR164: Ok | AS164: Ok | AT164: Ok | AU164: Ok
A165: 2017SJESJuizadosJulho | B165: 2017JuizadosJulho | C165: 2017SJESJuizados | D165: 2017Juizados | E165: 2017 | F165: SJES | G165: Juizados | H165: Julho | I165: 2131 | J165: 1737 | K165: 633 | L165: 43285 | R165: 3849 | S165: 3853 | T165: =S165-R165 -> 4 | V165: 2131 | W165: 1737 | X165: 633 | Y165: 43285 | Z165: Ok | AA165: Ok | AB165: Ok | AC165: Ok | AQ165: Ok | AR165: Ok | AS165: Ok | AT165: Ok | AU165: Ok
A166: 2017SJESTurmas RecursaisJulho | B166: 2017Turmas RecursaisJulho | C166: 2017SJESTurmas Recursais | D166: 2017Turmas Recursais | E166: 2017 | F166: SJES | G166: Turmas Recursais | H166: Julho | I166: 653 | J166: 441 | K166: 0 | L166: 17960 | V166: 653 | W166: 441 | X166: 0 | Y166: 17960 | Z166: Ok | AA166: Ok | AB166: Ok | AC166: Ok | AQ166: 3 | AR166: 1 | AS166: Ok | AT166: Ok | AU166: Ok
A167: =E167&F167&G167&H167 -> 2017SJESVarasAgosto | B167: 2017VarasAgosto | C167: 2017SJESVaras | D167: 2017Varas | E167: 2017 | F167: SJES | G167: Varas | H167: Agosto | I167: 1805 | J167: 2815 | K167: 490 | L167: 124658 | R167: 08Ant | S167: 08Atu | V167: 1805 | W167: 2815 | X167: 490 | Y167: 124658 | Z167: Ok | AA167: Ok | AB167: Ok | AC167: Ok | AR167: Ok | AS167: Ok | AT167: Ok | AU167: Ok
A168: 2017SJESJuizadosAgosto | B168: 2017JuizadosAgosto | C168: 2017SJESJuizados | D168: 2017Juizados | E168: 2017 | F168: SJES | G168: Juizados | H168: Agosto | I168: 2071 | J168: 1976 | K168: 638 | L168: 43265 | R168: 5955 | S168: 5957 | T168: =S168-R168 -> 2 | V168: 2071 | W168: 1976 | X168: 638 | Y168: 43265 | Z168: Ok | AA168: Ok | AB168: Ok | AC168: Ok | AR168: Ok | AS168: Ok | AT168: Ok | AU168: Ok
A169: 2017SJESTurmas RecursaisAgosto | B169: 2017Turmas RecursaisAgosto | C169: 2017SJESTurmas Recursais | D169: 2017Turmas Recursais | E169: 2017 | F169: SJES | G169: Turmas Recursais | H169: Agosto | I169: 640 | J169: 1166 | K169: 0 | L169: 18050 | V169: 640 | W169: 1166 | X169: 0 | Y169: 18050 | Z169: Ok | AA169: Ok | AB169: Ok | AC169: Ok | AR169: 2 | AS169: Ok | AT169: Ok | AU169: Ok
A170: 2017SJESVarasSetembro | B170: 2017VarasSetembro | C170: 2017SJESVaras | D170: 2017Varas | E170: 2017 | F170: SJES | G170: Varas | H170: Setembro | I170: 2062 | J170: 1467 | K170: 413 | L170: 124994 | R170: 09Ant | S170: 09Atu | V170: 2062 | W170: 1467 | X170: 413 | Y170: 124994 | Z170: Ok | AA170: Ok | AB170: Ok | AC170: Ok | AS170: Ok | AT170: Ok | AU170: Ok
A171: 2017SJESJuizadosSetembro | B171: 2017JuizadosSetembro | C171: 2017SJESJuizados | D171: 2017Juizados | E171: 2017 | F171: SJES | G171: Juizados | H171: Setembro | I171: 1801 | J171: 1927 | K171: 480 | L171: 43511 | R171: 4431 | S171: 4486 | T171: =S171-R171 -> 55 | V171: 1801 | W171: 1927 | X171: 480 | Y171: 43511 | Z171: Ok | AA171: Ok | AB171: Ok | AC171: Ok | AS171: Ok | AT171: Ok | AU171: Ok
A172: 2017SJESTurmas RecursaisSetembro | B172: 2017Turmas RecursaisSetembro | C172: 2017SJESTurmas Recursais | D172: 2017Turmas Recursais | E172: 2017 | F172: SJES | G172: Turmas Recursais | H172: Setembro | I172: 460 | J172: 1092 | K172: 0 | L172: 18132 | V172: 460 | W172: 1092 | X172: 0 | Y172: 18132 | Z172: Ok | AA172: Ok | AB172: Ok | AC172: Ok | AS172: 31 | AT172: 24 | AU172: Ok
A173: 2017SJESVarasOutubro | B173: 2017VarasOutubro | C173: 2017SJESVaras | D173: 2017Varas | E173: 2017 | F173: SJES | G173: Varas | H173: Outubro | I173: 2158 | J173: 2256 | K173: 634 | L173: 124691 | R173: 10Ant | S173: 10Atu | V173: 2158 | W173: 2256 | X173: 634 | Y173: 124691 | Z173: Ok | AA173: Ok | AB173: Ok | AC173: Ok | AT173: Ok | AU173: Ok
A174: 2017SJESJuizadosOutubro | B174: 2017JuizadosOutubro | C174: 2017SJESJuizados | D174: 2017Juizados | E174: 2017 | F174: SJES | G174: Juizados | H174: Outubro | I174: 2033 | J174: 2346 | K174: 819 | L174: 43016 | R174: 5597 | S174: 5614 | T174: =S174-R174 -> 17 | V174: 2033 | W174: 2346 | X174: 819 | Y174: 43016 | Z174: Ok | AA174: Ok | AB174: Ok | AC174: Ok | AT174: Ok | AU174: Ok
A175: 2017SJESTurmas RecursaisOutubro | B175: 2017Turmas RecursaisOutubro | C175: 2017SJESTurmas Recursais | D175: =E175&G175 -> 2017Turmas Recursais | E175: 2017 | F175: SJES | G175: Turmas Recursais | H175: Outubro | I175: 833 | J175: 1012 | K175: 0 | L175: 18338 | V175: 833 | W175: 1012 | X175: 0 | Y175: 18338 | Z175: Ok | AA175: Ok | AB175: Ok | AC175: Ok | AT175: 16 | AU175: 1
A176: 2017SJESVarasNovembro | B176: 2017VarasNovembro | C176: 2017SJESVaras | D176: 2017Varas | E176: 2017 | F176: SJES | G176: Varas | H176: Novembro | I176: 2005 | J176: 1514 | K176: 384 | L176: 124728 | R176: 11Ant | S176: 11Atu | V176: 2005 | W176: 1514 | X176: 384 | Y176: 124728 | Z176: Ok | AA176: Ok | AB176: Ok | AC176: Ok | AU176: Ok
A177: 2017SJESJuizadosNovembro | B177: 2017JuizadosNovembro | C177: 2017SJESJuizados | D177: 2017Juizados | E177: 2017 | F177: SJES | G177: Juizados | H177: Novembro | I177: 1746 | J177: 1998 | K177: 596 | L177: 42917 | R177: 5008 | S177: 5009 | T177: =S177-R177 -> 1 | V177: 1746 | W177: 1998 | X177: 596 | Y177: 42917 | Z177: Ok | AA177: Ok | AB177: Ok | AC177: Ok | AU177: Ok
A178: 2017SJESTurmas RecursaisNovembro | B178: 2017Turmas RecursaisNovembro | C178: 2017SJESTurmas Recursais | D178: 2017Turmas Recursais | E178: 2017 | F178: SJES | G178: Turmas Recursais | H178: Novembro | I178: 560 | J178: 1497 | K178: 0 | L178: 18253 | V178: 560 | W178: 1497 | X178: 0 | Y178: 18253 | Z178: Ok | AA178: Ok | AB178: Ok | AC178: Ok | AU178: 1
A179: 2017SJESVarasDezembro | B179: 2017VarasDezembro | C179: 2017SJESVaras | D179: 2017Varas | E179: 2017 | F179: SJES | G179: Varas | H179: Dezembro | I179: 1747 | J179: 1180 | K179: 265 | L179: 125316 | R179: 12Ant | S179: 12Atu | V179: 1747 | W179: 1180 | X179: 265 | Y179: 125316 | Z179: Ok | AA179: Ok | AB179: Ok | AC179: Ok
A180: 2017SJESJuizadosDezembro | B180: 2017JuizadosDezembro | C180: 2017SJESJuizados | D180: 2017Juizados | E180: 2017 | F180: SJES | G180: Juizados | H180: Dezembro | I180: 1398 | J180: 1576 | K180: 566 | L180: 42922 | R180: 3907 | T180: =S180-R180 -> -3907 | V180: 1398 | W180: 1576 | X180: 566 | Y180: 42922 | Z180: Ok | AA180: Ok | AB180: Ok | AC180: Ok
A181: 2017SJESTurmas RecursaisDezembro | B181: 2017Turmas RecursaisDezembro | C181: 2017SJESTurmas Recursais | D181: 2017Turmas Recursais | E181: 2017 | F181: SJES | G181: Turmas Recursais | H181: Dezembro | I181: 587 | J181: 1151 | K181: 0 | L181: 18600 | V181: 587 | W181: 1151 | X181: 0 | Y181: 18600 | Z181: Ok | AA181: Ok | AB181: Ok | AC181: Ok
A182: 2017SJRJVarasJaneiro | B182: 2017VarasJaneiro | C182: 2017SJRJVaras | D182: 2017Varas | E182: 2017 | F182: SJRJ | G182: Varas | H182: Janeiro | I182: 7097 | J182: 3922 | K182: 1486 | L182: 595930 | R182: 01Ant | S182: 01Atu | V182: 7097 | W182: 3922 | X182: 1486 | Y182: 595930 | Z182: Ok | AA182: Ok | AB182: Ok | AC182: Ok | AE182: Ok | AF182: Ok | AG182: Ok | AH182: Ok | AI182: Ok | AJ182: Ok | AK182: Ok | AL182: Ok | AM182: Ok | AN182: Ok | AO182: Ok | AP182: Ok | AQ182: Ok | AR182: Ok | AS182: Ok | AT182: Ok | AU182: Ok
A183: 2017SJRJJuizadosJaneiro | B183: 2017JuizadosJaneiro | C183: 2017SJRJJuizados | D183: 2017Juizados | E183: 2017 | F183: SJRJ | G183: Juizados | H183: Janeiro | I183: 7710 | J183: 5798 | K183: 1546 | L183: 124454 | R183: 11210 | S183: 11436 | T183: =S183-R183 -> 226 | V183: 7710 | W183: 5798 | X183: 1546 | Y183: 124454 | Z183: Ok | AA183: Ok | AB183: Ok | AC183: Ok | AE183: Ok | AF183: Ok | AG183: Ok | AH183: Ok | AI183: Ok | AJ183: Ok | AK183: Ok | AL183: Ok | AM183: Ok | AN183: Ok | AO183: Ok | AP183: Ok | AQ183: Ok | AR183: Ok | AS183: Ok | AT183: Ok | AU183: Ok
A184: 2017SJRJTurmas RecursaisJaneiro | B184: 2017Turmas RecursaisJaneiro | C184: 2017SJRJTurmas Recursais | D184: 2017Turmas Recursais | E184: 2017 | F184: SJRJ | G184: Turmas Recursais | H184: Janeiro | I184: 1542 | J184: 1716 | K184: 0 | L184: 83276 | V184: 1542 | W184: 1716 | X184: 0 | Y184: 83276 | Z184: Ok | AA184: Ok | AB184: Ok | AC184: Ok | AE184: Ok | AF184: -196 | AG184: Ok | AH184: Ok | AI184: -7 | AJ184: Ok | AK184: 13 | AL184: Ok | AM184: Ok | AN184: 1 | AO184: 8 | AP184: Ok | AQ184: Ok | AR184: 1 | AS184: Ok | AT184: Ok | AU184: Ok
A185: 2017SJRJVarasFevereiro | B185: 2017VarasFevereiro | C185: 2017SJRJVaras | D185: 2017Varas | E185: 2017 | F185: SJRJ | G185: Varas | H185: Fevereiro | I185: 6880 | J185: 6369 | K185: 1794 | L185: 596685 | R185: 02Ant | S185: 02Atu | V185: 6880 | W185: 6369 | X185: 1794 | Y185: 596685 | Z185: Ok | AA185: Ok | AB185: Ok | AC185: Ok | AI185: Ok | AJ185: -2175 | AK185: 326 | AL185: -273 | AM185: 21759 | AN185: Ok | AO185: Ok | AP185: Ok | AQ185: Ok | AR185: Ok | AS185: Ok | AT185: Ok | AU185: Ok
A186: 2017SJRJJuizadosFevereiro | B186: 2017JuizadosFevereiro | C186: 2017SJRJJuizados | D186: 2017Juizados | E186: 2017 | F186: SJRJ | G186: Juizados | H186: Fevereiro | I186: 7601 | J186: 8561 | K186: 2648 | L186: 124108 | R186: 17997 | S186: 20734 | T186: =S186-R186 -> 2737 | V186: 7601 | W186: 8561 | X186: 2648 | Y186: 124108 | Z186: Ok | AA186: Ok | AB186: Ok | AC186: Ok | AI186: Ok | AJ186: 1096 | AK186: -111 | AL186: -9 | AM186: 23652 | AN186: Ok | AO186: Ok | AP186: Ok | AQ186: Ok | AR186: Ok | AS186: Ok | AT186: Ok | AU186: Ok
A187: 2017SJRJTurmas RecursaisFevereiro | B187: 2017Turmas RecursaisFevereiro | C187: 2017SJRJTurmas Recursais | D187: 2017Turmas Recursais | E187: 2017 | F187: SJRJ | G187: Turmas Recursais | H187: Fevereiro | I187: 2502 | J187: 5804 | K187: 0 | L187: 83042 | V187: 2502 | W187: 5804 | X187: 0 | Y187: 83042 | Z187: Ok | AA187: Ok | AB187: Ok | AC187: Ok | AI187: Ok | AJ187: -141 | AK187: 2516 | AL187: Ok | AM187: -2279 | AN187: -2 | AO187: 7 | AP187: 1 | AQ187: Ok | AR187: Ok | AS187: Ok | AT187: Ok | AU187: Ok
A188: 2017SJRJVarasMarço | B188: 2017VarasMarço | C188: 2017SJRJVaras | D188: 2017Varas | E188: 2017 | F188: SJRJ | G188: Varas | H188: Março | I188: 17346 | J188: 7022 | K188: 2478 | L188: 605160 | R188: 03Ant | S188: 03Atu | V188: 17346 | W188: 7022 | X188: 2478 | Y188: 605160 | Z188: Ok | AA188: Ok | AB188: Ok | AC188: Ok | AJ188: 6408 | AK188: -521 | AL188: 162 | AM188: 26138 | AN188: Ok | AO188: Ok | AP188: Ok | AQ188: Ok | AR188: Ok | AS188: Ok | AT188: Ok | AU188: Ok
A189: 2017SJRJJuizadosMarço | B189: 2017JuizadosMarço | C189: 2017SJRJJuizados | D189: 2017Juizados | E189: 2017 | F189: SJRJ | G189: Juizados | H189: Março | I189: 10016 | J189: 10950 | K189: 2982 | L189: 124466 | R189: 20288 | S189: 25799 | T189: =S189-R189 -> 5511 | V189: 10016 | W189: 10950 | X189: 2982 | Y189: 124466 | Z189: Ok | AA189: Ok | AB189: Ok | AC189: Ok | AJ189: 602 | AK189: 2310 | AL189: -212 | AM189: 23905 | AN189: Ok | AO189: Ok | AP189: Ok | AQ189: Ok | AR189: Ok | AS189: Ok | AT189: Ok | AU189: Ok
A190: 2017SJRJTurmas RecursaisMarço | B190: 2017Turmas RecursaisMarço | C190: 2017SJRJTurmas Recursais | D190: 2017Turmas Recursais | E190: 2017 | F190: SJRJ | G190: Turmas Recursais | H190: Março | I190: 3034 | J190: 7827 | K190: 0 | L190: 79908 | V190: 3034 | W190: 7827 | X190: 0 | Y190: 79908 | Z190: Ok | AA190: Ok | AB190: Ok | AC190: Ok | AJ190: -94 | AK190: 3667 | AL190: Ok | AM190: -6129 | AN190: Ok | AO190: 47 | AP190: 6 | AQ190: Ok | AR190: 1 | AS190: 1 | AT190: Ok | AU190: Ok
A191: 2017SJRJVarasAbril | B191: 2017VarasAbril | C191: 2017SJRJVaras | D191: 2017Varas | E191: 2017 | F191: SJRJ | G191: Varas | H191: Abril | I191: 23013 | J191: 4601 | K191: 1748 | L191: 623119 | R191: 04Ant | S191: 04Atu | V191: 23013 | W191: 4601 | X191: 1748 | Y191: 623119 | Z191: Ok | AA191: Ok | AB191: Ok | AC191: Ok | AN191: Ok | AO191: Ok | AP191: Ok | AQ191: Ok | AR191: Ok | AS191: Ok | AT191: Ok | AU191: Ok
A192: 2017SJRJJuizadosAbril | B192: 2017JuizadosAbril | C192: 2017SJRJJuizados | D192: 2017Juizados | E192: 2017 | F192: SJRJ | G192: Juizados | H192: Abril | I192: 8448 | J192: 7373 | K192: 2406 | L192: 126346 | R192: 14909 | S192: 15086 | T192: =S192-R192 -> 177 | V192: 8448 | W192: 7373 | X192: 2406 | Y192: 126346 | Z192: Ok | AA192: Ok | AB192: Ok | AC192: Ok | AN192: Ok | AO192: Ok | AP192: Ok | AQ192: Ok | AR192: Ok | AS192: Ok | AT192: Ok | AU192: Ok
A193: 2017SJRJTurmas RecursaisAbril | B193: 2017Turmas RecursaisAbril | C193: 2017SJRJTurmas Recursais | D193: 2017Turmas Recursais | E193: 2017 | F193: SJRJ | G193: Turmas Recursais | H193: Abril | I193: 2484 | J193: 3112 | K193: 0 | L193: 74658 | V193: 2484 | W193: 3112 | X193: 0 | Y193: 74658 | Z193: Ok | AA193: Ok | AB193: Ok | AC193: Ok | AN193: 93 | AO193: 70 | AP193: 12 | AQ193: 1 | AR193: 1 | AS193: Ok | AT193: Ok | AU193: Ok
A194: 2017SJRJVarasMaio | B194: =E194&G194&H194 -> 2017VarasMaio | C194: =E194&F194&G194 -> 2017SJRJVaras | D194: =E194&G194 -> 2017Varas | E194: 2017 | F194: SJRJ | G194: Varas | H194: Maio | I194: 19364 | J194: 11089 | K194: 2277 | L194: 635489 | R194: 05Ant | S194: 05Atu | V194: 19364 | W194: 11089 | X194: 2277 | Y194: 635489 | Z194: Ok | AA194: Ok | AB194: Ok | AC194: Ok | AO194: Ok | AP194: Ok | AQ194: Ok | AR194: Ok | AS194: Ok | AT194: Ok | AU194: Ok
A195: 2017SJRJJuizadosMaio | B195: 2017JuizadosMaio | C195: 2017SJRJJuizados | D195: 2017Juizados | E195: 2017 | F195: SJRJ | G195: Juizados | H195: Maio | I195: 11286 | J195: 10834 | K195: 3364 | L195: 128603 | R195: 24494 | S195: 25007 | T195: =S195-R195 -> 513 | V195: 11286 | W195: 10834 | X195: 3364 | Y195: 128603 | Z195: Ok | AA195: Ok | AB195: Ok | AC195: Ok | AO195: Ok | AP195: Ok | AQ195: Ok | AR195: Ok | AS195: Ok | AT195: Ok | AU195: Ok
A196: 2017SJRJTurmas RecursaisMaio | B196: 2017Turmas RecursaisMaio | C196: 2017SJRJTurmas Recursais | D196: 2017Turmas Recursais | E196: 2017 | F196: SJRJ | G196: Turmas Recursais | H196: Maio | I196: 3359 | J196: 3084 | K196: 0 | L196: 63441 | V196: 3359 | W196: 3084 | X196: 0 | Y196: 63441 | Z196: Ok | AA196: Ok | AB196: Ok | AC196: Ok | AO196: 439 | AP196: 28 | AQ196: 32 | AR196: -1 | AS196: 14 | AT196: 1 | AU196: Ok
A197: 2017SJRJVarasJunho | B197: 2017VarasJunho | C197: 2017SJRJVaras | D197: 2017Varas | E197: 2017 | F197: SJRJ | G197: Varas | H197: Junho | I197: 8654 | J197: 16163 | K197: 1988 | L197: 635109 | R197: 06Ant | S197: 06Atu | V197: 8654 | W197: 16163 | X197: 1988 | Y197: 635109 | Z197: Ok | AA197: Ok | AB197: Ok | AC197: Ok | AP197: Ok | AQ197: Ok | AR197: Ok | AS197: Ok | AT197: Ok | AU197: Ok
A198: 2017SJRJJuizadosJunho | B198: 2017JuizadosJunho | C198: 2017SJRJJuizados | D198: 2017Juizados | E198: 2017 | F198: SJRJ | G198: Juizados | H198: Junho | I198: 10965 | J198: 9130 | K198: 3220 | L198: 129334 | R198: 30104 | S198: 30212 | T198: =S198-R198 -> 108 | V198: 10965 | W198: 9130 | X198: 3220 | Y198: 129334 | Z198: Ok | AA198: Ok | AB198: Ok | AC198: Ok | AP198: Ok | AQ198: Ok | AR198: Ok | AS198: Ok | AT198: Ok | AU198: Ok
A199: 2017SJRJTurmas RecursaisJunho | B199: 2017Turmas RecursaisJunho | C199: 2017SJRJTurmas Recursais | D199: 2017Turmas Recursais | E199: 2017 | F199: SJRJ | G199: Turmas Recursais | H199: Junho | I199: 3194 | J199: 4919 | K199: 0 | L199: 62574 | V199: 3194 | W199: 4919 | X199: 0 | Y199: 62574 | Z199: Ok | AA199: Ok | AB199: Ok | AC199: Ok | AP199: 42 | AQ199: 53 | AR199: -1 | AS199: 13 | AT199: 1 | AU199: Ok
A200: 2017SJRJVarasJulho | B200: 2017VarasJulho | C200: 2017SJRJVaras | D200: 2017Varas | E200: 2017 | F200: SJRJ | G200: Varas | H200: Julho | I200: 9931 | J200: 14107 | K200: 2204 | L200: 632666 | R200: 07Ant | S200: 07Atu | V200: 9931 | W200: 14107 | X200: 2204 | Y200: 632666 | Z200: Ok | AA200: Ok | AB200: Ok | AC200: Ok | AQ200: Ok | AR200: Ok | AS200: Ok | AT200: Ok | AU200: Ok
... 884 more rows

Sheet DadosTD (hidden)
A1: Ano | B1: Seção Judiciária | C1: Base | D1: Tipo de Juízo | E1: Mês | F1: Dist | G1: Julg | H1: Remetidos TRF/TR | I1: Tram R
A2: 2019 | B2: SJES | C2: Apolo | D2: Varas | E2: Janeiro | F2: 188 | G2: 631 | H2: 144 | I2: 93508
A3: 2019 | B3: SJES | C3: Apolo | D3: Juizados | E3: Janeiro | F3: 0 | G3: 630 | H3: 104 | I3: 10002
A4: 2019 | B4: SJES | C4: Apolo | D4: Turmas Recursais | E4: Janeiro | F4: 103 | G4: 822 | H4: 0 | I4: 13487
A5: 2019 | B5: SJES | C5: Apolo | D5: Varas | E5: Fevereiro | F5: 189 | G5: 840 | H5: 231 | I5: 90396
A6: 2019 | B6: SJES | C6: Apolo | D6: Juizados | E6: Fevereiro | F6: 1 | G6: 459 | H6: 210 | I6: 9128
A7: 2019 | B7: SJES | C7: Apolo | D7: Turmas Recursais | E7: Fevereiro | F7: 206 | G7: 1593 | H7: 0 | I7: 12990
A8: 2019 | B8: SJES | C8: Apolo | D8: Varas | E8: Março | F8: 435 | G8: 749 | H8: 169 | I8: 88137
A9: 2019 | B9: SJES | C9: Apolo | D9: Juizados | E9: Março | F9: 2 | G9: 382 | H9: 221 | I9: 8434
A10: 2019 | B10: SJES | C10: Apolo | D10: Turmas Recursais | E10: Março | F10: 208 | G10: 836 | H10: 0 | I10: 12592
A11: 2019 | B11: SJES | C11: Apolo | D11: Varas | E11: Abril | F11: 112 | G11: 814 | H11: 243 | I11: 84572
A12: 2019 | B12: SJES | C12: Apolo | D12: Juizados | E12: Abril | F12: 3 | G12: 388 | H12: 186 | I12: 7103
A13: 2019 | B13: SJES | C13: Apolo | D13: Turmas Recursais | E13: Abril | F13: 102 | G13: 1349 | H13: 0 | I13: 11906
A14: 2019 | B14: SJES | C14: Apolo | D14: Varas | E14: Maio | F14: 524 | G14: 981 | H14: 201 | I14: 82488
A15: 2019 | B15: SJES | C15: Apolo | D15: Juizados | E15: Maio | F15: 2 | G15: 479 | H15: 111 | I15: 5742
A16: 2019 | B16: SJES | C16: Apolo | D16: Turmas Recursais | E16: Maio | F16: 112 | G16: 1447 | H16: 0 | I16: 11045
A17: 2019 | B17: SJES | C17: Apolo | D17: Varas | E17: Junho | F17: 156 | G17: 853 | H17: 92 | I17: 79541
A18: 2019 | B18: SJES | C18: Apolo | D18: Juizados | E18: Junho | F18: 1 | G18: 179 | H18: 57 | I18: 5364
A19: 2019 | B19: SJES | C19: Apolo | D19: Turmas Recursais | E19: Junho | F19: 60 | G19: 1123 | H19: 0 | I19: 10129
A20: 2019 | B20: SJES | C20: Apolo | D20: Varas | E20: Julho | F20: 118 | G20: 764 | H20: 141 | I20: 77441
A21: 2019 | B21: SJES | C21: Apolo | D21: Juizados | E21: Julho | F21: 1 | G21: 165 | H21: 66 | I21: 5522
A22: 2019 | B22: SJES | C22: Apolo | D22: Turmas Recursais | E22: Julho | F22: 54 | G22: 1070 | H22: 0 | I22: 9091
A23: 2019 | B23: SJES | C23: Apolo | D23: Varas | E23: Agosto | F23: 57 | G23: 665 | H23: 88 | I23: 63102
A24: 2019 | B24: SJES | C24: Apolo | D24: Juizados | E24: Agosto | F24: 0 | G24: 93 | H24: 24 | I24: 4882
A25: 2019 | B25: SJES | C25: Apolo | D25: Turmas Recursais | E25: Agosto | F25: 26 | G25: 1680 | H25: 0 | I25: 8570
A26: 2019 | B26: SJES | C26: Apolo | D26: Varas | E26: Setembro | F26: 65 | G26: 518 | H26: 123 | I26: 32269
A27: 2019 | B27: SJES | C27: Apolo | D27: Juizados | E27: Setembro | F27: 0 | G27: 62 | H27: 701 | I27: 4531
A28: 2019 | B28: SJES | C28: Apolo | D28: Turmas Recursais | E28: Setembro | F28: 17 | G28: 1046 | H28: 0 | I28: 7804
A29: 2019 | B29: SJES | C29: Apolo | D29: Varas | E29: Outubro | F29: 41 | G29: 287 | H29: 96 | I29: 21334
A30: 2019 | B30: SJES | C30: Apolo | D30: Juizados | E30: Outubro | F30: 1 | G30: 85 | H30: 16 | I30: 4263
A31: 2019 | B31: SJES | C31: Apolo | D31: Turmas Recursais | E31: Outubro | F31: 15 | G31: 698 | H31: 0 | I31: 7093
A32: 2019 | B32: SJES | C32: Apolo | D32: Varas | E32: Novembro | F32: 28 | G32: 240 | H32: 54 | I32: 14539
A33: 2019 | B33: SJES | C33: Apolo | D33: Juizados | E33: Novembro | F33: 1 | G33: 47 | H33: 11 | I33: 4299
A34: 2019 | B34: SJES | C34: Apolo | D34: Turmas Recursais | E34: Novembro | F34: 6 | G34: 280 | H34: 0 | I34: 6558
A35: 2019 | B35: SJES | C35: Apolo | D35: Varas | E35: Dezembro | F35: 47 | G35: 155 | H35: 51 | I35: 13705
A36: 2019 | B36: SJES | C36: Apolo | D36: Juizados | E36: Dezembro | F36: 1 | G36: 47 | H36: 9 | I36: 4559
A37: 2019 | B37: SJES | C37: Apolo | D37: Turmas Recursais | E37: Dezembro | F37: 12 | G37: 425 | H37: 0 | I37: 5943
A38: 2019 | B38: SJES | C38: Eproc | D38: Varas | E38: Janeiro | F38: 1347 | G38: 285 | H38: 354 | I38: 33235
A39: 2019 | B39: SJES | C39: Eproc | D39: Juizados | E39: Janeiro | F39: 1623 | G39: 1252 | H39: 88 | I39: 21795
A40: 2019 | B40: SJES | C40: Eproc | D40: Turmas Recursais | E40: Janeiro | F40: 286 | G40: 190 | H40: 0 | I40: 1458
A41: 2019 | B41: SJES | C41: Eproc | D41: Varas | E41: Fevereiro | F41: 1506 | G41: 634 | H41: 529 | I41: 36336
A42: 2019 | B42: SJES | C42: Eproc | D42: Juizados | E42: Fevereiro | F42: 2115 | G42: 1773 | H42: 231 | I42: 22358
A43: 2019 | B43: SJES | C43: Eproc | D43: Turmas Recursais | E43: Fevereiro | F43: 536 | G43: 155 | H43: 0 | I43: 1931
A44: 2019 | B44: SJES | C44: Eproc | D44: Varas | E44: Março | F44: 1383 | G44: 627 | H44: 451 | I44: 38713
A45: 2019 | B45: SJES | C45: Eproc | D45: Juizados | E45: Março | F45: 1988 | G45: 1861 | H45: 151 | I45: 23019
A46: 2019 | B46: SJES | C46: Eproc | D46: Turmas Recursais | E46: Março | F46: 432 | G46: 99 | H46: 0 | I46: 2251
A47: 2019 | B47: SJES | C47: Eproc | D47: Varas | E47: Abril | F47: 1420 | G47: 843 | H47: 675 | I47: 41798
A48: 2019 | B48: SJES | C48: Eproc | D48: Juizados | E48: Abril | F48: 2197 | G48: 1811 | H48: 239 | I48: 24607
A49: 2019 | B49: SJES | C49: Eproc | D49: Turmas Recursais | E49: Abril | F49: 641 | G49: 308 | H49: 0 | I49: 2812
A50: 2019 | B50: SJES | C50: Eproc | D50: Varas | E50: Maio | F50: 1751 | G50: 1124 | H50: 754 | I50: 43714
A51: 2019 | B51: SJES | C51: Eproc | D51: Juizados | E51: Maio | F51: 2520 | G51: 2348 | H51: 323 | I51: 26621
A52: 2019 | B52: SJES | C52: Eproc | D52: Turmas Recursais | E52: Maio | F52: 823 | G52: 273 | H52: 0 | I52: 3488
A53: 2019 | B53: SJES | C53: Eproc | D53: Varas | E53: Junho | F53: 2173 | G53: 981 | H53: 624 | I53: 47106
A54: 2019 | B54: SJES | C54: Eproc | D54: Juizados | E54: Junho | F54: 1856 | G54: 2029 | H54: 437 | I54: 26877
A55: 2019 | B55: SJES | C55: Eproc | D55: Turmas Recursais | E55: Junho | F55: 874 | G55: 492 | H55: 0 | I55: 4096
A56: 2019 | B56: SJES | C56: Eproc | D56: Varas | E56: Julho | F56: 2311 | G56: 1345 | H56: 862 | I56: 49279
A57: 2019 | B57: SJES | C57: Eproc | D57: Juizados | E57: Julho | F57: 2635 | G57: 2267 | H57: 572 | I57: 27705
A58: 2019 | B58: SJES | C58: Eproc | D58: Turmas Recursais | E58: Julho | F58: 1076 | G58: 670 | H58: 0 | I58: 4699
A59: 2019 | B59: SJES | C59: Eproc | D59: Varas | E59: Agosto | F59: 1929 | G59: 1817 | H59: 755 | I59: 63204
A60: 2019 | B60: SJES | C60: Eproc | D60: Juizados | E60: Agosto | F60: 2512 | G60: 2462 | H60: 424 | I60: 28600
A61: 2019 | B61: SJES | C61: Eproc | D61: Turmas Recursais | E61: Agosto | F61: 887 | G61: 886 | H61: 0 | I61: 5176
A62: 2019 | B62: SJES | C62: Eproc | D62: Varas | E62: Setembro | F62: 1765 | G62: 1688 | H62: 761 | I62: 93354
A63: 2019 | B63: SJES | C63: Eproc | D63: Juizados | E63: Setembro | F63: 2479 | G63: 2611 | H63: 457 | I63: 28941
A64: 2019 | B64: SJES | C64: Eproc | D64: Turmas Recursais | E64: Setembro | F64: 870 | G64: 900 | H64: 0 | I64: 5523
A65: 2019 | B65: SJES | C65: Eproc | D65: Varas | E65: Outubro | F65: 2068 | G65: 1701 | H65: 774 | I65: 105883
A66: 2019 | B66: SJES | C66: Eproc | D66: Juizados | E66: Outubro | F66: 3350 | G66: 2488 | H66: 526 | I66: 30209
A67: 2019 | B67: SJES | C67: Eproc | D67: Turmas Recursais | E67: Outubro | F67: 899 | G67: 943 | H67: 0 | I67: 5647
A68: 2019 | B68: SJES | C68: Eproc | D68: Varas | E68: Novembro | F68: 2713 | G68: 1535 | H68: 833 | I68: 111359
A69: 2019 | B69: SJES | C69: Eproc | D69: Juizados | E69: Novembro | F69: 6375 | G69: 2471 | H69: 496 | I69: 34975
A70: 2019 | B70: SJES | C70: Eproc | D70: Turmas Recursais | E70: Novembro | F70: 935 | G70: 945 | H70: 0 | I70: 5829
A71: 2019 | B71: SJES | C71: Eproc | D71: Varas | E71: Dezembro | F71: 2359 | G71: 1343 | H71: 563 | I71: 112998
A72: 2019 | B72: SJES | C72: Eproc | D72: Juizados | E72: Dezembro | F72: 2366 | G72: 1484 | H72: 341 | I72: 36203
A73: 2019 | B73: SJES | C73: Eproc | D73: Turmas Recursais | E73: Dezembro | F73: 596 | G73: 608 | H73: 0 | I73: 5414
A74: 2019 | B74: SJRJ | C74: Apolo | D74: Varas | E74: Janeiro | F74: 827 | G74: 4735 | H74: 1009 | I74: 513561
A75: 2019 | B75: SJRJ | C75: Apolo | D75: Juizados | E75: Janeiro | F75: 6 | G75: 2186 | H75: 592 | I75: 33022
A76: 2019 | B76: SJRJ | C76: Apolo | D76: Turmas Recursais | E76: Janeiro | F76: 1034 | G76: 1316 | H76: 0 | I76: 50625
A77: 2019 | B77: SJRJ | C77: Apolo | D77: Varas | E77: Fevereiro | F77: 816 | G77: 5988 | H77: 1030 | I77: 481199
A78: 2019 | B78: SJRJ | C78: Apolo | D78: Juizados | E78: Fevereiro | F78: 3 | G78: 1415 | H78: 632 | I78: 24520
A79: 2019 | B79: SJRJ | C79: Apolo | D79: Turmas Recursais | E79: Fevereiro | F79: 265 | G79: 2355 | H79: 0 | I79: 48799
A80: 2019 | B80: SJRJ | C80: Apolo | D80: Varas | E80: Março | F80: 616 | G80: 4023 | H80: 797 | I80: 460944
A81: 2019 | B81: SJRJ | C81: Apolo | D81: Juizados | E81: Março | F81: 1 | G81: 867 | H81: 331 | I81: 21189
A82: 2019 | B82: SJRJ | C82: Apolo | D82: Turmas Recursais | E82: Março | F82: 492 | G82: 2338 | H82: 0 | I82: 47420
A83: 2019 | B83: SJRJ | C83: Apolo | D83: Varas | E83: Abril | F83: 641 | G83: 4226 | H83: 771 | I83: 436204
A84: 2019 | B84: SJRJ | C84: Apolo | D84: Juizados | E84: Abril | F84: 2 | G84: 597 | H84: 267 | I84: 18944
A85: 2019 | B85: SJRJ | C85: Apolo | D85: Turmas Recursais | E85: Abril | F85: 473 | G85: 2011 | H85: 0 | I85: 46210
A86: 2019 | B86: SJRJ | C86: Apolo | D86: Varas | E86: Maio | F86: 821 | G86: 5621 | H86: 1045 | I86: 401153
A87: 2019 | B87: SJRJ | C87: Apolo | D87: Juizados | E87: Maio | F87: 3 | G87: 776 | H87: 273 | I87: 16638
A88: 2019 | B88: SJRJ | C88: Apolo | D88: Turmas Recursais | E88: Maio | F88: 277 | G88: 13070 | H88: 0 | I88: 45393
A89: 2019 | B89: SJRJ | C89: Apolo | D89: Varas | E89: Junho | F89: 551 | G89: 3266 | H89: 680 | I89: 268732
A90: 2019 | B90: SJRJ | C90: Apolo | D90: Juizados | E90: Junho | F90: 5 | G90: 538 | H90: 162 | I90: 18370
A91: 2019 | B91: SJRJ | C91: Apolo | D91: Turmas Recursais | E91: Junho | F91: 164 | G91: 2398 | H91: 0 | I91: 39786
A92: 2019 | B92: SJRJ | C92: Apolo | D92: Varas | E92: Julho | F92: 760 | G92: 3973 | H92: 659 | I92: 258410
A93: 2019 | B93: SJRJ | C93: Apolo | D93: Juizados | E93: Julho | F93: 2 | G93: 983 | H93: 174 | I93: 20586
A94: 2019 | B94: SJRJ | C94: Apolo | D94: Turmas Recursais | E94: Julho | F94: 142 | G94: 1747 | H94: 0 | I94: 33433
A95: 2019 | B95: SJRJ | C95: Apolo | D95: Varas | E95: Agosto | F95: 640 | G95: 4279 | H95: 542 | I95: 154374
A96: 2019 | B96: SJRJ | C96: Apolo | D96: Juizados | E96: Agosto | F96: 9 | G96: 913 | H96: 151 | I96: 19869
A97: 2019 | B97: SJRJ | C97: Apolo | D97: Turmas Recursais | E97: Agosto | F97: 124 | G97: 1300 | H97: 0 | I97: 29722
A98: 2019 | B98: SJRJ | C98: Apolo | D98: Varas | E98: Setembro | F98: 673 | G98: 2512 | H98: 397 | I98: 132698
A99: 2019 | B99: SJRJ | C99: Apolo | D99: Juizados | E99: Setembro | F99: 4 | G99: 1043 | H99: 142 | I99: 21248
A100: 2019 | B100: SJRJ | C100: Apolo | D100: Turmas Recursais | E100: Setembro | F100: 91 | G100: 916 | H100: 0 | I100: 26449
A101: 2019 | B101: SJRJ | C101: Apolo | D101: Varas | E101: Outubro | F101: 567 | G101: 2358 | H101: 442 | I101: 118947
A102: 2019 | B102: SJRJ | C102: Apolo | D102: Juizados | E102: Outubro | F102: 5 | G102: 1369 | H102: 144 | I102: 18345
A103: 2019 | B103: SJRJ | C103: Apolo | D103: Turmas Recursais | E103: Outubro | F103: 132 | G103: 806 | H103: 0 | I103: 25098
A104: 2019 | B104: SJRJ | C104: Apolo | D104: Varas | E104: Novembro | F104: 562 | G104: 1323 | H104: 243 | I104: 109315
A105: 2019 | B105: SJRJ | C105: Apolo | D105: Juizados | E105: Novembro | F105: 2 | G105: 480 | H105: 85 | I105: 16675
A106: 2019 | B106: SJRJ | C106: Apolo | D106: Turmas Recursais | E106: Novembro | F106: 100 | G106: 721 | H106: 0 | I106: 24537
A107: 2019 | B107: SJRJ | C107: Apolo | D107: Varas | E107: Dezembro | F107: 485 | G107: 1067 | H107: 191 | I107: 100231
A108: 2019 | B108: SJRJ | C108: Apolo | D108: Juizados | E108: Dezembro | F108: 3 | G108: 319 | H108: 153 | I108: 15130
A109: 2019 | B109: SJRJ | C109: Apolo | D109: Turmas Recursais | E109: Dezembro | F109: 63 | G109: 533 | H109: 0 | I109: 24048
A110: 2019 | B110: SJRJ | C110: Eproc | D110: Varas | E110: Janeiro | F110: 4840 | G110: 1134 | H110: 1446 | I110: 75081
A111: 2019 | B111: SJRJ | C111: Eproc | D111: Juizados | E111: Janeiro | F111: 6950 | G111: 6294 | H111: 369 | I111: 84475
A112: 2019 | B112: SJRJ | C112: Eproc | D112: Turmas Recursais | E112: Janeiro | F112: 1536 | G112: 664 | H112: 0 | I112: 6924
A113: 2019 | B113: SJRJ | C113: Eproc | D113: Varas | E113: Fevereiro | F113: 6355 | G113: 2828 | H113: 3027 | I113: 106459
A114: 2019 | B114: SJRJ | C114: Eproc | D114: Juizados | E114: Fevereiro | F114: 9717 | G114: 9600 | H114: 765 | I114: 89246
A115: 2019 | B115: SJRJ | C115: Eproc | D115: Turmas Recursais | E115: Fevereiro | F115: 3118 | G115: 860 | H115: 0 | I115: 9296
A116: 2019 | B116: SJRJ | C116: Eproc | D116: Varas | E116: Março | F116: 11446 | G116: 2814 | H116: 2545 | I116: 132396
A117: 2019 | B117: SJRJ | C117: Eproc | D117: Juizados | E117: Março | F117: 8355 | G117: 8220 | H117: 568 | I117: 91926
A118: 2019 | B118: SJRJ | C118: Eproc | D118: Turmas Recursais | E118: Março | F118: 2419 | G118: 1860 | H118: 0 | I118: 10848
A119: 2019 | B119: SJRJ | C119: Eproc | D119: Varas | E119: Abril | F119: 6743 | G119: 3283 | H119: 2746 | I119: 156924
A120: 2019 | B120: SJRJ | C120: Eproc | D120: Juizados | E120: Abril | F120: 9609 | G120: 8286 | H120: 573 | I120: 94920
